Workbook

Sheet C.C.U
C1: DADOS E INFORMAÇÕES COMUM A TODAS AS COMPOSIÇÕES ANALÍTICAS:
C3: ='ORÇ. GERAL'!B4 -> EXECUÇÃO DE OBRAS E SERVIÇOS DE RECUPERAÇÃO PARCIAL DO DIQUE DE PROTEÇÃO E RECUPERAÇÃO DOS CANAIS DE IRRIGAÇÃO DO PERÍMETRO IRRIGADO DO ITIÚBA (canal adutor leste, P12, S1P12 e S2P12) E DOS CANAIS DE IRRIGAÇÃO (CLI e CLII) DO PERÍMETRO IRRIGADO DO BOACICA. | G3: BDI SERVIÇOS (%) = | I3: ='BDI SERVIÇOS'!E32 -> 0.2101044699
C4: CODEVASF | G4: BDI FORNEC. (%)= | I4: ='BDI FORNECIMENTO'!E27 -> 0.1326760675
C5: SINAPI:Abril/2020 (Alagoas/AL) - NÃO DESONERADO
C6: DATA: ANO 2020
C7: DISCRIMINAÇÃO | D7: SINAPI/ORSE /DNIT/COTAÇÃO | E7: UNID | G7: R$ / UNID ( S/ BDI) | H7: PROD | J7: R$ / UNID ( C/ BDI)
C9: =C13 -> SERVIÇO: LIMPEZA MANUAL DE VEGETAÇÃO EM TERRENO COM ENXADA. | D9: =I13 -> CAC-001 | E9: =L13 -> M2 | F9: C. Unit. = | G9: =L35 -> 2.28 | I9: P. Unit.= | J9: =L38 -> 2.759038191 | K9: =$C$5 -> SINAPI:Abril/2020 (Alagoas/AL) - NÃO DESONERADO
C10: COMPOSIÇÃO ANALÍTICA DE CUSTO
C12: =$C$3 -> EXECUÇÃO DE OBRAS E SERVIÇOS DE RECUPERAÇÃO PARCIAL DO DIQUE DE PROTEÇÃO E RECUPERAÇÃO DOS CANAIS DE IRRIGAÇÃO DO PERÍMETRO IRRIGADO DO ITIÚBA (canal adutor leste, P12, S1P12 e S2P12) E DOS CANAIS DE IRRIGAÇÃO (CLI e CLII) DO PERÍMETRO IRRIGADO DO BOACICA. | H12: =$C$4 -> CODEVASF | K12: =$C$6 -> DATA: ANO 2020
C13: SERVIÇO: LIMPEZA MANUAL DE VEGETAÇÃO EM TERRENO COM ENXADA. | H13: COD: | I13: CAC-001 | K13: UNIDADE: | L13: M2
C15: SERVIÇOS - COMPOSIÇÕES AUXILIARES ............................................................................................................................................................................ | K15: SUB-TOTAL (1) = | L15: =SUM(L17:L18) -> 2.28
C16: DISCRIMINAÇÃO | D16: SINAPI | E16: UNID | G16: QTDE | H16: PROD | I16: IMPROD | J16: P.UNIT. PROD | K16: P.UNIT. IMPR | L16: P.TOTAL
C17: LIMPEZA MANUAL DE VEGETAÇÃO EM TERRENO COM ENXADA.AF_05/2018 | D17: 98524 | E17: M2 | G17: 1 | J17: 2.28 | L17: =G17*J17 -> 2.28
L18: =G18*J18 -> 0
C20: EQUIPAMENTO ............................................................................................................................................................................................................................. | K20: SUB-TOTAL (2) = | L20: =SUM(L22:L23) -> 0
C21: DISCRIMINAÇÃO | D21: SINAPI | E21: UNID | G21: QTDE | H21: PROD | I21: IMPROD | J21: P.UNIT. PROD | K21: P.UNIT. IMPR | L21: P.TOTAL
L22: =G22*J22 -> 0
L23: =G23*J23 -> 0
C25: MATERIAL ........................................................................................................................................................................................................................................ | K25: SUB-TOTAL (3) = | L25: =SUM(L27:L28) -> 0
C26: DISCRIMINAÇÃO | D26: SINAPI | E26: UNID | G26: QTDE | H26: PROD | I26: IMPROD | J26: P.UNIT. PROD | K26: P.UNIT. IMPR | L26: P.TOTAL
L27: =G27*J27 -> 0
L28: =G28*J28 -> 0
C30: MÃO DE OBRA ................................................................................................................................................................................................................................. | K30: SUB-TOTAL (4) = | L30: =SUM(L32:L33) -> 0
C31: DISCRIMINAÇÃO | D31: SINAPI | E31: UNID | G31: QTDE | H31: PROD | I31: IMPROD | J31: P.UNIT. PROD | K31: P.UNIT. IMPR | L31: P.TOTAL
L32: =G32*J32 -> 0
L33: =G33*J33 -> 0
C35: OBSERVAÇÕES: | D35: PROD DA EQUIPE = | G35: 1 | K35: CUSTO (SUB-TOTAL 1 + 2 + 3 + 4) = | L35: =L30+L25+L15+L20 -> 2.28
D36: RESP. TÉCNICO: | K36: TOTAL - R$ = | L36: =L35/G35 -> 2.28
K37: BDI (%) = | L37: =$I$3 -> 0.2101044699
K38: TOTAL DO SERVIÇO - R$ = | L38: =L36*L37+L36 -> 2.759038191
C40: =C44 -> SERVIÇO: LOCACAO E NIVELAMENTO DE REDE DE CANAIS COLETORES DE IRRIGAÇÃOCOM AUXILIO DE EQUIPAMENTO TOPOGRAFICO | D40: =I44 -> CAC-002 | E40: =L44 -> M | F40: C. Unit. = | G40: =L66 -> 2.00526 | I40: P. Unit.= | J40: =L68 -> 2.426574089 | K40: =$C$5 -> SINAPI:Abril/2020 (Alagoas/AL) - NÃO DESONERADO
C41: COMPOSIÇÃO ANALÍTICA DE CUSTO
C43: =$C$3 -> EXECUÇÃO DE OBRAS E SERVIÇOS DE RECUPERAÇÃO PARCIAL DO DIQUE DE PROTEÇÃO E RECUPERAÇÃO DOS CANAIS DE IRRIGAÇÃO DO PERÍMETRO IRRIGADO DO ITIÚBA (canal adutor leste, P12, S1P12 e S2P12) E DOS CANAIS DE IRRIGAÇÃO (CLI e CLII) DO PERÍMETRO IRRIGADO DO BOACICA. | H43: =$C$4 -> CODEVASF | K43: =$C$6 -> DATA: ANO 2020
C44: SERVIÇO: LOCACAO E NIVELAMENTO DE REDE DE CANAIS COLETORES DE IRRIGAÇÃOCOM AUXILIO DE EQUIPAMENTO TOPOGRAFICO | H44: COD: | I44: CAC-002 | K44: UNIDADE: | L44: M
C46: SERVIÇOS - COMPOSIÇÕES AUXILIARES ............................................................................................................................................................................ | K46: SUB-TOTAL (1) = | L46: =SUM(L48:L49) -> 0
C47: DISCRIMINAÇÃO | D47: SINAPI | E47: UNID | G47: QTDE | H47: PROD | I47: IMPROD | J47: P.UNIT. PROD | K47: P.UNIT. IMPR | L47: P.TOTAL
L48: =G48*J48 -> 0
L49: =G49*J49 -> 0
C51: EQUIPAMENTO ............................................................................................................................................................................................................................. | K51: SUB-TOTAL (2) = | L51: =SUM(L53:L54) -> 0.2724
C52: DISCRIMINAÇÃO | D52: SINAPI | E52: UNID | G52: QTDE | H52: PROD | I52: IMPROD | J52: P.UNIT. PROD | K52: P.UNIT. IMPR | L52: P.TOTAL
C53: LOCACAO DE TEODOLITO ELETRONICO, PRECISAO ANGULAR DE 5 A 7 SEGUNDOS, INCLUINDO TRIPE | D53: 7247 | E53: H | G53: 0.12 | J53: 2.27 | L53: =G53*J53 -> 0.2724
L54: =G54*J54 -> 0
C56: MATERIAL ........................................................................................................................................................................................................................................ | K56: SUB-TOTAL (3) = | L56: =SUM(L58:L58) -> 0.686
C57: DISCRIMINAÇÃO | D57: SINAPI | E57: UNID | G57: QTDE | H57: PROD | I57: IMPROD | J57: P.UNIT. PROD | K57: P.UNIT. IMPR | L57: P.TOTAL
C58: SARRAFO DE MADEIRA NAO APARELHADA *2,5 X 7,5* CM (1 X 3 ") PINUS, MISTA OU EQUIVALENTE DA REGIAO | D58: 20206 | E58: M | G58: 0.1 | J58: 6.86 | L58: =G58*J58 -> 0.686
C60: MÃO DE OBRA ................................................................................................................................................................................................................................. | K60: SUB-TOTAL (4) = | L60: =SUM(L62:L63) -> 1.04686
C61: DISCRIMINAÇÃO | D61: SINAPI | E61: UNID | G61: QTDE | H61: PROD | I61: IMPROD | J61: P.UNIT. PROD | K61: P.UNIT. IMPR | L61: P.TOTAL
C62: AUXILIAR DE TOPÓGRAFO COM ENCARGOS COMPLEMENTARES | D62: 88253 | E62: H | G62: 0.034 | J62: 14.84 | L62: =G62*J62 -> 0.50456
C63: TOPOGRAFO COM ENCARGOS COMPLEMENTARES | D63: 90781 | E63: H | G63: 0.017 | J63: 31.9 | L63: =G63*J63 -> 0.5423
C65: OBSERVAÇÕES: | D65: PROD DA EQUIPE = | G65: 1 | K65: CUSTO (SUB-TOTAL 1 + 2 + 3 + 4) = | L65: =L60+L56+L46+L51 -> 2.00526
D66: RESP. TÉCNICO: | K66: TOTAL - R$ = | L66: =L65/G65 -> 2.00526
K67: BDI (%) = | L67: =$I$3 -> 0.2101044699
K68: TOTAL DO SERVIÇO - R$ = | L68: =L66*L67+L66 -> 2.426574089
C70: =C74 -> SERVIÇO: DEMOLIÇÃO DE PLACAS DE CONCRETO (MECANICAMENTE) | D70: =I74 -> CAC-003 | E70: =L74 -> M3 | F70: C. Unit. = | G70: =L97 -> 42.2685 | I70: P. Unit.= | J70: =L99 -> 51.14930079 | K70: =$C$5 -> SINAPI:Abril/2020 (Alagoas/AL) - NÃO DESONERADO
C71: COMPOSIÇÃO ANALÍTICA DE CUSTO
C73: =$C$3 -> EXECUÇÃO DE OBRAS E SERVIÇOS DE RECUPERAÇÃO PARCIAL DO DIQUE DE PROTEÇÃO E RECUPERAÇÃO DOS CANAIS DE IRRIGAÇÃO DO PERÍMETRO IRRIGADO DO ITIÚBA (canal adutor leste, P12, S1P12 e S2P12) E DOS CANAIS DE IRRIGAÇÃO (CLI e CLII) DO PERÍMETRO IRRIGADO DO BOACICA. | H73: =$C$4 -> CODEVASF | K73: =$C$6 -> DATA: ANO 2020
C74: SERVIÇO: DEMOLIÇÃO DE PLACAS DE CONCRETO (MECANICAMENTE) | H74: COD: | I74: CAC-003 | K74: UNIDADE: | L74: M3
C76: SERVIÇOS - COMPOSIÇÕES AUXILIARES ............................................................................................................................................................................ | K76: SUB-TOTAL (1) = | L76: =SUM(L78:L79) -> 0
C77: DISCRIMINAÇÃO | D77: ORSE | E77: UNID | G77: QTDE | H77: PROD | I77: IMPROD | J77: P.UNIT. PROD | K77: P.UNIT. IMPR | L77: P.TOTAL
L79: =G79*J79 -> 0
C81: EQUIPAMENTO ............................................................................................................................................................................................................................. | K81: SUB-TOTAL (2) = | L81: =SUM(L83:L84) -> 42.2685
C82: DISCRIMINAÇÃO | D82: SINAPI | E82: UNID | G82: QTDE | H82: PROD | I82: IMPROD | J82: P.UNIT. PROD | K82: P.UNIT. IMPR | L82: P.TOTAL
C83: RETROESCAVADEIRA SOBRE RODAS COM CARREGADEIRA, TRAÇÃO 4X2, POTÊNCIA LÍQ. 79 HP, CAÇAMBA CARREG. CAP. MÍN. 1 M3, CAÇAMBA RETRO CAP. 0,20 M3,PESO OPERACIONAL MÍN. 6.570 KG, PROFUNDIDADE ESCAVAÇÃO MÁX. 4,37 M - CHP DIURNO. AF_06/2014 | D83: 5680 | E83: CHP | G83: 0.45 | J83: 77.34 | L83: =G83*J83 -> 34.803
C84: RETROESCAVADEIRA SOBRE RODAS COM CARREGADEIRA, TRAÇÃO 4X2, POTÊNCIA LÍQ. 79 HP, CAÇAMBA CARREG. CAP. MÍN. 1 M3, CAÇAMBA RETRO CAP. 0,20 M3,PESO OPERACIONAL MÍN. 6.570 KG, PROFUNDIDADE ESCAVAÇÃO MÁX. 4,37 M - CHP DIURNO. AF_06/2014 | D84: 5681 | E84: CHI | G84: 0.225 | K84: 33.18 | L84: =G84*K84 -> 7.4655
C86: MATERIAL ........................................................................................................................................................................................................................................ | K86: SUB-TOTAL (3) = | L86: =SUM(L88:L89) -> 0
C87: DISCRIMINAÇÃO | D87: SINAPI | E87: UNID | G87: QTDE | H87: PROD | I87: IMPROD | J87: P.UNIT. PROD | K87: P.UNIT. IMPR | L87: P.TOTAL
L88: =G88*J88 -> 0
L89: =G89*J89 -> 0
C91: MÃO DE OBRA ................................................................................................................................................................................................................................. | K91: SUB-TOTAL (4) = | L91: =SUM(L93:L94) -> 0
C92: DISCRIMINAÇÃO | D92: SINAPI | E92: UNID | G92: QTDE | H92: PROD | I92: IMPROD | J92: P.UNIT. PROD | K92: P.UNIT. IMPR | L92: P.TOTAL
L94: =G94*J94 -> 0
C96: OBSERVAÇÕES: | D96: PROD DA EQUIPE = | G96: 1 | K96: CUSTO (SUB-TOTAL 1 + 2 + 3 + 4) = | L96: =L91+L86+L76+L81 -> 42.2685
D97: RESP. TÉCNICO: | K97: TOTAL - R$ = | L97: =L96/G96 -> 42.2685
K98: BDI (%) = | L98: =$I$3 -> 0.2101044699
K99: TOTAL DO SERVIÇO - R$ = | L99: =L97*L98+L97 -> 51.14930079
C101: =C105 -> SERVIÇO: CARGA, TRANSPORTE ATÉ 1 KM E DESCARGA DE ENTULHO DE CONCRETO ARMADO | D101: =I105 -> CAC-004 | E101: =L105 -> M3 | I101: P. Unit.= | J101: =L129 -> 0 | K101: =$C$5 -> SINAPI:Abril/2020 (Alagoas/AL) - NÃO DESONERADO
C102: COMPOSIÇÃO ANALÍTICA DE CUSTO
C104: =$C$3 -> EXECUÇÃO DE OBRAS E SERVIÇOS DE RECUPERAÇÃO PARCIAL DO DIQUE DE PROTEÇÃO E RECUPERAÇÃO DOS CANAIS DE IRRIGAÇÃO DO PERÍMETRO IRRIGADO DO ITIÚBA (canal adutor leste, P12, S1P12 e S2P12) E DOS CANAIS DE IRRIGAÇÃO (CLI e CLII) DO PERÍMETRO IRRIGADO DO BOACICA. | H104: =$C$4 -> CODEVASF | K104: =$C$6 -> DATA: ANO 2020
C105: SERVIÇO: CARGA, TRANSPORTE ATÉ 1 KM E DESCARGA DE ENTULHO DE CONCRETO ARMADO | H105: COD: | I105: CAC-004 | K105: UNIDADE: | L105: M3
C107: SERVIÇOS - COMPOSIÇÕES AUXILIARES ............................................................................................................................................................................ | K107: SUB-TOTAL (1) = | L107: =SUM(L109:L111) -> 0
C108: DISCRIMINAÇÃO | D108: SINAPI | E108: UNID | G108: QTDE | H108: PROD | I108: IMPROD | J108: P.UNIT. PROD | K108: P.UNIT. IMPR | L108: P.TOTAL
C109: CARGA, MANOBRAS E DESCARGA DE MATERIAIS DIVERSOS, COM CAMINHAO BASCULANTE 6M3 (CARGA E DESCARGA MANUAIS) | D109: 72895 | E109: M3 | G109: 0.8 | J109: =IFERROR(VLOOKUP(D109,$D$7:$J$8,6,0),0) -> 0 | L109: =G109*J109 -> 0
C110: CARGA MANUAL DE ENTULHO EM CAMINHAO BASCULANTE 6 M3 | D110: 72897 | E110: M3 | G110: 0.2 | J110: =IFERROR(VLOOKUP(D110,$D$7:$J$8,6,0),0) -> 0 | L110: =G110*J110 -> 0
L111: =G111*J111 -> 0
C113: EQUIPAMENTO ............................................................................................................................................................................................................................. | K113: SUB-TOTAL (2) = | L113: =SUM(L115:L116) -> 0
C114: DISCRIMINAÇÃO | D114: SINAPI | E114: UNID | G114: QTDE | H114: PROD | I114: IMPROD | J114: P.UNIT. PROD | K114: P.UNIT. IMPR | L114: P.TOTAL
L115: =G115*J115 -> 0
L116: =G116*J116 -> 0
C118: MATERIAL ........................................................................................................................................................................................................................................ | K118: SUB-TOTAL (3) = | L118: =SUM(L120:L121) -> 0
C119: DISCRIMINAÇÃO | D119: SINAPI | E119: UNID | G119: QTDE | H119: PROD | I119: IMPROD | J119: P.UNIT. PROD | K119: P.UNIT. IMPR | L119: P.TOTAL
L120: =G120*J120 -> 0
L121: =G121*J121 -> 0
C123: MÃO DE OBRA ................................................................................................................................................................................................................................. | K123: SUB-TOTAL (4) = | L123: =SUM(L125:L126) -> 0
C124: DISCRIMINAÇÃO | D124: SINAPI | E124: UNID | G124: QTDE | H124: PROD | I124: IMPROD | J124: P.UNIT. PROD | K124: P.UNIT. IMPR | L124: P.TOTAL
L125: =G125*J125 -> 0
L126: =G126*J126 -> 0
C128: OBSERVAÇÕES: | D128: PROD DA EQUIPE = | G128: 1 | K128: CUSTO (SUB-TOTAL 1 + 2 + 3 + 4) = | L128: =L123+L118+L107+L113 -> 0
D129: RESP. TÉCNICO: | K129: TOTAL - R$ = | L129: =L128/G128 -> 0
K130: BDI (%) = | L130: =$I$3 -> 0.2101044699
K131: TOTAL DO SERVIÇO - R$ = | L131: =L129*L130+L129 -> 0
C133: =C137 -> SERVIÇO: CARGA E DESCARGA MECANIZADAS DE ENTULHO EM CAMINHAO BASCULANTE 6 M3 (C/ RETROESCAVADEIRA) | D133: =I137 -> CAC-005 | E133: =L137 -> M3 | F133: C. Unit. = | G133: =L160 -> 3.0725 | I133: P. Unit.= | J133: =L162 -> 3.718045984 | K133: =$C$5 -> SINAPI:Abril/2020 (Alagoas/AL) - NÃO DESONERADO
C134: COMPOSIÇÃO ANALÍTICA DE CUSTO
C136: =$C$3 -> EXECUÇÃO DE OBRAS E SERVIÇOS DE RECUPERAÇÃO PARCIAL DO DIQUE DE PROTEÇÃO E RECUPERAÇÃO DOS CANAIS DE IRRIGAÇÃO DO PERÍMETRO IRRIGADO DO ITIÚBA (canal adutor leste, P12, S1P12 e S2P12) E DOS CANAIS DE IRRIGAÇÃO (CLI e CLII) DO PERÍMETRO IRRIGADO DO BOACICA. | H136: =$C$4 -> CODEVASF | K136: =$C$6 -> DATA: ANO 2020
C137: SERVIÇO: CARGA E DESCARGA MECANIZADAS DE ENTULHO EM CAMINHAO BASCULANTE 6 M3 (C/ RETROESCAVADEIRA) | H137: COD: | I137: CAC-005 | K137: UNIDADE: | L137: M3 | O137: simlar a carga e descarga de entulho COEFICIENTE FDIFERENTES
C139: SERVIÇOS - COMPOSIÇÕES AUXILIARES ............................................................................................................................................................................ | K139: SUB-TOTAL (1) = | L139: =SUM(L141:L142) -> 0
C140: DISCRIMINAÇÃO | D140: SINAPI | E140: UNID | G140: QTDE | H140: PROD | I140: IMPROD | J140: P.UNIT. PROD | K140: P.UNIT. IMPR | L140: P.TOTAL
L141: =G141*J141 -> 0
L142: =G142*J142 -> 0
C144: EQUIPAMENTO ............................................................................................................................................................................................................................. | K144: SUB-TOTAL (2) = | L144: =SUM(L146:L147) -> 2.7579
C145: DISCRIMINAÇÃO | D145: SINAPI | E145: UNID | G145: QTDE | H145: PROD | I145: IMPROD | J145: P.UNIT. PROD | K145: P.UNIT. IMPR | L145: P.TOTAL
C146: RETROESCAVADEIRA SOBRE RODAS COM CARREGADEIRA, TRAÇÃO 4X2, POTÊNCIA LÍQ. 79 HP, CAÇAMBA CARREG. CAP. MÍN. 1 M3, CAÇAMBA RETRO CAP. 0,20 M3,PESO OPERACIONAL MÍN. 6.570 KG, PROFUNDIDADE ESCAVAÇÃO MÁX. 4,37 M - CHP DIURNO. AF_06/2014 | D146: 5680 | E146: CHP | G146: 0.022 | J146: 77.34 | L146: =G146*J146 -> 1.70148
C147: CAMINHÃO BASCULANTE 6 M3, PESO BRUTO TOTAL 16.000 KG, CARGA ÚTIL MÁXIMA 13.071 KG, DISTÂNCIA ENTRE EIXOS 4,80 M, POTÊNCIA 230 CV INCLUSIVE CAÇAMBA METÁLICA - CHP DIURNO. AF_06/2014 | D147: 5811 | E147: CHP | G147: 0.009 | J147: 117.38 | L147: =G147*J147 -> 1.05642
C149: MATERIAL ........................................................................................................................................................................................................................................ | K149: SUB-TOTAL (3) = | L149: =SUM(L151:L152) -> 0
C150: DISCRIMINAÇÃO | D150: SINAPI | E150: UNID | G150: QTDE | H150: PROD | I150: IMPROD | J150: P.UNIT. PROD | K150: P.UNIT. IMPR | L150: P.TOTAL
L151: =G151*J151 -> 0
L152: =G152*J152 -> 0
C154: MÃO DE OBRA ................................................................................................................................................................................................................................. | K154: SUB-TOTAL (4) = | L154: =SUM(L156:L157) -> 0.3146
C155: DISCRIMINAÇÃO | D155: SINAPI | E155: UNID | G155: QTDE | H155: PROD | I155: IMPROD | J155: P.UNIT. PROD | K155: P.UNIT. IMPR | L155: P.TOTAL
C156: SERVENTE COM ENCARGOS COMPLEMENTARES | D156: 88316 | G156: 0.022 | J156: 14.3 | L156: =G156*J156 -> 0.3146
C159: OBSERVAÇÕES: | D159: PROD DA EQUIPE = | G159: 1 | K159: CUSTO (SUB-TOTAL 1 + 2 + 3 + 4) = | L159: =L154+L149+L139+L144 -> 3.0725
D160: RESP. TÉCNICO: | K160: TOTAL - R$ = | L160: =L159/G159 -> 3.0725
K161: BDI (%) = | L161: =$I$3 -> 0.2101044699
K162: TOTAL DO SERVIÇO - R$ = | L162: =L160*L161+L160 -> 3.718045984
C164: =C168 -> SERVIÇO: CARGA, TRANSPORTE ATÉ 1 KM E DESCARGA DE ENTULHO DE CONCRETO SIMPLES | D164: =I168 -> CAC-006 | E164: =L168 -> M3 | I164: P. Unit.= | J164: =L192 -> 0 | K164: =$C$5 -> SINAPI:Abril/2020 (Alagoas/AL) - NÃO DESONERADO
C165: COMPOSIÇÃO ANALÍTICA DE CUSTO
C167: =$C$3 -> EXECUÇÃO DE OBRAS E SERVIÇOS DE RECUPERAÇÃO PARCIAL DO DIQUE DE PROTEÇÃO E RECUPERAÇÃO DOS CANAIS DE IRRIGAÇÃO DO PERÍMETRO IRRIGADO DO ITIÚBA (canal adutor leste, P12, S1P12 e S2P12) E DOS CANAIS DE IRRIGAÇÃO (CLI e CLII) DO PERÍMETRO IRRIGADO DO BOACICA. | H167: =$C$4 -> CODEVASF | K167: =$C$6 -> DATA: ANO 2020
C168: SERVIÇO: CARGA, TRANSPORTE ATÉ 1 KM E DESCARGA DE ENTULHO DE CONCRETO SIMPLES | H168: COD: | I168: CAC-006 | K168: UNIDADE: | L168: M3
C170: SERVIÇOS - COMPOSIÇÕES AUXILIARES ............................................................................................................................................................................ | K170: SUB-TOTAL (1) = | L170: =SUM(L172:L174) -> 0
C171: DISCRIMINAÇÃO | D171: SINAPI | E171: UNID | G171: QTDE | H171: PROD | I171: IMPROD | J171: P.UNIT. PROD | K171: P.UNIT. IMPR | L171: P.TOTAL
C172: CARGA, MANOBRAS E DESCARGA DE MATERIAIS DIVERSOS, COM CAMINHAO BASCULANTE 6M3 (CARGA E DESCARGA MANUAIS) | D172: 72895 | E172: M3 | G172: 0.8 | J172: =IFERROR(VLOOKUP(D172,$D$7:$J$8,6,0),0) -> 0 | L172: =G172*J172 -> 0
C173: CARGA MANUAL DE ENTULHO EM CAMINHAO BASCULANTE 6 M3 | D173: 72897 | E173: M3 | G173: 0.2 | J173: =IFERROR(VLOOKUP(D173,$D$7:$J$8,6,0),0) -> 0 | L173: =G173*J173 -> 0
L174: =G174*J174 -> 0
C176: EQUIPAMENTO ............................................................................................................................................................................................................................. | K176: SUB-TOTAL (2) = | L176: =SUM(L178:L179) -> 0
C177: DISCRIMINAÇÃO | D177: SINAPI | E177: UNID | G177: QTDE | H177: PROD | I177: IMPROD | J177: P.UNIT. PROD | K177: P.UNIT. IMPR | L177: P.TOTAL
L178: =G178*J178 -> 0
L179: =G179*J179 -> 0
C181: MATERIAL ........................................................................................................................................................................................................................................ | K181: SUB-TOTAL (3) = | L181: =SUM(L183:L184) -> 0
C182: DISCRIMINAÇÃO | D182: SINAPI | E182: UNID | G182: QTDE | H182: PROD | I182: IMPROD | J182: P.UNIT. PROD | K182: P.UNIT. IMPR | L182: P.TOTAL
L183: =G183*J183 -> 0
L184: =G184*J184 -> 0
C186: MÃO DE OBRA ................................................................................................................................................................................................................................. | K186: SUB-TOTAL (4) = | L186: =SUM(L188:L189) -> 0
C187: DISCRIMINAÇÃO | D187: SINAPI | E187: UNID | G187: QTDE | H187: PROD | I187: IMPROD | J187: P.UNIT. PROD | K187: P.UNIT. IMPR | L187: P.TOTAL
L188: =G188*J188 -> 0
L189: =G189*J189 -> 0
C191: OBSERVAÇÕES: | D191: PROD DA EQUIPE = | G191: 1 | K191: CUSTO (SUB-TOTAL 1 + 2 + 3 + 4) = | L191: =L186+L181+L170+L176 -> 0
D192: RESP. TÉCNICO: | K192: TOTAL - R$ = | L192: =L191/G191 -> 0
K193: BDI (%) = | L193: =$I$3 -> 0.2101044699
K194: TOTAL DO SERVIÇO - R$ = | L194: =L192*L193+L192 -> 0
C196: =C200 -> SERVIÇO: CARGA E DESCARGA MECANICA DE SOLO UTILIZANDO CAMINHAO BASCULANTE 6,0M3 (C/RETROESCAVADEIRA) | D196: =I200 -> CAC-006 | E196: =L200 -> M3 | F196: C. Unit. = | G196: =L223 -> 1.338968 | I196: P. Unit.= | J196: =L225 -> 1.620291162 | K196: =$C$5 -> SINAPI:Abril/2020 (Alagoas/AL) - NÃO DESONERADO
C197: COMPOSIÇÃO ANALÍTICA DE CUSTO
C199: =$C$3 -> EXECUÇÃO DE OBRAS E SERVIÇOS DE RECUPERAÇÃO PARCIAL DO DIQUE DE PROTEÇÃO E RECUPERAÇÃO DOS CANAIS DE IRRIGAÇÃO DO PERÍMETRO IRRIGADO DO ITIÚBA (canal adutor leste, P12, S1P12 e S2P12) E DOS CANAIS DE IRRIGAÇÃO (CLI e CLII) DO PERÍMETRO IRRIGADO DO BOACICA. | H199: =$C$4 -> CODEVASF | K199: =$C$6 -> DATA: ANO 2020
C200: SERVIÇO: CARGA E DESCARGA MECANICA DE SOLO UTILIZANDO CAMINHAO BASCULANTE 6,0M3 (C/RETROESCAVADEIRA) | H200: COD: | I200: CAC-006 | K200: UNIDADE: | L200: M3 | O200: simlar a carga e descarga de entulho + carga e descarga de solo = média dos insumos
C202: SERVIÇOS - COMPOSIÇÕES AUXILIARES ............................................................................................................................................................................ | K202: SUB-TOTAL (1) = | L202: =SUM(L204:L205) -> 0
C203: DISCRIMINAÇÃO | D203: SINAPI | E203: UNID | G203: QTDE | H203: PROD | I203: IMPROD | J203: P.UNIT. PROD | K203: P.UNIT. IMPR | L203: P.TOTAL
L204: =G204*J204 -> 0
L205: =G205*J205 -> 0
C207: EQUIPAMENTO ............................................................................................................................................................................................................................. | K207: SUB-TOTAL (2) = | L207: =SUM(L209:L211) -> 1.195968
C208: DISCRIMINAÇÃO | D208: SINAPI | E208: UNID | G208: QTDE | H208: PROD | I208: IMPROD | J208: P.UNIT. PROD | K208: P.UNIT. IMPR | L208: P.TOTAL
C209: RETROESCAVADEIRA SOBRE RODAS COM CARREGADEIRA, TRAÇÃO 4X2, POTÊNCIA LÍQ. 79 HP, CAÇAMBA CARREG. CAP. MÍN. 1 M3, CAÇAMBA RETRO CAP. 0,20 M3,PESO OPERACIONAL MÍN. 6.570 KG, PROFUNDIDADE ESCAVAÇÃO MÁX. 4,37 M - CHP DIURNO. AF_06/2014 | D209: 5680 | E209: CHP | G209: 0.01 | J209: 77.34 | L209: =G209*J209 -> 0.7734
C210: CAMINHÃO BASCULANTE 6 M3, PESO BRUTO TOTAL 16.000 KG, CARGA ÚTIL MÁXIMA 13.071 KG, DISTÂNCIA ENTRE EIXOS 4,80 M, POTÊNCIA 230 CV INCLUSIVE CAÇAMBA METÁLICA - CHP DIURNO. AF_06/2014 | D210: 5811 | E210: CHP | G210: 0.0036 | J210: 117.38 | L210: =G210*J210 -> 0.422568
L211: =G211*J211 -> 0
C213: MATERIAL ........................................................................................................................................................................................................................................ | K213: SUB-TOTAL (3) = | L213: =SUM(L215:L216) -> 0
C214: DISCRIMINAÇÃO | D214: SINAPI | E214: UNID | G214: QTDE | H214: PROD | I214: IMPROD | J214: P.UNIT. PROD | K214: P.UNIT. IMPR | L214: P.TOTAL
L215: =G215*J215 -> 0
L216: =G216*J216 -> 0
C218: MÃO DE OBRA ................................................................................................................................................................................................................................. | K218: SUB-TOTAL (4) = | L218: =SUM(L220:L220) -> 0.143
C219: DISCRIMINAÇÃO | D219: SINAPI | E219: UNID | G219: QTDE | H219: PROD | I219: IMPROD | J219: P.UNIT. PROD | K219: P.UNIT. IMPR | L219: P.TOTAL
C220: SERVENTE COM ENCARGOS COMPLEMENTARES | D220: 88316 | G220: 0.01 | J220: 14.3 | L220: =G220*J220 -> 0.143
C222: OBSERVAÇÕES: | D222: PROD DA EQUIPE = | G222: 1 | K222: CUSTO (SUB-TOTAL 1 + 2 + 3 + 4) = | L222: =L218+L213+L202+L207 -> 1.338968
D223: RESP. TÉCNICO: | K223: TOTAL - R$ = | L223: =L222/G222 -> 1.338968
K224: BDI (%) = | L224: =$I$3 -> 0.2101044699
K225: TOTAL DO SERVIÇO - R$ = | L225: =L223*L224+L223 -> 1.620291162
C226: =C230 -> SERVIÇO: TRANSPORTE COM CAMINHÃO BASCULANTE DE 6 M3, EM VIA URBANA EM REVESTIMENTO PRIMÁRIO | D226: =I230 -> CAC-007 | E226: =L230 -> M3XKM | F226: C. Unit. = | G226: =L252 -> 1.23 | I226: P. Unit.= | J226: =L254 -> 1.488428498 | K226: =$C$5 -> SINAPI:Abril/2020 (Alagoas/AL) - NÃO DESONERADO
C227: COMPOSIÇÃO ANALÍTICA DE CUSTO
C229: =$C$3 -> EXECUÇÃO DE OBRAS E SERVIÇOS DE RECUPERAÇÃO PARCIAL DO DIQUE DE PROTEÇÃO E RECUPERAÇÃO DOS CANAIS DE IRRIGAÇÃO DO PERÍMETRO IRRIGADO DO ITIÚBA (canal adutor leste, P12, S1P12 e S2P12) E DOS CANAIS DE IRRIGAÇÃO (CLI e CLII) DO PERÍMETRO IRRIGADO DO BOACICA. | H229: =$C$4 -> CODEVASF | K229: =$C$6 -> DATA: ANO 2020
C230: SERVIÇO: TRANSPORTE COM CAMINHÃO BASCULANTE DE 6 M3, EM VIA URBANA EM REVESTIMENTO PRIMÁRIO | H230: COD: | I230: CAC-007 | K230: UNIDADE: | L230: M3XKM
C232: SERVIÇOS - COMPOSIÇÕES AUXILIARES ............................................................................................................................................................................ | K232: SUB-TOTAL (1) = | L232: =SUM(L234:L235) -> 1.23
C233: DISCRIMINAÇÃO | D233: SINAPI | E233: UNID | G233: QTDE | H233: PROD | I233: IMPROD | J233: P.UNIT. PROD | K233: P.UNIT. IMPR | L233: P.TOTAL
C234: TRANSPORTE COM CAMINHÃO BASCULANTE DE 6 M3, EM VIA URBANA EM REVESTIMENTO RPIMÁRIO | D234: 97912 | E234: M3XKM | G234: 1 | J234: 1.23 | L234: =G234*J234 -> 1.23
L235: =G235*J235 -> 0
C237: EQUIPAMENTO ............................................................................................................................................................................................................................. | K237: SUB-TOTAL (2) = | L237: =SUM(L239:L240) -> 0
C238: DISCRIMINAÇÃO | D238: SINAPI | E238: UNID | G238: QTDE | H238: PROD | I238: IMPROD | J238: P.UNIT. PROD | K238: P.UNIT. IMPR | L238: P.TOTAL
L239: =G239*J239 -> 0
L240: =G240*J240 -> 0
C242: MATERIAL ........................................................................................................................................................................................................................................ | K242: SUB-TOTAL (3) = | L242: =SUM(L244:L244) -> 0
C243: DISCRIMINAÇÃO | D243: SINAPI | E243: UNID | G243: QTDE | H243: PROD | I243: IMPROD | J243: P.UNIT. PROD | K243: P.UNIT. IMPR | L243: P.TOTAL
L244: =G244*J244 -> 0
C246: MÃO DE OBRA ................................................................................................................................................................................................................................. | K246: SUB-TOTAL (4) = | L246: =SUM(L248:L249) -> 0
C247: DISCRIMINAÇÃO | D247: SINAPI | E247: UNID | G247: QTDE | H247: PROD | I247: IMPROD | J247: P.UNIT. PROD | K247: P.UNIT. IMPR | L247: P.TOTAL
L248: =G248*J248 -> 0
L249: =G249*J249 -> 0
C251: OBSERVAÇÕES: | D251: PROD DA EQUIPE = | G251: 1 | K251: CUSTO (SUB-TOTAL 1 + 2 + 3 + 4) = | L251: =L246+L242+L232+L237 -> 1.23
D252: RESP. TÉCNICO: | K252: TOTAL - R$ = | L252: =L251/G251 -> 1.23
K253: BDI (%) = | L253: =$I$3 -> 0.2101044699
K254: TOTAL DO SERVIÇO - R$ = | L254: =L252*L253+L252 -> 1.488428498
C256: =C260 -> SERVIÇO: ESCAVACAO MECANICA CAMPO ABERTO EM SOLO EXCETO ROCHA ATE 2,00M PROFUNDIDADE | D256: =I260 -> CAC-008 | E256: =L260 -> M3 | I256: P. Unit.= | J256: =L283 -> 0 | K256: =$C$5 -> SINAPI:Abril/2020 (Alagoas/AL) - NÃO DESONERADO
C257: COMPOSIÇÃO ANALÍTICA DE CUSTO
C259: =$C$3 -> EXECUÇÃO DE OBRAS E SERVIÇOS DE RECUPERAÇÃO PARCIAL DO DIQUE DE PROTEÇÃO E RECUPERAÇÃO DOS CANAIS DE IRRIGAÇÃO DO PERÍMETRO IRRIGADO DO ITIÚBA (canal adutor leste, P12, S1P12 e S2P12) E DOS CANAIS DE IRRIGAÇÃO (CLI e CLII) DO PERÍMETRO IRRIGADO DO BOACICA. | H259: =$C$4 -> CODEVASF | K259: =$C$6 -> DATA: ANO 2020
C260: SERVIÇO: ESCAVACAO MECANICA CAMPO ABERTO EM SOLO EXCETO ROCHA ATE 2,00M PROFUNDIDADE | H260: COD: | I260: CAC-008 | K260: UNIDADE: | L260: M3
C262: SERVIÇOS - COMPOSIÇÕES AUXILIARES ............................................................................................................................................................................ | K262: SUB-TOTAL (1) = | L262: =SUM(L264:L265) -> 0
... 2954 more rows

Sheet DADOS DE ENTRADA
A1: MEMÓRIA DE CÁLCULO
A2: DADOS DE ENTRADA
A4: OBRAS EM CANAIS | B4: Diâmetro interno da Tubulação: | C4: m | D4: Ø | E4: 0.4 | I4: Lista de Canais Principais | J4: ITEM | L4: Lista de Estradas | M4: ITEM | O4: Lista de Coletores | P4: ITEM | R4: Lista de Pontilhões tipo 2 | S4: ITEM
B5: Espessura das paredes: | C5: m | D5: ep= | E5: 0.2 | I5: GERAL - DEMAIS CANAIS | J5: 3.2 | L5: GERAL | M5: 4.1 | O5: COLETOR | P5: 5.1 | R5: GERAL | S5: 10.1
B6: Espessura da laje de fundo: | C6: m | D6: ef= | E6: 0.15 | I6: ADUTOR LESTE | J6: 3.1 | L6: ESTRADA - S1P1 A | M6: 4.1.1 | R6: Próximo ao CL l - 9 | S6: 10.1
B7: Espessura da camada de areia | C7: m | D7: ea= | E7: 0.15 | I7: CANAL P1 e DERIVADOS | J7: 3.2 | L7: ESTRADA - P1 | M7: 4.1.2 | O7: CP1D | P7: 5.1.1 | R7: Próximo ao CL l - 13 | S7: 10.2
B8: Espessura do cascalho da estrada (acabamento) | C8: m | D8: ee= | E8: 0.2 | I8: CANAL P2 e DERIVADOS | J8: 3.3 | L8: ESTRADA - S1P1 | M8: 4.1.3 | O8: CS1P1D | P8: 5.1.2 | R8: Próximo ao CL l - 15 | S8: 10.3
B9: espessura da parede do canal retangular: | C9: m | D9: ec= | E9: 0.12 | I9: CANAL P3 e DERIVADOS | J9: 3.4 | L9: ESTRADA - T1S1P1 | M9: 4.1.4 | O9: CT1S1P1D | P9: 5.1.3 | R9: Próximo ao CL l - 16 | S9: 10.4
B10: Espessura da camada de solo-cimento: | C10: m | D10: eb= | E10: 0.1 | I10: CANAL P3A e DERIVADOS | J10: 3.5 | L10: ESTRADA - S2P1 | M10: 4.1.5 | O10: CT2S1P1D | P10: 5.1.4 | R10: Próximo ao CL l - 17 | S10: 10.5
B11: Espessura da parede da tubulação de concreto | C11: m | D11: et= | E11: 0.05 | I11: CANAL P4 e DERIVADOS | J11: 3.6 | L11: ESTRADA - S3P1 | M11: 4.1.6 | O11: CT3S1P1D | P11: 5.1.5 | R11: Próximo ao CL l - 18 | S11: 10.6
B12: Espessura do Solo Cimento | C12: m | D12: esc= | E12: 0 | I12: CANAL P5 e DERIVADOS | J12: 3.7 | L12: ESTRADA - P2 | M12: 4.1.7 | O12: CT4S1P1D | P12: 5.1.6 | R12: Próximo ao CL l - 19 | S12: 10.7
B13: DMT (Importação): | C13: km | D13: DMT 1 = | E13: 10 | I13: CANAL P6 e DERIVADOS | J13: 3.8 | L13: ESTRADA - S1P2 | M13: 4.1.8 | O13: CT5S1P1D | P13: 5.1.7 | R13: Próximo ao CL l - 21 | S13: 10.8
B14: DMT (Bota Fora): | C14: km | D14: DMT 2 = | E14: 10 | I14: CANAL P7 e DERIVADOS | J14: 3.9 | L14: ESTRADA - T1S1P2 | M14: 4.1.9 | O14: CS2P1D | P14: 5.1.8 | R14: Próximo ao CL l - 23 | S14: 10.9
B15: Kg de aço por m³: | C15: kg/m³ | D15: Aço = | E15: 60 | I15: CANAL P8 e DERIVADOS | J15: 3.10 | L15: ESTRADA - T2S1P2 | M15: 4.1.10 | O15: CS3P1D | P15: 5.1.9 | R15: Próximo ao CL l - 26 | S15: 10.10
A16: TRAPEZOIDAL | B16: Espessura Placa Revestimento Canal: | C16: m | D16: e = | E16: 0.05 | I16: CANAL P9 e DERIVADOS | J16: 3.11 | L16: ESTRADA - S2P2 | M16: 4.1.11 | O16: CS4P1D | P16: 5.1.10 | R16: Próximo ao CL l - 28 | S16: 10.11
B17: Espessura Placa Revestimento Canal Existente (Demolição): | C17: m | D17: ed = | E17: 0.07 | I17: CANAL P10 e DERIVADOS | J17: 3.12 | L17: ESTRADA - P4 | M17: 4.1.12 | O17: CQ1T3S5P1D | P17: 5.1.11 | R17: Próximo ao CL l - 29 | S17: 10.12
B18: Espessura Camada Solo a Retirar (Solo Impróprio): | C18: m | D18: ecsi = | E18: 0.33 | I18: CANAL P11 e DERIVADOS | J18: 3.13 | L18: ESTRADA - S1P4 | M18: 4.1.13 | O18: CS5P1D | P18: 5.1.12 | R18: Próximo ao CL l - 31 | S18: 10.13
B19: Espessura da camada de solo-cimento: | C19: m | D19: erSC = | E19: =E10 -> 0.1 | I19: CANAL P12 e DERIVADOS | J19: 3.14 | L19: ESTRADA - S2P4 | M19: 4.1.14 | O19: CT3S5P1D | P19: 5.1.13 | R19: Próximo ao CL l - 32 | S19: 10.14
B20: Espessura Camada Solo a Recompor: | C20: m | D20: erecomp. | E20: 0.25
B22: Ancoragem (Largura): | C22: m | D22: a = | E22: 0.2 | L22: ESTRADA - S1P5 | M22: 4.1.18 | O22: CQ1T7S6P1D | P22: 5.1.17
B23: Ancoragem (Altura): | C23: m | D23: b = | E23: 0.2 | L23: ESTRADA - S2P5 | M23: 4.1.19 | O23: CQ2T7S6P1D | P23: 5.1.18
B24: Largura de Limpeza Canal p/ cada lado: | C24: m | D24: L = | E24: 0.5 | L24: ESTRADA - P6 | M24: 4.1.20 | O24: CS6P1D | P24: 5.1.19
B25: DMT (Importação): | C25: km | D25: DMT 1 = | E25: =E13 -> 10 | L25: ESTRADA - S2P7 | M25: 4.1.21 | O25: CT1S6P1D | P25: 5.1.20
B26: DMT (Bota Fora): | C26: km | D26: DMT 2 = | E26: =E14 -> 10 | L26: ESTRADA - P8 | M26: 4.1.22 | O26: CT2S6P1D | P26: 5.1.21
A27: RETANGULAR | B27: Canal retangular (Espessura Parede): | C27: m | D27: c= | E27: 0.12 | L27: ESTRADA - P10 | M27: 4.1.23 | O27: CT3S6P1D | P27: 5.1.22
B28: Canal Retangular (Laje Base Espessura): | C28: m | D28: eb= | E28: 0.1 | L28: ESTRADA - S1P10 | M28: 4.1.24 | O28: CT4S6P1D | P28: 5.1.23
B29: Canal retangular (Laje Base Espessura): | C29: m | D29: h= | E29: 0.1 | L29: ESTRADA - S2P10 | M29: 4.1.25 | O29: CT5S6P1D | P29: 5.1.24
B30: Canal Retangular (Viga Horizontal Superior Largura): | C30: m | D30: vs= | E30: 0.12 | L30: ESTRADA - P11 | M30: 4.1.26 | O30: CT6S6P1D | P30: 5.1.25
B31: Canal retangular (Viga Horizontal Superior Altura): | C31: m | D31: hs= | E31: 0.12 | L31: ESTRADA - S1P11 | M31: 4.1.27 | O31: CT7S6P1D | P31: 5.1.26
B32: Canal Existente (Espessura Placa): | C32: m | D32: ep= | E32: 0.07 | L32: ESTRADA - T1S1P11 | M32: 4.1.28 | O32: CT8S6P1D | P32: 5.1.27
B33: Concreto Magro (Espessura): | C33: m | D33: em= | E33: 0.05 | L33: ESTRADA - T2S1P11 | M33: 4.1.29 | O33: CS7P1D | P33: 5.1.28
B34: DMT (Importação): | C34: km | D34: DMT 1 = | E34: 10 | L34: ESTRADA - S2P11 | M34: 4.1.30 | O34: CT10S7P1D | P34: 5.1.29
B35: DMT (Bota Fora): | C35: km | D35: DMT 2 = | E35: 10 | L35: ESTRADA - T1S2P11 | M35: 4.1.31 | O35: CT11S7P1D | P35: 5.1.30
B36: Kg de aço por m³: | C36: kg/m³ | D36: Aço = | E36: 60 | L36: ESTRADA - T2S2P11 | M36: 4.1.32 | O36: CT12S7P1D | P36: 6.1
A37: ESTRADA | B37: Largura de Limpeza Estrada: | C37: m | D37: Lestr= | E37: 4 | L37: ESTRADA - P12 | M37: 4.1.33 | O37: CT13S7P1D | P37: 6.2
B38: DTM (Importação de cascalho de jazida): | C38: km | D38: DMT 1estr = | E38: 15 | L38: ESTRADA - S1P12 | M38: 4.1.34 | O38: CT14S7P1D | P38: 5.2.1
L39: ESTRADA - S2P12 | M39: 4.1.35 | O39: CT15S7P1D | P39: 5.2.2
A40: RETANGULAR | B40: Canal retangular (Espessura Parede): | C40: m | D40: c= | E40: 0.12 | L40: ESTRADA - P10 | M40: 4.1.23 | O40: CT3S6P1D | P40: 5.1.22
B41: Canal Retangular (Laje Base Espessura): | C41: m | D41: eb= | E41: 0.1 | L41: ESTRADA - S1P10 | M41: 4.1.24 | O41: CT4S6P1D | P41: 5.1.23
B42: Canal retangular (Laje Base Espessura): | C42: m | D42: h= | E42: 0.1 | L42: ESTRADA - S2P10 | M42: 4.1.25 | O42: CT5S6P1D | P42: 5.1.24
B43: Canal Retangular (Viga Horizontal Superior Largura): | C43: m | D43: vs= | E43: 0.12 | L43: ESTRADA - P11 | M43: 4.1.26 | O43: CT6S6P1D | P43: 5.1.25
B44: Canal retangular (Viga Horizontal Superior Altura): | C44: m | D44: hs= | E44: 0.12 | L44: ESTRADA - S1P11 | M44: 4.1.27 | O44: CT7S6P1D | P44: 5.1.26
B45: Canal Existente (Espessura Placa): | C45: m | D45: ep= | E45: 0.07 | L45: ESTRADA - T1S1P11 | M45: 4.1.28 | O45: CT8S6P1D | P45: 5.1.27
B46: Concreto Magro (Espessura): | C46: m | D46: em= | E46: 0.05 | L46: ESTRADA - T2S1P11 | M46: 4.1.29 | O46: CS7P1D | P46: 5.1.28
B47: DMT (Importação): | C47: km | D47: DMT 1 = | E47: 5 | L47: ESTRADA - S2P11 | M47: 4.1.30 | O47: CT10S7P1D | P47: 5.1.29
B48: DMT (Bota Fora): | C48: km | D48: DMT 2 = | E48: 5 | L48: ESTRADA - T1S2P11 | M48: 4.1.31 | O48: CT11S7P1D | P48: 5.1.30
B49: Kg de aço por m³: | C49: kg/m³ | D49: Aço = | E49: 60 | L49: ESTRADA - T2S2P11 | M49: 4.1.32 | O49: CT12S7P1D | P49: 6.1
L50: ESTRADA - S3P12 | M50: 4.1.36 | O50: CT16S7P1D | P50: 5.2.3
L51: ESTRADA - S4P12 | M51: 4.1.37 | O51: CT17S7P1D | P51: 5.2.4
L52: ESTRADA - S5P12 | M52: 4.1.38 | O52: CT18S7P1D | P52: 5.2.5
L53: ESTRADA - T1S5P12 | M53: 4.1.39 | O53: CT19S7P1D | P53: 5.2.6
L54: ESTRADA - S1P13 | M54: 4.1.40 | O54: CT1S7P1D | P54: 5.2.7
L55: ESTRADA - T1S1P13 | M55: 4.1.41 | O55: CT20S7P1D | P55: 5.2.8
L56: ESTRADA - S2P13 | M56: 4.1.42 | O56: CT2S7P1D | P56: 5.2.9
L57: ESTRADA - T1S2P13 | M57: 4.1.43 | O57: CT3S7P1D | P57: 5.2.10
L58: ESTRADA - P16 | M58: 4.1.44 | O58: CT4S7P1D | P58: 5.2.11
L59: ESTRADA - P16-P12 | M59: 4.1.45 | O59: CT5S7P1D | P59: 5.2.12
L60: ESTRADA - ACESSO AO LOTE 28 | M60: 4.1.46 | O60: CT6S7P1D | P60: 5.2.13
L61: ESTRADA - AD. LESTE TRECHO 1 | M61: 4.1.47 | O61: CT7S7P1D | P61: 5.2.14
L62: ESTRADA - AD. LESTE TRECHO 2 | M62: 4.1.48 | O62: CT8S7P1D | P62: 5.2.15
L63: ESTRADA - AL-230_AD. LESTE | M63: 4.1.49 | O63: CT9S7P1D | P63: 5.2.16
L64: ESTRADA - RESERVA NORTE | M64: 4.1.50 | O64: CQ10T8S8P1D | P64: 5.2.17
L65: ESTRADA - RESERVINHA | M65: 4.1.51 | O65: CQ12T8S8P1D | P65: 5.2.18
O66: CQ14T8S8P1D | P66: 5.2.19
O67: CQ16T8S8P1D | P67: 5.2.20
O68: CQ17T8S8P1D | P68: 5.2.21
O69: CQ18T8S8P1D | P69: 5.2.22
O70: CQ19T8S8P1D | P70: 5.2.23
O71: CQ1T17S8P1D | P71: 5.2.24
O72: CQ1T19S8P1D | P72: 5.2.25
O73: CQ1T3S8P1D | P73: 5.2.26
O74: CQ1T8S8P1D | P74: 5.2.27
O75: CQ20T8S8P1D | P75: 5.2.28
O76: CQ2T17S8P1D | P76: 5.2.29
O77: CQ2T19S8P1D | P77: 5.2.30
O78: CQ2T3S8P1D | P78: 5.2.31
O79: CQ2T8S8P1D | P79: 5.2.32
O80: CQ3T17S8P1D | P80: 5.2.33
O81: CQ3T8S8P1D | P81: 5.2.34
O82: CQ4T17S8P1D | P82: 5.2.35
O83: CQ4T19S8P1D | P83: 5.2.36
O84: CQ4T8S8P1D | P84: 5.2.37
O85: CQ5T17S8P1D | P85: 5.2.38
O86: CQ5T8S8P1D | P86: 5.2.39
O87: CQ6T17S8P1D | P87: 5.2.40
O88: CQ6T8S8P1D | P88: 5.2.41
O89: CQ7T8S8P1D | P89: 5.2.42
O90: CQ8T8S8P1D | P90: 5.2.43
O91: CQ9T8S8P1D | P91: 5.2.44
O92: CS8P1D | P92: 5.2.45
O93: CT10S8P1D | P93: 5.2.46
O94: CT11S8P1D | P94: 5.2.47
O95: CT12S8P1D | P95: 5.2.48
O96: CT13S8P1D | P96: 5.2.49
O97: CT14S8P1D | P97: 5.2.50
O98: CT15S8P1D | P98: 5.2.51
O99: CT16S8P1D | P99: 5.2.52
O100: CT17S8P1D | P100: 5.2.53
O101: CT19S8P1D | P101: 5.2.54
O102: CT1S8P1D | P102: 5.2.55
O103: CT22S8P1D | P103: 5.2.56
O104: CT26S8P1D | P104: 5.2.57
O105: CT2S8P1D | P105: 5.2.58
O106: CT3S8P1D | P106: 5.2.59
O107: CT4S8P1D | P107: 5.2.60
O108: CT5S8P1D | P108: 5.2.61
O109: CT6S8P1D | P109: 5.2.62
O110: CT7S8P1D | P110: 5.2.63
O111: CT8S8P1D | P111: 5.2.64
O112: CT9S8P1D | P112: 5.2.65
O113: CS10P1D | P113: 5.2.66
O114: CS11P1D | P114: 5.2.67
O115: CT1S11P1D | P115: 5.2.68
O116: CT2S11P1D | P116: 5.2.69
O117: CT3S11P1D | P117: 5.2.70
O118: CT4S11P1D | P118: 5.2.71
O119: CT5S11P1D | P119: 5.2.72
O120: CS12P1D | P120: 5.2.73
O121: CS13P1D | P121: 5.2.74
O122: CT1S13P1D | P122: 5.2.75
O123: CS14P1D | P123: 5.2.76
O124: CT1S14P1D | P124: 5.2.77
O125: CS15P1D | P125: 5.2.78
O126: CT1S15P1D | P126: 5.2.79
O127: CS16P1D | P127: 5.2.80
O128: CP2D | P128: 5.2.81
O129: CS1P2D | P129: 5.2.82
O130: CS2P2D | P130: 5.2.83
O131: CT1S2P2D | P131: 5.2.84
O132: CT2S2P2D | P132: 5.2.85
O133: CT3S2P2D | P133: 5.2.86
O134: CS3P2D | P134: 5.2.87
O135: CQ1T3S4P2D | P135: 5.2.88
O136: CQ1T4S4P2D | P136: 5.2.89
O137: CQ2T3S4P2D | P137: 5.2.90
O138: CS4P2D | P138: 5.2.91
O139: CT1S4P2D | P139: 5.2.92
O140: CT2S4P2D | P140: 5.2.93
O141: CT3S4P2D | P141: 5.2.94
O142: CT4S4P2D | P142: 5.2.95
O143: CS5P2D | P143: 5.2.96
O144: CS6P2D | P144: 5.2.97
O145: CQ1T5S7P2D | P145: 5.2.98
O146: CS7P2D | P146: 5.2.99
O147: CT1S7P2D | P147: 5.2.100
O148: CT2S7P2D | P148: 5.2.101
O149: CT3S7P2D | P149: 5.2.102
O150: CT4S7P2D | P150: 5.2.103
O151: CT5S7P2D | P151: 5.2.104
O152: CS8P2D | P152: 5.2.105
O153: CS9P2D | P153: 5.2.106
O154: CS10P2D | P154: 5.2.107
O155: CT1S10P2D | P155: 5.2.108
O156: CS11P2D | P156: 5.2.109
O157: CS12P2D | P157: 5.2.110
O158: CS13P2D | P158: 5.2.111
O159: CS14P2D | P159: 5.2.112
O160: BRAÇO DO CP2D | P160: 5.2.113
O161: CP3D | P161: 5.2.114
O162: CP3.1D | P162: 5.2.115
O163: CP3E | P163: 5.2.116
O164: CS2P3E | P164: 5.2.117
O165: CS3P3E | P165: 5.2.118
O166: CS4P3E | P166: 5.2.119
O167: CS5P3E | P167: 5.2.120
O168: CS6P3E | P168: 5.2.121
O169: CS7P3E | P169: 5.2.122
O170: CP1E | P170: 5.2.123
O171: CS1P3E | P171: 5.2.124
O172: CP2E | P172: 5.2.125
O173: CS1P2E | P173: 5.2.126
O174: CP4D | P174: 5.2.127
O175: CP4E | P175: 5.2.128
O176: CS1P4E | P176: 5.2.129
O177: CP5D | P177: 5.2.130
O178: CP5E | P178: 5.2.131
O179: CS1P5D | P179: 5.2.132
O180: CP6.1D | P180: 5.2.133
O181: CP6D | P181: 5.2.134
O182: CP6E | P182: 5.2.135
O183: CP7D | P183: 5.2.136
O184: CP7E | P184: 5.2.137
O185: CS1P7E | P185: 5.2.138
O186: CS2P7D | P186: 5.2.139
O187: CS2P7E | P187: 5.2.140
O188: CS3P7D | P188: 5.2.141
O189: CS4P7D | P189: 5.2.142
O190: CT1S2P7D | P190: 5.2.143
O191: CT2S2P7D | P191: 5.2.144
O192: CT3S2P7D | P192: 5.2.145
O193: CT4S2P7D | P193: 5.2.146
O194: CT5S2P7D | P194: 5.2.147
O195: CP8D | P195: 5.2.148
O196: CP8E | P196: 5.2.149
O197: CP9D | P197: 5.2.150
O198: CP9E | P198: 5.2.151
O199: CS1P9E | P199: 5.2.152
O200: CS2P9E | P200: 5.2.153
O201: CS3P9E | P201: 5.2.154
O202: CS4P9E | P202: 5.2.155
... 241 more rows

Sheet ORÇ. GERAL
C1: MINISTÉRIO DA INTEGRAÇÃO NACIONAL - MI COMPANHIA DE DESENVOLVIMENTO DOS VALES DO SÃO FRANCISCO E DO PARNAÍBA 5ª Superintendência Regional
B4: EXECUÇÃO DE OBRAS E SERVIÇOS DE RECUPERAÇÃO PARCIAL DO DIQUE DE PROTEÇÃO E RECUPERAÇÃO DOS CANAIS DE IRRIGAÇÃO DO PERÍMETRO IRRIGADO DO ITIÚBA (canal adutor leste, P12, S1P12 e S2P12) E DOS CANAIS DE IRRIGAÇÃO (CLI e CLII) DO PERÍMETRO IRRIGADO DO BOACICA.
B5: Planilha de Custos do Valor do Orçamento de Referência
B6: ÍTEM | C6: DESCRIÇÃO | D6: R$ Total (c/BDI)
C7: TOTAL GERAL
B8: 1 | C8: SERVIÇOS GERAIS E DE APOIO | D8: ='SERV. GER. E ADMIN LOCAL'!K8 -> 148990.42
B9: 2 | C9: ADMINISTRAÇÃO LOCAL / MANUTENÇÃO DO CANTEIRO DE OBRAS | D9: ='SERV. GER. E ADMIN LOCAL'!K18 -> 732505.03
B10: 3 | C10: RECUPERAÇÃO E ADEQUAÇÃO DO SISTEMA DE CONDUÇÃO (CANAL DE IRRIGAÇÃO) - 4933 M CANAL ADUTOR LESTE - PERÍMETRO ITIÚBA
C11: CANAL ADUTOR LESTE
C12: CANAL TRAPEZOIDAL - 4.933,41 M | D12: ='ADUTOR LESTE'!K11 -> 3288319.96
B13: 4 | C13: RECUPERAÇÃO PARCIAL DO DIQUE ITIÚBA
C14: TRECHO I | D14: ='DIQUE ITIÚBA'!I12 -> 1410904.22
C15: TRECHO II | D15: ='DIQUE ITIÚBA'!I38 -> 2327306.76
B16: 5 | C16: RECUPERAÇÃO E ADEQUAÇÃO DO SISTEMA DE CONDUÇÃO - 4933 M CANAL P12 E TRIBUTÁRIOS PERÍMETRO ITIÚBA
C17: CANAL P12 E TRIBUTÁRIOS S1P12 E S2P12
C18: CANAL TRAPEZOIDAL - 5251,72 M | D18: ='P12 E TRIBUTÁRIOS'!K13 -> 2439126.4
C19: RECONSTRUÇÃO DE CANAL COM A RETIRADA DE CANAL TRAPEZOIDAL EXISTENTE E EXECUÇÃO DE CANAL RETANGULAR EM CONCRETO ARMADO - 1.014,84 m | D19: ='P12 E TRIBUTÁRIOS'!K36 -> 338982.06
B20: 6 | C20: RECUPERAÇÃO E ADEQUAÇÃO DO SISTEMA DE CONDUÇÃO (CANAL DE IRRIGAÇÃO) - PERÍMETRO BOACICA
C21: CANAIS DE IRRIGAÇÃO PERÍMETRO IRRIGADO BOACICA - TOTAL 8.539,54 m ( CLI e CLII - E SEUS DERIVADOS) | D21: ='CANAIS BOACICA'!K159 -> 5641075.18
C22: TOTAL GERAL | D22: =SUM(D8:D21) -> 16327210.03
B23: ="OBS: - BDI - SERVIÇO = "&ROUND('C.C.U'!$I$3*100,2)&"% / FORNECIMENTO = "&ROUND('C.C.U'!$I$4*100,2)&"%" -> OBS: - BDI - SERVIÇO = 21,01% / FORNECIMENTO = 13,27%
B24: - Nos itens apresentados estão inclusos custos de serviços e fornecimento

Sheet SERV. GER. E ADMIN LOCAL
E1: MINISTÉRIO DO DESENVOLVIMENTO REGIONAL - MD COMPANHIA DE DESENVOLVIMENTO DOS VALES DO SÃO FRANCISCO E DO PARNAÍBA 5ª Superintendência Regional
D4: ='ORÇ. GERAL'!B4 -> EXECUÇÃO DE OBRAS E SERVIÇOS DE RECUPERAÇÃO PARCIAL DO DIQUE DE PROTEÇÃO E RECUPERAÇÃO DOS CANAIS DE IRRIGAÇÃO DO PERÍMETRO IRRIGADO DO ITIÚBA (canal adutor leste, P12, S1P12 e S2P12) E DOS CANAIS DE IRRIGAÇÃO (CLI e CLII) DO PERÍMETRO IRRIGADO DO BOACICA.
D5: ='ORÇ. GERAL'!B5 -> Planilha de Custos do Valor do Orçamento de Referência
A6: ÍTEM MÃE | B6: NÍVEL | C6: SEQ. | D6: ÍTEM | E6: DESCRIÇÃO | F6: UNID | G6: CÓD. COMP. | H6: QTDE | I6: R$ / UNID (S/ BDI) | J6: R$ Total (C/BDI) | K6: R$ Total (c/BDI)
B7: 0 | C7: 0 | D7: 0 | E7: TOTAL GERAL
A8: =IFERROR(LEFT(D8,LEN(D8)-(LEN(C8)+1)),0) -> 0 | B8: 1 | C8: 1 | D8: 1 | E8: SERVIÇOS GERAIS E DE APOIO | K8: =SUM(K9:K17) -> 148990.42
D9: 1.1 | E9: DESENVOLVIMENTO DE PROJETO EXECUTIVO E AS BIULT | F9: unid | G9: CAC-125 | H9: 1 | I9: =VLOOKUP(G9,'C.C.U'!D:L,4,0) -> 33253.91 | J9: =VLOOKUP(G9,'C.C.U'!D:L,7,0) -> 40240.70513 | K9: =ROUND(J9*H9,2) -> 40240.71
A10: =IFERROR(LEFT(D10,LEN(D10)-(LEN(C10)+1)),0) -> 1 | B10: 2 | C10: 1 | D10: 1.2 | E10: MOBILIZAÇÃO | F10: unid | G10: CAC-087 | H10: 1 | I10: =VLOOKUP(G10,'C.C.U'!D:L,4,0) -> 1773.845765 | J10: =VLOOKUP(G10,'C.C.U'!D:L,7,0) -> 2146.538689 | K10: =ROUND(J10*H10,2) -> 2146.54
A11: =IFERROR(LEFT(D11,LEN(D11)-(LEN(C11)+1)),0) -> 1 | B11: 2 | C11: 2 | D11: 1.3 | E11: DESMOBILIZAÇÃO | F11: unid | G11: CAC-088 | H11: 1 | I11: =VLOOKUP(G11,'C.C.U'!D:L,4,0) -> 1773.845765 | J11: =VLOOKUP(G11,'C.C.U'!D:L,7,0) -> 2146.538689 | K11: 2146.54
A12: =IFERROR(LEFT(D12,LEN(D12)-(LEN(C12)+1)),0) -> 1 | B12: 2 | C12: 4 | D12: 1.4 | E12: INSTALAÇÃO DE CANTEIRO DE OBRAS PARA ALMOXARIFADO (quantitativo para o canteiro no Perímetro Itiúba e no Perímetro Boacica) | F12: m² | G12: CAC-089 | H12: 20 | I12: =VLOOKUP(G12,'C.C.U'!D:L,4,0) -> 587.67 | J12: =VLOOKUP(G12,'C.C.U'!D:L,7,0) -> 711.1420938 | K12: 14222.84
D13: 1.5 | E13: CERCA COM MOUROES DE MADEIRA ROLICA, ESPACAMENTO DE 2M ALTURA LIVRE DE 1M, CRAVADOS 0,5M, COM 5 FIOS DE ARAME FARPADO Nº 14 (quantitativo para isolamento do canteiro no Perímetro Itiúba e no Perímetro Boacica) | F13: m | G13: CAC-121 | H13: 80 | I13: =VLOOKUP(G13,'C.C.U'!D:L,4,0) -> 27.72 | J13: =VLOOKUP(G13,'C.C.U'!D:L,7,0) -> 33.54409591 | K13: 2683.53
D14: 1.6 | E14: ALUGUEL CONTAINER/ESCRIT INCL INST ELET LARG=2,20 COMP=6,20M ALT=2,50M CHAPA ACO C/NERV TRAPEZ FORRO C/ISOL TERMO/ACUSTICO CHASSIS REFORC PISO COMPENS NAVAL EXC TRANSP/CARGA/DESCARG | F14: mês | G14: CAC-120 | H14: 18 | I14: =VLOOKUP(G14,'C.C.U'!D:L,4,0) -> 522 | J14: =VLOOKUP(G14,'C.C.U'!D:L,7,0) -> 591.2569072 | K14: 10642.62
D15: 1.7 | E15: Aluguel de banheiro químico, com 03 limpezas semanais ( 01 para Perímetro Itiúba e 01 para Perímetro Boacica) | F15: mês | G15: CAC-124 | H15: 18 | I15: =VLOOKUP(G15,'C.C.U'!D:L,4,0) -> 857.44 | J15: =VLOOKUP(G15,'C.C.U'!D:L,7,0) -> 971.2017673 | K15: 17481.63
A16: =IFERROR(LEFT(D16,LEN(D16)-(LEN(C16)+1)),0) -> 1 | B16: 2 | C16: 5 | D16: 1.8 | E16: PLACAS DE OBRA | F16: m² | G16: CAC-091 | H16: ='BD_Mobilização e Serv. iniciais'!B4 -> 25 | I16: =VLOOKUP(G16,'C.C.U'!D:L,4,0) -> 362.0557 | J16: =VLOOKUP(G16,'C.C.U'!D:L,7,0) -> 438.1252209 | K16: 10953.13
D17: 1.9 | E17: FORNECIMENTO DE VEÍCULO LEVE 1.0 OU SUPERIOR, PARA APOIO A FISCALIZAÇÃO, COM AR-CONDICIONADO, INCLUINDO DESPESAS COM COMBUSTÍVEL, ÓLEOS, CONSERVAÇÃO E MANUTENÇÃO. | F17: mês | G17: CCU VEÍCULO | H17: 18 | I17: ='CCU VEÍCULO'!D49 -> 2377.500426 | J17: =I17+I17*'C.C.U'!I4 -> 2692.937832 | K17: 48472.88
A18: =IFERROR(LEFT(D18,LEN(D18)-(LEN(C18)+1)),0) -> 0 | B18: 1 | C18: 2 | D18: 2 | E18: ADMINISTRAÇÃO LOCAL / MANUTENÇÃO DO CANTEIRO DE OBRAS | K18: =K19 -> 732505.03
A19: =IFERROR(LEFT(D19,LEN(D19)-(LEN(C19)+1)),0) -> 2 | B19: 2 | C19: 1 | D19: =D18&"."&C19 -> 2.1 | E19: ADMINISTRAÇÃO LOCAL / MANUTENÇÃO DO CANTEIRO DE OBRAS | F19: global | G19: CAC-090 | H19: 1 | I19: =VLOOKUP(G19,'C.C.U'!D:L,4,0) -> 605323.7987 | J19: =VLOOKUP(G19,'C.C.U'!D:L,7,0) -> 732505.03 | K19: =J19*H19 -> 732505.03
I20: R$ TOTAl (C/BDI) | K20: =ROUND(K18+K8,2) -> 881495.45
D21: ="OBS: - BDI - SERVIÇO = "&ROUND('C.C.U'!$I$3*100,2)&"% / FORNECIMENTO = "&ROUND('C.C.U'!$I$4*100,2)&"%" -> OBS: - BDI - SERVIÇO = 21,01% / FORNECIMENTO = 13,27%

Sheet ADUTOR LESTE
E1: MINISTÉRIO DO DESENVOLVIMENTO REGIONAL - MD COMPANHIA DE DESENVOLVIMENTO DOS VALES DO SÃO FRANCISCO E DO PARNAÍBA 5ª Superintendência Regional
D4: ='ORÇ. GERAL'!B4 -> EXECUÇÃO DE OBRAS E SERVIÇOS DE RECUPERAÇÃO PARCIAL DO DIQUE DE PROTEÇÃO E RECUPERAÇÃO DOS CANAIS DE IRRIGAÇÃO DO PERÍMETRO IRRIGADO DO ITIÚBA (canal adutor leste, P12, S1P12 e S2P12) E DOS CANAIS DE IRRIGAÇÃO (CLI e CLII) DO PERÍMETRO IRRIGADO DO BOACICA.
D5: ='SERV. GER. E ADMIN LOCAL'!D5:K5 -> Planilha de Custos do Valor do Orçamento de Referência
I6: ='C.C.U'!G3 -> BDI SERVIÇOS (%) = | J6: ='C.C.U'!I3 -> 0.2101044699
I7: ='C.C.U'!G4 -> BDI FORNEC. (%)= | J7: ='C.C.U'!I4 -> 0.1326760675
A8: ÍTEM MÃE | B8: NÍVEL | C8: SEQ. | D8: ÍTEM | E8: DESCRIÇÃO | F8: UNID | G8: CÓD. COMP. | H8: QTDE | I8: R$ / UNID ( S/ BDI) | J8: R$ / UNID ( C/ BDI) | K8: R$ Total ( C /BDI)
A9: =IFERROR(LEFT(D9,LEN(D9)-(LEN(C9)+1)),0) -> 0 | B9: 1 | C9: 3 | D9: 3 | E9: RECUPERAÇÃO E ADEQUAÇÃO DO SISTEMA DE CONDUÇÃO
A10: =IFERROR(LEFT(D10,LEN(D10)-(LEN(C10)+1)),0) -> 3 | B10: 2 | C10: 1 | D10: 3.1 | E10: ADUTOR LESTE
A11: =IFERROR(LEFT(D11,LEN(D11)-(LEN(C11)+1)),0) -> 3.1 | B11: 3 | C11: 1 | D11: =D10&"."&C11 -> 3.1.1 | E11: ="TRECHO TRAPEZOIDAL - RECUPERAÇÃO GEOMETRICA DA SEÇÃO COM SOLO-CIMENTO, MANTA DE PEAD 1 MM, TELA DE AÇO, 5 CM CONCRETO - L = "&H13&" m" -> TRECHO TRAPEZOIDAL - RECUPERAÇÃO GEOMETRICA DA SEÇÃO COM SOLO-CIMENTO, MANTA DE PEAD 1 MM, TELA DE AÇO, 5 CM CONCRETO - L = 4933,41 m | K11: =ROUND(K12+K15+K20+K24+K28+K32,2) -> 3288319.96 | M11: =K11/4933.41 -> 666.5409848
A12: =IFERROR(LEFT(D12,LEN(D12)-(LEN(C12)+1)),0) -> 3.1.1 | B12: 4 | C12: 1 | D12: =D11&"."&C12 -> 3.1.1.1 | E12: LOCAÇÃO E NIVELAMENTO COM EQUIPAMENTO TOPOGRÁFICO | K12: =K13 -> 11971.28
A13: =IFERROR(LEFT(D13,LEN(D13)-(LEN(C13)+1)),0) -> 3.1.1.1 | B13: 5 | C13: =ROW()-ROW(C12) -> 1 | D13: =D12&"."&C13 -> 3.1.1.1.1 | E13: LOCACAO E NIVELAMENTO DE REDE DE CANAIS COLETORES DE IRRIGAÇÃO COM AUXILIO DE EQUIPAMENTO TOPOGRAFICO | F13: m | G13: CAC-002 | H13: =IF(E10="GERAL - DEMAIS CANAIS",SUMIF('M. CÁL. ADUTOR LESTE'!$7:$7,"CANAL *",'M. CÁL. ADUTOR LESTE'!$38:$38),SUMIF('M. CÁL. ADUTOR LESTE'!$7:$7,E10,'M. CÁL. ADUTOR LESTE'!$38:$38)) -> 4933.41 | I13: =VLOOKUP(G13,'C.C.U'!D:L,4,0) -> 2.00526 | J13: =VLOOKUP(G13,'C.C.U'!D:L,7,0) -> 2.426574089 | K13: =ROUND(H13*J13,2) -> 11971.28
A14: =IFERROR(LEFT(D14,LEN(D14)-(LEN(C14)+1)),0) -> 3.1.1 | B14: 4 | C14: 3 | D14: =D11&"."&C14 -> 3.1.1.3 | E14: RECOMPOSIÇÃO DA GEOMETRIA DO CANAL E REVESTIMENTO
A15: 3.1.1.3 | B15: 4 | C15: 2 | D15: =D14&"."&C20 -> 3.1.1.3.1 | E15: REMOÇÃO DA ESTRUTURA (REVESTIMENTO) EXISTENTE | K15: =K16+K17+K18+K19 -> 146219.89
A16: 3.1.1.3.1 | B16: 5 | C16: =ROW()-ROW(C15) -> 1 | D16: =D15&"."&C16 -> 3.1.1.3.1.1 | E16: LIMPEZA MANUAL DE VEGETAÇÃO EM TERRENO COM ENXADA | F16: m² | G16: CAC-001 | H16: =SUM('M. CÁL. ADUTOR LESTE'!E39:I39) -> 4933.41 | I16: =VLOOKUP(G16,'C.C.U'!D:L,4,0) -> 2.28 | J16: =VLOOKUP(G16,'C.C.U'!D:L,7,0) -> 2.759038191 | K16: =ROUND(H16*J16,2) -> 13611.47
A17: 3.1.1.3.1 | B17: 5 | C17: =ROW()-ROW(C15) -> 2 | D17: =D15&"."&C17 -> 3.1.1.3.1.2 | E17: DEMOLIÇÃO DE PLACAS EM CONCRETO ( MECANICAMENTE) | F17: m³ | G17: CAC-003 | H17: =IF($E$10="GERAL - DEMAIS CANAIS",SUMIF('M. CÁL. ADUTOR LESTE'!$7:$7,"CANAL *",'M. CÁL. ADUTOR LESTE'!40:40),SUMIF('M. CÁL. ADUTOR LESTE'!$7:$7,$E$10,'M. CÁL. ADUTOR LESTE'!40:40)) -> 1901.151494 | I17: =VLOOKUP(G17,'C.C.U'!D:L,4,0) -> 42.2685 | J17: =VLOOKUP(G17,'C.C.U'!D:L,7,0) -> 51.14930079 | K17: =ROUND(H17*J17,2) -> 97242.57
A18: 3.1.1.3.1 | B18: 5 | C18: =ROW()-ROW(C15) -> 3 | D18: =D15&"."&C18 -> 3.1.1.3.1.3 | E18: CARGA E DESCARGA MECANIZADAS DE ENTULHO EM CAMINHAO BASCULANTE 6 M3 | F18: m³ | G18: CAC-005 | H18: =IF($E$10="GERAL - DEMAIS CANAIS",SUMIF('M. CÁL. ADUTOR LESTE'!$7:$7,"CANAL *",'M. CÁL. ADUTOR LESTE'!41:41),SUMIF('M. CÁL. ADUTOR LESTE'!$7:$7,$E$10,'M. CÁL. ADUTOR LESTE'!41:41)) -> 1901.151494 | I18: =VLOOKUP(G18,'C.C.U'!D:L,4,0) -> 3.0725 | J18: =VLOOKUP(G18,'C.C.U'!D:L,7,0) -> 3.718045984 | K18: =ROUND(H18*J18,2) -> 7068.57
A19: 3.1.1.3.1 | B19: 5 | C19: =ROW()-ROW(C15) -> 4 | D19: =D15&"."&C19 -> 3.1.1.3.1.4 | E19: TRANSPORTE COM CAMINHÃO BASCULANTE DE 6 M3, EM VIA URBANA EM REVESTIMENTO PRIMÁRIO | F19: m³XKm | G19: CAC-007 | H19: =IF($E$10="GERAL - DEMAIS CANAIS",SUMIF('M. CÁL. ADUTOR LESTE'!$7:$7,"CANAL *",'M. CÁL. ADUTOR LESTE'!42:42),SUMIF('M. CÁL. ADUTOR LESTE'!$7:$7,$E$10,'M. CÁL. ADUTOR LESTE'!42:42)) -> 19011.51494 | I19: =VLOOKUP(G19,'C.C.U'!D:L,4,0) -> 1.23 | J19: =VLOOKUP(G19,'C.C.U'!D:L,7,0) -> 1.488428498 | K19: =ROUND(H19*J19,2) -> 28297.28
A20: 3.1.1.3 | B20: 5 | C20: 1 | D20: =D14&"."&C15 -> 3.1.1.3.2 | E20: RETIRADA SOLO IMPRÓPRIO | K20: =K21+K22+K23 -> 168130.5
A21: 3.1.1.3.2 | B21: 6 | C21: =ROW()-ROW(C20) -> 1 | D21: =D20&"."&C21 -> 3.1.1.3.2.1 | E21: ESCAVACAO MECANICA, A CEU ABERTO, EM MATERIAL DE 1A CATEGORIA, COM RETROESCAVADEIRA | F21: m³ | G21: CAC-014 | H21: =IF($E$10="GERAL - DEMAIS CANAIS",SUMIF('M. CÁL. ADUTOR LESTE'!$7:$7,"CANAL *",'M. CÁL. ADUTOR LESTE'!43:43),SUMIF('M. CÁL. ADUTOR LESTE'!$7:$7,$E$10,'M. CÁL. ADUTOR LESTE'!43:43)) -> 8962.571328 | I21: =VLOOKUP(G21,'C.C.U'!D:L,4,0) -> 1.863148 | J21: =VLOOKUP(G21,'C.C.U'!D:L,7,0) -> 2.254603723 | K21: =ROUND(H21*J21,2) -> 20207.05
A22: 3.1.1.3.2 | B22: 6 | C22: =ROW()-ROW(C20) -> 2 | D22: =D20&"."&C22 -> 3.1.1.3.2.2 | E22: CARGA E DESCARGA MECANICA DE SOLO UTILIZANDO CAMINHAO BASCULANTE 6,0M3 | F22: m³ | G22: CAC-006 | H22: =IF($E$10="GERAL - DEMAIS CANAIS",SUMIF('M. CÁL. ADUTOR LESTE'!$7:$7,"CANAL *",'M. CÁL. ADUTOR LESTE'!44:44),SUMIF('M. CÁL. ADUTOR LESTE'!$7:$7,$E$10,'M. CÁL. ADUTOR LESTE'!44:44)) -> 8962.571328 | I22: ='C.C.U'!$G$196 -> 1.338968 | J22: ='C.C.U'!$J$196 -> 1.620291162 | K22: =ROUND(H22*J22,2) -> 14521.98
A23: 3.1.1.3.2 | B23: 6 | C23: =ROW()-ROW(C20) -> 3 | D23: =D20&"."&C23 -> 3.1.1.3.2.3 | E23: TRANSPORTE COM CAMINHÃO BASCULANTE DE 6 M3, EM VIA URBANA EM REVESTIMENTO PRIMÁRIO | F23: m³XKm | G23: CAC-007 | H23: =IF($E$10="GERAL - DEMAIS CANAIS",SUMIF('M. CÁL. ADUTOR LESTE'!$7:$7,"CANAL *",'M. CÁL. ADUTOR LESTE'!45:45),SUMIF('M. CÁL. ADUTOR LESTE'!$7:$7,$E$10,'M. CÁL. ADUTOR LESTE'!45:45)) -> 89625.71328 | I23: =VLOOKUP(G23,'C.C.U'!D:L,4,0) -> 1.23 | J23: =VLOOKUP(G23,'C.C.U'!D:L,7,0) -> 1.488428498 | K23: =ROUND(H23*J23,2) -> 133401.47
A24: 3.1.1.3 | B24: 5 | C24: 3 | D24: =D14&"."&C24 -> 3.1.1.3.3 | E24: RECOMPOSIÇÃO GEOMETRIA DO CANAL | K24: =SUM(K25:K27) -> 1115834.61
A25: =IFERROR(LEFT(D25,LEN(D25)-(LEN(C25)+1)),0) -> 3.1.1.3.3 | B25: 6 | C25: =ROW()-ROW(C24) -> 1 | D25: =D24&"."&C25 -> 3.1.1.3.3.1 | E25: TRANSPORTE COM CAMINHÃO BASCULANTE DE 6 M3, EM VIA URBANA EM REVESTIMENTO PRIMÁRIO | F25: m³XKm | G25: CAC-007 | H25: =H26*5 -> 31482.42882 | I25: =VLOOKUP(G25,'C.C.U'!D:L,4,0) -> 1.23 | J25: =VLOOKUP(G25,'C.C.U'!D:L,7,0) -> 1.488428498 | K25: =ROUND(H25*J25,2) -> 46859.34
C26: 1 | D26: =D24&"."&C26 -> 3.1.1.3.3.1 | E26: ATERRO MANUAL COM MATERIAL DE EMPRÉSTIMO, COMPACTAÇÃO MECANIZADA E REGULARIZAÇÃO DO TALUDE | F26: m³ | G26: CAC-015 | H26: =SUM('M. CÁL. ADUTOR LESTE'!E47:I47) -> 6296.485764 | I26: =VLOOKUP(G26,'C.C.U'!D:L,4,0) -> 31.94742 | J26: =VLOOKUP(G26,'C.C.U'!D:L,7,0) -> 38.65971574 | K26: =ROUND(H26*J26,2) -> 243420.35
A27: =IFERROR(LEFT(D27,LEN(D27)-(LEN(C27)+1)),0) -> 3.1.1.3.3 | B27: 6 | C27: =ROW()-ROW(C24) -> 3 | D27: =D24&"."&C27 -> 3.1.1.3.3.3 | E27: PPREPARO E EXECUÇÃO DE SOLO-CIMENTO TRAÇO 1:12 EM VOLUME, (CIMENTO/ARENOSO), COM COMPACTAÇÃO E ESPALHAMENTO, PARA SUPORTE DE FUNDAÇÕES, INCLUSIVE CIMENTO E ARENOSO COMERCIAL | F27: m³ | G27: CAC-018 | H27: =IF($E$10="GERAL - DEMAIS CANAIS",SUMIF('M. CÁL. ADUTOR LESTE'!$7:$7,"CANAL *",'M. CÁL. ADUTOR LESTE'!46:46),SUMIF('M. CÁL. ADUTOR LESTE'!$7:$7,$E$10,'M. CÁL. ADUTOR LESTE'!46:46)) -> 2715.930705 | I27: =VLOOKUP(G27,'C.C.U'!D:L,4,0) -> 251.1912 | J27: =VLOOKUP(G27,'C.C.U'!D:L,7,0) -> 303.9675939 | K27: =ROUND(H27*J27,2) -> 825554.92
A28: 3.1.1.3 | B28: 5 | C28: 4 | D28: =D14&"."&C28 -> 3.1.1.3.4 | E28: ASSENTAMENTE DE MANTA PEAD | K28: =K29+K30+K31 -> 900370.62
A29: 3.1.1.3.4 | B29: 6 | C29: =ROW()-ROW(C28) -> 1 | D29: =D28&"."&C29 -> 3.1.1.3.4.1 | E29: ESCAVAÇÃO MANUAL DE VALAS PARA ANCORAGEM DA MANTA PEAD | F29: m³ | G29: CAC-022 | H29: =SUM('M. CÁL. ADUTOR LESTE'!E48:I48) -> 394.6728 | I29: =VLOOKUP(G29,'C.C.U'!D:L,4,0) -> 56.57 | J29: =VLOOKUP(G29,'C.C.U'!D:L,7,0) -> 68.45560986 | K29: =ROUND(H29*J29,2) -> 27017.57
A30: 3.1.1.3.4 | B30: 6 | C30: =ROW()-ROW(C28) -> 2 | D30: =D28&"."&C30 -> 3.1.1.3.4.2 | E30: FORNECIMENTO E INSTALAÇÃO DE GEOMEMBRANA TEXTURIZADA EM AMBAS AS FACES, ESP. = 1,00 MM | F30: m² | G30: CAC-017 | H30: =SUM('M. CÁL. ADUTOR LESTE'!E49:I49) -> 31106.03505 | I30: =VLOOKUP(G30,'C.C.U'!D:L,4,0) -> 22.9424636 | J30: =VLOOKUP(G30,'C.C.U'!D:L,7,0) -> 27.76277775 | K30: =ROUND(H30*J30,2) -> 863589.94
A31: 3.1.1.3.4 | B31: 6 | C31: =ROW()-ROW(C28) -> 3 | D31: =D28&"."&C31 -> 3.1.1.3.4.3 | E31: REATERRO COM COMPACTACAO MECANIZADA DAS VALAS ( ANCORAGEM DA MANTA PEAD ) | F31: m³ | G31: CAC-012 | H31: =SUM('M. CÁL. ADUTOR LESTE'!E50:I50) -> 394.6728 | I31: =VLOOKUP(G31,'C.C.U'!D:L,4,0) -> 20.44222 | J31: =VLOOKUP(G31,'C.C.U'!D:L,7,0) -> 24.7372218 | K31: =ROUND(H31*J31,2) -> 9763.11
A32: 3.1.1.3 | B32: 5 | C32: 5 | D32: =D14&"."&C32 -> 3.1.1.3.5 | E32: REVESTIMENTO CANAL FINAL | K32: =K33+K34 -> 945793.06
A33: 3.1.1.3.5 | B33: 6 | C33: =ROW()-ROW(C32) -> 1 | D33: =D32&"."&C33 -> 3.1.1.3.5.1 | E33: ARMACAO EM TELA DE ACO SOLDADA NERVURADA Q-138, ACO CA-60, 4,2MM, MALHA 15X15 CM PARA REVESTIMENTO DO CANAL TRAPEZOIDAL | F33: m² | G33: CAC-028 | H33: =SUM('M. CÁL. ADUTOR LESTE'!E51:I51) -> 27159.30705 | I33: =VLOOKUP(G33,'C.C.U'!D:L,4,0) -> 9.1444 | J33: =VLOOKUP(G33,'C.C.U'!D:L,7,0) -> 11.06567931 | K33: =ROUND(H33*J33,2) -> 300536.18
A34: 3.1.1.3.5 | B34: 6 | C34: =ROW()-ROW(C32) -> 2 | D34: =D32&"."&C34 -> 3.1.1.3.5.2 | E34: CONCRETO FCK=20MPA PARA ESTRUTURAS, INCLUINDO PREPARO MECANICO, LANCAMENTO E ADENSAMENTO | F34: m³ | G34: CAC-033 | H34: =IF(E10="GERAL - DEMAIS CANAIS",SUMIF('M. CÁL. ADUTOR LESTE'!$7:$7,"Canal *",'M. CÁL. ADUTOR LESTE'!$52:$52),SUMIF('M. CÁL. ADUTOR LESTE'!$7:$7,E10,'M. CÁL. ADUTOR LESTE'!$52:$52)) -> 1357.965353 | I34: =VLOOKUP(G34,'C.C.U'!D:L,4,0) -> 392.664 | J34: =VLOOKUP(G34,'C.C.U'!D:L,7,0) -> 475.1644616 | K34: =ROUND(H34*J34,2) -> 645256.88
J36: TOTAL | K36: =ROUND(K11,2) -> 3288319.96

Sheet DIQUE ITIÚBA
B1: MINISTÉRIO DO DESENVOLVIMENTO REGIONAL - MD COMPANHIA DE DESENVOLVIMENTO DOS VALES DO SÃO FRANCISCO E DO PARNAÍBA 5ª Superintendência Regional
B5: ='ORÇ. GERAL'!B4 -> EXECUÇÃO DE OBRAS E SERVIÇOS DE RECUPERAÇÃO PARCIAL DO DIQUE DE PROTEÇÃO E RECUPERAÇÃO DOS CANAIS DE IRRIGAÇÃO DO PERÍMETRO IRRIGADO DO ITIÚBA (canal adutor leste, P12, S1P12 e S2P12) E DOS CANAIS DE IRRIGAÇÃO (CLI e CLII) DO PERÍMETRO IRRIGADO DO BOACICA.
B6: ='ORÇ. GERAL'!B5:D5 -> Planilha de Custos do Valor do Orçamento de Referência
H7: ='C.C.U'!G3 -> BDI SERVIÇOS (%) = | I7: ='C.C.U'!I3 -> 0.2101044699
H8: ='C.C.U'!G4 -> BDI FORNEC. (%)= | I8: ='C.C.U'!I4 -> 0.1326760675
B9: ÍTEM | C9: DESCRIÇÃO | D9: UNID | E9: CÓD. COMP. | F9: QTDE | G9: R$ / UNID ( S/ BDI) | H9: R$ / UNID ( C/ BDI) | I9: R$ Total ( C /BDI) | J9: P. UNIT. C/ B.D.I
B10: 4 | C10: RECUPERAÇÃO PARCIAL DO DIQUE DE ITIÚBA
B12: 1º TRECHO - 320M | I12: =I13+I18+I25+I32 -> 1410904.22 | J12: =J13+J18+J25+J32 -> 
B13: 4.1 | C13: MOVIMENTO DE TERRA | I13: =SUM(I14:I17) -> 356624.73 | J13: =SUM(J14:J17) -> 
B14: 4.1.1 | C14: LIMPEZA MECANIZADA DE CAMADA VEGETAL, VEGETAÇÃO E PEQUENAS ÁRVORES (DIÂMETRO DE TRONCO MENOR QUE 0,20 M), COM TRATOR DE ESTEIRAS | D14: M2 | E14: 98525 | F14: 6250 | G14: 0.24 | H14: =G14+G14*$I$7 -> 0.2904250728 | I14: =ROUND(H14*F14,2) -> 1815.16 | J14: =#REF!*1.2863 -> 
B15: 4.1.2 | C15: ESCAVACAO, CARGA E TRANSPORTE DE MATERIAL DE 1A CATEGORIA COM TRATOR SOBRE ESTEIRAS 347 HP E CACAMBA 6M3, DMT 50 A 200M | D15: M3 | E15: 74154/001 | F15: 5857 | G15: 3.67 | H15: =G15+G15*$I$7 -> 4.441083405 | I15: =ROUND(H15*F15,2) -> 26011.43 | J15: =#REF!*1.2863 -> 
B16: 4.1.4 | C16: ATERRO MECANIZADO COM RETROESCAVADEIRA COM MATERIAL DE EMPRÉSTIMO E COMPACTAÇÃO MECANIZADA | D16: M3 | E16: CAC-016 | F16: 7851.8 | G16: ='C.C.U'!G4094 -> 29.78101 | H16: ='C.C.U'!J4094 -> 36.03813332 | I16: =ROUND(H16*F16,2) -> 282964.22
B17: 4.1.5 | C17: EXECUCAO DE DRENO FRANCES COM AREIA MEDIA | D17: M3 | E17: 73883/001 | F17: 400 | G17: 94.69 | H17: =G17+G17*$I$7 -> 114.5847923 | I17: =ROUND(H17*F17,2) -> 45833.92 | J17: =#REF!*1.2863 -> 
B18: 4.2 | C18: CARGA E TRANSPORTE | I18: =SUM(I19:I24) -> 194354.16 | J18: =SUM(J19:J24) -> 
B19: 4.2.1 | C19: TRANSPORTE COM CAMINHÃO BASCULANTE DE 6 M3, EM VIA URBANA EM REVESTIMENTO PRIMÁRIO | D19: M3xKM | E19: CAC-007 | F19: 16875 | G19: ='C.C.U'!G226 -> 1.23 | H19: ='C.C.U'!J226 -> 1.488428498 | I19: =ROUND(H19*F19,2) -> 25117.23 | J19: =#REF!*1.2863 -> 
B20: 4.2.2 | C20: TRANSPORTE COM CAMINHÃO BASCULANTE DE 6 M3, EM VIA URBANA PAVIMENTADA, M3XKM DMT ATÉ 30 KM - VOLUME DE AREIA | D20: M3xKM | E20: 97914 | F20: 12000 | G20: 1.16 | H20: =G20+G20*$I$7 -> 1.403721185 | I20: 16844.65 | J20: =#REF!*1.2863 -> 
B21: 4.2.3 | C21: TRANSPORTE COM CAMINHÃO BASCULANTE DE 6 M3, EM VIA URBANA PAVIMENTADA, M3XKM DMT ACIMA DE 30 KM - VOLUME DE BRITA | D21: M3xKM | E21: 97914 | F21: 2890 | G21: 0.81 | H21: 0.9801846206 | I21: 2832.73 | J21: =#REF!*1.2863 -> 
B22: 4.2.4 | C22: TRANSPORTE COM CAMINHÃO BASCULANTE DE 6 M3, EM VIA URBANA PAVIMENTADA, M3XKM DMT ACIMA DE 30 KM - VOLUME PEDRA | D22: M3xKM | E22: 97914 | F22: 132141 | G22: 0.81 | H22: 0.9801846206 | I22: 129522.58 | J22: =#REF!*1.2863 -> 
B23: 4.2.5 | C23: CARGA E DESCARGA MECANICA DE SOLO UTILIZANDO CAMINHAO BASCULANTE 6,0M3 (C/RETROESCAVADEIRA) | D23: M3 | E23: CAC-006 | F23: 9814.75 | G23: ='C.C.U'!G196 -> 1.338968 | H23: ='C.C.U'!J196 -> 1.620291162 | I23: 15902.75 | J23: =#REF!*1.2863 -> 
B24: 4.2.6 | C24: ESPALHAMENTO DE MATERIAL EM BOTA FORA, COM UTILIZACAO DE TRATOR DE ESTEIRAS DE 165 HP | D24: M3 | E24: 100574 | F24: 4217.8 | G24: 0.81 | H24: 0.9801846206 | I24: 4134.22 | J24: =#REF!*1.2863 -> 
B25: 4.3 | C25: CONTENCAO E PROTECAO DE MARGEM | I25: =SUM(I26:I31) -> 820950.98 | J25: =SUM(J26:J31) -> 
B26: 4.3.1 | C26: MURO DE GABIÃO, ENCHIMENTO COM PEDRA DE MÃO TIPO RACHÃO, DE GRAVIDADE, COM GAIOLAS DE COMPRIMENTO IGUAL A 5 METROS, ALTURA DO MURO DE ATÉ 4 METROS - FORNECIMENTO E EXECUÇÃO. AF_12/2015 | D26: M3 | E26: CAC-126 | F26: 1381.5 | G26: ='C.C.U'!G4028 -> 349.2307733 | H26: ='C.C.U'!J4028 -> 422.6057198 | I26: =ROUND(H26*F26,2) -> 583829.8 | J26: =#REF!*1.2863 -> 
B27: 4.3.2 | C27: PROTEÇÃO SUPERFICIAL DE CANAL EM GABIÃO TIPO COLCHÃO, ALTURA DE 17 CENTÍMETROS, ENCHIMENTO COM PEDRA DE MÃO TIPO RACHÃO - FORNECIMENTO E EXECUÇÃO. AF 12/2015 | D27: M2 | E27: 92755 | F27: 640 | G27: 178.27 | H27: =G27+G27*$I$7 -> 215.7253238 | I27: 138064.21 | J27: =#REF!*1.2863 -> 
B28: 4.3.3 | C28: ENROCAMENTO MANUAL, COM ARRUMACAO DO MATERIAL | D28: M3 | E28: CAC-123 | F28: 66 | G28: ='C.C.U'!G3937 -> 191.9956667 | H28: 232.3348144 | I28: 15334.1 | J28: =#REF!*1.2863 -> 
B29: 4.3.4 | C29: CAMADA DRENANTE COM BRITA NUM 3 | D29: M3 | E29: CAC-122 | F29: 34 | G29: ='C.C.U'!G3907 -> 107.7299 | H29: 130.3644335 | I29: 4432.39 | J29: =#REF!*1.2863 -> 
B30: 4.3.5 | C30: PLANTIO DE GRAMA EM PLACAS. | D30: M2 | E30: 98504 | F30: 4756 | G30: 8.99 | H30: 10.87883918 | I30: 51739.76 | J30: =#REF!*1.2863 -> 
B31: 4.3.6 | C31: EXECUCAO DE DRENO COM MANTA GEOTEXTIL 400 G/M2 | D31: M2 | E31: 73881/003 | F31: 1852.5 | G31: 12.29 | H31: 14.87218394 | I31: 27550.72 | J31: =#REF!*1.2863 -> 
B32: 4.4 | C32: DRENAGEM | I32: =SUM(I33:I36) -> 38974.35 | J32: =SUM(J33:J36) -> 
B33: 4.4.1 | C33: INSTALACAO E FORNECIMENTO DE CANALETA DN 300 MM | D33: M | E33: CAC-112 | F33: 320 | G33: ='C.C.U'!G3789 -> 28.919 | H33: =G33+G33*$I$7 -> 34.99501117 | I33: =ROUND(H33*F33,2) -> 11198.4 | J33: =#REF!*1.2863 -> 
B34: 4.4.2 | C34: INSTALACAO E FORNECIMENTO DE TUBO PVC 200 MM | D34: M | E34: CAC-113 | F34: 49 | G34: ='C.C.U'!G3820 -> 157.8786 | H34: =G34+G34*$I$7 -> 191.0495996 | I34: =ROUND(H34*F34,2) -> 9361.43 | J34: =#REF!*1.2863 -> 
B35: 4.4.3 | C35: INSTALACAO E FORNECIMENTO DE TUBO DE PEAD CORRUGADO 100MM | D35: M | E35: CAC-111 | F35: 520 | G35: ='C.C.U'!G3759 -> 27.351 | H35: =G35+G35*$I$7 -> 33.09756736 | I35: =ROUND(H35*F35,2) -> 17210.74 | J35: =#REF!*1.2863 -> 
B36: 4.4.4 | C36: CAIXA DE PASSAGEM 30X30X40 COM TAMPA E DRENO BRITA | D36: UNID | E36: 83446 | F36: 7 | G36: 142.11 | H36: =G36+G36*$I$7 -> 171.9679462 | I36: =ROUND(H36*F36,2) -> 1203.78 | J36: =#REF!*1.2863 -> 
B38: 2º TRECHO - 580M | I38: =I39+I44+I51+I58 -> 2327306.76 | J38: =J39+J44+J51+J58 -> 
B39: 4.5 | C39: MOVIMENTO DE TERRA | I39: =SUM(I40:I43) -> 553301.01 | J39: =SUM(J40:J43) -> 
B40: 4.5.1 | C40: LIMPEZA MECANIZADA DE CAMADA VEGETAL, VEGETAÇÃO E PEQUENAS ÁRVORES (DIÂMETRO DE TRONCO MENOR QUE 0,20 M), COM TRATOR DE ESTEIRAS | D40: M2 | E40: 73822/002 | F40: 12010 | G40: 0.22 | H40: =G40+G40*$I$7 -> 0.2662229834 | I40: =ROUND(H40*F40,2) -> 3197.34 | J40: =#REF!*1.2863 -> 
B41: 4.5.2 | C41: ESCAVACAO, CARGA E TRANSPORTE DE MATERIAL DE 1A CATEGORIA COM TRATOR SOBRE ESTEIRAS 347 HP E CACAMBA 6M3, DMT 50 A 200M | D41: M3 | E41: 74154/001 | F41: 12210.8 | G41: 3.62 | H41: =G41+G41*$I$7 -> 4.380578181 | I41: =ROUND(H41*F41,2) -> 53490.36 | J41: =#REF!*1.2863 -> 
B42: 4.5.4 | C42: ATERRO MECANIZADO COM RETROESCAVADEIRA COM MATERIAL DE EMPRÉSTIMO E COMPACTAÇÃO MECANIZADA | D42: M3 | E42: CAC-016 | F42: ='M, CÁL. DIQUE ITIUBA'!L442 -> 12508.4 | G42: ='C.C.U'!G4094 -> 29.78101 | H42: ='C.C.U'!J4094 -> 36.03813332 | I42: =ROUND(H42*F42,2) -> 450779.39
B43: 4.5.5 | C43: EXECUCAO DE DRENO FRANCES COM AREIA MEDIA | D43: M3 | E43: 73883/001 | F43: 400 | G43: 94.69 | H43: =G43+G43*$I$7 -> 114.5847923 | I43: =ROUND(H43*F43,2) -> 45833.92 | J43: =#REF!*1.2863 -> 
B44: 4.6 | C44: CARGA E TRANSPORTE | I44: =SUM(I45:I50) -> 347885.82 | J44: =SUM(J45:J50) -> 
B45: 4.6.1 | C45: TRANSPORTE COM CAMINHÃO BASCULANTE DE 6 M3, EM VIA URBANA EM REVESTIMENTO PRIMÁRIO | D45: M3xKM | E45: CAC-007 | F45: 27458.96 | G45: ='C.C.U'!G226 -> 1.23 | H45: ='C.C.U'!J226 -> 1.488428498 | I45: =ROUND(H45*F45,2) -> 40870.7 | J45: =#REF!*1.2863 -> 
B46: 4.6.2 | C46: TRANSPORTE COM CAMINHÃO BASCULANTE DE 6 M3, EM VIA URBANA PAVIMENTADA, M3XKM DMT ATÉ 30 KM - VOLUME DE AREIA | D46: M3xKM | E46: 97914 | F46: 12000 | G46: 1.16 | H46: =G46+G46*$I$7 -> 1.403721185 | I46: 16844.65 | J46: =#REF!*1.2863 -> 
B47: 4.6.3 | C47: TRANSPORTE COM CAMINHÃO BASCULANTE DE 6 M3, EM VIA URBANA PAVIMENTADA, M3XKM DMT ACIMA DE 30 KM - VOLUME DE BRITA | D47: M3xKM | E47: 97914 | F47: 10115 | G47: 0.81 | H47: 0.9801846206 | I47: 9914.57 | J47: =#REF!*1.2863 -> 
B48: 4.6.4 | C48: TRANSPORTE COM CAMINHÃO BASCULANTE DE 6 M3, EM VIA URBANA PAVIMENTADA, M3XKM DMT ACIMA DE 30 KM - VOLUME PEDRA | D48: M3xKM | E48: 97914 | F48: 221609.45 | G48: 0.81 | H48: 0.9801846206 | I48: 217218.17 | J48: =#REF!*1.2863 -> 
B49: 4.6.5 | C49: CARGA E DESCARGA MECANICA DE SOLO/ENTULHO UTILIZANDO CAMINHAO BASCULANTE 6,0M3/16T E RETROESCAVADEIRA, CAÇAMBA RETRO CAP. 0,20 M3,PESO OPERACIONAL MÍN. 6.570 KG | D49: M3 | E49: CAC-005 | F49: 15635.5 | G49: ='C.C.U'!L160 -> 3.0725 | H49: 3.718045984 | I49: 58133.51 | J49: =#REF!*1.2863 -> 
B50: 4.6.6 | C50: ESPALHAMENTO DE MATERIAL EM BOTA FORA, COM UTILIZACAO DE TRATOR DE ESTEIRAS DE 165 HP | D50: M3 | E50: 100574 | F50: 5003.36 | G50: 0.81 | H50: 0.9801846206 | I50: 4904.22 | J50: =#REF!*1.2863 -> 
B51: 4.7 | C51: CONTENCAO E PROTECAO DE MARGEM | I51: =SUM(I52:I57) -> 1366032.34 | J51: =SUM(J52:J57) -> 
B52: 4.7.1 | C52: MURO DE GABIÃO, ENCHIMENTO COM PEDRA DE MÃO TIPO RACHÃO, DE GRAVIDADE, COM GAIOLAS DE COMPRIMENTO IGUAL A 5 METROS, ALTURA DO MURO DE ATÉ 4 METROS - FORNECIMENTO E EXECUÇÃO. AF_12/2015 | D52: M3 | E52: CAC-126 | F52: 2184.75 | G52: ='C.C.U'!G4028 -> 349.2307733 | H52: ='C.C.U'!J4028 -> 422.6057198 | I52: =ROUND(H52*F52,2) -> 923287.85 | J52: =#REF!*1.2863 -> 
B53: 4.7.2 | C53: PROTEÇÃO SUPERFICIAL DE CANAL EM GABIÃO TIPO COLCHÃO, ALTURA DE 17 CENTÍMETROS, ENCHIMENTO COM PEDRA DE MÃO TIPO RACHÃO - FORNECIMENTO E EXECUÇÃO. AF 12/2015 | D53: M2 | E53: 92755 | F53: 1126 | G53: 178.27 | H53: =G53+G53*$I$7 -> 215.7253238 | I53: 242906.71 | J53: =#REF!*1.2863 -> 
B54: 4.7.3 | C54: ENROCAMENTO MANUAL, COM ARRUMACAO DO MATERIAL | D54: M3 | E54: CAC-123 | F54: 231 | G54: =G28 -> 191.9956667 | H54: 232.3348144 | I54: 53669.34 | J54: =#REF!*1.2863 -> 
B55: 4.7.4 | C55: CAMADA DRENANTE COM BRITA NUM 3 | D55: M3 | E55: CAC-122 | F55: 119 | G55: =G29 -> 107.7299 | H55: 130.3644335 | I55: 15513.37 | J55: =#REF!*1.2863 -> 
B56: 4.7.5 | C56: PLANTIO DE GRAMA EM PLACAS. | D56: M2 | E56: 98504 | F56: 7755 | G56: 8.99 | H56: 10.87883918 | I56: 84365.4 | J56: =#REF!*1.2863 -> 
B57: 4.7.6 | C57: EXECUCAO DE DRENO COM MANTA GEOTEXTIL 400 G/M2 | D57: M2 | E57: 73881/003 | F57: 3112.5 | G57: 12.29 | H57: 14.87218394 | I57: 46289.67 | J57: =#REF!*1.2863 -> 
B58: 4.8 | C58: DRENAGEM | I58: =SUM(I59:I62) -> 60087.59 | J58: =SUM(J59:J62) -> 
B59: 4.8.1 | C59: INSTALACAO E FORNECIMENTO DE CANALETA DN 300 MM | D59: M | E59: CAC-112 | F59: 566.5 | G59: =G33 -> 28.919 | H59: =G59+G59*$I$7 -> 34.99501117 | I59: =ROUND(H59*F59,2) -> 19824.67 | J59: =#REF!*1.2863 -> 
B60: 4.8.2 | C60: INSTALACAO E FORNECIMENTO DE TUBO PVC 200 MM | D60: M | E60: CAC-113 | F60: 96 | G60: =G34 -> 157.8786 | H60: =G60+G60*$I$7 -> 191.0495996 | I60: =ROUND(H60*F60,2) -> 18340.76 | J60: =#REF!*1.2863 -> 
B61: 4.8.3 | C61: INSTALACAO E FORNECIMENTO DE TUBO DE PEAD CORRUGADO 100MM | D61: M | E61: CAC-103 | F61: 600 | G61: =G35 -> 27.351 | H61: =G61+G61*$I$7 -> 33.09756736 | I61: =ROUND(H61*F61,2) -> 19858.54 | J61: =#REF!*1.2863 -> 
B62: 4.8.4 | C62: CAIXA DE PASSAGEM 30X30X40 COM TAMPA E DRENO BRITA | D62: UNID | E62: 83446 | F62: 12 | G62: =G36 -> 142.11 | H62: =G62+G62*$I$7 -> 171.9679462 | I62: =ROUND(H62*F62,2) -> 2063.62 | J62: =#REF!*1.2863 -> 
H63: TOTAL | I63: =I13+I18+I25+I32+I39+I44+I51+I58 -> 3738210.98 | J63: =J13+J18+J25+J32+J39+J44+J51+J58+#REF!+#REF!+#REF!+#REF! -> 

Sheet P12 E TRIBUTÁRIOS
E1: MINISTÉRIO DO DESENVOLVIMENTO REGIONAL - MD COMPANHIA DE DESENVOLVIMENTO DOS VALES DO SÃO FRANCISCO E DO PARNAÍBA 5ª Superintendência Regional
D5: ='DIQUE ITIÚBA'!B5 -> EXECUÇÃO DE OBRAS E SERVIÇOS DE RECUPERAÇÃO PARCIAL DO DIQUE DE PROTEÇÃO E RECUPERAÇÃO DOS CANAIS DE IRRIGAÇÃO DO PERÍMETRO IRRIGADO DO ITIÚBA (canal adutor leste, P12, S1P12 e S2P12) E DOS CANAIS DE IRRIGAÇÃO (CLI e CLII) DO PERÍMETRO IRRIGADO DO BOACICA.
D6: ='ORÇ. GERAL'!B5 -> Planilha de Custos do Valor do Orçamento de Referência
I7: ='C.C.U'!G3 -> BDI SERVIÇOS (%) = | J7: ='C.C.U'!I3 -> 0.2101044699
I8: ='C.C.U'!G4 -> BDI FORNEC. (%)= | J8: ='C.C.U'!I4 -> 0.1326760675
A9: ÍTEM MÃE | B9: NÍVEL | C9: SEQ. | D9: ÍTEM | E9: DESCRIÇÃO | F9: UNID | G9: CÓD. COMP. | H9: QTDE | I9: R$ / UNID (S/ BDI) | J9: R$ / UNID (C/ BDI) | K9: R$ Total ( C / BDI)
A10: =IFERROR(LEFT(D10,LEN(D10)-(LEN(C10)+1)),0) -> 0 | B10: 1 | C10: 3 | D10: 5 | E10: RECUPERAÇÃO E ADEQUAÇÃO DO SISTEMA DE CONDUÇÃO - ITIÚBA | K10: =SUMIF($A:$A,$D10,K:K) -> 0
A11: =IFERROR(LEFT(D11,LEN(D11)-(LEN(C11)+2)),0) ->  | B11: 2 | C11: 2 | D11: 5.1 | E11: CANAL P12 e DERIVADOS
A12: =IFERROR(LEFT(D12,LEN(D12)-(LEN(C12)+1)),0) -> 5 | B12: 2 | C12: 1 | D12: 5.1 | E12: OBRAS EM CANAL
A13: =IFERROR(LEFT(D13,LEN(D13)-(LEN(C13)+1)),0) -> 5.1 | B13: 3 | C13: 1 | D13: =D12&"."&C13 -> 5.1.1 | E13: ="TRECHO TRAPEZOIDAL - RECUPERAÇÃO GEOMETRICA DA SEÇÃO SOLO-CIMENTO, MANTA DE PEAD 1 MM, TELA DE AÇO, 5 CM CONCRETO - L = "&H15&" m" -> TRECHO TRAPEZOIDAL - RECUPERAÇÃO GEOMETRICA DA SEÇÃO SOLO-CIMENTO, MANTA DE PEAD 1 MM, TELA DE AÇO, 5 CM CONCRETO - L = 5251,72 m | K13: =K14+K16+K21+K25+K29+K33 -> 2439126.4 | O13: =K13/5251.72 -> 464.4433443
A14: =IFERROR(LEFT(D14,LEN(D14)-(LEN(C14)+1)),0) -> 5.1.1 | B14: 4 | C14: 1 | D14: =D13&"."&C14 -> 5.1.1.1 | E14: LOCAÇÃO E NIVELAMENTO COM EQUIPAMENTO TOPOGRÁFICO | K14: =K15 -> 12743.69
A15: =IFERROR(LEFT(D15,LEN(D15)-(LEN(C15)+1)),0) -> 5.1.1.1 | B15: 5 | C15: =ROW()-ROW(C14) -> 1 | D15: =D14&"."&C15 -> 5.1.1.1.1 | E15: LOCACAO E NIVELAMENTO DE REDE DE CANAIS COLETORES DE IRRIGAÇÃO COM AUXILIO DE EQUIPAMENTO TOPOGRAFICO | F15: m | G15: CAC-002 | H15: =IF(E11="GERAL - DEMAIS CANAIS",SUMIF('M. CÁL. P12 E TRIB.'!$7:$7,"CANAL*",'M. CÁL. P12 E TRIB.'!$38:$38),SUMIF('M. CÁL. P12 E TRIB.'!$7:$7,E11,'M. CÁL. P12 E TRIB.'!$38:$38)) -> 5251.72 | I15: =VLOOKUP(G15,'C.C.U'!D:L,4,0) -> 2.00526 | J15: =VLOOKUP(G15,'C.C.U'!D:L,7,0) -> 2.426574089 | K15: =ROUND(J15*H15,2) -> 12743.69
A16: =IFERROR(LEFT(D16,LEN(D16)-(LEN(C16)+1)),0) -> 5.1.1 | B16: 4 | C16: 2 | D16: =D13&"."&C16 -> 5.1.1.2 | E16: REMOÇÃO DA ESTRUTURA (REVESTIMENTO) EXISTENTE | K16: =K17+K18+K19+K20 -> 110818.39
A17: 5.1.1.2 | B17: 5 | C17: =ROW()-ROW(C16) -> 1 | D17: =D16&"."&C17 -> 5.1.1.2.1 | E17: LIMPEZA MANUAL DE VEGETAÇÃO EM TERRENO COM ENXADA | F17: m² | G17: CAC-001 | H17: =IF(E11="GERAL - DEMAIS CANAIS",SUMIF('M. CÁL. P12 E TRIB.'!$7:$7,"CANAL*",'M. CÁL. P12 E TRIB.'!$39:$39),SUMIF('M. CÁL. P12 E TRIB.'!$7:$7,E11,'M. CÁL. P12 E TRIB.'!$39:$39)) -> 5251.72 | I17: =VLOOKUP(G17,'C.C.U'!D:L,4,0) -> 2.28 | J17: =VLOOKUP(G17,'C.C.U'!D:L,7,0) -> 2.759038191 | K17: =ROUND(J17*H17,2) -> 14489.7
A18: 5.1.1.2 | B18: 5 | C18: =ROW()-ROW(C16) -> 2 | D18: =D16&"."&C18 -> 5.1.1.2.2 | E18: DEMOLIÇÃO DE PLACAS EM CONCRETO ( MECANICAMENTE) | F18: m³ | G18: CAC-003 | H18: =IF(E11="GERAL - DEMAIS CANAIS",SUMIF('M. CÁL. P12 E TRIB.'!$7:$7,"Canal *",'M. CÁL. P12 E TRIB.'!$40:$40),SUMIF('M. CÁL. P12 E TRIB.'!$7:$7,E11,'M. CÁL. P12 E TRIB.'!$40:$40)) -> 1381.024241 | I18: =VLOOKUP(G18,'C.C.U'!D:L,4,0) -> 42.2685 | J18: =VLOOKUP(G18,'C.C.U'!D:L,7,0) -> 51.14930079 | K18: =ROUND(J18*H18,2) -> 70638.42
A19: 5.1.1.2 | B19: 5 | C19: =ROW()-ROW(C16) -> 3 | D19: =D16&"."&C19 -> 5.1.1.2.3 | E19: CARGA E DESCARGA MECANIZADAS DE ENTULHO EM CAMINHAO BASCULANTE 6 M3 | F19: m³ | G19: CAC-005 | H19: =IF(E11="GERAL - DEMAIS CANAIS",SUMIF('M. CÁL. P12 E TRIB.'!$7:$7,"Canal *",'M. CÁL. P12 E TRIB.'!$41:$41),SUMIF('M. CÁL. P12 E TRIB.'!$7:$7,E11,'M. CÁL. P12 E TRIB.'!$41:$41)) -> 1381.024241 | I19: =VLOOKUP(G19,'C.C.U'!D:L,4,0) -> 3.0725 | J19: =VLOOKUP(G19,'C.C.U'!D:L,7,0) -> 3.718045984 | K19: =ROUND(J19*H19,2) -> 5134.71
A20: 5.1.1.2 | B20: 5 | C20: =ROW()-ROW(C16) -> 4 | D20: =D16&"."&C20 -> 5.1.1.2.4 | E20: TRANSPORTE COM CAMINHÃO BASCULANTE DE 6 M3, EM VIA URBANA EM REVESTIMENTO PRIMÁRIO | F20: m³XKm | G20: CAC-007 | H20: =IF(E11="GERAL - DEMAIS CANAIS",SUMIF('M. CÁL. P12 E TRIB.'!$7:$7,"Canal *",'M. CÁL. P12 E TRIB.'!$42:$42),SUMIF('M. CÁL. P12 E TRIB.'!$7:$7,E11,'M. CÁL. P12 E TRIB.'!$42:$42)) -> 13810.24241 | I20: =VLOOKUP(G20,'C.C.U'!D:L,4,0) -> 1.23 | J20: =VLOOKUP(G20,'C.C.U'!D:L,7,0) -> 1.488428498 | K20: =ROUND(J20*H20,2) -> 20555.56
A21: 5.1.1 | B21: 5 | C21: 1 | D21: 5.1.1.3 | E21: RETIRADA SOLO IMPRÓPRIO | K21: =SUM(K22:K24) -> 122132.45
A22: 5.1.1.3 | B22: 6 | C22: =ROW()-ROW(C21) -> 1 | D22: =D21&"."&C22 -> 5.1.1.3.1 | E22: ESCAVACAO MECANICA, A CEU ABERTO, EM MATERIAL DE 1A CATEGORIA, COM RETROESCAVADEIRA | F22: m³ | G22: CAC-014 | H22: =IF(E11="GERAL - DEMAIS CANAIS",SUMIF('M. CÁL. P12 E TRIB.'!$7:$7,"Canal *",'M. CÁL. P12 E TRIB.'!$43:$43),SUMIF('M. CÁL. P12 E TRIB.'!$7:$7,E11,'M. CÁL. P12 E TRIB.'!$43:$43)) -> 6510.542852 | I22: =VLOOKUP(G22,'C.C.U'!D:L,4,0) -> 1.863148 | J22: =VLOOKUP(G22,'C.C.U'!D:L,7,0) -> 2.254603723 | K22: =ROUND(J22*H22,2) -> 14678.69
A23: 5.1.1.3 | B23: 6 | C23: =ROW()-ROW(C21) -> 2 | D23: =D21&"."&C23 -> 5.1.1.3.2 | E23: CARGA E DESCARGA MECANICA DE SOLO UTILIZANDO CAMINHAO BASCULANTE 6,0M3 | F23: m³ | G23: CAC-006 | H23: =IF(E11="GERAL - DEMAIS CANAIS",SUMIF('M. CÁL. P12 E TRIB.'!$7:$7,"Canal *",'M. CÁL. P12 E TRIB.'!$44:$44),SUMIF('M. CÁL. P12 E TRIB.'!$7:$7,E11,'M. CÁL. P12 E TRIB.'!$44:$44)) -> 6510.542852 | I23: ='C.C.U'!$G$196 -> 1.338968 | J23: ='C.C.U'!$J$196 -> 1.620291162 | K23: =ROUND(J23*H23,2) -> 10548.98
A24: 5.1.1.3 | B24: 6 | C24: =ROW()-ROW(C21) -> 3 | D24: =D21&"."&C24 -> 5.1.1.3.3 | E24: TRANSPORTE COM CAMINHÃO BASCULANTE DE 6 M3, EM VIA URBANA EM REVESTIMENTO PRIMÁRIO | F24: m³XKm | G24: CAC-007 | H24: =IF(E11="GERAL - DEMAIS CANAIS",SUMIF('M. CÁL. P12 E TRIB.'!$7:$7,"Canal *",'M. CÁL. P12 E TRIB.'!$45:$45),SUMIF('M. CÁL. P12 E TRIB.'!$7:$7,E11,'M. CÁL. P12 E TRIB.'!$45:$45)) -> 65105.42852 | I24: =VLOOKUP(G24,'C.C.U'!D:L,4,0) -> 1.23 | J24: =VLOOKUP(G24,'C.C.U'!D:L,7,0) -> 1.488428498 | K24: =ROUND(J24*H24,2) -> 96904.78
A25: 5.1.1 | B25: 5 | C25: 2 | D25: 5.1.1.4 | E25: RECOMPOSIÇÃO GEOMETRIA DO CANAL | K25: =SUM(K26:K28) -> 802868.71
A26: =IFERROR(LEFT(D26,LEN(D26)-(LEN(C26)+1)),0) -> 5.1.1.4 | B26: 6 | C26: =ROW()-ROW(C25) -> 1 | D26: =D25&"."&C26 -> 5.1.1.4.1 | E26: TRANSPORTE COM CAMINHÃO BASCULANTE DE 6 M3, EM VIA URBANA EM REVESTIMENTO PRIMÁRIO | F26: m³XKm | G26: CAC-007 | H26: =H28*5 -> 22035.28717 | I26: =VLOOKUP(G26,'C.C.U'!D:L,4,0) -> 1.23 | J26: =VLOOKUP(G26,'C.C.U'!D:L,7,0) -> 1.488428498 | K26: =ROUND(J26*H26,2) -> 32797.95
A27: =IFERROR(LEFT(D27,LEN(D27)-(LEN(C27)+1)),0) -> 5.1.1.4 | B27: 6 | C27: =ROW()-ROW(C25) -> 2 | D27: =D25&"."&C27 -> 5.1.1.4.2 | E27: PPREPARO E EXECUÇÃO DE SOLO-CIMENTO TRAÇO 1:12 EM VOLUME, (CIMENTO/ARENOSO), COM COMPACTAÇÃO E ESPALHAMENTO, PARA SUPORTE DE FUNDAÇÕES, INCLUSIVE CIMENTO E ARENOSO COMERCIAL | F27: m³ | G27: CAC-018 | H27: =IF(E11="GERAL - DEMAIS CANAIS",SUMIF('M. CÁL. P12 E TRIB.'!$7:$7,"Canal *",'M. CÁL. P12 E TRIB.'!$46:$46),SUMIF('M. CÁL. P12 E TRIB.'!$7:$7,E11,'M. CÁL. P12 E TRIB.'!$46:$46)) -> 1972.891773 | I27: =VLOOKUP(G27,'C.C.U'!D:L,4,0) -> 251.1912 | J27: =VLOOKUP(G27,'C.C.U'!D:L,7,0) -> 303.9675939 | K27: =ROUND(J27*H27,2) -> 599695.17
C28: 1 | D28: =D25&"."&C28 -> 5.1.1.4.1 | E28: ATERRO MANUAL COM MATERIAL DE EMPRÉSTIMO, COMPACTAÇÃO MECANIZADA E REGULARIZAÇÃO DO TALUDE | F28: m³ | G28: CAC-015 | H28: =IF(E11="GERAL - DEMAIS CANAIS",SUMIF('M. CÁL. P12 E TRIB.'!$7:$7,"Canal *",'M. CÁL. P12 E TRIB.'!$47:$47),SUMIF('M. CÁL. P12 E TRIB.'!$7:$7,E11,'M. CÁL. P12 E TRIB.'!$47:$47)) -> 4407.057433 | I28: =VLOOKUP(G28,'C.C.U'!D:L,4,0) -> 31.94742 | J28: =VLOOKUP(G28,'C.C.U'!D:L,7,0) -> 38.65971574 | K28: =ROUND(J28*H28,2) -> 170375.59
A29: 5.1.1 | B29: 5 | C29: 3 | D29: 5.1.1.5 | E29: ASSENTAMENTE DE MANTA PEAD | K29: =SUM(K30:K32) -> 703525.25
A30: 5.1.1.5 | B30: 6 | C30: =ROW()-ROW(C29) -> 1 | D30: =D29&"."&C30 -> 5.1.1.5.1 | E30: ESCAVAÇÃO MANUAL DE VALAS | F30: m³ | G30: CAC-022 | H30: =IF(E11="GERAL - DEMAIS CANAIS",SUMIF('M. CÁL. P12 E TRIB.'!$7:$7,"Canal *",'M. CÁL. P12 E TRIB.'!$48:$48),SUMIF('M. CÁL. P12 E TRIB.'!$7:$7,E11,'M. CÁL. P12 E TRIB.'!$48:$48)) -> 420.1376 | I30: =VLOOKUP(G30,'C.C.U'!D:L,4,0) -> 56.57 | J30: =VLOOKUP(G30,'C.C.U'!D:L,7,0) -> 68.45560986 | K30: =ROUND(J30*H30,2) -> 28760.78
A31: 5.1.1.5 | B31: 6 | C31: =ROW()-ROW(C29) -> 2 | D31: =D29&"."&C31 -> 5.1.1.5.2 | E31: FORNECIMENTO E INSTALAÇÃO DE GEOMEMBRANA TEXTURIZADA EM AMBAS AS FACES, ESP. = 1,00 MM | F31: m² | G31: CAC-017 | H31: =IF(E11="GERAL - DEMAIS CANAIS",SUMIF('M. CÁL. P12 E TRIB.'!$7:$7,"Canal *",'M. CÁL. P12 E TRIB.'!$49:$49),SUMIF('M. CÁL. P12 E TRIB.'!$7:$7,E11,'M. CÁL. P12 E TRIB.'!$49:$49)) -> 23930.29373 | I31: =VLOOKUP(G31,'C.C.U'!D:L,4,0) -> 22.9424636 | J31: =VLOOKUP(G31,'C.C.U'!D:L,7,0) -> 27.76277775 | K31: =ROUND(J31*H31,2) -> 664371.43
A32: 5.1.1.5 | B32: 6 | C32: =ROW()-ROW(C29) -> 3 | D32: =D29&"."&C32 -> 5.1.1.5.3 | E32: REATERRO COM COMPACTACAO MECANIZADA DAS VALAS | F32: m³ | G32: CAC-012 | H32: =IF(E11="GERAL - DEMAIS CANAIS",SUMIF('M. CÁL. P12 E TRIB.'!$7:$7,"Canal *",'M. CÁL. P12 E TRIB.'!$50:$50),SUMIF('M. CÁL. P12 E TRIB.'!$7:$7,E11,'M. CÁL. P12 E TRIB.'!$50:$50)) -> 420.1376 | I32: =VLOOKUP(G32,'C.C.U'!D:L,4,0) -> 20.44222 | J32: =VLOOKUP(G32,'C.C.U'!D:L,7,0) -> 24.7372218 | K32: =ROUND(J32*H32,2) -> 10393.04
A33: 5.1.1 | B33: 5 | C33: 4 | D33: 5.1.1.6 | E33: REVESTIMENTO CANAL FINAL | K33: =SUM(K34:K35) -> 687037.91
A34: 5.1.1.6 | B34: 6 | C34: =ROW()-ROW(C33) -> 1 | D34: =D33&"."&C34 -> 5.1.1.6.1 | E34: ARMACAO EM TELA DE ACO SOLDADA NERVURADA Q-138, ACO CA-60, 4,2MM, MALHA 15X15 CM PARA REVESTIMENTO DO CANAL TRAPEZOIDAL | F34: m² | G34: CAC-028 | H34: =IF(E11="GERAL - DEMAIS CANAIS",SUMIF('M. CÁL. P12 E TRIB.'!$7:$7,"Canal *",'M. CÁL. P12 E TRIB.'!$51:$51),SUMIF('M. CÁL. P12 E TRIB.'!$7:$7,E11,'M. CÁL. P12 E TRIB.'!$51:$51)) -> 19728.91773 | I34: =VLOOKUP(G34,'C.C.U'!D:L,4,0) -> 9.1444 | J34: =VLOOKUP(G34,'C.C.U'!D:L,7,0) -> 11.06567931 | K34: =ROUND(J34*H34,2) -> 218313.88
A35: 5.1.1.6 | B35: 6 | C35: =ROW()-ROW(C33) -> 2 | D35: =D33&"."&C35 -> 5.1.1.6.2 | E35: CONCRETO FCK=20MPA PARA ESTRUTURAS, INCLUINDO PREPARO MECANICO, LANCAMENTO E ADENSAMENTO | F35: m³ | G35: CAC-033 | H35: =IF(E11="GERAL - DEMAIS CANAIS",SUMIF('M. CÁL. P12 E TRIB.'!$7:$7,"Canal *",'M. CÁL. P12 E TRIB.'!$52:$52),SUMIF('M. CÁL. P12 E TRIB.'!$7:$7,E11,'M. CÁL. P12 E TRIB.'!$52:$52)) -> 986.4458867 | I35: =VLOOKUP(G35,'C.C.U'!D:L,4,0) -> 392.664 | J35: =VLOOKUP(G35,'C.C.U'!D:L,7,0) -> 475.1644616 | K35: =ROUND(J35*H35,2) -> 468724.03
A36: 5.1 | B36: 3 | C36: 2 | D36: =D12&"."&C36 -> 5.1.2 | E36: ="RECONSTRUÇÃO DE CANAL COM A RETIRADA DE CANAL TRAPEZOIDAL EXISTENTE E EXECUÇÃO DE CANAL RETANGULAR EM CONCRETO ARMADO - L = "&H38&" m" -> RECONSTRUÇÃO DE CANAL COM A RETIRADA DE CANAL TRAPEZOIDAL EXISTENTE E EXECUÇÃO DE CANAL RETANGULAR EM CONCRETO ARMADO - L = 1014,84 m | K36: =K37+K39+K44 -> 338982.06
A37: 5.1.2 | B37: 4 | C37: 1 | D37: =D36&"."&C37 -> 5.1.2.1 | E37: LOCAÇÃO E NIVELAMENTO COM EQUIPAMENTO TOPOGRÁFICO | K37: =SUM(K38) -> 2462.58
A38: 5.1.2.1 | B38: 5 | C38: =ROW()-ROW(C37) -> 1 | D38: =D37&"."&C38 -> 5.1.2.1.1 | E38: LOCACAO E NIVELAMENTO DE REDE DE CANAIS COLETORES DE IRRIGAÇÃO COM AUXILIO DE EQUIPAMENTO TOPOGRAFICO | F38: m | G38: CAC-002 | H38: =IF(E11="GERAL - DEMAIS CANAIS",SUMIF('M. CÁL. P12 E TRIB.'!$7:$7,"Canal *",'M. CÁL. P12 E TRIB.'!$88:$88),SUMIF('M. CÁL. P12 E TRIB.'!$7:$7,E11,'M. CÁL. P12 E TRIB.'!$88:$88)) -> 1014.84 | I38: =VLOOKUP(G38,'C.C.U'!D:L,4,0) -> 2.00526 | J38: =VLOOKUP(G38,'C.C.U'!D:L,7,0) -> 2.426574089 | K38: =ROUND(J38*H38,2) -> 2462.58
A39: 5.1.2 | B39: 4 | C39: 2 | D39: =D36&"."&C39 -> 5.1.2.2 | E39: REMOÇÃO DA ESTRUTURA (REVESTIMENTO) EXISTENTE | K39: =SUM(K40:K43) -> 30070.68
A40: 5.1.2.2 | B40: 5 | C40: =ROW()-ROW(C39) -> 1 | D40: =D39&"."&C40 -> 5.1.2.2.1 | E40: LIMPEZA MANUAL DE VEGETAÇÃO EM TERRENO COM ENXADA | F40: m² | G40: CAC-001 | H40: =IF(E11="GERAL - DEMAIS CANAIS",SUMIF('M. CÁL. P12 E TRIB.'!$7:$7,"Canal *",'M. CÁL. P12 E TRIB.'!$89:$89),SUMIF('M. CÁL. P12 E TRIB.'!$7:$7,E11,'M. CÁL. P12 E TRIB.'!$89:$89)) -> 6089.04 | I40: =VLOOKUP(G40,'C.C.U'!D:L,4,0) -> 2.28 | J40: =VLOOKUP(G40,'C.C.U'!D:L,7,0) -> 2.759038191 | K40: =ROUND(J40*H40,2) -> 16799.89
A41: 5.1.2.2 | B41: 5 | C41: =ROW()-ROW(C39) -> 2 | D41: =D39&"."&C41 -> 5.1.2.2.2 | E41: DEMOLIÇÃO DE PLACAS EM CONCRETO ( MECANICAMENTE) | F41: m³ | G41: CAC-003 | H41: =IF(E11="GERAL - DEMAIS CANAIS",SUMIF('M. CÁL. P12 E TRIB.'!$7:$7,"Canal *",'M. CÁL. P12 E TRIB.'!$90:$90),SUMIF('M. CÁL. P12 E TRIB.'!$7:$7,E11,'M. CÁL. P12 E TRIB.'!$90:$90)) -> 159.2948761 | I41: =VLOOKUP(G41,'C.C.U'!D:L,4,0) -> 42.2685 | J41: =VLOOKUP(G41,'C.C.U'!D:L,7,0) -> 51.14930079 | K41: =ROUND(J41*H41,2) -> 8147.82
A42: 5.1.2.2 | B42: 5 | C42: =ROW()-ROW(C39) -> 3 | D42: =D39&"."&C42 -> 5.1.2.2.3 | E42: CARGA E DESCARGA MECANIZADAS DE ENTULHO EM CAMINHAO BASCULANTE 6 M3 | F42: m³ | G42: CAC-005 | H42: =IF(E$11="GERAL - DEMAIS CANAIS",SUMIF('M. CÁL. P12 E TRIB.'!$7:$7,"Canal *",'M. CÁL. P12 E TRIB.'!91:91),SUMIF('M. CÁL. P12 E TRIB.'!$7:$7,E$11,'M. CÁL. P12 E TRIB.'!91:91)) -> 275.3937102 | I42: =VLOOKUP(G42,'C.C.U'!D:L,4,0) -> 3.0725 | J42: =VLOOKUP(G42,'C.C.U'!D:L,7,0) -> 3.718045984 | K42: =ROUND(J42*H42,2) -> 1023.93
A43: 5.1.2.2 | B43: 5 | C43: =ROW()-ROW(C39) -> 4 | D43: =D39&"."&C43 -> 5.1.2.2.4 | E43: TRANSPORTE COM CAMINHÃO BASCULANTE DE 6 M3, EM VIA URBANA EM REVESTIMENTO PRIMÁRIO | F43: m³XKm | G43: CAC-007 | H43: =IF(E$11="GERAL - DEMAIS CANAIS",SUMIF('M. CÁL. P12 E TRIB.'!$7:$7,"Canal *",'M. CÁL. P12 E TRIB.'!92:92),SUMIF('M. CÁL. P12 E TRIB.'!$7:$7,E$11,'M. CÁL. P12 E TRIB.'!92:92)) -> 2753.937102 | I43: =VLOOKUP(G43,'C.C.U'!D:L,4,0) -> 1.23 | J43: =VLOOKUP(G43,'C.C.U'!D:L,7,0) -> 1.488428498 | K43: =ROUND(J43*H43,2) -> 4099.04
A44: 5.1.2 | B44: 4 | C44: 3 | D44: =D36&"."&C44 -> 5.1.2.3 | E44: EXECUÇÃO DE CANAL SEÇÃO RETANGULAR | K44: =SUM(K45:K53) -> 306448.8
A45: 5.1.2.3 | B45: 5 | C45: =ROW()-ROW(C44) -> 1 | D45: =D44&"."&C45 -> 5.1.2.3.1 | E45: ESCAVAÇÃO MANUAL DE VALAS | F45: m³ | G45: CAC-022 | H45: =IF(E$11="GERAL - DEMAIS CANAIS",SUMIF('M. CÁL. P12 E TRIB.'!$7:$7,"Canal *",'M. CÁL. P12 E TRIB.'!93:93),SUMIF('M. CÁL. P12 E TRIB.'!$7:$7,E$11,'M. CÁL. P12 E TRIB.'!93:93)) -> 116.0988341 | I45: =VLOOKUP(G45,'C.C.U'!D:L,4,0) -> 56.57 | J45: =VLOOKUP(G45,'C.C.U'!D:L,7,0) -> 68.45560986 | K45: =ROUND(J45*H45,2) -> 7947.62
A46: 5.1.2.3 | B46: 5 | C46: =ROW()-ROW(C44) -> 2 | D46: =D44&"."&C46 -> 5.1.2.3.2 | E46: ATERRO MANUAL COM MATERIAL DE EMPRÉSTIMO, COMPACTAÇÃO MECANIZADA E REGULARIZAÇÃO DO TALUDE | F46: m² | G46: CAC-015 | H46: =IF(E$11="GERAL - DEMAIS CANAIS",SUMIF('M. CÁL. P12 E TRIB.'!$7:$7,"Canal *",'M. CÁL. P12 E TRIB.'!94:94),SUMIF('M. CÁL. P12 E TRIB.'!$7:$7,E$11,'M. CÁL. P12 E TRIB.'!94:94)) -> 175.0599 | I46: =VLOOKUP(G46,'C.C.U'!D:L,4,0) -> 31.94742 | J46: =VLOOKUP(G46,'C.C.U'!D:L,7,0) -> 38.65971574 | K46: 6767.77
A47: 5.1.2.3 | B47: 5 | C47: =ROW()-ROW(C44) -> 3 | D47: =D44&"."&C47 -> 5.1.2.3.3 | E47: EXECUÇÃO DE LASTRO EM CONCRETO MAGRO (1:4,5:4,5), PREPARO MEC., LANÇAMENTO E APLICAÇÃO MANUAL | F47: m³ | G47: CAC-020 | H47: =IF(E$11="GERAL - DEMAIS CANAIS",SUMIF('M. CÁL. P12 E TRIB.'!$7:$7,"Canal *",'M. CÁL. P12 E TRIB.'!95:95),SUMIF('M. CÁL. P12 E TRIB.'!$7:$7,E$11,'M. CÁL. P12 E TRIB.'!95:95)) -> 35.01198 | I47: =VLOOKUP(G47,'C.C.U'!D:L,4,0) -> 336.574 | J47: =VLOOKUP(G47,'C.C.U'!D:L,7,0) -> 407.2897019 | K47: 14260.02
A48: 5.1.2.3 | B48: 5 | C48: =ROW()-ROW(C44) -> 4 | D48: =D44&"."&C48 -> 5.1.2.3.4 | E48: FORMA PLANA METALICA PARA MURETA, UTILIZAÇÃO 20X - CANAL RETANGULAR | F48: m² | G48: CAC-021 | H48: =IF(E$11="GERAL - DEMAIS CANAIS",SUMIF('M. CÁL. P12 E TRIB.'!$7:$7,"Canal *",'M. CÁL. P12 E TRIB.'!96:96),SUMIF('M. CÁL. P12 E TRIB.'!$7:$7,E$11,'M. CÁL. P12 E TRIB.'!96:96)) -> 2467.3888 | I48: =VLOOKUP(G48,'C.C.U'!D:L,4,0) -> 5.68808 | J48: =VLOOKUP(G48,'C.C.U'!D:L,7,0) -> 6.883171033 | K48: 16983.46
A49: 5.1.2.3 | B49: 5 | C49: =ROW()-ROW(C44) -> 5 | D49: =D44&"."&C49 -> 5.1.2.3.5 | E49: JUNTA DE DILATAÇÃO EM MASTIQUE ELÁSTICO | F49: m | G49: CAC-026 | H49: =IF(E$11="GERAL - DEMAIS CANAIS",SUMIF('M. CÁL. P12 E TRIB.'!$7:$7,"Canal *",'M. CÁL. P12 E TRIB.'!97:97),SUMIF('M. CÁL. P12 E TRIB.'!$7:$7,E$11,'M. CÁL. P12 E TRIB.'!97:97)) -> 132.4073667 | I49: =VLOOKUP(G49,'C.C.U'!D:L,4,0) -> 22.5775 | J49: =VLOOKUP(G49,'C.C.U'!D:L,7,0) -> 27.32113367 | K49: 3617.52
A50: 5.1.2.3 | B50: 5 | C50: =ROW()-ROW(C44) -> 6 | D50: =D44&"."&C50 -> 5.1.2.3.6 | E50: ARMAÇÃO DE AÇO CA-60 COM FORNECIMENTO / CORTE (C/ PERDA DE 10%) / DOBRA / COLOCAÇÃO | F50: KG | G50: CAC-019 | H50: =IF(E$11="GERAL - DEMAIS CANAIS",SUMIF('M. CÁL. P12 E TRIB.'!$7:$7,"Canal *",'M. CÁL. P12 E TRIB.'!98:98),SUMIF('M. CÁL. P12 E TRIB.'!$7:$7,E$11,'M. CÁL. P12 E TRIB.'!98:98)) -> 11824.60239 | I50: =VLOOKUP(G50,'C.C.U'!D:L,4,0) -> 10.747 | J50: =VLOOKUP(G50,'C.C.U'!D:L,7,0) -> 13.00499274 | K50: 153778.87
A51: 5.1.2.3 | B51: 5 | C51: =ROW()-ROW(C44) -> 7 | D51: =D44&"."&C51 -> 5.1.2.3.7 | E51: CONCRETO FCK=20MPA PARA ESTRUTURAS, INCLUINDO PREPARO MECANICO, LANCAMENTO E ADENSAMENTO | F51: m³ | G51: CAC-033 | H51: =IF(E$11="GERAL - DEMAIS CANAIS",SUMIF('M. CÁL. P12 E TRIB.'!$7:$7,"Canal *",'M. CÁL. P12 E TRIB.'!99:99),SUMIF('M. CÁL. P12 E TRIB.'!$7:$7,E$11,'M. CÁL. P12 E TRIB.'!99:99)) -> 197.0767065 | I51: =VLOOKUP(G51,'C.C.U'!D:L,4,0) -> 392.664 | J51: =VLOOKUP(G51,'C.C.U'!D:L,7,0) -> 475.1644616 | K51: 93643.85
A52: 5.1.2.3 | B52: 5 | C52: =ROW()-ROW(C44) -> 8 | D52: =D44&"."&C52 -> 5.1.2.3.8 | E52: TRELIÇA DE SUSTENTAÇÃO VERTICAL COM ESPAÇAMENTO 5,50 M | F52: m | G52: CAC-023 | H52: =IF(E$11="GERAL - DEMAIS CANAIS",SUMIF('M. CÁL. P12 E TRIB.'!$7:$7,"Canal *",'M. CÁL. P12 E TRIB.'!100:100),SUMIF('M. CÁL. P12 E TRIB.'!$7:$7,E$11,'M. CÁL. P12 E TRIB.'!100:100)) -> 261.2113455 | I52: =VLOOKUP(G52,'C.C.U'!D:L,4,0) -> 5.8175 | J52: =VLOOKUP(G52,'C.C.U'!D:L,7,0) -> 7.039782754 | K52: 1838.87
A53: 5.1.2.3 | B53: 5 | C53: =ROW()-ROW(C44) -> 9 | D53: =D44&"."&C53 -> 5.1.2.3.9 | E53: REATERRO COM COMPACTACAO MECANIZADA DAS VALAS | F53: m³ | G53: CAC-012 | H53: =IF(E$11="GERAL - DEMAIS CANAIS",SUMIF('M. CÁL. P12 E TRIB.'!$7:$7,"Canal *",'M. CÁL. P12 E TRIB.'!101:101),SUMIF('M. CÁL. P12 E TRIB.'!$7:$7,E$11,'M. CÁL. P12 E TRIB.'!101:101)) -> 307.6667466 | I53: =VLOOKUP(G53,'C.C.U'!D:L,4,0) -> 20.44222 | J53: =VLOOKUP(G53,'C.C.U'!D:L,7,0) -> 24.7372218 | K53: 7610.82
B54: 3 | C54: 3 | D54: 3.2 | E54: GERAL
J55: TOTAL | K55: =K36+K13 -> 2778108.46

Sheet CANAIS BOACICA
E1: MINISTÉRIO DO DESENVOLVIMENTO REGIONAL - MD COMPANHIA DE DESENVOLVIMENTO DOS VALES DO SÃO FRANCISCO E DO PARNAÍBA 5ª Superintendência Regional
D5: ELABORAÇÃO DOS PROJETOS BÁSICOS PARA RECUPERAÇÃO E ADEQUAÇÃO DAS REDES DE IRRIGAÇÃO, DRENAGEM, VIÁRIA E DE PROTEÇÃO INTERNA DOS PERÍMETROS IRRIGADOS DE BOACICA E ITIÚBA, LOCALIZADOS, RESPECTIVAMENTE, NOS MUNICÍPIOS DE PENEDO/IGREJA NOVA E PORTO REAL DO COLÉGIO, NO ESTADO DE ALAGOAS.
D6: ORÇAMENTO - OBRAS DE RECUPERAÇÃO DO SISTEMA DE CONDUÇÃO PERÍMETRO IRRIGADO DO BOACICA
A7: ÍTEM MÃE | B7: NÍVEL | C7: SEQ. | D7: ÍTEM | E7: DESCRIÇÃO | F7: UNID | G7: CÓD. COMP. | H7: QTDE | I7: R$ / UNID (s/ BDI) | J7: R$ Total (C/BDI) | K7: R$ Total (c/BDI)
A8: =IFERROR(LEFT(D8,LEN(D8)-(LEN(C8)+1)),0) -> 0 | B8: 1 | C8: 3 | D8: 6 | E8: RECUPERAÇÃO E ADEQUAÇÃO DO SISTEMA DE CONDUÇÃO
A9: =IFERROR(LEFT(D9,LEN(D9)-(LEN(C9)+1)),0) -> 6 | B9: 2 | C9: =RIGHT(D9,LEN(D9)-SEARCH(".",D9,1)) -> 1 | D9: 6.1 | E9: CANAL CLI
A10: =IFERROR(LEFT(D10,LEN(D10)-(LEN(C10)+1)),0) -> 6.1 | B10: 3 | C10: 1 | D10: =D9&"."&C10 -> 6.1.1 | E10: OBRAS EM CANAL
A11: =IFERROR(LEFT(D11,LEN(D11)-(LEN(C11)+1)),0) -> 6.1.1 | B11: 4 | C11: 1 | D11: =D10&"."&C11 -> 6.1.1.1 | E11: ="TRECHO TRAPEZOIDAL - RECUPERAÇÃO GEOMETRICA DA SEÇÃO COM SOLO-CIMENTO, MANTA DE PEAD 1 MM, TELA DE AÇO, 5 CM CONCRETO - L = "&H13&" m" -> TRECHO TRAPEZOIDAL - RECUPERAÇÃO GEOMETRICA DA SEÇÃO COM SOLO-CIMENTO, MANTA DE PEAD 1 MM, TELA DE AÇO, 5 CM CONCRETO - L = 940 m | K11: =K12+K14+K19+K23+K27+K31 -> 1046949.3
A12: 6.1.1.1 | B12: 5 | C12: 1 | D12: =D11&"."&C12 -> 6.1.1.1.1 | E12: LOCAÇÃO E NIVELAMENTO COM EQUIPAMENTO TOPOGRÁFICO | K12: =K13 -> 2280.98
A13: =IFERROR(LEFT(D13,LEN(D13)-(LEN(C13)+1)),0) -> 6.1.1.1.1 | B13: 6 | C13: =ROW()-ROW(C12) -> 1 | D13: =D12&"."&C13 -> 6.1.1.1.1.1 | E13: LOCACAO E NIVELAMENTO DE REDE DE CANAIS COLETORES DE IRRIGAÇÃO COM AUXILIO DE EQUIPAMENTO TOPOGRAFICO | F13: m | G13: CAC-002 | H13: =IF($E$9="GERAL",SUMIF('M. CÁL. CANAIS BOACICA'!$1:$1,"Canal C*",'M. CÁL. CANAIS BOACICA'!$33:$33),SUMIF('M. CÁL. CANAIS BOACICA'!$1:$1,$E$9,'M. CÁL. CANAIS BOACICA'!$33:$33)) -> 940 | I13: =VLOOKUP(G13,'C.C.U'!D:L,4,0) -> 2.00526 | J13: =VLOOKUP(G13,'C.C.U'!D:L,7,0) -> 2.426574089 | K13: =ROUND(J13*H13,2) -> 2280.98
A14: 6.1.1.1 | B14: 5 | C14: 2 | D14: =D11&"."&C14 -> 6.1.1.1.2 | E14: REMOÇÃO DA ESTRUTURA (REVESTIMENTO) EXISTENTE | K14: =K15+K16+K17+K18 -> 45070.48
A15: 6.1.1.1.2 | B15: 6 | C15: =ROW()-ROW(C14) -> 1 | D15: =D14&"."&C15 -> 6.1.1.1.2.1 | E15: LIMPEZA MANUAL DE VEGETAÇÃO EM TERRENO COM ENXADA | F15: m² | G15: CAC-001 | H15: =IF($E$9="GERAL",SUMIF('M. CÁL. CANAIS BOACICA'!$1:$1,"Canal C*",'M. CÁL. CANAIS BOACICA'!$34:$34),SUMIF('M. CÁL. CANAIS BOACICA'!$1:$1,$E$9,'M. CÁL. CANAIS BOACICA'!$34:$34)) -> 940 | I15: =VLOOKUP(G15,'C.C.U'!D:L,4,0) -> 2.28 | J15: =VLOOKUP(G15,'C.C.U'!D:L,7,0) -> 2.759038191 | K15: =ROUND(J15*H15,2) -> 2593.5
A16: 6.1.1.1.2 | B16: 6 | C16: =ROW()-ROW(C14) -> 2 | D16: =D14&"."&C16 -> 6.1.1.1.2.2 | E16: DEMOLIÇÃO DE PLACAS EM CONCRETO ( MECANICAMENTE) | F16: m³ | G16: CAC-003 | H16: =IF($E$9="GERAL",SUMIF('M. CÁL. CANAIS BOACICA'!$1:$1,"Canal C*",'M. CÁL. CANAIS BOACICA'!35:35),SUMIF('M. CÁL. CANAIS BOACICA'!$1:$1,$E$9,'M. CÁL. CANAIS BOACICA'!35:35)) -> 608.9746515 | I16: =VLOOKUP(G16,'C.C.U'!D:L,4,0) -> 42.2685 | J16: =VLOOKUP(G16,'C.C.U'!D:L,7,0) -> 51.14930079 | K16: =ROUND(J16*H16,2) -> 31148.63
A17: 6.1.1.1.2 | B17: 6 | C17: =ROW()-ROW(C14) -> 3 | D17: =D14&"."&C17 -> 6.1.1.1.2.3 | E17: CARGA E DESCARGA MECANIZADAS DE ENTULHO EM CAMINHAO BASCULANTE 6 M3 | F17: m³ | G17: CAC-005 | H17: =IF($E$9="GERAL",SUMIF('M. CÁL. CANAIS BOACICA'!$1:$1,"Canal C*",'M. CÁL. CANAIS BOACICA'!36:36),SUMIF('M. CÁL. CANAIS BOACICA'!$1:$1,$E$9,'M. CÁL. CANAIS BOACICA'!36:36)) -> 608.9746515 | I17: =VLOOKUP(G17,'C.C.U'!D:L,4,0) -> 3.0725 | J17: =VLOOKUP(G17,'C.C.U'!D:L,7,0) -> 3.718045984 | K17: =ROUND(J17*H17,2) -> 2264.2
A18: 6.1.1.1.2 | B18: 6 | C18: =ROW()-ROW(C14) -> 4 | D18: =D14&"."&C18 -> 6.1.1.1.2.4 | E18: TRANSPORTE COM CAMINHÃO BASCULANTE DE 6 M3, EM VIA URBANA EM REVESTIMENTO PRIMÁRIO | F18: m³XKm | G18: CAC-007 | H18: =IF($E$9="GERAL",SUMIF('M. CÁL. CANAIS BOACICA'!$1:$1,"Canal C*",'M. CÁL. CANAIS BOACICA'!37:37),SUMIF('M. CÁL. CANAIS BOACICA'!$1:$1,$E$9,'M. CÁL. CANAIS BOACICA'!37:37)) -> 6089.746515 | I18: =VLOOKUP(G18,'C.C.U'!D:L,4,0) -> 1.23 | J18: =VLOOKUP(G18,'C.C.U'!D:L,7,0) -> 1.488428498 | K18: =ROUND(J18*H18,2) -> 9064.15
A19: 6.1.1.1 | B19: 6 | C19: 3 | D19: =D11&"."&C19 -> 6.1.1.1.3 | E19: RETIRADA SOLO IMPRÓPRIO | K19: =SUM(K20:K22) -> 53855.36
A20: 6.1.1.1.3 | B20: 7 | C20: =ROW()-ROW(C19) -> 1 | D20: =D19&"."&C20 -> 6.1.1.1.3.1 | E20: ESCAVACAO MECANICA, A CEU ABERTO, EM MATERIAL DE 1A CATEGORIA, COM RETROESCAVADEIRA | F20: m³ | G20: CAC-014 | H20: =IF($E$9="GERAL",SUMIF('M. CÁL. CANAIS BOACICA'!$1:$1,"Canal C*",'M. CÁL. CANAIS BOACICA'!38:38),SUMIF('M. CÁL. CANAIS BOACICA'!$1:$1,$E$9,'M. CÁL. CANAIS BOACICA'!38:38)) -> 2870.8805 | I20: =VLOOKUP(G20,'C.C.U'!D:L,4,0) -> 1.863148 | J20: =VLOOKUP(G20,'C.C.U'!D:L,7,0) -> 2.254603723 | K20: =ROUND(J20*H20,2) -> 6472.7
A21: 6.1.1.1.3 | B21: 7 | C21: =ROW()-ROW(C19) -> 2 | D21: =D19&"."&C21 -> 6.1.1.1.3.2 | E21: CARGA E DESCARGA MECANICA DE SOLO UTILIZANDO CAMINHAO BASCULANTE 6,0M3 | F21: m³ | G21: CAC-006 | H21: =IF($E$9="GERAL",SUMIF('M. CÁL. CANAIS BOACICA'!$1:$1,"Canal C*",'M. CÁL. CANAIS BOACICA'!39:39),SUMIF('M. CÁL. CANAIS BOACICA'!$1:$1,$E$9,'M. CÁL. CANAIS BOACICA'!39:39)) -> 2870.8805 | I21: ='C.C.U'!$G$196 -> 1.338968 | J21: ='C.C.U'!$J$196 -> 1.620291162 | K21: =ROUND(J21*H21,2) -> 4651.66
A22: 6.1.1.1.3 | B22: 7 | C22: =ROW()-ROW(C19) -> 3 | D22: =D19&"."&C22 -> 6.1.1.1.3.3 | E22: TRANSPORTE COM CAMINHÃO BASCULANTE DE 6 M3, EM VIA URBANA EM REVESTIMENTO PRIMÁRIO | F22: m³XKm | G22: CAC-007 | H22: =IF($E$9="GERAL",SUMIF('M. CÁL. CANAIS BOACICA'!$1:$1,"Canal C*",'M. CÁL. CANAIS BOACICA'!40:40),SUMIF('M. CÁL. CANAIS BOACICA'!$1:$1,$E$9,'M. CÁL. CANAIS BOACICA'!40:40)) -> 28708.805 | I22: =VLOOKUP(G22,'C.C.U'!D:L,4,0) -> 1.23 | J22: =VLOOKUP(G22,'C.C.U'!D:L,7,0) -> 1.488428498 | K22: =ROUND(J22*H22,2) -> 42731
A23: 6.1.1.1 | B23: 6 | C23: 4 | D23: =$D$11&"."&C23 -> 6.1.1.1.4 | E23: RECOMPOSIÇÃO GEOMETRIA DO CANAL | K23: =SUM(K24:K26) -> 373375.32
A24: 6.1.1.1.4 | B24: 7 | C24: =ROW()-ROW(C23) -> 1 | D24: =D23&"."&C24 -> 6.1.1.1.4.1 | E24: TRANSPORTE COM CAMINHÃO BASCULANTE DE 6 M3, EM VIA URBANA EM REVESTIMENTO PRIMÁRIO | F24: m³XKm | G24: CAC-007 | H24: =H26*5 -> 11814.54735 | I24: =VLOOKUP(G24,'C.C.U'!D:L,4,0) -> 1.23 | J24: =VLOOKUP(G24,'C.C.U'!D:L,7,0) -> 1.488428498 | K24: =ROUND(J24*H24,2) -> 17585.11
A25: =IFERROR(LEFT(D25,LEN(D25)-(LEN(C25)+1)),0) -> 6.1.1.1.4 | B25: 7 | C25: =ROW()-ROW(C23) -> 2 | D25: =D23&"."&C25 -> 6.1.1.1.4.2 | E25: PPREPARO E EXECUÇÃO DE SOLO-CIMENTO TRAÇO 1:12 EM VOLUME, (CIMENTO/ARENOSO), COM COMPACTAÇÃO E ESPALHAMENTO, PARA SUPORTE DE FUNDAÇÕES, INCLUSIVE CIMENTO E ARENOSO COMERCIAL | F25: m³ | G25: CAC-018 | H25: =IF($E$9="GERAL",SUMIF('M. CÁL. CANAIS BOACICA'!$1:$1,"Canal C*",'M. CÁL. CANAIS BOACICA'!41:41),SUMIF('M. CÁL. CANAIS BOACICA'!$1:$1,$E$9,'M. CÁL. CANAIS BOACICA'!41:41)) -> 869.9637878 | I25: =VLOOKUP(G25,'C.C.U'!D:L,4,0) -> 251.1912 | J25: =VLOOKUP(G25,'C.C.U'!D:L,7,0) -> 303.9675939 | K25: =ROUND(J25*H25,2) -> 264440.8
C26: 5 | D26: =D23&"."&C26 -> 6.1.1.1.4.5 | E26: ATERRO MANUAL COM MATERIAL DE EMPRÉSTIMO, COMPACTAÇÃO MECANIZADA E REGULARIZAÇÃO DO TALUDE | F26: m² | G26: CAC-015 | H26: =IF($E$9="GERAL",SUMIF('M. CÁL. CANAIS BOACICA'!$1:$1,"Canal C*",'M. CÁL. CANAIS BOACICA'!42:42),SUMIF('M. CÁL. CANAIS BOACICA'!$1:$1,$E$9,'M. CÁL. CANAIS BOACICA'!42:42)) -> 2362.909469 | I26: =VLOOKUP(G26,'C.C.U'!D:L,4,0) -> 31.94742 | J26: =VLOOKUP(G26,'C.C.U'!D:L,7,0) -> 38.65971574 | K26: =ROUND(J26*H26,2) -> 91349.41
A27: 6.1.1.1 | B27: 6 | C27: 5 | D27: =$D$11&"."&C27 -> 6.1.1.1.5 | E27: ASSENTAMENTE DE MANTA PEAD | K27: =SUM(K28:K30) -> 269411.82
A28: 6.1.1.1.5 | B28: 7 | C28: =ROW()-ROW(C27) -> 1 | D28: =D27&"."&C28 -> 6.1.1.1.5.1 | E28: ESCAVAÇÃO MANUAL DE VALAS | F28: m³ | G28: CAC-022 | H28: =IF($E$9="GERAL",SUMIF('M. CÁL. CANAIS BOACICA'!$1:$1,"Canal C*",'M. CÁL. CANAIS BOACICA'!43:43),SUMIF('M. CÁL. CANAIS BOACICA'!$1:$1,$E$9,'M. CÁL. CANAIS BOACICA'!43:43)) -> 75.2 | I28: =VLOOKUP(G28,'C.C.U'!D:L,4,0) -> 56.57 | J28: =VLOOKUP(G28,'C.C.U'!D:L,7,0) -> 68.45560986 | K28: =ROUND(J28*H28,2) -> 5147.86
A29: 6.1.1.1.5 | B29: 7 | C29: =ROW()-ROW(C27) -> 2 | D29: =D27&"."&C29 -> 6.1.1.1.5.2 | E29: FORNECIMENTO E INSTALAÇÃO DE GEOMEMBRANA TEXTURIZADA EM AMBAS AS FACES, ESP. = 1,00 MM | F29: m² | G29: CAC-017 | H29: =IF($E$9="GERAL",SUMIF('M. CÁL. CANAIS BOACICA'!$1:$1,"Canal C*",'M. CÁL. CANAIS BOACICA'!44:44),SUMIF('M. CÁL. CANAIS BOACICA'!$1:$1,$E$9,'M. CÁL. CANAIS BOACICA'!44:44)) -> 9451.637878 | I29: =VLOOKUP(G29,'C.C.U'!D:L,4,0) -> 22.9424636 | J29: =VLOOKUP(G29,'C.C.U'!D:L,7,0) -> 27.76277775 | K29: =ROUND(J29*H29,2) -> 262403.72
A30: 6.1.1.1.5 | B30: 7 | C30: =ROW()-ROW(C27) -> 3 | D30: =D27&"."&C30 -> 6.1.1.1.5.3 | E30: REATERRO COM COMPACTACAO MECANIZADA DAS VALAS | F30: m³ | G30: CAC-012 | H30: =IF($E$9="GERAL",SUMIF('M. CÁL. CANAIS BOACICA'!$1:$1,"Canal C*",'M. CÁL. CANAIS BOACICA'!45:45),SUMIF('M. CÁL. CANAIS BOACICA'!$1:$1,$E$9,'M. CÁL. CANAIS BOACICA'!45:45)) -> 75.2 | I30: =VLOOKUP(G30,'C.C.U'!D:L,4,0) -> 20.44222 | J30: =VLOOKUP(G30,'C.C.U'!D:L,7,0) -> 24.7372218 | K30: =ROUND(J30*H30,2) -> 1860.24
A31: 6.1.1.1 | B31: 6 | C31: 6 | D31: =$D$11&"."&C31 -> 6.1.1.1.6 | E31: REVESTIMENTO CANAL FINAL | K31: =SUM(K32:K33) -> 302955.34
A32: 6.1.1.1.6 | B32: 7 | C32: =ROW()-ROW(C31) -> 1 | D32: =D31&"."&C32 -> 6.1.1.1.6.1 | E32: ARMACAO EM TELA DE ACO SOLDADA NERVURADA Q-138, ACO CA-60, 4,2MM, MALHA 15X15 CM PARA REVESTIMENTO DO CANAL TRAPEZOIDAL | F32: m² | G32: CAC-028 | H32: =IF($E$9="GERAL",SUMIF('M. CÁL. CANAIS BOACICA'!$1:$1,"Canal C*",'M. CÁL. CANAIS BOACICA'!46:46),SUMIF('M. CÁL. CANAIS BOACICA'!$1:$1,$E$9,'M. CÁL. CANAIS BOACICA'!46:46)) -> 8699.637878 | I32: =VLOOKUP(G32,'C.C.U'!D:L,4,0) -> 9.1444 | J32: =VLOOKUP(G32,'C.C.U'!D:L,7,0) -> 11.06567931 | K32: =ROUND(J32*H32,2) -> 96267.4
A33: 6.1.1.1.6 | B33: 7 | C33: =ROW()-ROW(C31) -> 2 | D33: =D31&"."&C33 -> 6.1.1.1.6.2 | E33: CONCRETO FCK=20MPA PARA ESTRUTURAS, INCLUINDO PREPARO MECANICO, LANCAMENTO E ADENSAMENTO | F33: m³ | G33: CAC-033 | H33: =IF($E$9="GERAL",SUMIF('M. CÁL. CANAIS BOACICA'!$1:$1,"Canal C*",'M. CÁL. CANAIS BOACICA'!47:47),SUMIF('M. CÁL. CANAIS BOACICA'!$1:$1,$E$9,'M. CÁL. CANAIS BOACICA'!47:47)) -> 434.9818939 | I33: =VLOOKUP(G33,'C.C.U'!D:L,4,0) -> 392.664 | J33: =VLOOKUP(G33,'C.C.U'!D:L,7,0) -> 475.1644616 | K33: =ROUND(J33*H33,2) -> 206687.94
A34: =IFERROR(LEFT(D34,LEN(D34)-(LEN(C34)+1)),0) -> 6 | B34: 2 | C34: =RIGHT(D34,LEN(D34)-SEARCH(".",D34,1)) -> 2 | D34: 6.2 | E34: CANAL CLI-1 e DERIVADOS
A35: =IFERROR(LEFT(D35,LEN(D35)-(LEN(C35)+1)),0) -> 6.2 | B35: 3 | C35: 1 | D35: =D34&"."&C35 -> 6.2.1 | E35: OBRAS EM CANAL
A36: =IFERROR(LEFT(D36,LEN(D36)-(LEN(C36)+1)),0) -> 6.2.1 | B36: 4 | C36: 1 | D36: =D35&"."&C36 -> 6.2.1.1 | E36: ="TRECHO TRAPEZOIDAL - RECUPERAÇÃO GEOMETRICA DA SEÇÃO COM SOLO-CIMENTO, MANTA DE PEAD 1 MM, TELA DE AÇO, 5 CM CONCRETO - L = "&H38&" m" -> TRECHO TRAPEZOIDAL - RECUPERAÇÃO GEOMETRICA DA SEÇÃO COM SOLO-CIMENTO, MANTA DE PEAD 1 MM, TELA DE AÇO, 5 CM CONCRETO - L = 1094,29 m | K36: =K37+K39+K44+K48+K52+K56 -> 538268.1
A37: =IFERROR(LEFT(D37,LEN(D37)-(LEN(C37)+1)),0) -> 6.2.1.1 | B37: 5 | C37: 1 | D37: =D36&"."&C37 -> 6.2.1.1.1 | E37: LOCAÇÃO E NIVELAMENTO COM EQUIPAMENTO TOPOGRÁFICO | K37: =K38 -> 2655.38
A38: =IFERROR(LEFT(D38,LEN(D38)-(LEN(C38)+1)),0) -> 6.2.1.1.1 | B38: 6 | C38: =ROW()-ROW(C37) -> 1 | D38: =D37&"."&C38 -> 6.2.1.1.1.1 | E38: LOCACAO E NIVELAMENTO DE REDE DE CANAIS COLETORES DE IRRIGAÇÃO COM AUXILIO DE EQUIPAMENTO TOPOGRAFICO | F38: m | G38: CAC-002 | H38: =IF($E$34="GERAL",SUMIF('M. CÁL. CANAIS BOACICA'!$1:$1,"Canal C*",'M. CÁL. CANAIS BOACICA'!$33:$33),SUMIF('M. CÁL. CANAIS BOACICA'!$1:$1,$E$34,'M. CÁL. CANAIS BOACICA'!$33:$33)) -> 1094.29 | I38: =VLOOKUP(G38,'C.C.U'!D:L,4,0) -> 2.00526 | J38: =VLOOKUP(G38,'C.C.U'!D:L,7,0) -> 2.426574089 | K38: =ROUND(J38*H38,2) -> 2655.38
A39: =IFERROR(LEFT(D39,LEN(D39)-(LEN(C39)+1)),0) -> 6.2.1.1 | B39: 5 | C39: 2 | D39: =D36&"."&C39 -> 6.2.1.1.2 | E39: REMOÇÃO DA ESTRUTURA (REVESTIMENTO) EXISTENTE | K39: =K40+K41+K42+K43 -> 23720.34
A40: 6.2.1.1.2 | B40: 6 | C40: =ROW()-ROW(C39) -> 1 | D40: =D39&"."&C40 -> 6.2.1.1.2.1 | E40: LIMPEZA MANUAL DE VEGETAÇÃO EM TERRENO COM ENXADA | F40: m² | G40: CAC-001 | H40: =IF($E$34="GERAL",SUMIF('M. CÁL. CANAIS BOACICA'!$1:$1,"Canal C*",'M. CÁL. CANAIS BOACICA'!34:34),SUMIF('M. CÁL. CANAIS BOACICA'!$1:$1,$E$34,'M. CÁL. CANAIS BOACICA'!34:34)) -> 1094.29 | I40: =VLOOKUP(G40,'C.C.U'!D:L,4,0) -> 2.28 | J40: =VLOOKUP(G40,'C.C.U'!D:L,7,0) -> 2.759038191 | K40: =ROUND(J40*H40,2) -> 3019.19
A41: 6.2.1.1.2 | B41: 6 | C41: =ROW()-ROW(C39) -> 2 | D41: =D39&"."&C41 -> 6.2.1.1.2.2 | E41: DEMOLIÇÃO DE PLACAS EM CONCRETO ( MECANICAMENTE) | F41: m³ | G41: CAC-003 | H41: =IF($E$34="GERAL",SUMIF('M. CÁL. CANAIS BOACICA'!$1:$1,"Canal C*",'M. CÁL. CANAIS BOACICA'!35:35),SUMIF('M. CÁL. CANAIS BOACICA'!$1:$1,$E$34,'M. CÁL. CANAIS BOACICA'!35:35)) -> 296.7836762 | I41: =VLOOKUP(G41,'C.C.U'!D:L,4,0) -> 42.2685 | J41: =VLOOKUP(G41,'C.C.U'!D:L,7,0) -> 51.14930079 | K41: =ROUND(J41*H41,2) -> 15180.28
A42: 6.2.1.1.2 | B42: 6 | C42: =ROW()-ROW(C39) -> 3 | D42: =D39&"."&C42 -> 6.2.1.1.2.3 | E42: CARGA E DESCARGA MECANIZADAS DE ENTULHO EM CAMINHAO BASCULANTE 6 M3 | F42: m³ | G42: CAC-005 | H42: =IF($E$34="GERAL",SUMIF('M. CÁL. CANAIS BOACICA'!$1:$1,"Canal C*",'M. CÁL. CANAIS BOACICA'!36:36),SUMIF('M. CÁL. CANAIS BOACICA'!$1:$1,$E$34,'M. CÁL. CANAIS BOACICA'!36:36)) -> 296.7836762 | I42: =VLOOKUP(G42,'C.C.U'!D:L,4,0) -> 3.0725 | J42: =VLOOKUP(G42,'C.C.U'!D:L,7,0) -> 3.718045984 | K42: =ROUND(J42*H42,2) -> 1103.46
A43: 6.2.1.1.2 | B43: 6 | C43: =ROW()-ROW(C39) -> 4 | D43: =D39&"."&C43 -> 6.2.1.1.2.4 | E43: TRANSPORTE COM CAMINHÃO BASCULANTE DE 6 M3, EM VIA URBANA EM REVESTIMENTO PRIMÁRIO | F43: m³XKm | G43: CAC-007 | H43: =IF($E$34="GERAL",SUMIF('M. CÁL. CANAIS BOACICA'!$1:$1,"Canal C*",'M. CÁL. CANAIS BOACICA'!37:37),SUMIF('M. CÁL. CANAIS BOACICA'!$1:$1,$E$34,'M. CÁL. CANAIS BOACICA'!37:37)) -> 2967.836762 | I43: =VLOOKUP(G43,'C.C.U'!D:L,4,0) -> 1.23 | J43: =VLOOKUP(G43,'C.C.U'!D:L,7,0) -> 1.488428498 | K43: =ROUND(J43*H43,2) -> 4417.41
A44: 6.2.1 | B44: 6 | C44: 3 | D44: =$D$35&"."&C44 -> 6.2.1.3 | E44: RETIRADA SOLO IMPRÓPRIO | K44: =SUM(K45:K47) -> 26246.41
A45: 6.2.1.3 | B45: 7 | C45: =ROW()-ROW(C44) -> 1 | D45: =D44&"."&C45 -> 6.2.1.3.1 | E45: ESCAVACAO MECANICA, A CEU ABERTO, EM MATERIAL DE 1A CATEGORIA, COM RETROESCAVADEIRA | F45: m³ | G45: CAC-014 | H45: =IF($E$34="GERAL",SUMIF('M. CÁL. CANAIS BOACICA'!$1:$1,"Canal C*",'M. CÁL. CANAIS BOACICA'!38:38),SUMIF('M. CÁL. CANAIS BOACICA'!$1:$1,$E$34,'M. CÁL. CANAIS BOACICA'!38:38)) -> 1399.123045 | I45: =VLOOKUP(G45,'C.C.U'!D:L,4,0) -> 1.863148 | J45: =VLOOKUP(G45,'C.C.U'!D:L,7,0) -> 2.254603723 | K45: =ROUND(J45*H45,2) -> 3154.47
A46: 6.2.1.3 | B46: 7 | C46: =ROW()-ROW(C44) -> 2 | D46: =D44&"."&C46 -> 6.2.1.3.2 | E46: CARGA E DESCARGA MECANICA DE SOLO UTILIZANDO CAMINHAO BASCULANTE 6,0M3 | F46: m³ | G46: CAC-006 | H46: =IF($E$34="GERAL",SUMIF('M. CÁL. CANAIS BOACICA'!$1:$1,"Canal C*",'M. CÁL. CANAIS BOACICA'!39:39),SUMIF('M. CÁL. CANAIS BOACICA'!$1:$1,$E$34,'M. CÁL. CANAIS BOACICA'!39:39)) -> 1399.123045 | I46: ='C.C.U'!$G$196 -> 1.338968 | J46: ='C.C.U'!$J$196 -> 1.620291162 | K46: =ROUND(J46*H46,2) -> 2266.99
A47: 6.2.1.3 | B47: 7 | C47: =ROW()-ROW(C44) -> 3 | D47: =D44&"."&C47 -> 6.2.1.3.3 | E47: TRANSPORTE COM CAMINHÃO BASCULANTE DE 6 M3, EM VIA URBANA EM REVESTIMENTO PRIMÁRIO | F47: m³XKm | G47: CAC-007 | H47: =IF($E$34="GERAL",SUMIF('M. CÁL. CANAIS BOACICA'!$1:$1,"Canal C*",'M. CÁL. CANAIS BOACICA'!40:40),SUMIF('M. CÁL. CANAIS BOACICA'!$1:$1,$E$34,'M. CÁL. CANAIS BOACICA'!40:40)) -> 13991.23045 | I47: =VLOOKUP(G47,'C.C.U'!D:L,4,0) -> 1.23 | J47: =VLOOKUP(G47,'C.C.U'!D:L,7,0) -> 1.488428498 | K47: =ROUND(J47*H47,2) -> 20824.95
A48: 6.2.1 | B48: 6 | C48: 4 | D48: =$D$35&"."&C48 -> 6.2.1.4 | E48: RECOMPOSIÇÃO GEOMETRIA DO CANAL | K48: =SUM(K49:K51) -> 187830.21
A49: 6.2.1.4 | B49: 7 | C49: =ROW()-ROW(C48) -> 1 | D49: =D48&"."&C49 -> 6.2.1.4.1 | E49: TRANSPORTE COM CAMINHÃO BASCULANTE DE 6 M3, EM VIA URBANA EM REVESTIMENTO PRIMÁRIO | F49: m³XKm | G49: CAC-007 | H49: =H51*5 -> 6393.998504 | I49: =VLOOKUP(G49,'C.C.U'!D:L,4,0) -> 1.23 | J49: =VLOOKUP(G49,'C.C.U'!D:L,7,0) -> 1.488428498 | K49: =ROUND(J49*H49,2) -> 9517.01
A50: =IFERROR(LEFT(D50,LEN(D50)-(LEN(C50)+1)),0) -> 6.2.1.4 | B50: 7 | C50: =ROW()-ROW(C48) -> 2 | D50: =D48&"."&C50 -> 6.2.1.4.2 | E50: PPREPARO E EXECUÇÃO DE SOLO-CIMENTO TRAÇO 1:12 EM VOLUME, (CIMENTO/ARENOSO), COM COMPACTAÇÃO E ESPALHAMENTO, PARA SUPORTE DE FUNDAÇÕES, INCLUSIVE CIMENTO E ARENOSO COMERCIAL | F50: m³ | G50: CAC-018 | H50: =IF($E$34="GERAL",SUMIF('M. CÁL. CANAIS BOACICA'!$1:$1,"Canal C*",'M. CÁL. CANAIS BOACICA'!41:41),SUMIF('M. CÁL. CANAIS BOACICA'!$1:$1,$E$34,'M. CÁL. CANAIS BOACICA'!41:41)) -> 423.9766804 | I50: =VLOOKUP(G50,'C.C.U'!D:L,4,0) -> 251.1912 | J50: =VLOOKUP(G50,'C.C.U'!D:L,7,0) -> 303.9675939 | K50: =ROUND(J50*H50,2) -> 128875.17
C51: 5 | D51: =D48&"."&C51 -> 6.2.1.4.5 | E51: ATERRO MANUAL COM MATERIAL DE EMPRÉSTIMO, COMPACTAÇÃO MECANIZADA E REGULARIZAÇÃO DO TALUDE | F51: m² | G51: CAC-015 | H51: =IF($E$34="GERAL",SUMIF('M. CÁL. CANAIS BOACICA'!$1:$1,"Canal C*",'M. CÁL. CANAIS BOACICA'!42:42),SUMIF('M. CÁL. CANAIS BOACICA'!$1:$1,$E$34,'M. CÁL. CANAIS BOACICA'!42:42)) -> 1278.799701 | I51: =VLOOKUP(G51,'C.C.U'!D:L,4,0) -> 31.94742 | J51: =VLOOKUP(G51,'C.C.U'!D:L,7,0) -> 38.65971574 | K51: =ROUND(J51*H51,2) -> 49438.03
A52: 6.2.1 | B52: 6 | C52: 5 | D52: =$D$35&"."&C52 -> 6.2.1.5 | E52: ASSENTAMENTE DE MANTA PEAD | K52: =SUM(K53:K55) -> 150170.53
A53: 6.2.1.5 | B53: 7 | C53: =ROW()-ROW(C52) -> 1 | D53: =D52&"."&C53 -> 6.2.1.5.1 | E53: ESCAVAÇÃO MANUAL DE VALAS | F53: m³ | G53: CAC-022 | H53: =IF($E$34="GERAL",SUMIF('M. CÁL. CANAIS BOACICA'!$1:$1,"Canal C*",'M. CÁL. CANAIS BOACICA'!43:43),SUMIF('M. CÁL. CANAIS BOACICA'!$1:$1,$E$34,'M. CÁL. CANAIS BOACICA'!43:43)) -> 87.5432 | I53: =VLOOKUP(G53,'C.C.U'!D:L,4,0) -> 56.57 | J53: =VLOOKUP(G53,'C.C.U'!D:L,7,0) -> 68.45560986 | K53: =ROUND(J53*H53,2) -> 5992.82
A54: 6.2.1.5 | B54: 7 | C54: =ROW()-ROW(C52) -> 2 | D54: =D52&"."&C54 -> 6.2.1.5.2 | E54: FORNECIMENTO E INSTALAÇÃO DE GEOMEMBRANA TEXTURIZADA EM AMBAS AS FACES, ESP. = 1,00 MM | F54: m² | G54: CAC-017 | H54: =IF($E$34="GERAL",SUMIF('M. CÁL. CANAIS BOACICA'!$1:$1,"Canal C*",'M. CÁL. CANAIS BOACICA'!44:44),SUMIF('M. CÁL. CANAIS BOACICA'!$1:$1,$E$34,'M. CÁL. CANAIS BOACICA'!44:44)) -> 5115.198804 | I54: =VLOOKUP(G54,'C.C.U'!D:L,4,0) -> 22.9424636 | J54: =VLOOKUP(G54,'C.C.U'!D:L,7,0) -> 27.76277775 | K54: =ROUND(J54*H54,2) -> 142012.13
A55: 6.2.1.5 | B55: 7 | C55: =ROW()-ROW(C52) -> 3 | D55: =D52&"."&C55 -> 6.2.1.5.3 | E55: REATERRO COM COMPACTACAO MECANIZADA DAS VALAS | F55: m³ | G55: CAC-012 | H55: =IF($E$34="GERAL",SUMIF('M. CÁL. CANAIS BOACICA'!$1:$1,"Canal C*",'M. CÁL. CANAIS BOACICA'!45:45),SUMIF('M. CÁL. CANAIS BOACICA'!$1:$1,$E$34,'M. CÁL. CANAIS BOACICA'!45:45)) -> 87.5432 | I55: =VLOOKUP(G55,'C.C.U'!D:L,4,0) -> 20.44222 | J55: =VLOOKUP(G55,'C.C.U'!D:L,7,0) -> 24.7372218 | K55: =ROUND(J55*H55,2) -> 2165.58
A56: 6.2.1 | B56: 6 | C56: 6 | D56: =$D$35&"."&C56 -> 6.2.1.6 | E56: REVESTIMENTO CANAL FINAL | K56: =SUM(K57:K58) -> 147645.23
A57: 6.2.1.6 | B57: 7 | C57: =ROW()-ROW(C56) -> 1 | D57: =D56&"."&C57 -> 6.2.1.6.1 | E57: ARMACAO EM TELA DE ACO SOLDADA NERVURADA Q-138, ACO CA-60, 4,2MM, MALHA 15X15 CM PARA REVESTIMENTO DO CANAL TRAPEZOIDAL | F57: m² | G57: CAC-028 | H57: =IF($E$34="GERAL",SUMIF('M. CÁL. CANAIS BOACICA'!$1:$1,"Canal C*",'M. CÁL. CANAIS BOACICA'!46:46),SUMIF('M. CÁL. CANAIS BOACICA'!$1:$1,$E$34,'M. CÁL. CANAIS BOACICA'!46:46)) -> 4239.766804 | I57: =VLOOKUP(G57,'C.C.U'!D:L,4,0) -> 9.1444 | J57: =VLOOKUP(G57,'C.C.U'!D:L,7,0) -> 11.06567931 | K57: =ROUND(J57*H57,2) -> 46915.9
A58: 6.2.1.6 | B58: 7 | C58: =ROW()-ROW(C56) -> 2 | D58: =D56&"."&C58 -> 6.2.1.6.2 | E58: CONCRETO FCK=20MPA PARA ESTRUTURAS, INCLUINDO PREPARO MECANICO, LANCAMENTO E ADENSAMENTO | F58: m³ | G58: CAC-033 | H58: =IF($E$34="GERAL",SUMIF('M. CÁL. CANAIS BOACICA'!$1:$1,"Canal C*",'M. CÁL. CANAIS BOACICA'!47:47),SUMIF('M. CÁL. CANAIS BOACICA'!$1:$1,$E$34,'M. CÁL. CANAIS BOACICA'!47:47)) -> 211.9883402 | I58: =VLOOKUP(G58,'C.C.U'!D:L,4,0) -> 392.664 | J58: =VLOOKUP(G58,'C.C.U'!D:L,7,0) -> 475.1644616 | K58: =ROUND(J58*H58,2) -> 100729.33
A59: 6 | B59: 2 | C59: =RIGHT(D59,LEN(D59)-SEARCH(".",D59,1)) -> 3 | D59: 6.3 | E59: CANAL CLI-37 e DERIVADOS
A60: 6.3 | B60: 3 | C60: 1 | D60: =D59&"."&C60 -> 6.3.1 | E60: OBRAS EM CANAL
A61: 6.3.1 | B61: 4 | C61: 1 | D61: =D60&"."&C61 -> 6.3.1.1 | E61: ="TRECHO TRAPEZOIDAL - RECUPERAÇÃO GEOMETRICA DA SEÇÃO COM SOLO-CIMENTO, MANTA DE PEAD 1 MM, TELA DE AÇO, 5 CM CONCRETO - L = "&H63&" m" -> TRECHO TRAPEZOIDAL - RECUPERAÇÃO GEOMETRICA DA SEÇÃO COM SOLO-CIMENTO, MANTA DE PEAD 1 MM, TELA DE AÇO, 5 CM CONCRETO - L = 134 m | K61: =K62+K64+K69+K73+K77+K81 -> 61421.37
A62: 6.3.1.1 | B62: 5 | C62: 1 | D62: =D61&"."&C62 -> 6.3.1.1.1 | E62: LOCAÇÃO E NIVELAMENTO COM EQUIPAMENTO TOPOGRÁFICO | K62: =K63 -> 325.16
A63: 6.3.1.1.1 | B63: 6 | C63: =ROW()-ROW(C62) -> 1 | D63: =D62&"."&C63 -> 6.3.1.1.1.1 | E63: LOCACAO E NIVELAMENTO DE REDE DE CANAIS COLETORES DE IRRIGAÇÃO COM AUXILIO DE EQUIPAMENTO TOPOGRAFICO | F63: m | G63: CAC-002 | H63: =IF($E$59="GERAL",SUMIF('M. CÁL. CANAIS BOACICA'!$1:$1,"Canal C*",'M. CÁL. CANAIS BOACICA'!33:33),SUMIF('M. CÁL. CANAIS BOACICA'!$1:$1,$E$59,'M. CÁL. CANAIS BOACICA'!33:33)) -> 134 | I63: =VLOOKUP(G63,'C.C.U'!D:L,4,0) -> 2.00526 | J63: =VLOOKUP(G63,'C.C.U'!D:L,7,0) -> 2.426574089 | K63: =ROUND(J63*H63,2) -> 325.16
A64: 6.3.1.1 | B64: 5 | C64: 2 | D64: =D61&"."&C64 -> 6.3.1.1.2 | E64: REMOÇÃO DA ESTRUTURA (REVESTIMENTO) EXISTENTE | K64: =K65+K66+K67+K68 -> 2714.9
A65: 6.3.1.1.2 | B65: 6 | C65: =ROW()-ROW(C64) -> 1 | D65: =D64&"."&C65 -> 6.3.1.1.2.1 | E65: LIMPEZA MANUAL DE VEGETAÇÃO EM TERRENO COM ENXADA | F65: m² | G65: CAC-001 | H65: =IF($E$59="GERAL",SUMIF('M. CÁL. CANAIS BOACICA'!$1:$1,"Canal C*",'M. CÁL. CANAIS BOACICA'!34:34),SUMIF('M. CÁL. CANAIS BOACICA'!$1:$1,$E$59,'M. CÁL. CANAIS BOACICA'!34:34)) -> 134 | I65: =VLOOKUP(G65,'C.C.U'!D:L,4,0) -> 2.28 | J65: =VLOOKUP(G65,'C.C.U'!D:L,7,0) -> 2.759038191 | K65: =ROUND(J65*H65,2) -> 369.71
A66: 6.3.1.1.2 | B66: 6 | C66: =ROW()-ROW(C64) -> 2 | D66: =D64&"."&C66 -> 6.3.1.1.2.2 | E66: DEMOLIÇÃO DE PLACAS EM CONCRETO ( MECANICAMENTE) | F66: m³ | G66: CAC-003 | H66: =IF($E$59="GERAL",SUMIF('M. CÁL. CANAIS BOACICA'!$1:$1,"Canal C*",'M. CÁL. CANAIS BOACICA'!35:35),SUMIF('M. CÁL. CANAIS BOACICA'!$1:$1,$E$59,'M. CÁL. CANAIS BOACICA'!35:35)) -> 33.62205677 | I66: =VLOOKUP(G66,'C.C.U'!D:L,4,0) -> 42.2685 | J66: =VLOOKUP(G66,'C.C.U'!D:L,7,0) -> 51.14930079 | K66: =ROUND(J66*H66,2) -> 1719.74
A67: 6.3.1.1.2 | B67: 6 | C67: =ROW()-ROW(C64) -> 3 | D67: =D64&"."&C67 -> 6.3.1.1.2.3 | E67: CARGA E DESCARGA MECANIZADAS DE ENTULHO EM CAMINHAO BASCULANTE 6 M3 | F67: m³ | G67: CAC-005 | H67: =IF($E$59="GERAL",SUMIF('M. CÁL. CANAIS BOACICA'!$1:$1,"Canal C*",'M. CÁL. CANAIS BOACICA'!36:36),SUMIF('M. CÁL. CANAIS BOACICA'!$1:$1,$E$59,'M. CÁL. CANAIS BOACICA'!36:36)) -> 33.62205677 | I67: =VLOOKUP(G67,'C.C.U'!D:L,4,0) -> 3.0725 | J67: =VLOOKUP(G67,'C.C.U'!D:L,7,0) -> 3.718045984 | K67: =ROUND(J67*H67,2) -> 125.01
A68: 6.3.1.1.2 | B68: 6 | C68: =ROW()-ROW(C64) -> 4 | D68: =D64&"."&C68 -> 6.3.1.1.2.4 | E68: TRANSPORTE COM CAMINHÃO BASCULANTE DE 6 M3, EM VIA URBANA EM REVESTIMENTO PRIMÁRIO | F68: m³XKm | G68: CAC-007 | H68: =IF($E$59="GERAL",SUMIF('M. CÁL. CANAIS BOACICA'!$1:$1,"Canal C*",'M. CÁL. CANAIS BOACICA'!37:37),SUMIF('M. CÁL. CANAIS BOACICA'!$1:$1,$E$59,'M. CÁL. CANAIS BOACICA'!37:37)) -> 336.2205677 | I68: =VLOOKUP(G68,'C.C.U'!D:L,4,0) -> 1.23 | J68: =VLOOKUP(G68,'C.C.U'!D:L,7,0) -> 1.488428498 | K68: =ROUND(J68*H68,2) -> 500.44
A69: 6.3.1.1 | B69: 6 | C69: 3 | D69: =$D$61&"."&C69 -> 6.3.1.1.3 | E69: RETIRADA SOLO IMPRÓPRIO | K69: =SUM(K70:K72) -> 2973.4
A70: 6.3.1.1.3 | B70: 7 | C70: =ROW()-ROW(C69) -> 1 | D70: =D69&"."&C70 -> 6.3.1.1.3.1 | E70: ESCAVACAO MECANICA, A CEU ABERTO, EM MATERIAL DE 1A CATEGORIA, COM RETROESCAVADEIRA | F70: m³ | G70: CAC-014 | H70: =IF($E$59="GERAL",SUMIF('M. CÁL. CANAIS BOACICA'!$1:$1,"Canal C*",'M. CÁL. CANAIS BOACICA'!38:38),SUMIF('M. CÁL. CANAIS BOACICA'!$1:$1,$E$59,'M. CÁL. CANAIS BOACICA'!38:38)) -> 158.5039819 | I70: =VLOOKUP(G70,'C.C.U'!D:L,4,0) -> 1.863148 | J70: =VLOOKUP(G70,'C.C.U'!D:L,7,0) -> 2.254603723 | K70: =ROUND(J70*H70,2) -> 357.36
A71: 6.3.1.1.3 | B71: 7 | C71: =ROW()-ROW(C69) -> 2 | D71: =D69&"."&C71 -> 6.3.1.1.3.2 | E71: CARGA E DESCARGA MECANICA DE SOLO UTILIZANDO CAMINHAO BASCULANTE 6,0M3 | F71: m³ | G71: CAC-006 | H71: =IF($E$59="GERAL",SUMIF('M. CÁL. CANAIS BOACICA'!$1:$1,"Canal C*",'M. CÁL. CANAIS BOACICA'!39:39),SUMIF('M. CÁL. CANAIS BOACICA'!$1:$1,$E$59,'M. CÁL. CANAIS BOACICA'!39:39)) -> 158.5039819 | I71: ='C.C.U'!$G$196 -> 1.338968 | J71: ='C.C.U'!$J$196 -> 1.620291162 | K71: =ROUND(J71*H71,2) -> 256.82
A72: 6.3.1.1.3 | B72: 7 | C72: =ROW()-ROW(C69) -> 3 | D72: =D69&"."&C72 -> 6.3.1.1.3.3 | E72: TRANSPORTE COM CAMINHÃO BASCULANTE DE 6 M3, EM VIA URBANA EM REVESTIMENTO PRIMÁRIO | F72: m³XKm | G72: CAC-007 | H72: =IF($E$59="GERAL",SUMIF('M. CÁL. CANAIS BOACICA'!$1:$1,"Canal C*",'M. CÁL. CANAIS BOACICA'!40:40),SUMIF('M. CÁL. CANAIS BOACICA'!$1:$1,$E$59,'M. CÁL. CANAIS BOACICA'!40:40)) -> 1585.039819 | I72: =VLOOKUP(G72,'C.C.U'!D:L,4,0) -> 1.23 | J72: =VLOOKUP(G72,'C.C.U'!D:L,7,0) -> 1.488428498 | K72: =ROUND(J72*H72,2) -> 2359.22
A73: 6.3.1.1 | B73: 6 | C73: 4 | D73: =$D$61&"."&C73 -> 6.3.1.1.4 | E73: RECOMPOSIÇÃO GEOMETRIA DO CANAL | K73: =SUM(K74:K76) -> 21371.4
A74: 6.3.1.1.4 | B74: 7 | C74: =ROW()-ROW(C73) -> 1 | D74: =D73&"."&C74 -> 6.3.1.1.4.1 | E74: TRANSPORTE COM CAMINHÃO BASCULANTE DE 6 M3, EM VIA URBANA EM REVESTIMENTO PRIMÁRIO | F74: m³XKm | G74: CAC-007 | H74: =H76*5 -> 734.3938709 | I74: =VLOOKUP(G74,'C.C.U'!D:L,4,0) -> 1.23 | J74: =VLOOKUP(G74,'C.C.U'!D:L,7,0) -> 1.488428498 | K74: =ROUND(J74*H74,2) -> 1093.09
D75: =D76&"."&C75 -> 6.3.1.1.4.3. | E75: PPREPARO E EXECUÇÃO DE SOLO-CIMENTO TRAÇO 1:12 EM VOLUME, (CIMENTO/ARENOSO), COM COMPACTAÇÃO E ESPALHAMENTO, PARA SUPORTE DE FUNDAÇÕES, INCLUSIVE CIMENTO E ARENOSO COMERCIAL | F75: m³ | G75: CAC-018 | H75: =IF($E$59="GERAL",SUMIF('M. CÁL. CANAIS BOACICA'!$1:$1,"Canal C*",'M. CÁL. CANAIS BOACICA'!41:41),SUMIF('M. CÁL. CANAIS BOACICA'!$1:$1,$E$59,'M. CÁL. CANAIS BOACICA'!41:41)) -> 48.03150967 | I75: =VLOOKUP(G75,'C.C.U'!D:L,4,0) -> 251.1912 | J75: =VLOOKUP(G75,'C.C.U'!D:L,7,0) -> 303.9675939 | K75: =ROUND(J75*H75,2) -> 14600.02
A76: 6.3.1.1.4 | B76: 7 | C76: =ROW()-ROW(C73) -> 3 | D76: =D73&"."&C76 -> 6.3.1.1.4.3 | E76: ATERRO MANUAL COM MATERIAL DE EMPRÉSTIMO, COMPACTAÇÃO MECANIZADA E REGULARIZAÇÃO DO TALUDE | F76: m² | G76: CAC-015 | H76: =IF($E$59="GERAL",SUMIF('M. CÁL. CANAIS BOACICA'!$1:$1,"Canal C*",'M. CÁL. CANAIS BOACICA'!42:42),SUMIF('M. CÁL. CANAIS BOACICA'!$1:$1,$E$59,'M. CÁL. CANAIS BOACICA'!42:42)) -> 146.8787742 | I76: =VLOOKUP(G76,'C.C.U'!D:L,4,0) -> 31.94742 | J76: =VLOOKUP(G76,'C.C.U'!D:L,7,0) -> 38.65971574 | K76: =ROUND(J76*H76,2) -> 5678.29
A77: 6.3.1.1 | B77: 6 | C77: 5 | D77: =$D$61&"."&C77 -> 6.3.1.1.5 | E77: ASSENTAMENTE DE MANTA PEAD | K77: =SUM(K78:K80) -> 17310.07
A78: 6.3.1.1.5 | B78: 7 | C78: =ROW()-ROW(C77) -> 1 | D78: =D77&"."&C78 -> 6.3.1.1.5.1 | E78: ESCAVAÇÃO MANUAL DE VALAS | F78: m³ | G78: CAC-022 | H78: =IF($E$59="GERAL",SUMIF('M. CÁL. CANAIS BOACICA'!$1:$1,"Canal C*",'M. CÁL. CANAIS BOACICA'!43:43),SUMIF('M. CÁL. CANAIS BOACICA'!$1:$1,$E$59,'M. CÁL. CANAIS BOACICA'!43:43)) -> 10.72 | I78: =VLOOKUP(G78,'C.C.U'!D:L,4,0) -> 56.57 | J78: =VLOOKUP(G78,'C.C.U'!D:L,7,0) -> 68.45560986 | K78: =ROUND(J78*H78,2) -> 733.84
A79: 6.3.1.1.5 | B79: 7 | C79: =ROW()-ROW(C77) -> 2 | D79: =D77&"."&C79 -> 6.3.1.1.5.2 | E79: FORNECIMENTO E INSTALAÇÃO DE GEOMEMBRANA TEXTURIZADA EM AMBAS AS FACES, ESP. = 1,00 MM | F79: m² | G79: CAC-017 | H79: =IF($E$59="GERAL",SUMIF('M. CÁL. CANAIS BOACICA'!$1:$1,"Canal C*",'M. CÁL. CANAIS BOACICA'!44:44),SUMIF('M. CÁL. CANAIS BOACICA'!$1:$1,$E$59,'M. CÁL. CANAIS BOACICA'!44:44)) -> 587.5150967 | I79: =VLOOKUP(G79,'C.C.U'!D:L,4,0) -> 22.9424636 | J79: =VLOOKUP(G79,'C.C.U'!D:L,7,0) -> 27.76277775 | K79: =ROUND(J79*H79,2) -> 16311.05
A80: 6.3.1.1.5 | B80: 7 | C80: =ROW()-ROW(C77) -> 3 | D80: =D77&"."&C80 -> 6.3.1.1.5.3 | E80: REATERRO COM COMPACTACAO MECANIZADA DAS VALAS | F80: m³ | G80: CAC-012 | H80: =IF($E$59="GERAL",SUMIF('M. CÁL. CANAIS BOACICA'!$1:$1,"Canal C*",'M. CÁL. CANAIS BOACICA'!45:45),SUMIF('M. CÁL. CANAIS BOACICA'!$1:$1,$E$59,'M. CÁL. CANAIS BOACICA'!45:45)) -> 10.72 | I80: =VLOOKUP(G80,'C.C.U'!D:L,4,0) -> 20.44222 | J80: =VLOOKUP(G80,'C.C.U'!D:L,7,0) -> 24.7372218 | K80: =ROUND(J80*H80,2) -> 265.18
A81: 6.3.1.1 | B81: 6 | C81: 6 | D81: =$D$61&"."&C81 -> 6.3.1.1.6 | E81: REVESTIMENTO CANAL FINAL | K81: =SUM(K82:K83) -> 16726.44
A82: 6.3.1.1.6 | B82: 7 | C82: =ROW()-ROW(C81) -> 1 | D82: =D81&"."&C82 -> 6.3.1.1.6.1 | E82: ARMACAO EM TELA DE ACO SOLDADA NERVURADA Q-138, ACO CA-60, 4,2MM, MALHA 15X15 CM PARA REVESTIMENTO DO CANAL TRAPEZOIDAL | F82: m² | G82: CAC-028 | H82: =IF($E$59="GERAL",SUMIF('M. CÁL. CANAIS BOACICA'!$1:$1,"Canal C*",'M. CÁL. CANAIS BOACICA'!46:46),SUMIF('M. CÁL. CANAIS BOACICA'!$1:$1,$E$59,'M. CÁL. CANAIS BOACICA'!46:46)) -> 480.3150967 | I82: =VLOOKUP(G82,'C.C.U'!D:L,4,0) -> 9.1444 | J82: =VLOOKUP(G82,'C.C.U'!D:L,7,0) -> 11.06567931 | K82: =ROUND(J82*H82,2) -> 5315.01
A83: 6.3.1.1.6 | B83: 7 | C83: =ROW()-ROW(C81) -> 2 | D83: =D81&"."&C83 -> 6.3.1.1.6.2 | E83: CONCRETO FCK=20MPA PARA ESTRUTURAS, INCLUINDO PREPARO MECANICO, LANCAMENTO E ADENSAMENTO | F83: m³ | G83: CAC-033 | H83: =IF($E$59="GERAL",SUMIF('M. CÁL. CANAIS BOACICA'!$1:$1,"Canal C*",'M. CÁL. CANAIS BOACICA'!47:47),SUMIF('M. CÁL. CANAIS BOACICA'!$1:$1,$E$59,'M. CÁL. CANAIS BOACICA'!47:47)) -> 24.01575484 | I83: =VLOOKUP(G83,'C.C.U'!D:L,4,0) -> 392.664 | J83: =VLOOKUP(G83,'C.C.U'!D:L,7,0) -> 475.1644616 | K83: =ROUND(J83*H83,2) -> 11411.43
A84: 6 | B84: 2 | C84: =RIGHT(D84,LEN(D84)-SEARCH(".",D84,1)) -> 4 | D84: 6.4 | E84: CANAL CLII
A85: 6.4 | B85: 3 | C85: 1 | D85: =D84&"."&C85 -> 6.4.1 | E85: OBRAS EM CANAL
A86: 6.4.1 | B86: 4 | C86: 1 | D86: =D85&"."&C86 -> 6.4.1.1 | E86: ="TRECHO TRAPEZOIDAL - RECUPERAÇÃO GEOMETRICA DA SEÇÃO COM SOLO-CIMENTO, MANTA DE PEAD 1 MM, TELA DE AÇO, 5 CM CONCRETO - L = "&H88&" m" -> TRECHO TRAPEZOIDAL - RECUPERAÇÃO GEOMETRICA DA SEÇÃO COM SOLO-CIMENTO, MANTA DE PEAD 1 MM, TELA DE AÇO, 5 CM CONCRETO - L = 1988,79 m | K86: =K87+K89+K94+K98+K102+K106 -> 2042927.01
A87: 6.4.1.1 | B87: 5 | C87: 1 | D87: =D86&"."&C87 -> 6.4.1.1.1 | E87: LOCAÇÃO E NIVELAMENTO COM EQUIPAMENTO TOPOGRÁFICO | K87: =K88 -> 4825.95
A88: 6.4.1.1.1 | B88: 6 | C88: 1 | D88: =D87&"."&C88 -> 6.4.1.1.1.1 | E88: LOCACAO E NIVELAMENTO DE REDE DE CANAIS COLETORES DE IRRIGAÇÃO COM AUXILIO DE EQUIPAMENTO TOPOGRAFICO | F88: m | G88: CAC-002 | H88: =IF($E$84="GERAL",SUMIF('M. CÁL. CANAIS BOACICA'!$1:$1,"Canal C*",'M. CÁL. CANAIS BOACICA'!33:33),SUMIF('M. CÁL. CANAIS BOACICA'!$1:$1,$E$84,'M. CÁL. CANAIS BOACICA'!33:33)) -> 1988.79 | I88: =VLOOKUP(G88,'C.C.U'!D:L,4,0) -> 2.00526 | J88: =VLOOKUP(G88,'C.C.U'!D:L,7,0) -> 2.426574089 | K88: =ROUND(J88*H88,2) -> 4825.95
A89: 6.4.1.1 | B89: 5 | C89: 2 | D89: =D86&"."&C89 -> 6.4.1.1.2 | E89: REMOÇÃO DA ESTRUTURA (REVESTIMENTO) EXISTENTE | K89: =K90+K91+K92+K93 -> 88085.34
A90: 6.4.1.1.2 | B90: 6 | C90: 1 | D90: =D89&"."&C90 -> 6.4.1.1.2.1 | E90: LIMPEZA MANUAL DE VEGETAÇÃO EM TERRENO COM ENXADA | F90: m² | G90: CAC-001 | H90: =IF($E$84="GERAL",SUMIF('M. CÁL. CANAIS BOACICA'!$1:$1,"Canal C*",'M. CÁL. CANAIS BOACICA'!34:34),SUMIF('M. CÁL. CANAIS BOACICA'!$1:$1,$E$84,'M. CÁL. CANAIS BOACICA'!34:34)) -> 1988.79 | I90: =VLOOKUP(G90,'C.C.U'!D:L,4,0) -> 2.28 | J90: =VLOOKUP(G90,'C.C.U'!D:L,7,0) -> 2.759038191 | K90: =ROUND(J90*H90,2) -> 5487.15
A91: 6.4.1.1.2 | B91: 6 | C91: 2 | D91: =D89&"."&C91 -> 6.4.1.1.2.2 | E91: DEMOLIÇÃO DE PLACAS EM CONCRETO ( MECANICAMENTE) | F91: m³ | G91: CAC-003 | H91: =IF($E$84="GERAL",SUMIF('M. CÁL. CANAIS BOACICA'!$1:$1,"Canal C*",'M. CÁL. CANAIS BOACICA'!35:35),SUMIF('M. CÁL. CANAIS BOACICA'!$1:$1,$E$84,'M. CÁL. CANAIS BOACICA'!35:35)) -> 1184.175632 | I91: =VLOOKUP(G91,'C.C.U'!D:L,4,0) -> 42.2685 | J91: =VLOOKUP(G91,'C.C.U'!D:L,7,0) -> 51.14930079 | K91: =ROUND(J91*H91,2) -> 60569.76
A92: 6.4.1.1.2 | B92: 6 | C92: 3 | D92: =D89&"."&C92 -> 6.4.1.1.2.3 | E92: CARGA E DESCARGA MECANIZADAS DE ENTULHO EM CAMINHAO BASCULANTE 6 M3 | F92: m³ | G92: CAC-005 | H92: =IF($E$84="GERAL",SUMIF('M. CÁL. CANAIS BOACICA'!$1:$1,"Canal C*",'M. CÁL. CANAIS BOACICA'!36:36),SUMIF('M. CÁL. CANAIS BOACICA'!$1:$1,$E$84,'M. CÁL. CANAIS BOACICA'!36:36)) -> 1184.175632 | I92: =VLOOKUP(G92,'C.C.U'!D:L,4,0) -> 3.0725 | J92: =VLOOKUP(G92,'C.C.U'!D:L,7,0) -> 3.718045984 | K92: =ROUND(J92*H92,2) -> 4402.82
A93: 6.4.1.1.2 | B93: 6 | C93: 4 | D93: =D89&"."&C93 -> 6.4.1.1.2.4 | E93: TRANSPORTE COM CAMINHÃO BASCULANTE DE 6 M3, EM VIA URBANA EM REVESTIMENTO PRIMÁRIO | F93: m³XKm | G93: CAC-007 | H93: =IF($E$84="GERAL",SUMIF('M. CÁL. CANAIS BOACICA'!$1:$1,"Canal C*",'M. CÁL. CANAIS BOACICA'!37:37),SUMIF('M. CÁL. CANAIS BOACICA'!$1:$1,$E$84,'M. CÁL. CANAIS BOACICA'!37:37)) -> 11841.75632 | I93: =VLOOKUP(G93,'C.C.U'!D:L,4,0) -> 1.23 | J93: =VLOOKUP(G93,'C.C.U'!D:L,7,0) -> 1.488428498 | K93: =ROUND(J93*H93,2) -> 17625.61
A94: 6.4.1.1 | B94: 6 | C94: 3 | D94: =$D$86&"."&C94 -> 6.4.1.1.3 | E94: RETIRADA SOLO IMPRÓPRIO | K94: =SUM(K95:K97) -> 104723.91
A95: 6.4.1.1.3 | B95: 7 | C95: 2 | D95: =D94&"."&C95 -> 6.4.1.1.3.2 | E95: ESCAVACAO MECANICA, A CEU ABERTO, EM MATERIAL DE 1A CATEGORIA, COM RETROESCAVADEIRA | F95: m³ | G95: CAC-014 | H95: =IF($E$84="GERAL",SUMIF('M. CÁL. CANAIS BOACICA'!$1:$1,"Canal C*",'M. CÁL. CANAIS BOACICA'!38:38),SUMIF('M. CÁL. CANAIS BOACICA'!$1:$1,$E$84,'M. CÁL. CANAIS BOACICA'!38:38)) -> 5582.542267 | I95: =VLOOKUP(G95,'C.C.U'!D:L,4,0) -> 1.863148 | J95: =VLOOKUP(G95,'C.C.U'!D:L,7,0) -> 2.254603723 | K95: =ROUND(J95*H95,2) -> 12586.42
A96: =IFERROR(LEFT(D96,LEN(D96)-(LEN(C96)+1)),0) -> 6.4.1.1.3 | B96: 7 | C96: 3 | D96: =D94&"."&C96 -> 6.4.1.1.3.3 | E96: CARGA E DESCARGA MECANICA DE SOLO UTILIZANDO CAMINHAO BASCULANTE 6,0M3 | F96: m³ | G96: CAC-006 | H96: =IF($E$84="GERAL",SUMIF('M. CÁL. CANAIS BOACICA'!$1:$1,"Canal C*",'M. CÁL. CANAIS BOACICA'!39:39),SUMIF('M. CÁL. CANAIS BOACICA'!$1:$1,$E$84,'M. CÁL. CANAIS BOACICA'!39:39)) -> 5582.542267 | I96: ='C.C.U'!$G$196 -> 1.338968 | J96: ='C.C.U'!$J$196 -> 1.620291162 | K96: =ROUND(J96*H96,2) -> 9045.34
A97: 6.4.1.1.3 | B97: 7 | C97: 4 | D97: =D94&"."&C97 -> 6.4.1.1.3.4 | E97: TRANSPORTE COM CAMINHÃO BASCULANTE DE 6 M3, EM VIA URBANA EM REVESTIMENTO PRIMÁRIO | F97: m³XKm | G97: CAC-007 | H97: =IF($E$84="GERAL",SUMIF('M. CÁL. CANAIS BOACICA'!$1:$1,"Canal C*",'M. CÁL. CANAIS BOACICA'!40:40),SUMIF('M. CÁL. CANAIS BOACICA'!$1:$1,$E$84,'M. CÁL. CANAIS BOACICA'!40:40)) -> 55825.42267 | I97: =VLOOKUP(G97,'C.C.U'!D:L,4,0) -> 1.23 | J97: =VLOOKUP(G97,'C.C.U'!D:L,7,0) -> 1.488428498 | K97: =ROUND(J97*H97,2) -> 83092.15
A98: 6.4.1.1 | B98: 6 | C98: 4 | D98: =$D$86&"."&C98 -> 6.4.1.1.4 | E98: RECOMPOSIÇÃO GEOMETRIA DO CANAL | K98: =SUM(K99:K101) -> 727527.04
A99: 6.4.1.1.4 | B99: 7 | D99: =D98&"."&C99 -> 6.4.1.1.4. | E99: TRANSPORTE COM CAMINHÃO BASCULANTE DE 6 M3, EM VIA URBANA EM REVESTIMENTO PRIMÁRIO | F99: m³XKm | G99: CAC-007 | H99: =H101*5 -> 23134.78343 | I99: =VLOOKUP(G99,'C.C.U'!D:L,4,0) -> 1.23 | J99: =VLOOKUP(G99,'C.C.U'!D:L,7,0) -> 1.488428498 | K99: =ROUND(J99*H99,2) -> 34434.47
C100: 5 | D100: =D98&"."&C100 -> 6.4.1.1.4.5 | E100: PPREPARO E EXECUÇÃO DE SOLO-CIMENTO TRAÇO 1:12 EM VOLUME, (CIMENTO/ARENOSO), COM COMPACTAÇÃO E ESPALHAMENTO, PARA SUPORTE DE FUNDAÇÕES, INCLUSIVE CIMENTO E ARENOSO COMERCIAL | F100: m³ | G100: CAC-018 | H100: =IF($E$84="GERAL",SUMIF('M. CÁL. CANAIS BOACICA'!$1:$1,"Canal C*",'M. CÁL. CANAIS BOACICA'!41:41),SUMIF('M. CÁL. CANAIS BOACICA'!$1:$1,$E$84,'M. CÁL. CANAIS BOACICA'!41:41)) -> 1691.679475 | I100: =VLOOKUP(G100,'C.C.U'!D:L,4,0) -> 251.1912 | J100: =VLOOKUP(G100,'C.C.U'!D:L,7,0) -> 303.9675939 | K100: =ROUND(J100*H100,2) -> 514215.74
A101: 6.4.1.1.4 | B101: 7 | C101: 5 | D101: =D98&"."&C101 -> 6.4.1.1.4.5 | E101: ATERRO MANUAL COM MATERIAL DE EMPRÉSTIMO, COMPACTAÇÃO MECANIZADA E REGULARIZAÇÃO DO TALUDE | F101: m³ | G101: CAC-015 | H101: =IF($E$84="GERAL",SUMIF('M. CÁL. CANAIS BOACICA'!$1:$1,"Canal C*",'M. CÁL. CANAIS BOACICA'!42:42),SUMIF('M. CÁL. CANAIS BOACICA'!$1:$1,$E$84,'M. CÁL. CANAIS BOACICA'!42:42)) -> 4626.956687 | I101: =VLOOKUP(G101,'C.C.U'!D:L,4,0) -> 31.94742 | J101: =VLOOKUP(G101,'C.C.U'!D:L,7,0) -> 38.65971574 | K101: =ROUND(J101*H101,2) -> 178876.83
A102: 6.4.1.1 | B102: 6 | C102: 5 | D102: =$D$86&"."&C102 -> 6.4.1.1.5 | E102: ASSENTAMENTE DE MANTA PEAD | K102: =SUM(K103:K105) -> 528655.96
A103: 6.4.1.1.5 | B103: 7 | C103: 2 | D103: =D102&"."&C103 -> 6.4.1.1.5.2 | E103: ESCAVAÇÃO MANUAL DE VALAS | F103: m³ | G103: CAC-022 | H103: =IF($E$84="GERAL",SUMIF('M. CÁL. CANAIS BOACICA'!$1:$1,"Canal C*",'M. CÁL. CANAIS BOACICA'!43:43),SUMIF('M. CÁL. CANAIS BOACICA'!$1:$1,$E$84,'M. CÁL. CANAIS BOACICA'!43:43)) -> 159.1032 | I103: =VLOOKUP(G103,'C.C.U'!D:L,4,0) -> 56.57 | J103: =VLOOKUP(G103,'C.C.U'!D:L,7,0) -> 68.45560986 | K103: =ROUND(J103*H103,2) -> 10891.51
A104: 6.4.1.1.5 | B104: 7 | C104: 3 | D104: =D102&"."&C104 -> 6.4.1.1.5.3 | E104: FORNECIMENTO E INSTALAÇÃO DE GEOMEMBRANA TEXTURIZADA EM AMBAS AS FACES, ESP. = 1,00 MM | F104: m² | G104: CAC-017 | H104: =IF($E$84="GERAL",SUMIF('M. CÁL. CANAIS BOACICA'!$1:$1,"Canal C*",'M. CÁL. CANAIS BOACICA'!44:44),SUMIF('M. CÁL. CANAIS BOACICA'!$1:$1,$E$84,'M. CÁL. CANAIS BOACICA'!44:44)) -> 18507.82675 | I104: =VLOOKUP(G104,'C.C.U'!D:L,4,0) -> 22.9424636 | J104: =VLOOKUP(G104,'C.C.U'!D:L,7,0) -> 27.76277775 | K104: =ROUND(J104*H104,2) -> 513828.68
A105: 6.4.1.1.5 | B105: 7 | C105: 6 | D105: =D102&"."&C105 -> 6.4.1.1.5.6 | E105: REATERRO COM COMPACTACAO MECANIZADA DAS VALAS | F105: m³ | G105: CAC-012 | H105: =IF($E$84="GERAL",SUMIF('M. CÁL. CANAIS BOACICA'!$1:$1,"Canal C*",'M. CÁL. CANAIS BOACICA'!45:45),SUMIF('M. CÁL. CANAIS BOACICA'!$1:$1,$E$84,'M. CÁL. CANAIS BOACICA'!45:45)) -> 159.1032 | I105: =VLOOKUP(G105,'C.C.U'!D:L,4,0) -> 20.44222 | J105: =VLOOKUP(G105,'C.C.U'!D:L,7,0) -> 24.7372218 | K105: =ROUND(J105*H105,2) -> 3935.77
A106: 6.4.1.1 | B106: 6 | C106: 6 | D106: =$D$86&"."&C106 -> 6.4.1.1.6 | E106: REVESTIMENTO CANAL FINAL | K106: =SUM(K107:K108) -> 589108.81
A107: 6.4.1.1.6 | B107: 7 | C107: 2 | D107: =D106&"."&C107 -> 6.4.1.1.6.2 | E107: ARMACAO EM TELA DE ACO SOLDADA NERVURADA Q-138, ACO CA-60, 4,2MM, MALHA 15X15 CM PARA REVESTIMENTO DO CANAL TRAPEZOIDAL | F107: m² | G107: CAC-028 | H107: =IF($E$84="GERAL",SUMIF('M. CÁL. CANAIS BOACICA'!$1:$1,"Canal C*",'M. CÁL. CANAIS BOACICA'!46:46),SUMIF('M. CÁL. CANAIS BOACICA'!$1:$1,$E$84,'M. CÁL. CANAIS BOACICA'!46:46)) -> 16916.79475 | I107: =VLOOKUP(G107,'C.C.U'!D:L,4,0) -> 9.1444 | J107: =VLOOKUP(G107,'C.C.U'!D:L,7,0) -> 11.06567931 | K107: =ROUND(J107*H107,2) -> 187195.83
A108: 6.4.1.1.6 | B108: 7 | C108: =ROW()-ROW(C106) -> 2 | D108: =D106&"."&C108 -> 6.4.1.1.6.2 | E108: CONCRETO FCK=20MPA PARA ESTRUTURAS, INCLUINDO PREPARO MECANICO, LANCAMENTO E ADENSAMENTO | F108: m³ | G108: CAC-033 | H108: =IF($E$84="GERAL",SUMIF('M. CÁL. CANAIS BOACICA'!$1:$1,"Canal C*",'M. CÁL. CANAIS BOACICA'!47:47),SUMIF('M. CÁL. CANAIS BOACICA'!$1:$1,$E$84,'M. CÁL. CANAIS BOACICA'!47:47)) -> 845.8397374 | I108: =VLOOKUP(G108,'C.C.U'!D:L,4,0) -> 392.664 | J108: =VLOOKUP(G108,'C.C.U'!D:L,7,0) -> 475.1644616 | K108: =ROUND(J108*H108,2) -> 401912.98
A109: 6 | B109: 2 | C109: =RIGHT(D109,LEN(D109)-SEARCH(".",D109,1)) -> 5 | D109: 6.5 | E109: CANAL CLII-3 e DERIVADOS
A110: 6.5 | B110: 3 | C110: 1 | D110: =D109&"."&C110 -> 6.5.1 | E110: OBRAS EM CANAL
A111: 6.5.1 | B111: 4 | C111: 1 | D111: =D110&"."&C111 -> 6.5.1.1 | E111: ="TRECHO TRAPEZOIDAL - RECUPERAÇÃO GEOMETRICA DA SEÇÃO COM SOLO-CIMENTO, MANTA DE PEAD 1 MM, TELA DE AÇO, 5 CM CONCRETO - L = "&H113&" m" -> TRECHO TRAPEZOIDAL - RECUPERAÇÃO GEOMETRICA DA SEÇÃO COM SOLO-CIMENTO, MANTA DE PEAD 1 MM, TELA DE AÇO, 5 CM CONCRETO - L = 2708,34 m | K111: =K112+K114+K119+K123+K127+K131 -> 1197416.35
A112: 6.5.1.1 | B112: 5 | C112: 1 | D112: =D111&"."&C112 -> 6.5.1.1.1 | E112: LOCAÇÃO E NIVELAMENTO COM EQUIPAMENTO TOPOGRÁFICO | K112: =K113 -> 6571.99
A113: 6.5.1.1.1 | B113: 6 | C113: =ROW()-ROW(C112) -> 1 | D113: =D112&"."&C113 -> 6.5.1.1.1.1 | E113: LOCACAO E NIVELAMENTO DE REDE DE CANAIS COLETORES DE IRRIGAÇÃO COM AUXILIO DE EQUIPAMENTO TOPOGRAFICO | F113: m | G113: CAC-002 | H113: =IF($E$109="GERAL",SUMIF('M. CÁL. CANAIS BOACICA'!$1:$1,"Canal C*",'M. CÁL. CANAIS BOACICA'!33:33),SUMIF('M. CÁL. CANAIS BOACICA'!$1:$1,$E$109,'M. CÁL. CANAIS BOACICA'!33:33)) -> 2708.34 | I113: =VLOOKUP(G113,'C.C.U'!D:L,4,0) -> 2.00526 | J113: =VLOOKUP(G113,'C.C.U'!D:L,7,0) -> 2.426574089 | K113: =ROUND(J113*H113,2) -> 6571.99
A114: 6.5.1.1 | B114: 5 | C114: 2 | D114: =D111&"."&C114 -> 6.5.1.1.2 | E114: REMOÇÃO DA ESTRUTURA (REVESTIMENTO) EXISTENTE | K114: =K115+K116+K117+K118 -> 53013.47
A115: 6.5.1.1.2 | B115: 6 | C115: =ROW()-ROW(C114) -> 1 | D115: =D114&"."&C115 -> 6.5.1.1.2.1 | E115: LIMPEZA MANUAL DE VEGETAÇÃO EM TERRENO COM ENXADA | F115: m² | G115: CAC-001 | H115: =IF($E$109="GERAL",SUMIF('M. CÁL. CANAIS BOACICA'!$1:$1,"Canal C*",'M. CÁL. CANAIS BOACICA'!34:34),SUMIF('M. CÁL. CANAIS BOACICA'!$1:$1,$E$109,'M. CÁL. CANAIS BOACICA'!34:34)) -> 2708.34 | I115: =VLOOKUP(G115,'C.C.U'!D:L,4,0) -> 2.28 | J115: =VLOOKUP(G115,'C.C.U'!D:L,7,0) -> 2.759038191 | K115: =ROUND(J115*H115,2) -> 7472.41
A116: 6.5.1.1.2 | B116: 6 | C116: =ROW()-ROW(C114) -> 2 | D116: =D114&"."&C116 -> 6.5.1.1.2.2 | E116: DEMOLIÇÃO DE PLACAS EM CONCRETO ( MECANICAMENTE) | F116: m³ | G116: CAC-003 | H116: =IF($E$109="GERAL",SUMIF('M. CÁL. CANAIS BOACICA'!$1:$1,"Canal C*",'M. CÁL. CANAIS BOACICA'!35:35),SUMIF('M. CÁL. CANAIS BOACICA'!$1:$1,$E$109,'M. CÁL. CANAIS BOACICA'!35:35)) -> 652.903098 | I116: =VLOOKUP(G116,'C.C.U'!D:L,4,0) -> 42.2685 | J116: =VLOOKUP(G116,'C.C.U'!D:L,7,0) -> 51.14930079 | K116: =ROUND(J116*H116,2) -> 33395.54
A117: 6.5.1.1.2 | B117: 6 | C117: =ROW()-ROW(C114) -> 3 | D117: =D114&"."&C117 -> 6.5.1.1.2.3 | E117: CARGA E DESCARGA MECANIZADAS DE ENTULHO EM CAMINHAO BASCULANTE 6 M3 | F117: m³ | G117: CAC-005 | H117: =IF($E$109="GERAL",SUMIF('M. CÁL. CANAIS BOACICA'!$1:$1,"Canal C*",'M. CÁL. CANAIS BOACICA'!36:36),SUMIF('M. CÁL. CANAIS BOACICA'!$1:$1,$E$109,'M. CÁL. CANAIS BOACICA'!36:36)) -> 652.903098 | I117: =VLOOKUP(G117,'C.C.U'!D:L,4,0) -> 3.0725 | J117: =VLOOKUP(G117,'C.C.U'!D:L,7,0) -> 3.718045984 | K117: =ROUND(J117*H117,2) -> 2427.52
A118: 6.5.1.1.2 | B118: 6 | C118: =ROW()-ROW(C114) -> 4 | D118: =D114&"."&C118 -> 6.5.1.1.2.4 | E118: TRANSPORTE COM CAMINHÃO BASCULANTE DE 6 M3, EM VIA URBANA EM REVESTIMENTO PRIMÁRIO | F118: m³XKm | G118: CAC-007 | H118: =IF($E$109="GERAL",SUMIF('M. CÁL. CANAIS BOACICA'!$1:$1,"Canal C*",'M. CÁL. CANAIS BOACICA'!37:37),SUMIF('M. CÁL. CANAIS BOACICA'!$1:$1,$E$109,'M. CÁL. CANAIS BOACICA'!37:37)) -> 6529.03098 | I118: =VLOOKUP(G118,'C.C.U'!D:L,4,0) -> 1.23 | J118: =VLOOKUP(G118,'C.C.U'!D:L,7,0) -> 1.488428498 | K118: =ROUND(J118*H118,2) -> 9718
A119: 6.5.1.1 | B119: 6 | C119: 3 | D119: =$D$111&"."&C119 -> 6.5.1.1.3 | E119: RETIRADA SOLO IMPRÓPRIO | K119: =SUM(K120:K122) -> 57740.23
A120: 6.5.1.1.3 | B120: 7 | C120: =ROW()-ROW(C119) -> 1 | D120: =D119&"."&C120 -> 6.5.1.1.3.1 | E120: ESCAVACAO MECANICA, A CEU ABERTO, EM MATERIAL DE 1A CATEGORIA, COM RETROESCAVADEIRA | F120: m³ | G120: CAC-014 | H120: =IF($E$109="GERAL",SUMIF('M. CÁL. CANAIS BOACICA'!$1:$1,"Canal C*",'M. CÁL. CANAIS BOACICA'!38:38),SUMIF('M. CÁL. CANAIS BOACICA'!$1:$1,$E$109,'M. CÁL. CANAIS BOACICA'!38:38)) -> 3077.971747 | I120: =VLOOKUP(G120,'C.C.U'!D:L,4,0) -> 1.863148 | J120: =VLOOKUP(G120,'C.C.U'!D:L,7,0) -> 2.254603723 | K120: =ROUND(J120*H120,2) -> 6939.61
A121: 6.5.1.1.3 | B121: 7 | C121: =ROW()-ROW(C119) -> 2 | D121: =D119&"."&C121 -> 6.5.1.1.3.2 | E121: CARGA E DESCARGA MECANICA DE SOLO UTILIZANDO CAMINHAO BASCULANTE 6,0M3 | F121: m³ | G121: CAC-006 | H121: =IF($E$109="GERAL",SUMIF('M. CÁL. CANAIS BOACICA'!$1:$1,"Canal C*",'M. CÁL. CANAIS BOACICA'!39:39),SUMIF('M. CÁL. CANAIS BOACICA'!$1:$1,$E$109,'M. CÁL. CANAIS BOACICA'!39:39)) -> 3077.971747 | I121: ='C.C.U'!$G$196 -> 1.338968 | J121: ='C.C.U'!$J$196 -> 1.620291162 | K121: =ROUND(J121*H121,2) -> 4987.21
A122: 6.5.1.1.3 | B122: 7 | C122: =ROW()-ROW(C119) -> 3 | D122: =D119&"."&C122 -> 6.5.1.1.3.3 | E122: TRANSPORTE COM CAMINHÃO BASCULANTE DE 6 M3, EM VIA URBANA EM REVESTIMENTO PRIMÁRIO | F122: m³XKm | G122: CAC-007 | H122: =IF($E$109="GERAL",SUMIF('M. CÁL. CANAIS BOACICA'!$1:$1,"Canal C*",'M. CÁL. CANAIS BOACICA'!40:40),SUMIF('M. CÁL. CANAIS BOACICA'!$1:$1,$E$109,'M. CÁL. CANAIS BOACICA'!40:40)) -> 30779.71747 | I122: =VLOOKUP(G122,'C.C.U'!D:L,4,0) -> 1.23 | J122: =VLOOKUP(G122,'C.C.U'!D:L,7,0) -> 1.488428498 | K122: =ROUND(J122*H122,2) -> 45813.41
A123: 6.5.1.1 | B123: 6 | C123: 4 | D123: =$D$111&"."&C123 -> 6.5.1.1.4 | E123: RECOMPOSIÇÃO GEOMETRIA DO CANAL | K123: =SUM(K124:K126) -> 415988.32
A124: 6.5.1.1.4 | B124: 7 | C124: =ROW()-ROW(C123) -> 1 | D124: =D123&"."&C124 -> 6.5.1.1.4.1 | E124: TRANSPORTE COM CAMINHÃO BASCULANTE DE 6 M3, EM VIA URBANA EM REVESTIMENTO PRIMÁRIO | F124: m³XKm | G124: CAC-007 | H124: =H126*5 -> 14367.32389 | I124: =VLOOKUP(G124,'C.C.U'!D:L,4,0) -> 1.23 | J124: =VLOOKUP(G124,'C.C.U'!D:L,7,0) -> 1.488428498 | K124: =ROUND(J124*H124,2) -> 21384.73
C125: 4 | D125: =D123&"."&C125 -> 6.5.1.1.4.4 | E125: PPREPARO E EXECUÇÃO DE SOLO-CIMENTO TRAÇO 1:12 EM VOLUME, (CIMENTO/ARENOSO), COM COMPACTAÇÃO E ESPALHAMENTO, PARA SUPORTE DE FUNDAÇÕES, INCLUSIVE CIMENTO E ARENOSO COMERCIAL | F125: m³ | G125: CAC-018 | H125: =IF($E$109="GERAL",SUMIF('M. CÁL. CANAIS BOACICA'!$1:$1,"Canal C*",'M. CÁL. CANAIS BOACICA'!41:41),SUMIF('M. CÁL. CANAIS BOACICA'!$1:$1,$E$109,'M. CÁL. CANAIS BOACICA'!41:41)) -> 932.7187114 | I125: =VLOOKUP(G125,'C.C.U'!D:L,4,0) -> 251.1912 | J125: =VLOOKUP(G125,'C.C.U'!D:L,7,0) -> 303.9675939 | K125: =ROUND(J125*H125,2) -> 283516.26
A126: 6.5.1.1.4 | B126: 7 | C126: =ROW()-ROW(C123) -> 3 | D126: =D123&"."&C126 -> 6.5.1.1.4.3 | E126: ATERRO MANUAL COM MATERIAL DE EMPRÉSTIMO, COMPACTAÇÃO MECANIZADA E REGULARIZAÇÃO DO TALUDE | F126: m² | G126: CAC-015 | H126: =IF($E$109="GERAL",SUMIF('M. CÁL. CANAIS BOACICA'!$1:$1,"Canal C*",'M. CÁL. CANAIS BOACICA'!42:42),SUMIF('M. CÁL. CANAIS BOACICA'!$1:$1,$E$109,'M. CÁL. CANAIS BOACICA'!42:42)) -> 2873.464778 | I126: =VLOOKUP(G126,'C.C.U'!D:L,4,0) -> 31.94742 | J126: =VLOOKUP(G126,'C.C.U'!D:L,7,0) -> 38.65971574 | K126: =ROUND(J126*H126,2) -> 111087.33
A127: 6.5.1.1 | B127: 6 | C127: 5 | D127: =$D$111&"."&C127 -> 6.5.1.1.5 | E127: ASSENTAMENTE DE MANTA PEAD | K127: =SUM(K128:K130) -> 339293.29
A128: 6.5.1.1.5 | B128: 7 | C128: =ROW()-ROW(C127) -> 1 | D128: =D127&"."&C128 -> 6.5.1.1.5.1 | E128: ESCAVAÇÃO MANUAL DE VALAS | F128: m³ | G128: CAC-022 | H128: =IF($E$109="GERAL",SUMIF('M. CÁL. CANAIS BOACICA'!$1:$1,"Canal C*",'M. CÁL. CANAIS BOACICA'!43:43),SUMIF('M. CÁL. CANAIS BOACICA'!$1:$1,$E$109,'M. CÁL. CANAIS BOACICA'!43:43)) -> 216.6672 | I128: =VLOOKUP(G128,'C.C.U'!D:L,4,0) -> 56.57 | J128: =VLOOKUP(G128,'C.C.U'!D:L,7,0) -> 68.45560986 | K128: =ROUND(J128*H128,2) -> 14832.09
A129: 6.5.1.1.5 | B129: 7 | C129: =ROW()-ROW(C127) -> 2 | D129: =D127&"."&C129 -> 6.5.1.1.5.2 | E129: FORNECIMENTO E INSTALAÇÃO DE GEOMEMBRANA TEXTURIZADA EM AMBAS AS FACES, ESP. = 1,00 MM | F129: m² | G129: CAC-017 | H129: =IF($E$109="GERAL",SUMIF('M. CÁL. CANAIS BOACICA'!$1:$1,"Canal C*",'M. CÁL. CANAIS BOACICA'!44:44),SUMIF('M. CÁL. CANAIS BOACICA'!$1:$1,$E$109,'M. CÁL. CANAIS BOACICA'!44:44)) -> 11493.85911 | I129: =VLOOKUP(G129,'C.C.U'!D:L,4,0) -> 22.9424636 | J129: =VLOOKUP(G129,'C.C.U'!D:L,7,0) -> 27.76277775 | K129: =ROUND(J129*H129,2) -> 319101.46
A130: 6.5.1.1.5 | B130: 7 | C130: =ROW()-ROW(C127) -> 3 | D130: =D127&"."&C130 -> 6.5.1.1.5.3 | E130: REATERRO COM COMPACTACAO MECANIZADA DAS VALAS | F130: m³ | G130: CAC-012 | H130: =IF($E$109="GERAL",SUMIF('M. CÁL. CANAIS BOACICA'!$1:$1,"Canal C*",'M. CÁL. CANAIS BOACICA'!45:45),SUMIF('M. CÁL. CANAIS BOACICA'!$1:$1,$E$109,'M. CÁL. CANAIS BOACICA'!45:45)) -> 216.6672 | I130: =VLOOKUP(G130,'C.C.U'!D:L,4,0) -> 20.44222 | J130: =VLOOKUP(G130,'C.C.U'!D:L,7,0) -> 24.7372218 | K130: =ROUND(J130*H130,2) -> 5359.74
A131: 6.5.1.1 | B131: 6 | C131: 6 | D131: =$D$111&"."&C131 -> 6.5.1.1.6 | E131: REVESTIMENTO CANAL FINAL | K131: =SUM(K132:K133) -> 324809.05
A132: 6.5.1.1.6 | B132: 7 | C132: =ROW()-ROW(C131) -> 1 | D132: =D131&"."&C132 -> 6.5.1.1.6.1 | E132: ARMACAO EM TELA DE ACO SOLDADA NERVURADA Q-138, ACO CA-60, 4,2MM, MALHA 15X15 CM PARA REVESTIMENTO DO CANAL TRAPEZOIDAL | F132: m² | G132: CAC-028 | H132: =IF($E$109="GERAL",SUMIF('M. CÁL. CANAIS BOACICA'!$1:$1,"Canal C*",'M. CÁL. CANAIS BOACICA'!46:46),SUMIF('M. CÁL. CANAIS BOACICA'!$1:$1,$E$109,'M. CÁL. CANAIS BOACICA'!46:46)) -> 9327.187114 | I132: =VLOOKUP(G132,'C.C.U'!D:L,4,0) -> 9.1444 | J132: =VLOOKUP(G132,'C.C.U'!D:L,7,0) -> 11.06567931 | K132: =ROUND(J132*H132,2) -> 103211.66
A133: 6.5.1.1.6 | B133: 7 | C133: =ROW()-ROW(C131) -> 2 | D133: =D131&"."&C133 -> 6.5.1.1.6.2 | E133: CONCRETO FCK=20MPA PARA ESTRUTURAS, INCLUINDO PREPARO MECANICO, LANCAMENTO E ADENSAMENTO | F133: m³ | G133: CAC-033 | H133: =IF($E$109="GERAL",SUMIF('M. CÁL. CANAIS BOACICA'!$1:$1,"Canal C*",'M. CÁL. CANAIS BOACICA'!47:47),SUMIF('M. CÁL. CANAIS BOACICA'!$1:$1,$E$109,'M. CÁL. CANAIS BOACICA'!47:47)) -> 466.3593557 | I133: =VLOOKUP(G133,'C.C.U'!D:L,4,0) -> 392.664 | J133: =VLOOKUP(G133,'C.C.U'!D:L,7,0) -> 475.1644616 | K133: =ROUND(J133*H133,2) -> 221597.39
A134: 6 | B134: 2 | C134: =RIGHT(D134,LEN(D134)-SEARCH(".",D134,1)) -> 6 | D134: 6.6 | E134: CANAL CLII-13 e DERIVADOS
A135: 6.6 | B135: 3 | C135: 1 | D135: =D134&"."&C135 -> 6.6.1 | E135: OBRAS EM CANAL
A136: 6.6.1 | B136: 4 | C136: 1 | D136: =D135&"."&C136 -> 6.6.1.1 | E136: ="TRECHO TRAPEZOIDAL - RECUPERAÇÃO GEOMETRICA DA SEÇÃO COM SOLO-CIMENTO, MANTA DE PEAD 1 MM, TELA DE AÇO, 5 CM CONCRETO - L = "&H138&" m" -> TRECHO TRAPEZOIDAL - RECUPERAÇÃO GEOMETRICA DA SEÇÃO COM SOLO-CIMENTO, MANTA DE PEAD 1 MM, TELA DE AÇO, 5 CM CONCRETO - L = 1674,12 m | K136: =K137+K139+K144+K148+K152+K156 -> 754093.05
A137: 6.6.1.1 | B137: 5 | C137: 1 | D137: =D136&"."&C137 -> 6.6.1.1.1 | E137: LOCAÇÃO E NIVELAMENTO COM EQUIPAMENTO TOPOGRÁFICO | K137: =K138 -> 4062.38
A138: 6.6.1.1.1 | B138: 6 | C138: =ROW()-ROW(C137) -> 1 | D138: =D137&"."&C138 -> 6.6.1.1.1.1 | E138: LOCACAO E NIVELAMENTO DE REDE DE CANAIS COLETORES DE IRRIGAÇÃO COM AUXILIO DE EQUIPAMENTO TOPOGRAFICO | F138: m | G138: CAC-002 | H138: =IF($E$134="GERAL",SUMIF('M. CÁL. CANAIS BOACICA'!$1:$1,"Canal C*",'M. CÁL. CANAIS BOACICA'!33:33),SUMIF('M. CÁL. CANAIS BOACICA'!$1:$1,$E$134,'M. CÁL. CANAIS BOACICA'!33:33)) -> 1674.12 | I138: =VLOOKUP(G138,'C.C.U'!D:L,4,0) -> 2.00526 | J138: =VLOOKUP(G138,'C.C.U'!D:L,7,0) -> 2.426574089 | K138: =ROUND(J138*H138,2) -> 4062.38
A139: 6.6.1.1 | B139: 5 | C139: 2 | D139: =D136&"."&C139 -> 6.6.1.1.2 | E139: REMOÇÃO DA ESTRUTURA (REVESTIMENTO) EXISTENTE | K139: =K140+K141+K142+K143 -> 33357.86
A140: 6.6.1.1.2 | B140: 6 | C140: =ROW()-ROW(C139) -> 1 | D140: =D139&"."&C140 -> 6.6.1.1.2.1 | E140: LIMPEZA MANUAL DE VEGETAÇÃO EM TERRENO COM ENXADA | F140: m² | G140: CAC-001 | H140: =IF($E$134="GERAL",SUMIF('M. CÁL. CANAIS BOACICA'!$1:$1,"Canal C*",'M. CÁL. CANAIS BOACICA'!34:34),SUMIF('M. CÁL. CANAIS BOACICA'!$1:$1,$E$134,'M. CÁL. CANAIS BOACICA'!34:34)) -> 1674.12 | I140: =VLOOKUP(G140,'C.C.U'!D:L,4,0) -> 2.28 | J140: =VLOOKUP(G140,'C.C.U'!D:L,7,0) -> 2.759038191 | K140: =ROUND(J140*H140,2) -> 4618.96
A141: 6.6.1.1.2 | B141: 6 | C141: =ROW()-ROW(C139) -> 2 | D141: =D139&"."&C141 -> 6.6.1.1.2.2 | E141: DEMOLIÇÃO DE PLACAS EM CONCRETO ( MECANICAMENTE) | F141: m³ | G141: CAC-003 | H141: =IF($E$134="GERAL",SUMIF('M. CÁL. CANAIS BOACICA'!$1:$1,"Canal C*",'M. CÁL. CANAIS BOACICA'!35:35),SUMIF('M. CÁL. CANAIS BOACICA'!$1:$1,$E$134,'M. CÁL. CANAIS BOACICA'!35:35)) -> 412.0175265 | I141: =VLOOKUP(G141,'C.C.U'!D:L,4,0) -> 42.2685 | J141: =VLOOKUP(G141,'C.C.U'!D:L,7,0) -> 51.14930079 | K141: =ROUND(J141*H141,2) -> 21074.41
A142: 6.6.1.1.2 | B142: 6 | C142: =ROW()-ROW(C139) -> 3 | D142: =D139&"."&C142 -> 6.6.1.1.2.3 | E142: CARGA E DESCARGA MECANIZADAS DE ENTULHO EM CAMINHAO BASCULANTE 6 M3 | F142: m³ | G142: CAC-005 | H142: =IF($E$134="GERAL",SUMIF('M. CÁL. CANAIS BOACICA'!$1:$1,"Canal C*",'M. CÁL. CANAIS BOACICA'!36:36),SUMIF('M. CÁL. CANAIS BOACICA'!$1:$1,$E$134,'M. CÁL. CANAIS BOACICA'!36:36)) -> 412.0175265 | I142: =VLOOKUP(G142,'C.C.U'!D:L,4,0) -> 3.0725 | J142: =VLOOKUP(G142,'C.C.U'!D:L,7,0) -> 3.718045984 | K142: =ROUND(J142*H142,2) -> 1531.9
A143: 6.6.1.1.2 | B143: 6 | C143: =ROW()-ROW(C139) -> 4 | D143: =D139&"."&C143 -> 6.6.1.1.2.4 | E143: TRANSPORTE COM CAMINHÃO BASCULANTE DE 6 M3, EM VIA URBANA EM REVESTIMENTO PRIMÁRIO | F143: m³XKm | G143: CAC-007 | H143: =IF($E$134="GERAL",SUMIF('M. CÁL. CANAIS BOACICA'!$1:$1,"Canal C*",'M. CÁL. CANAIS BOACICA'!37:37),SUMIF('M. CÁL. CANAIS BOACICA'!$1:$1,$E$134,'M. CÁL. CANAIS BOACICA'!37:37)) -> 4120.175265 | I143: =VLOOKUP(G143,'C.C.U'!D:L,4,0) -> 1.23 | J143: =VLOOKUP(G143,'C.C.U'!D:L,7,0) -> 1.488428498 | K143: =ROUND(J143*H143,2) -> 6132.59
A144: 6.6.1.1 | B144: 6 | C144: 3 | D144: =$D$136&"."&C144 -> 6.6.1.1.3 | E144: RETIRADA SOLO IMPRÓPRIO | K144: =SUM(K145:K147) -> 36437.23
A145: 6.6.1.1.3 | B145: 7 | C145: =ROW()-ROW(C144) -> 1 | D145: =D144&"."&C145 -> 6.6.1.1.3.1 | E145: ESCAVACAO MECANICA, A CEU ABERTO, EM MATERIAL DE 1A CATEGORIA, COM RETROESCAVADEIRA | F145: m³ | G145: CAC-014 | H145: =IF($E$134="GERAL",SUMIF('M. CÁL. CANAIS BOACICA'!$1:$1,"Canal C*",'M. CÁL. CANAIS BOACICA'!38:38),SUMIF('M. CÁL. CANAIS BOACICA'!$1:$1,$E$134,'M. CÁL. CANAIS BOACICA'!38:38)) -> 1942.368339 | I145: =VLOOKUP(G145,'C.C.U'!D:L,4,0) -> 1.863148 | J145: =VLOOKUP(G145,'C.C.U'!D:L,7,0) -> 2.254603723 | K145: =ROUND(J145*H145,2) -> 4379.27
A146: 6.6.1.1.3 | B146: 7 | C146: =ROW()-ROW(C144) -> 2 | D146: =D144&"."&C146 -> 6.6.1.1.3.2 | E146: CARGA E DESCARGA MECANICA DE SOLO UTILIZANDO CAMINHAO BASCULANTE 6,0M3 | F146: m³ | G146: CAC-006 | H146: =IF($E$134="GERAL",SUMIF('M. CÁL. CANAIS BOACICA'!$1:$1,"Canal C*",'M. CÁL. CANAIS BOACICA'!39:39),SUMIF('M. CÁL. CANAIS BOACICA'!$1:$1,$E$134,'M. CÁL. CANAIS BOACICA'!39:39)) -> 1942.368339 | I146: ='C.C.U'!$G$196 -> 1.338968 | J146: ='C.C.U'!$J$196 -> 1.620291162 | K146: =ROUND(J146*H146,2) -> 3147.2
A147: 6.6.1.1.3 | B147: 7 | C147: =ROW()-ROW(C144) -> 3 | D147: =D144&"."&C147 -> 6.6.1.1.3.3 | E147: TRANSPORTE COM CAMINHÃO BASCULANTE DE 6 M3, EM VIA URBANA EM REVESTIMENTO PRIMÁRIO | F147: m³XKm | G147: CAC-007 | H147: =IF($E$134="GERAL",SUMIF('M. CÁL. CANAIS BOACICA'!$1:$1,"Canal C*",'M. CÁL. CANAIS BOACICA'!40:40),SUMIF('M. CÁL. CANAIS BOACICA'!$1:$1,$E$134,'M. CÁL. CANAIS BOACICA'!40:40)) -> 19423.68339 | I147: =VLOOKUP(G147,'C.C.U'!D:L,4,0) -> 1.23 | J147: =VLOOKUP(G147,'C.C.U'!D:L,7,0) -> 1.488428498 | K147: =ROUND(J147*H147,2) -> 28910.76
A148: 6.6.1.1 | B148: 6 | C148: 4 | D148: =$D$136&"."&C148 -> 6.6.1.1.4 | E148: RECOMPOSIÇÃO GEOMETRIA DO CANAL | K148: =SUM(K149:K151) -> 262188.73
A149: 6.6.1.1.4 | B149: 7 | C149: =ROW()-ROW(C148) -> 1 | D149: =D148&"."&C149 -> 6.6.1.1.4.1 | E149: TRANSPORTE COM CAMINHÃO BASCULANTE DE 6 M3, EM VIA URBANA EM REVESTIMENTO PRIMÁRIO | F149: m³XKm | G149: CAC-007 | H149: =H151*5 -> 9031.57583 | I149: =VLOOKUP(G149,'C.C.U'!D:L,4,0) -> 1.23 | J149: =VLOOKUP(G149,'C.C.U'!D:L,7,0) -> 1.488428498 | K149: =ROUND(J149*H149,2) -> 13442.85
C150: 4 | D150: =D148&"."&C150 -> 6.6.1.1.4.4 | E150: PPREPARO E EXECUÇÃO DE SOLO-CIMENTO TRAÇO 1:12 EM VOLUME, (CIMENTO/ARENOSO), COM COMPACTAÇÃO E ESPALHAMENTO, PARA SUPORTE DE FUNDAÇÕES, INCLUSIVE CIMENTO E ARENOSO COMERCIAL | F150: m³ | G150: CAC-018 | H150: =IF($E$134="GERAL",SUMIF('M. CÁL. CANAIS BOACICA'!$1:$1,"Canal C*",'M. CÁL. CANAIS BOACICA'!41:41),SUMIF('M. CÁL. CANAIS BOACICA'!$1:$1,$E$134,'M. CÁL. CANAIS BOACICA'!41:41)) -> 588.5964664 | I150: =VLOOKUP(G150,'C.C.U'!D:L,4,0) -> 251.1912 | J150: =VLOOKUP(G150,'C.C.U'!D:L,7,0) -> 303.9675939 | K150: =ROUND(J150*H150,2) -> 178914.25
A151: 6.6.1.1.4 | B151: 7 | C151: =ROW()-ROW(C148) -> 3 | D151: =D148&"."&C151 -> 6.6.1.1.4.3 | E151: ATERRO MANUAL COM MATERIAL DE EMPRÉSTIMO, COMPACTAÇÃO MECANIZADA E REGULARIZAÇÃO DO TALUDE | F151: m² | G151: CAC-015 | H151: =IF($E$134="GERAL",SUMIF('M. CÁL. CANAIS BOACICA'!$1:$1,"Canal C*",'M. CÁL. CANAIS BOACICA'!42:42),SUMIF('M. CÁL. CANAIS BOACICA'!$1:$1,$E$134,'M. CÁL. CANAIS BOACICA'!42:42)) -> 1806.315166 | I151: =VLOOKUP(G151,'C.C.U'!D:L,4,0) -> 31.94742 | J151: =VLOOKUP(G151,'C.C.U'!D:L,7,0) -> 38.65971574 | K151: =ROUND(J151*H151,2) -> 69831.63
A152: 6.6.1.1 | B152: 6 | C152: 5 | D152: =$D$136&"."&C152 -> 6.6.1.1.5 | E152: ASSENTAMENTE DE MANTA PEAD | K152: =SUM(K153:K155) -> 213074.59
A153: 6.6.1.1.5 | B153: 7 | C153: =ROW()-ROW(C152) -> 1 | D153: =D152&"."&C153 -> 6.6.1.1.5.1 | E153: ESCAVAÇÃO MANUAL DE VALAS | F153: m³ | G153: CAC-022 | H153: =IF($E$134="GERAL",SUMIF('M. CÁL. CANAIS BOACICA'!$1:$1,"Canal C*",'M. CÁL. CANAIS BOACICA'!43:43),SUMIF('M. CÁL. CANAIS BOACICA'!$1:$1,$E$134,'M. CÁL. CANAIS BOACICA'!43:43)) -> 133.9296 | I153: =VLOOKUP(G153,'C.C.U'!D:L,4,0) -> 56.57 | J153: =VLOOKUP(G153,'C.C.U'!D:L,7,0) -> 68.45560986 | K153: =ROUND(J153*H153,2) -> 9168.23
A154: 6.6.1.1.5 | B154: 7 | C154: =ROW()-ROW(C152) -> 2 | D154: =D152&"."&C154 -> 6.6.1.1.5.2 | E154: FORNECIMENTO E INSTALAÇÃO DE GEOMEMBRANA TEXTURIZADA EM AMBAS AS FACES, ESP. = 1,00 MM | F154: m² | G154: CAC-017 | H154: =IF($E$134="GERAL",SUMIF('M. CÁL. CANAIS BOACICA'!$1:$1,"Canal C*",'M. CÁL. CANAIS BOACICA'!44:44),SUMIF('M. CÁL. CANAIS BOACICA'!$1:$1,$E$134,'M. CÁL. CANAIS BOACICA'!44:44)) -> 7225.260664 | I154: =VLOOKUP(G154,'C.C.U'!D:L,4,0) -> 22.9424636 | J154: =VLOOKUP(G154,'C.C.U'!D:L,7,0) -> 27.76277775 | K154: =ROUND(J154*H154,2) -> 200593.31
A155: 6.6.1.1.5 | B155: 7 | C155: =ROW()-ROW(C152) -> 3 | D155: =D152&"."&C155 -> 6.6.1.1.5.3 | E155: REATERRO COM COMPACTACAO MECANIZADA DAS VALAS | F155: m³ | G155: CAC-012 | H155: =IF($E$134="GERAL",SUMIF('M. CÁL. CANAIS BOACICA'!$1:$1,"Canal C*",'M. CÁL. CANAIS BOACICA'!45:45),SUMIF('M. CÁL. CANAIS BOACICA'!$1:$1,$E$134,'M. CÁL. CANAIS BOACICA'!45:45)) -> 133.9296 | I155: =VLOOKUP(G155,'C.C.U'!D:L,4,0) -> 20.44222 | J155: =VLOOKUP(G155,'C.C.U'!D:L,7,0) -> 24.7372218 | K155: =ROUND(J155*H155,2) -> 3313.05
A156: 6.6.1.1 | B156: 6 | C156: 6 | D156: =$D$136&"."&C156 -> 6.6.1.1.6 | E156: REVESTIMENTO CANAL FINAL | K156: =SUM(K157:K158) -> 204972.26
A157: 6.6.1.1.6 | B157: 7 | C157: =ROW()-ROW(C156) -> 1 | D157: =D156&"."&C157 -> 6.6.1.1.6.1 | E157: ARMACAO EM TELA DE ACO SOLDADA NERVURADA Q-138, ACO CA-60, 4,2MM, MALHA 15X15 CM PARA REVESTIMENTO DO CANAL TRAPEZOIDAL | F157: m² | G157: CAC-028 | H157: =IF($E$134="GERAL",SUMIF('M. CÁL. CANAIS BOACICA'!$1:$1,"Canal C*",'M. CÁL. CANAIS BOACICA'!46:46),SUMIF('M. CÁL. CANAIS BOACICA'!$1:$1,$E$134,'M. CÁL. CANAIS BOACICA'!46:46)) -> 5885.964664 | I157: =VLOOKUP(G157,'C.C.U'!D:L,4,0) -> 9.1444 | J157: =VLOOKUP(G157,'C.C.U'!D:L,7,0) -> 11.06567931 | K157: =ROUND(J157*H157,2) -> 65132.2
A158: =IFERROR(LEFT(D158,LEN(D158)-(LEN(C158)+1)),0) -> 6.6.1.1.6 | B158: 7 | C158: =ROW()-ROW(C156) -> 2 | D158: =D156&"."&C158 -> 6.6.1.1.6.2 | E158: CONCRETO FCK=20MPA PARA ESTRUTURAS, INCLUINDO PREPARO MECANICO, LANCAMENTO E ADENSAMENTO | F158: m³ | G158: CAC-033 | H158: =IF($E$134="GERAL",SUMIF('M. CÁL. CANAIS BOACICA'!$1:$1,"Canal C*",'M. CÁL. CANAIS BOACICA'!47:47),SUMIF('M. CÁL. CANAIS BOACICA'!$1:$1,$E$134,'M. CÁL. CANAIS BOACICA'!47:47)) -> 294.2982332 | I158: =VLOOKUP(G158,'C.C.U'!D:L,4,0) -> 392.664 | J158: =VLOOKUP(G158,'C.C.U'!D:L,7,0) -> 475.1644616 | K158: =ROUND(J158*H158,2) -> 139840.06
J159: TOTAL | K159: =ROUND(SUM(K136+K111+K86+K61+K36+K11),2) -> 5641075.18

Sheet CRONOGRAMA
E1: Ministério do Desenvolvimento Regional - MDR
E2: Companhia de Desenvolvimento dos Vales do São Francisco e do Parnaíba
E3: 5ª Superintendência Regional
B5: CRONOGRAMA FÍSICO-FINANCEIRO
B8: ITEM | C8: ETAPA | D8: TOTAL (R$) (C/BDI) | E8: % | F8: PERÍODO (MESES) | X8: TOTAL
F9: 1 | G9: 2 | H9: 3 | I9: 4 | J9: 5 | K9: 6 | L9: =K9+1 -> 7 | M9: 8 | N9: 9 | O9: 10 | P9: 11 | Q9: 12 | R9: =Q9+1 -> 13 | S9: =R9+1 -> 14 | T9: =S9+1 -> 15 | U9: =T9+1 -> 16 | V9: =U9+1 -> 17 | W9: =V9+1 -> 18
B10: S E R V I Ç O S
B11: ='ORÇ. GERAL'!B8 -> 1 | C11: ='ORÇ. GERAL'!C8 -> SERVIÇOS GERAIS E DE APOIO | D11: ='ORÇ. GERAL'!D8 -> 148990.42 | E11: =D11 -> 148990.42 | F11: =ROUND(F12*$E$11,4) -> 40227.4134 | G11: 20083.9086 | H11: 5542.4436 | I11: 5542.4436 | J11: 5542.4436 | K11: 5542.4436 | L11: 5542.4436 | M11: 5542.4436 | N11: 5542.4436 | O11: 5542.4436 | P11: 5542.4436 | Q11: 5542.4436 | R11: 5542.4436 | S11: 5542.4436 | T11: 5542.4436 | U11: 5542.4436 | V11: 5542.4436 | W11: 5542.4436 | X11: =SUM(F11:W11) -> 148990.4196
E12: =ROUND(E11/$D$38,4) -> 0.0091 | F12: 0.27 | G12: 0.1348 | H12: 0.0372 | I12: 0.0372 | J12: 0.0372 | K12: 0.0372 | L12: 0.0372 | M12: 0.0372 | N12: 0.0372 | O12: 0.0372 | P12: 0.0372 | Q12: 0.0372 | R12: 0.0372 | S12: 0.0372 | T12: 0.0372 | U12: 0.0372 | V12: 0.0372 | W12: 0.0372 | X12: =ROUND(X11/D11,4) -> 1
B13: ='ORÇ. GERAL'!B9 -> 2 | C13: ='ORÇ. GERAL'!C9 -> ADMINISTRAÇÃO LOCAL / MANUTENÇÃO DO CANTEIRO DE OBRAS | D13: ='ORÇ. GERAL'!D9 -> 732505.03 | E13: =D13 -> 732505.03 | F13: =ROUND(F14*$E$13,4) -> 14650.1006 | G13: =ROUND(G14*$E$13,4) -> 66218.4547 | H13: 40727.2797 | I13: 40727.2797 | J13: 40727.2797 | K13: 40727.2797 | L13: 40727.2797 | M13: 40727.2797 | N13: 40727.2797 | O13: 40727.2797 | P13: 40727.2797 | Q13: 40727.2797 | R13: 40727.2797 | S13: 40727.2797 | T13: 40727.2797 | U13: 40727.2797 | V13: 40727.2797 | W13: 40727.2797 | X13: =SUM(F13:W13) -> 732505.0305
E14: =ROUND(E13/$D$38,4) -> 0.0449 | F14: 0.02 | G14: 0.0904 | H14: 0.0556 | I14: 0.0556 | J14: 0.0556 | K14: 0.0556 | L14: 0.0556 | M14: 0.0556 | N14: 0.0556 | O14: 0.0556 | P14: 0.0556 | Q14: 0.0556 | R14: 0.0556 | S14: 0.0556 | T14: 0.0556 | U14: 0.0556 | V14: 0.0556 | W14: 0.0556 | X14: =ROUND(X13/D13,4) -> 1
B15: ='ORÇ. GERAL'!B10 -> 3 | C15: ='ORÇ. GERAL'!C10 -> RECUPERAÇÃO E ADEQUAÇÃO DO SISTEMA DE CONDUÇÃO (CANAL DE IRRIGAÇÃO) - 4933 M CANAL ADUTOR LESTE - PERÍMETRO ITIÚBA
C17: ='ORÇ. GERAL'!C11 -> CANAL ADUTOR LESTE
C18: ='ORÇ. GERAL'!C12 -> CANAL TRAPEZOIDAL - 4.933,41 M | D18: ='ORÇ. GERAL'!D12 -> 3288319.96 | E18: =D18 -> 3288319.96 | F18: =ROUND(F19*$E$18,4) -> 0 | G18: =ROUND(G19*$E$18,4) -> 205519.9975 | H18: 205519.9975 | I18: 205519.9975 | J18: 205519.9975 | K18: 205519.9975 | L18: 205519.9975 | M18: 205519.9975 | N18: 205519.9975 | O18: 205519.9975 | P18: 205519.9975 | Q18: 205519.9975 | R18: 205519.9975 | S18: 205519.9975 | T18: 205519.9975 | U18: 205519.9975 | V18: 205519.9975 | W18: 0 | X18: =SUM(F18:W18) -> 3288319.96
E19: =ROUND(E18/$D$38,4) -> 0.2014 | F19: 0 | G19: 0.0625 | H19: 0.0625 | I19: 0.0625 | J19: 0.0625 | K19: 0.0625 | L19: 0.0625 | M19: 0.0625 | N19: 0.0625 | O19: 0.0625 | P19: 0.0625 | Q19: 0.0625 | R19: 0.0625 | S19: 0.0625 | T19: 0.0625 | U19: 0.0625 | V19: 0.0625 | X19: =ROUND(X18/D18,4) -> 1
B20: ='ORÇ. GERAL'!B13 -> 4 | C20: ='ORÇ. GERAL'!C13 -> RECUPERAÇÃO PARCIAL DO DIQUE ITIÚBA
C22: ='ORÇ. GERAL'!C14 -> TRECHO I | D22: ='ORÇ. GERAL'!D14 -> 1410904.22 | E22: =D22 -> 1410904.22 | F22: =ROUND(F23*$E$22,4) -> 0 | G22: 0 | H22: 211635.633 | I22: 211635.633 | J22: 211635.633 | K22: 352726.055 | L22: 141090.422 | M22: 141090.422 | N22: 141090.422 | O22: 0 | P22: =ROUND(P23*$E$22,4) -> 0 | Q22: =ROUND(Q23*$E$22,4) -> 0 | R22: =ROUND(R23*$E$22,4) -> 0 | S22: 0 | T22: 0 | U22: 0 | V22: =ROUND(V23*$E$22,4) -> 0 | W22: =ROUND(W23*$E$22,4) -> 0 | X22: =SUM(F22:W22) -> 1410904.22
E23: =ROUND(E22/$D$38,4) -> 0.0864 | F23: 0 | G23: 0 | H23: 0.15 | I23: 0.15 | J23: 0.15 | K23: 0.25 | L23: 0.1 | M23: 0.1 | N23: 0.1 | O23: 0 | P23: 0 | Q23: 0 | R23: 0 | S23: 0 | T23: 0 | U23: 0 | V23: 0 | W23: 0 | X23: =ROUND(X22/D22,4) -> 1
C24: ='ORÇ. GERAL'!C15 -> TRECHO II | D24: ='ORÇ. GERAL'!D15 -> 2327306.76 | E24: =D24 -> 2327306.76 | F24: =ROUND(F25*$E$24,4) -> 0 | G24: =ROUND(G25*$E$24,4) -> 0 | H24: 349096.014 | I24: 349096.014 | J24: 349096.014 | K24: 581826.69 | L24: 232730.676 | M24: 232730.676 | N24: 232730.676 | O24: 0 | P24: 0 | Q24: 0 | R24: 0 | S24: 0 | T24: 0 | U24: 0 | V24: 0 | W24: 0 | X24: =SUM(F24:W24) -> 2327306.76
E25: =ROUND(E24/$D$38,4) -> 0.1425 | F25: 0 | G25: 0 | H25: 0.15 | I25: 0.15 | J25: 0.15 | K25: 0.25 | L25: 0.1 | M25: 0.1 | N25: 0.1 | O25: 0 | P25: 0 | Q25: 0 | R25: 0 | S25: 0 | T25: 0 | U25: 0 | V25: 0 | W25: 0 | X25: =ROUND(X24/D24,4) -> 1
B27: ='ORÇ. GERAL'!B16 -> 5 | C27: ='ORÇ. GERAL'!C16 -> RECUPERAÇÃO E ADEQUAÇÃO DO SISTEMA DE CONDUÇÃO - 4933 M CANAL P12 E TRIBUTÁRIOS PERÍMETRO ITIÚBA
C29: ='ORÇ. GERAL'!C18 -> CANAL TRAPEZOIDAL - 5251,72 M | D29: ='ORÇ. GERAL'!D18 -> 2439126.4 | E29: =D29 -> 2439126.4 | F29: =ROUND(F30*$E$29,4) -> 0 | G29: =ROUND(G30*$E$29,4) -> 0 | H29: 152445.4 | I29: 152445.4 | J29: 152445.4 | K29: 152445.4 | L29: 152445.4 | M29: 152445.4 | N29: 152445.4 | O29: 152445.4 | P29: 152445.4 | Q29: 152445.4 | R29: 152445.4 | S29: 152445.4 | T29: 152445.4 | U29: 152445.4 | V29: 152445.4 | W29: 152445.4 | X29: =SUM(F29:W29) -> 2439126.4
E30: =ROUND(E29/$D$38,4) -> 0.1494 | F30: 0 | G30: 0 | H30: 0.0625 | I30: 0.0625 | J30: 0.0625 | K30: 0.0625 | L30: 0.0625 | M30: 0.0625 | N30: 0.0625 | O30: 0.0625 | P30: 0.0625 | Q30: 0.0625 | R30: 0.0625 | S30: 0.0625 | T30: 0.0625 | U30: 0.0625 | V30: 0.0625 | W30: 0.0625 | X30: =ROUND(X29/D29,4) -> 1
C31: ='ORÇ. GERAL'!C19 -> RECONSTRUÇÃO DE CANAL COM A RETIRADA DE CANAL TRAPEZOIDAL EXISTENTE E EXECUÇÃO DE CANAL RETANGULAR EM CONCRETO ARMADO - 1.014,84 m | D31: ='ORÇ. GERAL'!D19 -> 338982.06 | E31: =D31 -> 338982.06 | F31: =ROUND(F32*$E$31,4) -> 0 | G31: =ROUND(G32*$E$31,4) -> 0 | H31: 0 | I31: 0 | J31: 0 | K31: 0 | L31: 0 | M31: 0 | N31: 33898.206 | O31: 33898.206 | P31: 33898.206 | Q31: 33898.206 | R31: 33898.206 | S31: 33898.206 | T31: 33898.206 | U31: 33898.206 | V31: 33898.206 | W31: 33898.206 | X31: =SUM(F31:W31) -> 338982.06
E32: =ROUND(E31/$D$38,4) -> 0.0208 | F32: 0 | G32: 0 | H32: 0 | I32: 0 | J32: 0 | K32: 0 | L32: 0 | M32: 0 | N32: 0.1 | O32: 0.1 | P32: 0.1 | Q32: 0.1 | R32: 0.1 | S32: 0.1 | T32: 0.1 | U32: 0.1 | V32: 0.1 | W32: 0.1 | X32: =ROUND(X31/D31,4) -> 1
B34: ='ORÇ. GERAL'!B20 -> 6 | C34: ='ORÇ. GERAL'!C20 -> RECUPERAÇÃO E ADEQUAÇÃO DO SISTEMA DE CONDUÇÃO (CANAL DE IRRIGAÇÃO) - PERÍMETRO BOACICA
C36: ='ORÇ. GERAL'!C21 -> CANAIS DE IRRIGAÇÃO PERÍMETRO IRRIGADO BOACICA - TOTAL 8.539,54 m ( CLI e CLII - E SEUS DERIVADOS) | D36: ='ORÇ. GERAL'!D21 -> 5641075.18 | E36: =D36 -> 5641075.18 | F36: =ROUND(F37*$E$36,4) -> 0 | G36: =ROUND(G37*$E$36,4) -> 352567.1988 | H36: 352567.1988 | I36: 352567.1988 | J36: 352567.1988 | K36: 352567.1988 | L36: 352567.1988 | M36: 352567.1988 | N36: 352567.1988 | O36: 352567.1988 | P36: 352567.1988 | Q36: 352567.1988 | R36: 352567.1988 | S36: 352567.1988 | T36: 352567.1988 | U36: 352567.1988 | V36: 352567.1988 | W36: 0 | X36: =SUM(F36:W36) -> 5641075.181
E37: =ROUND(E36/$D$38,4) -> 0.3455 | F37: 0 | G37: 0.0625 | H37: 0.0625 | I37: 0.0625 | J37: 0.0625 | K37: 0.0625 | L37: 0.0625 | M37: 0.0625 | N37: 0.0625 | O37: 0.0625 | P37: 0.0625 | Q37: 0.0625 | R37: 0.0625 | S37: 0.0625 | T37: 0.0625 | U37: 0.0625 | V37: 0.0625 | W37: 0 | X37: =ROUND(X36/D36,4) -> 1
B38: TOTAL GERAL (R$) | D38: =SUM(D11:D37) -> 16327210.03 | E38: =E24+E22+E18+E13+E11+E29+E31+E36 -> 16327210.03 | F38: 54877.514 | G38: 644389.5596 | H38: 1317533.967 | I38: 1317533.967 | J38: 1317533.967 | K38: 1691355.065 | L38: 1130623.418 | M38: 1130623.418 | N38: 1164521.624 | O38: 790700.5256 | P38: 790700.5256 | Q38: 790700.5256 | R38: 790700.5256 | S38: 790700.5256 | T38: 790700.5256 | U38: 790700.5256 | V38: 790700.5256 | W38: 232613.3293 | X38: 16327210.03
B39: TOTAL (%) | D39: 1 | E39: =E38/$D$38 -> 1 | F39: 0.003361107862 | G39: 0.03946721812 | H39: 0.08069559736 | I39: 0.08069559736 | J39: 0.08069559736 | K39: =K38/$D$38 -> 0.1035911868 | L39: =L38/$D$38 -> 0.06924780263 | M39: 0.06924780263 | N39: 0.07132398135 | O39: 0.04842839188 | P39: 0.04842839188 | Q39: 0.04842839188 | R39: =R38/$D$38 -> 0.04842839188 | S39: 0.04842839188 | T39: 0.04842839188 | U39: 0.04842839188 | V39: 0.04842839188 | W39: 0.01424697354 | X39: =X38/$D$38 -> 1
B40: TOTAL ACUMULADO(%) | F40: =F39 -> 0.003361107862 | G40: =G39+F40 -> 0.04282832599 | H40: 0.1235239233 | I40: 0.2042195207 | J40: 0.2849151181 | K40: 0.3885063049 | L40: 0.4577541075 | M40: 0.5270019101 | N40: 0.5983258915 | O40: 0.6467542834 | P40: 0.6951826752 | Q40: 0.7436110671 | R40: =R39+Q40 -> 0.792039459 | S40: =S39+R40 -> 0.8404678509 | T40: =T39+S40 -> 0.8888962428 | U40: =U39+T40 -> 0.9373246346 | V40: =V39+U40 -> 0.9857530265 | W40: =W39+V40 -> 1

Sheet M. CÁL. ADUTOR LESTE
A1: MEMÓRIA DE CÁLCULO CANALA ADUTOR LESTE
A7: CANAIS PRINCIPAIS | E7: ADUTOR LESTE | F7: ADUTOR LESTE | G7: ADUTOR LESTE | H7: ADUTOR LESTE | I7: ADUTOR LESTE | J7: ADUTOR LESTE | K7: CANAL P1 e DERIVADOS | L7: CANAL P1 e DERIVADOS | M7: CANAL P1 e DERIVADOS | N7: CANAL P1 e DERIVADOS | O7: CANAL P1 e DERIVADOS | P7: CANAL P1 e DERIVADOS | Q7: CANAL P1 e DERIVADOS | R7: CANAL P1 e DERIVADOS | S7: CANAL P1 e DERIVADOS | T7: CANAL P1 e DERIVADOS | U7: CANAL P2 e DERIVADOS | V7: CANAL P2 e DERIVADOS | W7: CANAL P2 e DERIVADOS | X7: CANAL P2 e DERIVADOS | Y7: CANAL P2 e DERIVADOS | Z7: CANAL P2 e DERIVADOS | AA7: CANAL P2 e DERIVADOS | AB7: CANAL P2 e DERIVADOS | AC7: CANAL P3A e DERIVADOS | AD7: CANAL P3 e DERIVADOS | AE7: CANAL P3A e DERIVADOS | AF7: CANAL P4 e DERIVADOS | AG7: CANAL P4 e DERIVADOS | AH7: CANAL P4 e DERIVADOS | AI7: CANAL P4 e DERIVADOS | AJ7: CANAL P4 e DERIVADOS | AK7: CANAL P4 e DERIVADOS | AL7: CANAL P4 e DERIVADOS | AM7: CANAL P5 e DERIVADOS | AN7: CANAL P5 e DERIVADOS | AO7: CANAL P5 e DERIVADOS | AP7: CANAL P6 e DERIVADOS | AQ7: CANAL P7 e DERIVADOS | AR7: CANAL P7 e DERIVADOS | AS7: CANAL P8 e DERIVADOS | AT7: CANAL P8 e DERIVADOS | AU7: CANAL P9 e DERIVADOS | AV7: CANAL P10 e DERIVADOS | AW7: CANAL P10 e DERIVADOS | AX7: CANAL P10 e DERIVADOS | AY7: CANAL P11 e DERIVADOS | AZ7: CANAL P11 e DERIVADOS | BA7: CANAL P11 e DERIVADOS | BB7: CANAL P11 e DERIVADOS | BC7: CANAL P11 e DERIVADOS | BD7: CANAL P11 e DERIVADOS | BE7: CANAL P11 e DERIVADOS | BF7: CANAL P11 e DERIVADOS | BG7: CANAL P12 e DERIVADOS | BH7: CANAL P12 e DERIVADOS | BI7: CANAL P12 e DERIVADOS | BJ7: CANAL P13 e DERIVADOS | BK7: CANAL P13 e DERIVADOS | BL7: CANAL P15 e DERIVADOS | BM7: CANAL P12 e DERIVADOS | BN7: CANAL P12 e DERIVADOS | BO7: CANAL P12 e DERIVADOS | BP7: CANAL P12 e DERIVADOS | BQ7: CANAL P12 e DERIVADOS | BR7: CANAL P12 e DERIVADOS | BS7: CANAL P12 e DERIVADOS | BT7: CANAL P12 e DERIVADOS | BU7: CANAL P12 e DERIVADOS | BV7: CANAL P12 e DERIVADOS | BW7: CANAL P12 e DERIVADOS | BX7: CANAL P12 e DERIVADOS | BY7: CANAL P16 e DERIVADOS | BZ7: CANAL P16 e DERIVADOS | CA7: CANAL P16 e DERIVADOS | CB7: CANAL P12 e DERIVADOS | CC7: CANAL P12 e DERIVADOS | CD7: CANAL P12 e DERIVADOS | CE7: CANAL P12 e DERIVADOS | CF7: CANAL P12 e DERIVADOS | CG7: CANAL P12 e DERIVADOS | CH7: CANAL P12 e DERIVADOS | CI7: CANAL P12 e DERIVADOS | CJ7: CANAL P13 e DERIVADOS | CK7: CANAL P13 e DERIVADOS | CL7: CANAL P13 e DERIVADOS | CM7: CANAL P13 e DERIVADOS
A8: CANAL / TRECHO | E8: CANAL ADUTOR LESTE trecho1 | F8: CANAL ADUTOR LESTE trecho2 | G8: CANAL ADUTOR LESTE trecho3 | H8: CANAL ADUTOR LESTE trecho4 | I8: CANAL ADUTOR LESTE trecho5 | J8: CANAL ADUTOR LESTE trecho6 | K8: P1 trecho1 | L8: P1 trecho2 | M8: P1 trecho3 | N8: P1 trecho4 | O8: S1 P1 A | P8: S1 P1 | Q8: T1 S1 P1 | R8: S2 P1 | S8: S3 P1 | T8: S4 P1 | U8: P2 trecho1 | V8: P2 trecho2 | W8: P2 trecho3 | X8: S1 P2 | Y8: S2 P2 trecho1 | Z8: S2 P2 trecho2 | AA8: T1 S1 P2 | AB8: T2 S1 P2 | AC8: P3A | AD8: P3 | AE8: S2 P3A | AF8: P4 | AG8: S1 P4 | AH8: S2 P4 trecho1 | AI8: S2 P4 trecho2 | AJ8: S2 P4 trecho3 | AK8: T1 S2 P4 | AL8: S3 P4 | AM8: P5 | AN8: S1 P5 | AO8: S2 P5 | AP8: P6 | AQ8: S1 P7 | AR8: S2 P7 | AS8: P8 trecho1 | AT8: P8 trecho2 | AU8: P9 | AV8: P10 | AW8: S1 P10 | AX8: S2 P10 | AY8: P11 | AZ8: S1 P11 trecho1 | BA8: S1 P11 trecho2 | BB8: T1 S1 P11 | BC8: T1 S2 P11 | BD8: T2 S1 P11 | BE8: S2 P11 | BF8: T2 S2 P11 | BG8: S4 P12 | BH8: S5 P12 | BI8: T1 S5 P12 | BJ8: S2 P13 | BK8: T1 S2 P13 | BL8: P15 | BM8: P12 trecho1 | BN8: P12 trecho2 | BO8: P12 trecho3 | BP8: P12 trecho4 | BQ8: P12 trecho5 | BR8: P12 trecho6 | BS8: P12 trecho7 | BT8: P12 trecho8 | BU8: P12 trecho9 | BV8: P12 trecho10 | BW8: P12 trecho11 | BX8: P12 trecho12 | BY8: P16 trecho1 | BZ8: P16 trecho2 | CA8: P16 trecho3 | CB8: S1 P12 trecho1 | CC8: S1 P12 trecho2 | CD8: S1 P12 trecho3 | CE8: S2 P12 trecho1 | CF8: S2 P12 trecho2 | CG8: S2 P12 trecho3 | CH8: S2 P12 trecho4 | CI8: S3 P12 | CJ8: P13 trecho1 | CK8: P13 trecho2 | CL8: S1 P13 | CM8: T1 S1 P13
A9: LOCAÇÃO | B9: COMPRIMENTO ACUMULADO POR CANAL | C9: Lcum= | D9: m | E9: 1730.64 | F9: 2609.62 | G9: 2994.73 | H9: 4560 | I9: 4933.41 | J9: 7352.54 | K9: 74.58 | L9: 438.69 | M9: 1570.13 | N9: 2036.42 | O9: 420.96 | P9: 335.88 | Q9: 372.04 | R9: 306.84 | S9: 112.09 | T9: 135.13 | U9: 34.11 | V9: 53.63 | W9: 82.84 | X9: 786.65 | Y9: 236.58 | Z9: 918.48 | AA9: 84.03 | AB9: 361.89 | AC9: 72.91 | AD9: 65.69 | AE9: 219.75 | AF9: 247.88 | AG9: 477.11 | AH9: 209.22 | AI9: 523.64 | AJ9: 862.57 | AK9: 192.77 | AL9: 783.55 | AM9: 66.07 | AN9: 787.38 | AO9: 803.89 | AP9: 662.45 | AQ9: 237.59 | AR9: 890.01 | AS9: 418.7 | AT9: 720.84 | AU9: 120.8 | AV9: 783.93 | AW9: 257.58 | AX9: 248.47 | AY9: 530.93 | AZ9: 647.5 | BA9: 1098.86 | BB9: 99.24 | BC9: 260.61 | BD9: 434.9 | BE9: 701.12 | BF9: 813.3 | BG9: 685.17 | BH9: 423.84 | BI9: 252.71 | BJ9: 355.34 | BK9: 181.66 | BL9: 384.59 | BM9: 388.68 | BN9: 605.58 | BO9: 937.62 | BP9: 1579.22 | BQ9: 2099.29 | BR9: 2252.71 | BS9: 2299.85 | BT9: 2739.74 | BU9: 2865.78 | BV9: 3392.02 | BW9: 3542.46 | BX9: 3755.56 | BY9: 357.94 | BZ9: 897.67 | CA9: 1296.58 | CB9: 580 | CC9: 818.24 | CD9: 1380.79 | CE9: 80 | CF9: 840 | CG9: 1287.4 | CH9: 1739.69 | CI9: 556.68 | CJ9: 194.17 | CK9: 449.64 | CL9: 854.23 | CM9: 290.92
B10: ESTACA - TÉRMINO | E10: 86+10,64 | F10: 130+9,62 | G10: 149+14,73 | H10: 228 | I10: 265+13,41 | J10: 367+12,54 | K10: 3+14,58 | L10: 21+18,69 | M10: 78+10,13 | N10: 101+16,42 | O10: 21+0,96 | P10: 16+15,88 | Q10: 18+12,04 | R10: 15+6,84 | S10: 5+12,09 | T10: 6+15,13 | U10: 1+14,11 | V10: 2+13,63 | W10: 4+2,84 | X10: 39+6,65 | Y10: 11+16,58 | Z10: 45+18,48 | AA10: 4+4,03 | AB10: 18+1,89 | AC10: 3+12,91 | AD10: 3+5,69 | AE10: 10+19,75 | AF10: 12+7,88 | AG10: 23+17,11 | AH10: 10+9,22 | AI10: 26+3,64 | AJ10: 43+2,57 | AK10: 9+12,77 | AL10: 39+3,55 | AM10: 3+6,07 | AN10: 39+7,38 | AO10: 40+3,89 | AP10: 33+2,45 | AQ10: 11+17,59 | AR10: 44+10,01 | AS10: 20+18,7 | AT10: 36+0,84 | AU10: 6+0,8 | AV10: 39+3,93 | AW10: 12+17,58 | AX10: 12+8,47 | AY10: 26+10,93 | AZ10: 32+7,5 | BA10: 54+18,86 | BB10: 4+19,24 | BC10: 13+0,61 | BD10: 21+14,9 | BE10: 35+1,12 | BF10: 40+13,3 | BG10: 34+5,17 | BH10: 21+3,84 | BI10: 12+12,71 | BJ10: 17+15,34 | BK10: 9+1,66 | BL10: 19+4,59 | BM10: 19+8,68 | BN10: 30+5,58 | BO10: 46+17,62 | BP10: 78+19,22 | BQ10: 104+19,29 | BR10: 112+12,71 | BS10: 114+19,85 | BT10: 136+19,74 | BU10: 143+5,78 | BV10: 169+12,02 | BW10: 177+2,46 | BX10: 187+15,56 | BY10: 17+17,94 | BZ10: 44+17,67 | CA10: 64+16,58 | CB10: 29+0 | CC10: 40+18,24 | CD10: 69+0,79 | CE10: 4+0 | CF10: 42+0 | CG10: 64+7,4 | CH10: 86+19,69 | CI10: 27+16,68 | CJ10: 9+14,17 | CK10: 22+9,64 | CL10: 42+14,23 | CM10: 14+10,92
B11: ESTACA - INÍCIO | E11: 0 | F11: 86+10,64 | G11: 130+9,62 | H11: 149+14,73 | I11: 247 | J11: 308+5,04 | K11: 0 | L11: 3+14,58 | M11: 21+18,69 | N11: 78+10,13 | O11: 0 | P11: 0 | Q11: 0 | R11: 0 | S11: 0 | T11: 0 | U11: 0 | V11: 1+14,11 | W11: 2+13,63 | X11: 0 | Y11: 0 | Z11: 11+16,58 | AA11: 0 | AB11: 0 | AC11: 0 | AD11: 0 | AE11: 0 | AF11: 0 | AG11: 0 | AH11: 0 | AI11: 10+9,22 | AJ11: 26+3,64 | AK11: 0 | AL11: 0 | AM11: 0 | AN11: 0 | AO11: 0 | AP11: 0 | AQ11: 0 | AR11: 0 | AS11: 0 | AT11: 20+18,7 | AU11: 0 | AV11: 0 | AW11: 0 | AX11: 0 | AY11: 0 | AZ11: 0 | BA11: 32+7,5 | BB11: 0 | BC11: 0 | BD11: 0 | BE11: 0 | BF11: 0 | BG11: 0 | BH11: 0 | BI11: 0 | BJ11: 0 | BK11: 0 | BL11: 0 | BM11: 0 | BN11: 19+8,68 | BO11: 30+5,58 | BP11: 46+17,62 | BQ11: 78+19,22 | BR11: 104+19,29 | BS11: 112+12,71 | BT11: 114+19,85 | BU11: 136+19,74 | BV11: 143+5,78 | BW11: 169+12,02 | BX11: 177+2,46 | BY11: 0 | BZ11: 17+17,94 | CA11: 44+17,67 | CB11: 0 | CC11: 29+0 | CD11: 40+18,24 | CE11: 0 | CF11: 4+0 | CG11: 42+0 | CH11: 64+7,4 | CI11: 0 | CJ11: 0 | CK11: 9+14,17 | CL11: 0 | CM11: 0
B12: COMPRIMENTO DO TRECHO: | C12: L= | D12: m | E12: 1730.64 | F12: 878.98 | G12: 385.11 | H12: 1565.27 | I12: 373.41 | J12: 0 | K12: 74.58 | L12: 364.11 | M12: 1131.44 | N12: 466.29 | O12: 420.96 | P12: 335.88 | Q12: 372.04 | R12: 306.84 | S12: 112.09 | T12: 135.13 | U12: 34.11 | V12: 19.52 | W12: 29.21 | X12: 786.65 | Y12: 236.58 | Z12: 681.9 | AA12: 84.03 | AB12: 361.89 | AC12: 72.91 | AD12: 65.69 | AE12: 219.75 | AF12: 247.88 | AG12: 477.11 | AH12: 209.22 | AI12: 314.42 | AJ12: 338.93 | AK12: 192.77 | AL12: 783.55 | AM12: 66.07 | AN12: 787.38 | AO12: 803.89 | AP12: 662.45 | AQ12: 237.59 | AR12: 890.01 | AS12: 418.7 | AT12: 302.14 | AU12: 120.8 | AV12: 783.93 | AW12: 257.58 | AX12: 248.47 | AY12: 530.93 | AZ12: 647.5 | BA12: 451.36 | BB12: 99.24 | BC12: 260.61 | BD12: 434.9 | BE12: 701.12 | BF12: 813.3 | BG12: 685.17 | BH12: 423.84 | BI12: 252.71 | BJ12: 355.34 | BK12: 181.66 | BL12: 384.59 | BM12: 388.68 | BN12: 216.9 | BO12: 332.04 | BP12: 641.6 | BQ12: 520.07 | BR12: 153.42 | BS12: 47.14 | BT12: 439.89 | BU12: 126.04 | BV12: 526.24 | BW12: 150.44 | BX12: 213.1 | BY12: 357.94 | BZ12: 539.73 | CA12: 398.91 | CB12: 580 | CC12: 238.24 | CD12: 562.55 | CE12: 80 | CF12: 760 | CG12: 447.4 | CH12: 452.29 | CI12: 556.68 | CJ12: 194.17 | CK12: 255.47 | CL12: 854.23 | CM12: 290.92
A13: CANAL TRAPEZOIDAL - MEDIDAS | B13: Base Maior do Canal: | C13: B = | D13: m | E13: =IF(E14="","",E15*E17*2+E14) -> 4.04 | F13: =IF(F14="","",F15*F17*2+F14) -> 3.98 | G13: 3.92 | H13: 3.92 | I13: 3.74 | J13: 3.3 | K13: 1.88 | L13: 1.7 | M13: 1.56 | N13: 1.28 | U13: 1.85 | V13: 1.85 | W13: 1.85 | Y13: 1.6 | Z13: 1.44 | AF13: 2.24 | AH13: 1.5 | AM13: 1.8 | AN13: 1.56 | AS13: 1.3 | AV13: 1.74 | AY13: 2.16 | AZ13: 1.56 | BE13: 1.57 | BM13: 4.111764706 | BN13: 3.82 | BO13: 3.77 | BP13: 4.08 | BQ13: 3.92 | BR13: =IF(BR14="","",BR15*BR17*2+BR14) -> 3.92 | BS13: 3.92 | BT13: 3.94 | BU13: 3.92 | BV13: 3.92 | BW13: 3.92 | BX13: 3.26 | BY13: 1.78 | BZ13: 1.58 | CA13: =IF(CA14="","",CA15*CA17*2+CA14) -> 1.3 | CB13: 1.3 | CC13: 1.3 | CE13: 1.7 | CF13: 1.58 | CG13: 1.53 | CI13: 1.25 | CJ13: 1.7 | CK13: 1.32 | CL13: 1.05
B14: Base Menor do Canal: | C14: b = | D14: m | E14: 1.2 | F14: 1.2 | G14: 1.2 | H14: 1.2 | I14: 1.1 | J14: 1 | K14: 0.3 | L14: 0.3 | M14: 0.3 | N14: 0.3 | U14: 0.45 | V14: 0.45 | W14: 0.45 | Y14: 0.3 | Z14: 0.3 | AF14: 0.5 | AH14: 0.5 | AM14: 0.5 | AN14: 0.5 | AS14: 0.3 | AV14: 0.5 | AY14: 1 | AZ14: 0.3 | BE14: 0.25 | BM14: 1.9 | BN14: 2 | BO14: 1.95 | BP14: 1.8 | BQ14: 1.5 | BR14: 1.5 | BS14: 1.5 | BT14: 1.5 | BU14: 1.5 | BV14: 1.5 | BW14: 1.5 | BX14: 1.5 | BY14: 0.3 | BZ14: 0.3 | CA14: 0.3 | CB14: 0.3 | CC14: 0.3 | CE14: 0.5 | CF14: 0.5 | CG14: 0.45 | CI14: 0.25 | CJ14: 0.5 | CK14: 0.3 | CL14: 0.25
B15: Altura do Canal: | C15: H = | D15: m | E15: 1.42 | F15: 1.39 | G15: 1.36 | H15: 1.36 | I15: 1.32 | J15: 1.15 | K15: 0.79 | L15: 0.7 | M15: 0.63 | N15: 0.49 | U15: 0.7 | V15: 0.7 | W15: 0.7 | Y15: 0.65 | Z15: 0.57 | AF15: 0.87 | AH15: 0.5 | AM15: 0.65 | AN15: 0.53 | AS15: 0.5 | AV15: 0.62 | AY15: 0.58 | AZ15: 0.63 | BE15: 0.66 | BM15: 0.94 | BN15: 0.91 | BO15: 0.91 | BP15: 1.14 | BQ15: 1.21 | BR15: 1.21 | BS15: 1.21 | BT15: 1.22 | BU15: 1.21 | BV15: 1.21 | BW15: 1.21 | BX15: 0.88 | BY15: 0.74 | BZ15: 0.64 | CA15: 0.5 | CB15: 0.5 | CC15: 0.5 | CE15: 0.6 | CF15: 0.54 | CG15: 0.54 | CI15: 0.5 | CJ15: 0.6 | CK15: 0.51 | CL15: 0.4
B16: Gola do Canal: | C16: G = | D16: m | E16: 0.2 | F16: 0.2 | G16: 0.2 | H16: 0.2 | I16: 0.2 | J16: 0.2 | K16: 0.2 | L16: 0.2 | M16: 0.2 | N16: 0.2 | U16: 0.2 | V16: 0.2 | W16: 0.2 | Y16: 0.2 | Z16: 0.2 | AF16: 0.2 | AH16: 0.2 | AM16: 0.2 | AN16: 0.2 | AS16: 0.2 | AV16: 0.2 | AY16: 0.2 | AZ16: 0.2 | BE16: 0.2 | BM16: 0.2 | BN16: 0.2 | BO16: 0.2 | BP16: 0.2 | BQ16: 0.2 | BR16: 0.2 | BS16: 0.2 | BT16: 0.2 | BU16: 0.2 | BV16: 0.2 | BW16: 0.2 | BX16: 0.2 | BY16: 0.2 | BZ16: 0.2 | CA16: 0.2 | CB16: 0.2 | CC16: 0.2 | CE16: 0.2 | CF16: 0.2 | CG16: 0.2 | CI16: 0.2 | CJ16: 0.2 | CK16: 0.2 | CL16: 0.2
B17: Inclinação 1:m | C17: m = | E17: 1 | F17: 1 | G17: 1 | H17: 1 | I17: 1 | J17: 1 | K17: 1 | L17: 1 | M17: 1 | N17: 1 | U17: 1 | V17: 1 | W17: 1 | Y17: 1 | Z17: 1 | AF17: 1 | AH17: 1 | AM17: 1 | AN17: 1 | AS17: 1 | AV17: 1 | AY17: 1 | AZ17: 1 | BE17: 1 | BM17: 1.176470588 | BN17: 1 | BO17: 1 | BP17: 1 | BQ17: 1 | BR17: 1 | BS17: 1 | BT17: 1 | BU17: 1 | BV17: 1 | BW17: 1 | BX17: 1 | BY17: 1 | BZ17: 1 | CA17: 1 | CB17: 1 | CC17: 1 | CE17: 1 | CF17: 1 | CG17: 1 | CI17: 1 | CJ17: 1 | CK17: 1 | CL17: 1
B18: Rampa: | C18: r = | D18: m | E18: =IF(E14="","",SQRT(((E15*E17)^2)+((E15)^2))) -> 2.008183259 | F18: =IF(F14="","",SQRT(((F15*F17)^2)+((F15)^2))) -> 1.965756852 | G18: 1.923330445 | H18: 1.923330445 | I18: 1.866761902 | J18: 1.626345597 | K18: 1.117228714 | L18: 0.9899494937 | M18: 0.8909545443 | N18: 0.6929646456 | U18: 0.9899494937 | V18: 0.9899494937 | W18: 0.9899494937 | Y18: 0.9192388155 | Z18: 0.8061017306 | AF18: 1.230365799 | AH18: 0.7071067812 | AM18: 0.9192388155 | AN18: 0.7495331881 | AS18: 0.7071067812 | AV18: 0.8768124087 | AY18: 0.8202438662 | AZ18: 0.8909545443 | BE18: 0.9333809512 | BM18: 1.45140476 | BN18: 1.286934342 | BO18: 1.286934342 | BP18: 1.612203461 | BQ18: 1.71119841 | BR18: =IF(BR14="","",SQRT(((BR15*BR17)^2)+((BR15)^2))) -> 1.71119841 | BS18: 1.71119841 | BT18: 1.725340546 | BU18: 1.71119841 | BV18: 1.71119841 | BW18: 1.71119841 | BX18: 1.244507935 | BY18: 1.046518036 | BZ18: 0.9050966799 | CA18: 0.7071067812 | CB18: 0.7071067812 | CC18: 0.7071067812 | CE18: 0.8485281374 | CF18: 0.7636753237 | CG18: 0.7636753237 | CI18: 0.7071067812 | CJ18: 0.8485281374 | CK18: 0.7212489168 | CL18: 0.5656854249
B19: Espessura Placa Revestimento Canal: | C19: e = | D19: m | E19: =IF(E14="","",VLOOKUP($B$19,'DADOS DE ENTRADA'!$B:$E,4,0)) -> 0.05 | F19: =IF(F14="","",VLOOKUP($B$19,'DADOS DE ENTRADA'!$B:$E,4,0)) -> 0.05 | G19: =IF(G14="","",VLOOKUP($B$19,'DADOS DE ENTRADA'!$B:$E,4,0)) -> 0.05 | H19: =IF(H14="","",VLOOKUP($B$19,'DADOS DE ENTRADA'!$B:$E,4,0)) -> 0.05 | I19: =IF(I14="","",VLOOKUP($B$19,'DADOS DE ENTRADA'!$B:$E,4,0)) -> 0.05 | J19: =IF(J14="","",VLOOKUP($B$19,'DADOS DE ENTRADA'!$B:$E,4,0)) -> 0.05 | K19: =IF(K14="","",VLOOKUP($B$19,'DADOS DE ENTRADA'!$B:$E,4,0)) -> 0.05 | L19: =IF(L14="","",VLOOKUP($B$19,'DADOS DE ENTRADA'!$B:$E,4,0)) -> 0.05 | M19: =IF(M14="","",VLOOKUP($B$19,'DADOS DE ENTRADA'!$B:$E,4,0)) -> 0.05 | N19: =IF(N14="","",VLOOKUP($B$19,'DADOS DE ENTRADA'!$B:$E,4,0)) -> 0.05 | O19: =IF(O14="","",VLOOKUP($B$19,'DADOS DE ENTRADA'!$B:$E,4,0)) ->  | P19: =IF(P14="","",VLOOKUP($B$19,'DADOS DE ENTRADA'!$B:$E,4,0)) ->  | Q19: =IF(Q14="","",VLOOKUP($B$19,'DADOS DE ENTRADA'!$B:$E,4,0)) ->  | R19: =IF(R14="","",VLOOKUP($B$19,'DADOS DE ENTRADA'!$B:$E,4,0)) ->  | S19: =IF(S14="","",VLOOKUP($B$19,'DADOS DE ENTRADA'!$B:$E,4,0)) ->  | T19: =IF(T14="","",VLOOKUP($B$19,'DADOS DE ENTRADA'!$B:$E,4,0)) ->  | U19: =IF(U14="","",VLOOKUP($B$19,'DADOS DE ENTRADA'!$B:$E,4,0)) -> 0.05 | V19: =IF(V14="","",VLOOKUP($B$19,'DADOS DE ENTRADA'!$B:$E,4,0)) -> 0.05 | W19: =IF(W14="","",VLOOKUP($B$19,'DADOS DE ENTRADA'!$B:$E,4,0)) -> 0.05 | X19: =IF(X14="","",VLOOKUP($B$19,'DADOS DE ENTRADA'!$B:$E,4,0)) ->  | Y19: =IF(Y14="","",VLOOKUP($B$19,'DADOS DE ENTRADA'!$B:$E,4,0)) -> 0.05 | Z19: =IF(Z14="","",VLOOKUP($B$19,'DADOS DE ENTRADA'!$B:$E,4,0)) -> 0.05 | AA19: =IF(AA14="","",VLOOKUP($B$19,'DADOS DE ENTRADA'!$B:$E,4,0)) ->  | AB19: =IF(AB14="","",VLOOKUP($B$19,'DADOS DE ENTRADA'!$B:$E,4,0)) ->  | AC19: =IF(AC14="","",VLOOKUP($B$19,'DADOS DE ENTRADA'!$B:$E,4,0)) ->  | AD19: =IF(AD14="","",VLOOKUP($B$19,'DADOS DE ENTRADA'!$B:$E,4,0)) ->  | AE19: =IF(AE14="","",VLOOKUP($B$19,'DADOS DE ENTRADA'!$B:$E,4,0)) ->  | AF19: =IF(AF14="","",VLOOKUP($B$19,'DADOS DE ENTRADA'!$B:$E,4,0)) -> 0.05 | AG19: =IF(AG14="","",VLOOKUP($B$19,'DADOS DE ENTRADA'!$B:$E,4,0)) ->  | AH19: =IF(AH14="","",VLOOKUP($B$19,'DADOS DE ENTRADA'!$B:$E,4,0)) -> 0.05 | AI19: =IF(AI14="","",VLOOKUP($B$19,'DADOS DE ENTRADA'!$B:$E,4,0)) ->  | AJ19: =IF(AJ14="","",VLOOKUP($B$19,'DADOS DE ENTRADA'!$B:$E,4,0)) ->  | AK19: =IF(AK14="","",VLOOKUP($B$19,'DADOS DE ENTRADA'!$B:$E,4,0)) ->  | AL19: =IF(AL14="","",VLOOKUP($B$19,'DADOS DE ENTRADA'!$B:$E,4,0)) ->  | AM19: =IF(AM14="","",VLOOKUP($B$19,'DADOS DE ENTRADA'!$B:$E,4,0)) -> 0.05 | AN19: =IF(AN14="","",VLOOKUP($B$19,'DADOS DE ENTRADA'!$B:$E,4,0)) -> 0.05 | AO19: =IF(AO14="","",VLOOKUP($B$19,'DADOS DE ENTRADA'!$B:$E,4,0)) ->  | AP19: =IF(AP14="","",VLOOKUP($B$19,'DADOS DE ENTRADA'!$B:$E,4,0)) ->  | AQ19: =IF(AQ14="","",VLOOKUP($B$19,'DADOS DE ENTRADA'!$B:$E,4,0)) ->  | AR19: =IF(AR14="","",VLOOKUP($B$19,'DADOS DE ENTRADA'!$B:$E,4,0)) ->  | AS19: =IF(AS14="","",VLOOKUP($B$19,'DADOS DE ENTRADA'!$B:$E,4,0)) -> 0.05 | AT19: =IF(AT14="","",VLOOKUP($B$19,'DADOS DE ENTRADA'!$B:$E,4,0)) ->  | AU19: =IF(AU14="","",VLOOKUP($B$19,'DADOS DE ENTRADA'!$B:$E,4,0)) ->  | AV19: =IF(AV14="","",VLOOKUP($B$19,'DADOS DE ENTRADA'!$B:$E,4,0)) -> 0.05 | AW19: =IF(AW14="","",VLOOKUP($B$19,'DADOS DE ENTRADA'!$B:$E,4,0)) ->  | AX19: =IF(AX14="","",VLOOKUP($B$19,'DADOS DE ENTRADA'!$B:$E,4,0)) ->  | AY19: =IF(AY14="","",VLOOKUP($B$19,'DADOS DE ENTRADA'!$B:$E,4,0)) -> 0.05 | AZ19: =IF(AZ14="","",VLOOKUP($B$19,'DADOS DE ENTRADA'!$B:$E,4,0)) -> 0.05 | BA19: =IF(BA14="","",VLOOKUP($B$19,'DADOS DE ENTRADA'!$B:$E,4,0)) ->  | BB19: =IF(BB14="","",VLOOKUP($B$19,'DADOS DE ENTRADA'!$B:$E,4,0)) ->  | BC19: =IF(BC14="","",VLOOKUP($B$19,'DADOS DE ENTRADA'!$B:$E,4,0)) ->  | BD19: =IF(BD14="","",VLOOKUP($B$19,'DADOS DE ENTRADA'!$B:$E,4,0)) ->  | BE19: =IF(BE14="","",VLOOKUP($B$19,'DADOS DE ENTRADA'!$B:$E,4,0)) -> 0.05 | BF19: =IF(BF14="","",VLOOKUP($B$19,'DADOS DE ENTRADA'!$B:$E,4,0)) ->  | BG19: =IF(BG14="","",VLOOKUP($B$19,'DADOS DE ENTRADA'!$B:$E,4,0)) ->  | BH19: =IF(BH14="","",VLOOKUP($B$19,'DADOS DE ENTRADA'!$B:$E,4,0)) ->  | BI19: =IF(BI14="","",VLOOKUP($B$19,'DADOS DE ENTRADA'!$B:$E,4,0)) ->  | BJ19: =IF(BJ14="","",VLOOKUP($B$19,'DADOS DE ENTRADA'!$B:$E,4,0)) ->  | BK19: =IF(BK14="","",VLOOKUP($B$19,'DADOS DE ENTRADA'!$B:$E,4,0)) ->  | BL19: =IF(BL14="","",VLOOKUP($B$19,'DADOS DE ENTRADA'!$B:$E,4,0)) ->  | BM19: =IF(BM14="","",VLOOKUP($B$19,'DADOS DE ENTRADA'!$B:$E,4,0)) -> 0.05 | BN19: =IF(BN14="","",VLOOKUP($B$19,'DADOS DE ENTRADA'!$B:$E,4,0)) -> 0.05 | BO19: =IF(BO14="","",VLOOKUP($B$19,'DADOS DE ENTRADA'!$B:$E,4,0)) -> 0.05 | BP19: =IF(BP14="","",VLOOKUP($B$19,'DADOS DE ENTRADA'!$B:$E,4,0)) -> 0.05 | BQ19: =IF(BQ14="","",VLOOKUP($B$19,'DADOS DE ENTRADA'!$B:$E,4,0)) -> 0.05 | BR19: =IF(BR14="","",VLOOKUP($B$19,'DADOS DE ENTRADA'!$B:$E,4,0)) -> 0.05 | BS19: =IF(BS14="","",VLOOKUP($B$19,'DADOS DE ENTRADA'!$B:$E,4,0)) -> 0.05 | BT19: =IF(BT14="","",VLOOKUP($B$19,'DADOS DE ENTRADA'!$B:$E,4,0)) -> 0.05 | BU19: =IF(BU14="","",VLOOKUP($B$19,'DADOS DE ENTRADA'!$B:$E,4,0)) -> 0.05 | BV19: =IF(BV14="","",VLOOKUP($B$19,'DADOS DE ENTRADA'!$B:$E,4,0)) -> 0.05 | BW19: =IF(BW14="","",VLOOKUP($B$19,'DADOS DE ENTRADA'!$B:$E,4,0)) -> 0.05 | BX19: =IF(BX14="","",VLOOKUP($B$19,'DADOS DE ENTRADA'!$B:$E,4,0)) -> 0.05 | BY19: =IF(BY14="","",VLOOKUP($B$19,'DADOS DE ENTRADA'!$B:$E,4,0)) -> 0.05 | BZ19: =IF(BZ14="","",VLOOKUP($B$19,'DADOS DE ENTRADA'!$B:$E,4,0)) -> 0.05 | CA19: =IF(CA14="","",VLOOKUP($B$19,'DADOS DE ENTRADA'!$B:$E,4,0)) -> 0.05 | CB19: =IF(CB14="","",VLOOKUP($B$19,'DADOS DE ENTRADA'!$B:$E,4,0)) -> 0.05 | CC19: =IF(CC14="","",VLOOKUP($B$19,'DADOS DE ENTRADA'!$B:$E,4,0)) -> 0.05 | CD19: =IF(CD14="","",VLOOKUP($B$19,'DADOS DE ENTRADA'!$B:$E,4,0)) ->  | CE19: =IF(CE14="","",VLOOKUP($B$19,'DADOS DE ENTRADA'!$B:$E,4,0)) -> 0.05 | CF19: =IF(CF14="","",VLOOKUP($B$19,'DADOS DE ENTRADA'!$B:$E,4,0)) -> 0.05 | CG19: =IF(CG14="","",VLOOKUP($B$19,'DADOS DE ENTRADA'!$B:$E,4,0)) -> 0.05 | CH19: =IF(CH14="","",VLOOKUP($B$19,'DADOS DE ENTRADA'!$B:$E,4,0)) ->  | CI19: =IF(CI14="","",VLOOKUP($B$19,'DADOS DE ENTRADA'!$B:$E,4,0)) -> 0.05 | CJ19: =IF(CJ14="","",VLOOKUP($B$19,'DADOS DE ENTRADA'!$B:$E,4,0)) -> 0.05 | CK19: =IF(CK14="","",VLOOKUP($B$19,'DADOS DE ENTRADA'!$B:$E,4,0)) -> 0.05 | CL19: =IF(CL14="","",VLOOKUP($B$19,'DADOS DE ENTRADA'!$B:$E,4,0)) -> 0.05 | CM19: =IF(CM14="","",VLOOKUP($B$19,'DADOS DE ENTRADA'!$B:$E,4,0)) -> 
B20: Área Seção Concreto Revestimento: | C20: acr = | D20: m2 | E20: =IF(E14="","",E33*E19) -> 0.2808183259 | F20: =IF(F14="","",F33*F19) -> 0.2765756852 | G20: 0.2723330445 | H20: 0.2723330445 | I20: 0.2616761902 | J20: 0.2326345597 | K20: 0.1467228714 | L20: 0.1339949494 | M20: 0.1240954544 | N20: 0.1042964646 | U20: 0.1414949494 | V20: 0.1414949494 | W20: 0.1414949494 | Y20: 0.1269238816 | Z20: 0.1156101731 | AF20: 0.1680365799 | AH20: 0.1157106781 | AM20: 0.1369238816 | AN20: 0.1199533188 | AS20: 0.1057106781 | AV20: 0.1326812409 | AY20: 0.1520243866 | AZ20: 0.1240954544 | BE20: 0.1258380951 | BM20: 0.260140476 | BN20: 0.2486934342 | BO20: 0.2461934342 | BP20: 0.2712203461 | BQ20: 0.266119841 | BR20: =IF(BR14="","",BR33*BR19) -> 0.266119841 | BS20: 0.266119841 | BT20: 0.2675340546 | BU20: 0.266119841 | BV20: 0.266119841 | BW20: 0.266119841 | BX20: 0.2194507935 | BY20: 0.1396518036 | BZ20: 0.125509668 | CA20: 0.1057106781 | CB20: 0.1057106781 | CC20: 0.1057106781 | CE20: 0.1298528137 | CF20: 0.1213675324 | CG20: 0.1188675324 | CI20: 0.1032106781 | CJ20: 0.1298528137 | CK20: 0.1071248917 | CL20: 0.08906854249
B21: Espessura Placa Revestimento Canal Existente (Demolição): | C21: ed = | D21: m | E21: =IF(E16="","",VLOOKUP($B$21,'DADOS DE ENTRADA'!$B:$E,4,0)) -> 0.07 | F21: =IF(F16="","",VLOOKUP($B$21,'DADOS DE ENTRADA'!$B:$E,4,0)) -> 0.07 | G21: =IF(G16="","",VLOOKUP($B$21,'DADOS DE ENTRADA'!$B:$E,4,0)) -> 0.07 | H21: =IF(H16="","",VLOOKUP($B$21,'DADOS DE ENTRADA'!$B:$E,4,0)) -> 0.07 | I21: =IF(I16="","",VLOOKUP($B$21,'DADOS DE ENTRADA'!$B:$E,4,0)) -> 0.07 | J21: =IF(J16="","",VLOOKUP($B$21,'DADOS DE ENTRADA'!$B:$E,4,0)) -> 0.07 | K21: =IF(K16="","",VLOOKUP($B$21,'DADOS DE ENTRADA'!$B:$E,4,0)) -> 0.07 | L21: =IF(L16="","",VLOOKUP($B$21,'DADOS DE ENTRADA'!$B:$E,4,0)) -> 0.07 | M21: =IF(M16="","",VLOOKUP($B$21,'DADOS DE ENTRADA'!$B:$E,4,0)) -> 0.07 | N21: =IF(N16="","",VLOOKUP($B$21,'DADOS DE ENTRADA'!$B:$E,4,0)) -> 0.07 | O21: =IF(O16="","",VLOOKUP($B$21,'DADOS DE ENTRADA'!$B:$E,4,0)) ->  | P21: =IF(P16="","",VLOOKUP($B$21,'DADOS DE ENTRADA'!$B:$E,4,0)) ->  | Q21: =IF(Q16="","",VLOOKUP($B$21,'DADOS DE ENTRADA'!$B:$E,4,0)) ->  | R21: =IF(R16="","",VLOOKUP($B$21,'DADOS DE ENTRADA'!$B:$E,4,0)) ->  | S21: =IF(S16="","",VLOOKUP($B$21,'DADOS DE ENTRADA'!$B:$E,4,0)) ->  | T21: =IF(T16="","",VLOOKUP($B$21,'DADOS DE ENTRADA'!$B:$E,4,0)) ->  | U21: =IF(U16="","",VLOOKUP($B$21,'DADOS DE ENTRADA'!$B:$E,4,0)) -> 0.07 | V21: =IF(V16="","",VLOOKUP($B$21,'DADOS DE ENTRADA'!$B:$E,4,0)) -> 0.07 | W21: =IF(W16="","",VLOOKUP($B$21,'DADOS DE ENTRADA'!$B:$E,4,0)) -> 0.07 | X21: =IF(X16="","",VLOOKUP($B$21,'DADOS DE ENTRADA'!$B:$E,4,0)) ->  | Y21: =IF(Y16="","",VLOOKUP($B$21,'DADOS DE ENTRADA'!$B:$E,4,0)) -> 0.07 | Z21: =IF(Z16="","",VLOOKUP($B$21,'DADOS DE ENTRADA'!$B:$E,4,0)) -> 0.07 | AA21: =IF(AA16="","",VLOOKUP($B$21,'DADOS DE ENTRADA'!$B:$E,4,0)) ->  | AB21: =IF(AB16="","",VLOOKUP($B$21,'DADOS DE ENTRADA'!$B:$E,4,0)) ->  | AC21: =IF(AC16="","",VLOOKUP($B$21,'DADOS DE ENTRADA'!$B:$E,4,0)) ->  | AD21: =IF(AD16="","",VLOOKUP($B$21,'DADOS DE ENTRADA'!$B:$E,4,0)) ->  | AE21: =IF(AE16="","",VLOOKUP($B$21,'DADOS DE ENTRADA'!$B:$E,4,0)) ->  | AF21: =IF(AF16="","",VLOOKUP($B$21,'DADOS DE ENTRADA'!$B:$E,4,0)) -> 0.07 | AG21: =IF(AG16="","",VLOOKUP($B$21,'DADOS DE ENTRADA'!$B:$E,4,0)) ->  | AH21: =IF(AH16="","",VLOOKUP($B$21,'DADOS DE ENTRADA'!$B:$E,4,0)) -> 0.07 | AI21: =IF(AI16="","",VLOOKUP($B$21,'DADOS DE ENTRADA'!$B:$E,4,0)) ->  | AJ21: =IF(AJ16="","",VLOOKUP($B$21,'DADOS DE ENTRADA'!$B:$E,4,0)) ->  | AK21: =IF(AK16="","",VLOOKUP($B$21,'DADOS DE ENTRADA'!$B:$E,4,0)) ->  | AL21: =IF(AL16="","",VLOOKUP($B$21,'DADOS DE ENTRADA'!$B:$E,4,0)) ->  | AM21: =IF(AM16="","",VLOOKUP($B$21,'DADOS DE ENTRADA'!$B:$E,4,0)) -> 0.07 | AN21: =IF(AN16="","",VLOOKUP($B$21,'DADOS DE ENTRADA'!$B:$E,4,0)) -> 0.07 | AO21: =IF(AO16="","",VLOOKUP($B$21,'DADOS DE ENTRADA'!$B:$E,4,0)) ->  | AP21: =IF(AP16="","",VLOOKUP($B$21,'DADOS DE ENTRADA'!$B:$E,4,0)) ->  | AQ21: =IF(AQ16="","",VLOOKUP($B$21,'DADOS DE ENTRADA'!$B:$E,4,0)) ->  | AR21: =IF(AR16="","",VLOOKUP($B$21,'DADOS DE ENTRADA'!$B:$E,4,0)) ->  | AS21: =IF(AS16="","",VLOOKUP($B$21,'DADOS DE ENTRADA'!$B:$E,4,0)) -> 0.07 | AT21: =IF(AT16="","",VLOOKUP($B$21,'DADOS DE ENTRADA'!$B:$E,4,0)) ->  | AU21: =IF(AU16="","",VLOOKUP($B$21,'DADOS DE ENTRADA'!$B:$E,4,0)) ->  | AV21: =IF(AV16="","",VLOOKUP($B$21,'DADOS DE ENTRADA'!$B:$E,4,0)) -> 0.07 | AW21: =IF(AW16="","",VLOOKUP($B$21,'DADOS DE ENTRADA'!$B:$E,4,0)) ->  | AX21: =IF(AX16="","",VLOOKUP($B$21,'DADOS DE ENTRADA'!$B:$E,4,0)) ->  | AY21: =IF(AY16="","",VLOOKUP($B$21,'DADOS DE ENTRADA'!$B:$E,4,0)) -> 0.07 | AZ21: =IF(AZ16="","",VLOOKUP($B$21,'DADOS DE ENTRADA'!$B:$E,4,0)) -> 0.07 | BA21: =IF(BA16="","",VLOOKUP($B$21,'DADOS DE ENTRADA'!$B:$E,4,0)) ->  | BB21: =IF(BB16="","",VLOOKUP($B$21,'DADOS DE ENTRADA'!$B:$E,4,0)) ->  | BC21: =IF(BC16="","",VLOOKUP($B$21,'DADOS DE ENTRADA'!$B:$E,4,0)) ->  | BD21: =IF(BD16="","",VLOOKUP($B$21,'DADOS DE ENTRADA'!$B:$E,4,0)) ->  | BE21: =IF(BE16="","",VLOOKUP($B$21,'DADOS DE ENTRADA'!$B:$E,4,0)) -> 0.07 | BF21: =IF(BF16="","",VLOOKUP($B$21,'DADOS DE ENTRADA'!$B:$E,4,0)) ->  | BG21: =IF(BG16="","",VLOOKUP($B$21,'DADOS DE ENTRADA'!$B:$E,4,0)) ->  | BH21: =IF(BH16="","",VLOOKUP($B$21,'DADOS DE ENTRADA'!$B:$E,4,0)) ->  | BI21: =IF(BI16="","",VLOOKUP($B$21,'DADOS DE ENTRADA'!$B:$E,4,0)) ->  | BJ21: =IF(BJ16="","",VLOOKUP($B$21,'DADOS DE ENTRADA'!$B:$E,4,0)) ->  | BK21: =IF(BK16="","",VLOOKUP($B$21,'DADOS DE ENTRADA'!$B:$E,4,0)) ->  | BL21: =IF(BL16="","",VLOOKUP($B$21,'DADOS DE ENTRADA'!$B:$E,4,0)) ->  | BM21: =IF(BM16="","",VLOOKUP($B$21,'DADOS DE ENTRADA'!$B:$E,4,0)) -> 0.07 | BN21: =IF(BN16="","",VLOOKUP($B$21,'DADOS DE ENTRADA'!$B:$E,4,0)) -> 0.07 | BO21: =IF(BO16="","",VLOOKUP($B$21,'DADOS DE ENTRADA'!$B:$E,4,0)) -> 0.07 | BP21: =IF(BP16="","",VLOOKUP($B$21,'DADOS DE ENTRADA'!$B:$E,4,0)) -> 0.07 | BQ21: =IF(BQ16="","",VLOOKUP($B$21,'DADOS DE ENTRADA'!$B:$E,4,0)) -> 0.07 | BR21: =IF(BR16="","",VLOOKUP($B$21,'DADOS DE ENTRADA'!$B:$E,4,0)) -> 0.07 | BS21: =IF(BS16="","",VLOOKUP($B$21,'DADOS DE ENTRADA'!$B:$E,4,0)) -> 0.07 | BT21: =IF(BT16="","",VLOOKUP($B$21,'DADOS DE ENTRADA'!$B:$E,4,0)) -> 0.07 | BU21: =IF(BU16="","",VLOOKUP($B$21,'DADOS DE ENTRADA'!$B:$E,4,0)) -> 0.07 | BV21: =IF(BV16="","",VLOOKUP($B$21,'DADOS DE ENTRADA'!$B:$E,4,0)) -> 0.07 | BW21: =IF(BW16="","",VLOOKUP($B$21,'DADOS DE ENTRADA'!$B:$E,4,0)) -> 0.07 | BX21: =IF(BX16="","",VLOOKUP($B$21,'DADOS DE ENTRADA'!$B:$E,4,0)) -> 0.07 | BY21: =IF(BY16="","",VLOOKUP($B$21,'DADOS DE ENTRADA'!$B:$E,4,0)) -> 0.07 | BZ21: =IF(BZ16="","",VLOOKUP($B$21,'DADOS DE ENTRADA'!$B:$E,4,0)) -> 0.07 | CA21: =IF(CA16="","",VLOOKUP($B$21,'DADOS DE ENTRADA'!$B:$E,4,0)) -> 0.07 | CB21: =IF(CB16="","",VLOOKUP($B$21,'DADOS DE ENTRADA'!$B:$E,4,0)) -> 0.07 | CC21: =IF(CC16="","",VLOOKUP($B$21,'DADOS DE ENTRADA'!$B:$E,4,0)) -> 0.07 | CD21: =IF(CD16="","",VLOOKUP($B$21,'DADOS DE ENTRADA'!$B:$E,4,0)) ->  | CE21: =IF(CE16="","",VLOOKUP($B$21,'DADOS DE ENTRADA'!$B:$E,4,0)) -> 0.07 | CF21: =IF(CF16="","",VLOOKUP($B$21,'DADOS DE ENTRADA'!$B:$E,4,0)) -> 0.07 | CG21: =IF(CG16="","",VLOOKUP($B$21,'DADOS DE ENTRADA'!$B:$E,4,0)) -> 0.07 | CH21: =IF(CH16="","",VLOOKUP($B$21,'DADOS DE ENTRADA'!$B:$E,4,0)) ->  | CI21: =IF(CI16="","",VLOOKUP($B$21,'DADOS DE ENTRADA'!$B:$E,4,0)) -> 0.07 | CJ21: =IF(CJ16="","",VLOOKUP($B$21,'DADOS DE ENTRADA'!$B:$E,4,0)) -> 0.07 | CK21: =IF(CK16="","",VLOOKUP($B$21,'DADOS DE ENTRADA'!$B:$E,4,0)) -> 0.07 | CL21: =IF(CL16="","",VLOOKUP($B$21,'DADOS DE ENTRADA'!$B:$E,4,0)) -> 0.07 | CM21: =IF(CM16="","",VLOOKUP($B$21,'DADOS DE ENTRADA'!$B:$E,4,0)) -> 
B22: Espessura Camada Solo a Retirar (Solo Impróprio): | C22: ecsi = | D22: m | E22: =IF(E17="","",VLOOKUP($B$22,'DADOS DE ENTRADA'!$B:$E,4,0)) -> 0.33 | F22: =IF(F17="","",VLOOKUP($B$22,'DADOS DE ENTRADA'!$B:$E,4,0)) -> 0.33 | G22: =IF(G17="","",VLOOKUP($B$22,'DADOS DE ENTRADA'!$B:$E,4,0)) -> 0.33 | H22: =IF(H17="","",VLOOKUP($B$22,'DADOS DE ENTRADA'!$B:$E,4,0)) -> 0.33 | I22: =IF(I17="","",VLOOKUP($B$22,'DADOS DE ENTRADA'!$B:$E,4,0)) -> 0.33 | J22: =IF(J17="","",VLOOKUP($B$22,'DADOS DE ENTRADA'!$B:$E,4,0)) -> 0.33 | K22: =IF(K17="","",VLOOKUP($B$22,'DADOS DE ENTRADA'!$B:$E,4,0)) -> 0.33 | L22: =IF(L17="","",VLOOKUP($B$22,'DADOS DE ENTRADA'!$B:$E,4,0)) -> 0.33 | M22: =IF(M17="","",VLOOKUP($B$22,'DADOS DE ENTRADA'!$B:$E,4,0)) -> 0.33 | N22: =IF(N17="","",VLOOKUP($B$22,'DADOS DE ENTRADA'!$B:$E,4,0)) -> 0.33 | O22: =IF(O17="","",VLOOKUP($B$22,'DADOS DE ENTRADA'!$B:$E,4,0)) ->  | P22: =IF(P17="","",VLOOKUP($B$22,'DADOS DE ENTRADA'!$B:$E,4,0)) ->  | Q22: =IF(Q17="","",VLOOKUP($B$22,'DADOS DE ENTRADA'!$B:$E,4,0)) ->  | R22: =IF(R17="","",VLOOKUP($B$22,'DADOS DE ENTRADA'!$B:$E,4,0)) ->  | S22: =IF(S17="","",VLOOKUP($B$22,'DADOS DE ENTRADA'!$B:$E,4,0)) ->  | T22: =IF(T17="","",VLOOKUP($B$22,'DADOS DE ENTRADA'!$B:$E,4,0)) ->  | U22: =IF(U17="","",VLOOKUP($B$22,'DADOS DE ENTRADA'!$B:$E,4,0)) -> 0.33 | V22: =IF(V17="","",VLOOKUP($B$22,'DADOS DE ENTRADA'!$B:$E,4,0)) -> 0.33 | W22: =IF(W17="","",VLOOKUP($B$22,'DADOS DE ENTRADA'!$B:$E,4,0)) -> 0.33 | X22: =IF(X17="","",VLOOKUP($B$22,'DADOS DE ENTRADA'!$B:$E,4,0)) ->  | Y22: =IF(Y17="","",VLOOKUP($B$22,'DADOS DE ENTRADA'!$B:$E,4,0)) -> 0.33 | Z22: =IF(Z17="","",VLOOKUP($B$22,'DADOS DE ENTRADA'!$B:$E,4,0)) -> 0.33 | AA22: =IF(AA17="","",VLOOKUP($B$22,'DADOS DE ENTRADA'!$B:$E,4,0)) ->  | AB22: =IF(AB17="","",VLOOKUP($B$22,'DADOS DE ENTRADA'!$B:$E,4,0)) ->  | AC22: =IF(AC17="","",VLOOKUP($B$22,'DADOS DE ENTRADA'!$B:$E,4,0)) ->  | AD22: =IF(AD17="","",VLOOKUP($B$22,'DADOS DE ENTRADA'!$B:$E,4,0)) ->  | AE22: =IF(AE17="","",VLOOKUP($B$22,'DADOS DE ENTRADA'!$B:$E,4,0)) ->  | AF22: =IF(AF17="","",VLOOKUP($B$22,'DADOS DE ENTRADA'!$B:$E,4,0)) -> 0.33 | AG22: =IF(AG17="","",VLOOKUP($B$22,'DADOS DE ENTRADA'!$B:$E,4,0)) ->  | AH22: =IF(AH17="","",VLOOKUP($B$22,'DADOS DE ENTRADA'!$B:$E,4,0)) -> 0.33 | AI22: =IF(AI17="","",VLOOKUP($B$22,'DADOS DE ENTRADA'!$B:$E,4,0)) ->  | AJ22: =IF(AJ17="","",VLOOKUP($B$22,'DADOS DE ENTRADA'!$B:$E,4,0)) ->  | AK22: =IF(AK17="","",VLOOKUP($B$22,'DADOS DE ENTRADA'!$B:$E,4,0)) ->  | AL22: =IF(AL17="","",VLOOKUP($B$22,'DADOS DE ENTRADA'!$B:$E,4,0)) ->  | AM22: =IF(AM17="","",VLOOKUP($B$22,'DADOS DE ENTRADA'!$B:$E,4,0)) -> 0.33 | AN22: =IF(AN17="","",VLOOKUP($B$22,'DADOS DE ENTRADA'!$B:$E,4,0)) -> 0.33 | AO22: =IF(AO17="","",VLOOKUP($B$22,'DADOS DE ENTRADA'!$B:$E,4,0)) ->  | AP22: =IF(AP17="","",VLOOKUP($B$22,'DADOS DE ENTRADA'!$B:$E,4,0)) ->  | AQ22: =IF(AQ17="","",VLOOKUP($B$22,'DADOS DE ENTRADA'!$B:$E,4,0)) ->  | AR22: =IF(AR17="","",VLOOKUP($B$22,'DADOS DE ENTRADA'!$B:$E,4,0)) ->  | AS22: =IF(AS17="","",VLOOKUP($B$22,'DADOS DE ENTRADA'!$B:$E,4,0)) -> 0.33 | AT22: =IF(AT17="","",VLOOKUP($B$22,'DADOS DE ENTRADA'!$B:$E,4,0)) ->  | AU22: =IF(AU17="","",VLOOKUP($B$22,'DADOS DE ENTRADA'!$B:$E,4,0)) ->  | AV22: =IF(AV17="","",VLOOKUP($B$22,'DADOS DE ENTRADA'!$B:$E,4,0)) -> 0.33 | AW22: =IF(AW17="","",VLOOKUP($B$22,'DADOS DE ENTRADA'!$B:$E,4,0)) ->  | AX22: =IF(AX17="","",VLOOKUP($B$22,'DADOS DE ENTRADA'!$B:$E,4,0)) ->  | AY22: =IF(AY17="","",VLOOKUP($B$22,'DADOS DE ENTRADA'!$B:$E,4,0)) -> 0.33 | AZ22: =IF(AZ17="","",VLOOKUP($B$22,'DADOS DE ENTRADA'!$B:$E,4,0)) -> 0.33 | BA22: =IF(BA17="","",VLOOKUP($B$22,'DADOS DE ENTRADA'!$B:$E,4,0)) ->  | BB22: =IF(BB17="","",VLOOKUP($B$22,'DADOS DE ENTRADA'!$B:$E,4,0)) ->  | BC22: =IF(BC17="","",VLOOKUP($B$22,'DADOS DE ENTRADA'!$B:$E,4,0)) ->  | BD22: =IF(BD17="","",VLOOKUP($B$22,'DADOS DE ENTRADA'!$B:$E,4,0)) ->  | BE22: =IF(BE17="","",VLOOKUP($B$22,'DADOS DE ENTRADA'!$B:$E,4,0)) -> 0.33 | BF22: =IF(BF17="","",VLOOKUP($B$22,'DADOS DE ENTRADA'!$B:$E,4,0)) ->  | BG22: =IF(BG17="","",VLOOKUP($B$22,'DADOS DE ENTRADA'!$B:$E,4,0)) ->  | BH22: =IF(BH17="","",VLOOKUP($B$22,'DADOS DE ENTRADA'!$B:$E,4,0)) ->  | BI22: =IF(BI17="","",VLOOKUP($B$22,'DADOS DE ENTRADA'!$B:$E,4,0)) ->  | BJ22: =IF(BJ17="","",VLOOKUP($B$22,'DADOS DE ENTRADA'!$B:$E,4,0)) ->  | BK22: =IF(BK17="","",VLOOKUP($B$22,'DADOS DE ENTRADA'!$B:$E,4,0)) ->  | BL22: =IF(BL17="","",VLOOKUP($B$22,'DADOS DE ENTRADA'!$B:$E,4,0)) ->  | BM22: =IF(BM17="","",VLOOKUP($B$22,'DADOS DE ENTRADA'!$B:$E,4,0)) -> 0.33 | BN22: =IF(BN17="","",VLOOKUP($B$22,'DADOS DE ENTRADA'!$B:$E,4,0)) -> 0.33 | BO22: =IF(BO17="","",VLOOKUP($B$22,'DADOS DE ENTRADA'!$B:$E,4,0)) -> 0.33 | BP22: =IF(BP17="","",VLOOKUP($B$22,'DADOS DE ENTRADA'!$B:$E,4,0)) -> 0.33 | BQ22: =IF(BQ17="","",VLOOKUP($B$22,'DADOS DE ENTRADA'!$B:$E,4,0)) -> 0.33 | BR22: =IF(BR17="","",VLOOKUP($B$22,'DADOS DE ENTRADA'!$B:$E,4,0)) -> 0.33 | BS22: =IF(BS17="","",VLOOKUP($B$22,'DADOS DE ENTRADA'!$B:$E,4,0)) -> 0.33 | BT22: =IF(BT17="","",VLOOKUP($B$22,'DADOS DE ENTRADA'!$B:$E,4,0)) -> 0.33 | BU22: =IF(BU17="","",VLOOKUP($B$22,'DADOS DE ENTRADA'!$B:$E,4,0)) -> 0.33 | BV22: =IF(BV17="","",VLOOKUP($B$22,'DADOS DE ENTRADA'!$B:$E,4,0)) -> 0.33 | BW22: =IF(BW17="","",VLOOKUP($B$22,'DADOS DE ENTRADA'!$B:$E,4,0)) -> 0.33 | BX22: =IF(BX17="","",VLOOKUP($B$22,'DADOS DE ENTRADA'!$B:$E,4,0)) -> 0.33 | BY22: =IF(BY17="","",VLOOKUP($B$22,'DADOS DE ENTRADA'!$B:$E,4,0)) -> 0.33 | BZ22: =IF(BZ17="","",VLOOKUP($B$22,'DADOS DE ENTRADA'!$B:$E,4,0)) -> 0.33 | CA22: =IF(CA17="","",VLOOKUP($B$22,'DADOS DE ENTRADA'!$B:$E,4,0)) -> 0.33 | CB22: =IF(CB17="","",VLOOKUP($B$22,'DADOS DE ENTRADA'!$B:$E,4,0)) -> 0.33 | CC22: =IF(CC17="","",VLOOKUP($B$22,'DADOS DE ENTRADA'!$B:$E,4,0)) -> 0.33 | CD22: =IF(CD17="","",VLOOKUP($B$22,'DADOS DE ENTRADA'!$B:$E,4,0)) ->  | CE22: =IF(CE17="","",VLOOKUP($B$22,'DADOS DE ENTRADA'!$B:$E,4,0)) -> 0.33 | CF22: =IF(CF17="","",VLOOKUP($B$22,'DADOS DE ENTRADA'!$B:$E,4,0)) -> 0.33 | CG22: =IF(CG17="","",VLOOKUP($B$22,'DADOS DE ENTRADA'!$B:$E,4,0)) -> 0.33 | CH22: =IF(CH17="","",VLOOKUP($B$22,'DADOS DE ENTRADA'!$B:$E,4,0)) ->  | CI22: =IF(CI17="","",VLOOKUP($B$22,'DADOS DE ENTRADA'!$B:$E,4,0)) -> 0.33 | CJ22: =IF(CJ17="","",VLOOKUP($B$22,'DADOS DE ENTRADA'!$B:$E,4,0)) -> 0.33 | CK22: =IF(CK17="","",VLOOKUP($B$22,'DADOS DE ENTRADA'!$B:$E,4,0)) -> 0.33 | CL22: =IF(CL17="","",VLOOKUP($B$22,'DADOS DE ENTRADA'!$B:$E,4,0)) -> 0.33 | CM22: =IF(CM17="","",VLOOKUP($B$22,'DADOS DE ENTRADA'!$B:$E,4,0)) -> 
B23: Espessura da camada de solo-cimento: | C23: erSC = | D23: m | E23: =IF(E18="","",VLOOKUP($B$23,'DADOS DE ENTRADA'!$B:$E,4,0)) -> 0.1 | F23: =IF(F18="","",VLOOKUP($B$23,'DADOS DE ENTRADA'!$B:$E,4,0)) -> 0.1 | G23: =IF(G18="","",VLOOKUP($B$23,'DADOS DE ENTRADA'!$B:$E,4,0)) -> 0.1 | H23: =IF(H18="","",VLOOKUP($B$23,'DADOS DE ENTRADA'!$B:$E,4,0)) -> 0.1 | I23: =IF(I18="","",VLOOKUP($B$23,'DADOS DE ENTRADA'!$B:$E,4,0)) -> 0.1 | J23: =IF(J18="","",VLOOKUP($B$23,'DADOS DE ENTRADA'!$B:$E,4,0)) -> 0.1 | K23: =IF(K18="","",VLOOKUP($B$23,'DADOS DE ENTRADA'!$B:$E,4,0)) -> 0.1 | L23: =IF(L18="","",VLOOKUP($B$23,'DADOS DE ENTRADA'!$B:$E,4,0)) -> 0.1 | M23: =IF(M18="","",VLOOKUP($B$23,'DADOS DE ENTRADA'!$B:$E,4,0)) -> 0.1 | N23: =IF(N18="","",VLOOKUP($B$23,'DADOS DE ENTRADA'!$B:$E,4,0)) -> 0.1 | O23: =IF(O18="","",VLOOKUP($B$23,'DADOS DE ENTRADA'!$B:$E,4,0)) ->  | P23: =IF(P18="","",VLOOKUP($B$23,'DADOS DE ENTRADA'!$B:$E,4,0)) ->  | Q23: =IF(Q18="","",VLOOKUP($B$23,'DADOS DE ENTRADA'!$B:$E,4,0)) ->  | R23: =IF(R18="","",VLOOKUP($B$23,'DADOS DE ENTRADA'!$B:$E,4,0)) ->  | S23: =IF(S18="","",VLOOKUP($B$23,'DADOS DE ENTRADA'!$B:$E,4,0)) ->  | T23: =IF(T18="","",VLOOKUP($B$23,'DADOS DE ENTRADA'!$B:$E,4,0)) ->  | U23: =IF(U18="","",VLOOKUP($B$23,'DADOS DE ENTRADA'!$B:$E,4,0)) -> 0.1 | V23: =IF(V18="","",VLOOKUP($B$23,'DADOS DE ENTRADA'!$B:$E,4,0)) -> 0.1 | W23: =IF(W18="","",VLOOKUP($B$23,'DADOS DE ENTRADA'!$B:$E,4,0)) -> 0.1 | X23: =IF(X18="","",VLOOKUP($B$23,'DADOS DE ENTRADA'!$B:$E,4,0)) ->  | Y23: =IF(Y18="","",VLOOKUP($B$23,'DADOS DE ENTRADA'!$B:$E,4,0)) -> 0.1 | Z23: =IF(Z18="","",VLOOKUP($B$23,'DADOS DE ENTRADA'!$B:$E,4,0)) -> 0.1 | AA23: =IF(AA18="","",VLOOKUP($B$23,'DADOS DE ENTRADA'!$B:$E,4,0)) ->  | AB23: =IF(AB18="","",VLOOKUP($B$23,'DADOS DE ENTRADA'!$B:$E,4,0)) ->  | AC23: =IF(AC18="","",VLOOKUP($B$23,'DADOS DE ENTRADA'!$B:$E,4,0)) ->  | AD23: =IF(AD18="","",VLOOKUP($B$23,'DADOS DE ENTRADA'!$B:$E,4,0)) ->  | AE23: =IF(AE18="","",VLOOKUP($B$23,'DADOS DE ENTRADA'!$B:$E,4,0)) ->  | AF23: =IF(AF18="","",VLOOKUP($B$23,'DADOS DE ENTRADA'!$B:$E,4,0)) -> 0.1 | AG23: =IF(AG18="","",VLOOKUP($B$23,'DADOS DE ENTRADA'!$B:$E,4,0)) ->  | AH23: =IF(AH18="","",VLOOKUP($B$23,'DADOS DE ENTRADA'!$B:$E,4,0)) -> 0.1 | AI23: =IF(AI18="","",VLOOKUP($B$23,'DADOS DE ENTRADA'!$B:$E,4,0)) ->  | AJ23: =IF(AJ18="","",VLOOKUP($B$23,'DADOS DE ENTRADA'!$B:$E,4,0)) ->  | AK23: =IF(AK18="","",VLOOKUP($B$23,'DADOS DE ENTRADA'!$B:$E,4,0)) ->  | AL23: =IF(AL18="","",VLOOKUP($B$23,'DADOS DE ENTRADA'!$B:$E,4,0)) ->  | AM23: =IF(AM18="","",VLOOKUP($B$23,'DADOS DE ENTRADA'!$B:$E,4,0)) -> 0.1 | AN23: =IF(AN18="","",VLOOKUP($B$23,'DADOS DE ENTRADA'!$B:$E,4,0)) -> 0.1 | AO23: =IF(AO18="","",VLOOKUP($B$23,'DADOS DE ENTRADA'!$B:$E,4,0)) ->  | AP23: =IF(AP18="","",VLOOKUP($B$23,'DADOS DE ENTRADA'!$B:$E,4,0)) ->  | AQ23: =IF(AQ18="","",VLOOKUP($B$23,'DADOS DE ENTRADA'!$B:$E,4,0)) ->  | AR23: =IF(AR18="","",VLOOKUP($B$23,'DADOS DE ENTRADA'!$B:$E,4,0)) ->  | AS23: =IF(AS18="","",VLOOKUP($B$23,'DADOS DE ENTRADA'!$B:$E,4,0)) -> 0.1 | AT23: =IF(AT18="","",VLOOKUP($B$23,'DADOS DE ENTRADA'!$B:$E,4,0)) ->  | AU23: =IF(AU18="","",VLOOKUP($B$23,'DADOS DE ENTRADA'!$B:$E,4,0)) ->  | AV23: =IF(AV18="","",VLOOKUP($B$23,'DADOS DE ENTRADA'!$B:$E,4,0)) -> 0.1 | AW23: =IF(AW18="","",VLOOKUP($B$23,'DADOS DE ENTRADA'!$B:$E,4,0)) ->  | AX23: =IF(AX18="","",VLOOKUP($B$23,'DADOS DE ENTRADA'!$B:$E,4,0)) ->  | AY23: =IF(AY18="","",VLOOKUP($B$23,'DADOS DE ENTRADA'!$B:$E,4,0)) -> 0.1 | AZ23: =IF(AZ18="","",VLOOKUP($B$23,'DADOS DE ENTRADA'!$B:$E,4,0)) -> 0.1 | BA23: =IF(BA18="","",VLOOKUP($B$23,'DADOS DE ENTRADA'!$B:$E,4,0)) ->  | BB23: =IF(BB18="","",VLOOKUP($B$23,'DADOS DE ENTRADA'!$B:$E,4,0)) ->  | BC23: =IF(BC18="","",VLOOKUP($B$23,'DADOS DE ENTRADA'!$B:$E,4,0)) ->  | BD23: =IF(BD18="","",VLOOKUP($B$23,'DADOS DE ENTRADA'!$B:$E,4,0)) ->  | BE23: =IF(BE18="","",VLOOKUP($B$23,'DADOS DE ENTRADA'!$B:$E,4,0)) -> 0.1 | BF23: =IF(BF18="","",VLOOKUP($B$23,'DADOS DE ENTRADA'!$B:$E,4,0)) ->  | BG23: =IF(BG18="","",VLOOKUP($B$23,'DADOS DE ENTRADA'!$B:$E,4,0)) ->  | BH23: =IF(BH18="","",VLOOKUP($B$23,'DADOS DE ENTRADA'!$B:$E,4,0)) ->  | BI23: =IF(BI18="","",VLOOKUP($B$23,'DADOS DE ENTRADA'!$B:$E,4,0)) ->  | BJ23: =IF(BJ18="","",VLOOKUP($B$23,'DADOS DE ENTRADA'!$B:$E,4,0)) ->  | BK23: =IF(BK18="","",VLOOKUP($B$23,'DADOS DE ENTRADA'!$B:$E,4,0)) ->  | BL23: =IF(BL18="","",VLOOKUP($B$23,'DADOS DE ENTRADA'!$B:$E,4,0)) ->  | BM23: =IF(BM18="","",VLOOKUP($B$23,'DADOS DE ENTRADA'!$B:$E,4,0)) -> 0.1 | BN23: =IF(BN18="","",VLOOKUP($B$23,'DADOS DE ENTRADA'!$B:$E,4,0)) -> 0.1 | BO23: =IF(BO18="","",VLOOKUP($B$23,'DADOS DE ENTRADA'!$B:$E,4,0)) -> 0.1 | BP23: =IF(BP18="","",VLOOKUP($B$23,'DADOS DE ENTRADA'!$B:$E,4,0)) -> 0.1 | BQ23: =IF(BQ18="","",VLOOKUP($B$23,'DADOS DE ENTRADA'!$B:$E,4,0)) -> 0.1 | BR23: =IF(BR18="","",VLOOKUP($B$23,'DADOS DE ENTRADA'!$B:$E,4,0)) -> 0.1 | BS23: =IF(BS18="","",VLOOKUP($B$23,'DADOS DE ENTRADA'!$B:$E,4,0)) -> 0.1 | BT23: =IF(BT18="","",VLOOKUP($B$23,'DADOS DE ENTRADA'!$B:$E,4,0)) -> 0.1 | BU23: =IF(BU18="","",VLOOKUP($B$23,'DADOS DE ENTRADA'!$B:$E,4,0)) -> 0.1 | BV23: =IF(BV18="","",VLOOKUP($B$23,'DADOS DE ENTRADA'!$B:$E,4,0)) -> 0.1 | BW23: =IF(BW18="","",VLOOKUP($B$23,'DADOS DE ENTRADA'!$B:$E,4,0)) -> 0.1 | BX23: =IF(BX18="","",VLOOKUP($B$23,'DADOS DE ENTRADA'!$B:$E,4,0)) -> 0.1 | BY23: =IF(BY18="","",VLOOKUP($B$23,'DADOS DE ENTRADA'!$B:$E,4,0)) -> 0.1 | BZ23: =IF(BZ18="","",VLOOKUP($B$23,'DADOS DE ENTRADA'!$B:$E,4,0)) -> 0.1 | CA23: =IF(CA18="","",VLOOKUP($B$23,'DADOS DE ENTRADA'!$B:$E,4,0)) -> 0.1 | CB23: =IF(CB18="","",VLOOKUP($B$23,'DADOS DE ENTRADA'!$B:$E,4,0)) -> 0.1 | CC23: =IF(CC18="","",VLOOKUP($B$23,'DADOS DE ENTRADA'!$B:$E,4,0)) -> 0.1 | CD23: =IF(CD18="","",VLOOKUP($B$23,'DADOS DE ENTRADA'!$B:$E,4,0)) ->  | CE23: =IF(CE18="","",VLOOKUP($B$23,'DADOS DE ENTRADA'!$B:$E,4,0)) -> 0.1 | CF23: =IF(CF18="","",VLOOKUP($B$23,'DADOS DE ENTRADA'!$B:$E,4,0)) -> 0.1 | CG23: =IF(CG18="","",VLOOKUP($B$23,'DADOS DE ENTRADA'!$B:$E,4,0)) -> 0.1 | CH23: =IF(CH18="","",VLOOKUP($B$23,'DADOS DE ENTRADA'!$B:$E,4,0)) ->  | CI23: =IF(CI18="","",VLOOKUP($B$23,'DADOS DE ENTRADA'!$B:$E,4,0)) -> 0.1 | CJ23: =IF(CJ18="","",VLOOKUP($B$23,'DADOS DE ENTRADA'!$B:$E,4,0)) -> 0.1 | CK23: =IF(CK18="","",VLOOKUP($B$23,'DADOS DE ENTRADA'!$B:$E,4,0)) -> 0.1 | CL23: =IF(CL18="","",VLOOKUP($B$23,'DADOS DE ENTRADA'!$B:$E,4,0)) -> 0.1 | CM23: =IF(CM18="","",VLOOKUP($B$23,'DADOS DE ENTRADA'!$B:$E,4,0)) -> 
B24: Área Solo a Retirar (Solo Impróprio): | C24: Acsr = | D24: m2 | E24: =IF(E14="","",E22*E33) -> 1.853400951 | F24: =IF(F14="","",F22*F33) -> 1.825399522 | G24: 1.797398094 | H24: 1.797398094 | I24: 1.727062856 | J24: 1.535388094 | K24: 0.9683709514 | L24: 0.8843666658 | M24: 0.8190299992 | N24: 0.6883566661 | U24: 0.9338666658 | V24: 0.9338666658 | W24: 0.9338666658 | Y24: 0.8376976183 | Z24: 0.7630271422 | AF24: 1.109041428 | AH24: 0.7636904756 | AM24: 0.9036976183 | AN24: 0.7916919041 | AS24: 0.6976904756 | AV24: 0.8756961897 | AY24: 1.003360952 | AZ24: 0.8190299992 | BE24: 0.8305314278 | BM24: 1.716927142 | BN24: 1.641376666 | BO24: 1.624876666 | BP24: 1.790054284 | BQ24: 1.756390951 | BR24: =IF(BR14="","",BR22*BR33) -> 1.756390951 | BS24: 1.756390951 | BT24: 1.76572476 | BU24: 1.756390951 | BV24: 1.756390951 | BW24: 1.756390951 | BX24: 1.448375237 | BY24: 0.9217019039 | BZ24: 0.8283638087 | CA24: 0.6976904756 | CB24: 0.6976904756 | CC24: 0.6976904756 | CE24: 0.8570285707 | CF24: 0.8010257136 | CG24: 0.7845257136 | CI24: 0.6811904756 | CJ24: 0.8570285707 | CK24: 0.7070242851 | CL24: 0.5878523805
B25: Área solo-cimento: | C25: Asolo-cim.= | D25: m2 | E25: =IF(E14="","",E23*E33) -> 0.5616366517 | F25: =IF(F14="","",F23*F33) -> 0.5531513703 | G25: 0.544666089 | H25: 0.544666089 | I25: 0.5233523805 | J25: 0.4652691193 | K25: 0.2934457429 | L25: 0.2679898987 | M25: 0.2481909089 | N25: 0.2085929291 | U25: 0.2829898987 | V25: 0.2829898987 | W25: 0.2829898987 | Y25: 0.2538477631 | Z25: 0.2312203461 | AF25: 0.3360731599 | AH25: 0.2314213562 | AM25: 0.2738477631 | AN25: 0.2399066376 | AS25: 0.2114213562 | AV25: 0.2653624817 | AY25: 0.3040487732 | AZ25: 0.2481909089 | BE25: 0.2516761902 | BM25: 0.5202809521 | BN25: 0.4973868684 | BO25: 0.4923868684 | BP25: 0.5424406922 | BQ25: 0.5322396821 | BR25: =IF(BR14="","",BR23*BR33) -> 0.5322396821 | BS25: 0.5322396821 | BT25: 0.5350681092 | BU25: 0.5322396821 | BV25: 0.5322396821 | BW25: 0.5322396821 | BX25: 0.438901587 | BY25: 0.2793036072 | BZ25: 0.251019336 | CA25: 0.2114213562 | CB25: 0.2114213562 | CC25: 0.2114213562 | CE25: 0.2597056275 | CF25: 0.2427350647 | CG25: 0.2377350647 | CI25: 0.2064213562 | CJ25: 0.2597056275 | CK25: 0.2142497834 | CL25: 0.178137085
B26: Recomposição de Berma c1: | C26: c1 = | D26: m | E26: 0 | F26: 0 | G26: 0 | H26: 0 | I26: 0 | J26: =IF(J21="","",VLOOKUP($B$26,'DADOS DE ENTRADA'!$B:$E,4,0)) ->  | K26: =IF(K21="","",VLOOKUP($B$26,'DADOS DE ENTRADA'!$B:$E,4,0)) ->  | L26: =IF(L21="","",VLOOKUP($B$26,'DADOS DE ENTRADA'!$B:$E,4,0)) ->  | M26: =IF(M21="","",VLOOKUP($B$26,'DADOS DE ENTRADA'!$B:$E,4,0)) ->  | N26: =IF(N21="","",VLOOKUP($B$26,'DADOS DE ENTRADA'!$B:$E,4,0)) ->  | O26: =IF(O21="","",VLOOKUP($B$26,'DADOS DE ENTRADA'!$B:$E,4,0)) ->  | P26: =IF(P21="","",VLOOKUP($B$26,'DADOS DE ENTRADA'!$B:$E,4,0)) ->  | Q26: =IF(Q21="","",VLOOKUP($B$26,'DADOS DE ENTRADA'!$B:$E,4,0)) ->  | R26: =IF(R21="","",VLOOKUP($B$26,'DADOS DE ENTRADA'!$B:$E,4,0)) ->  | S26: =IF(S21="","",VLOOKUP($B$26,'DADOS DE ENTRADA'!$B:$E,4,0)) ->  | T26: =IF(T21="","",VLOOKUP($B$26,'DADOS DE ENTRADA'!$B:$E,4,0)) ->  | U26: =IF(U21="","",VLOOKUP($B$26,'DADOS DE ENTRADA'!$B:$E,4,0)) ->  | V26: =IF(V21="","",VLOOKUP($B$26,'DADOS DE ENTRADA'!$B:$E,4,0)) ->  | W26: =IF(W21="","",VLOOKUP($B$26,'DADOS DE ENTRADA'!$B:$E,4,0)) ->  | X26: =IF(X21="","",VLOOKUP($B$26,'DADOS DE ENTRADA'!$B:$E,4,0)) ->  | Y26: =IF(Y21="","",VLOOKUP($B$26,'DADOS DE ENTRADA'!$B:$E,4,0)) ->  | Z26: =IF(Z21="","",VLOOKUP($B$26,'DADOS DE ENTRADA'!$B:$E,4,0)) ->  | AA26: =IF(AA21="","",VLOOKUP($B$26,'DADOS DE ENTRADA'!$B:$E,4,0)) ->  | AB26: =IF(AB21="","",VLOOKUP($B$26,'DADOS DE ENTRADA'!$B:$E,4,0)) ->  | AC26: =IF(AC21="","",VLOOKUP($B$26,'DADOS DE ENTRADA'!$B:$E,4,0)) ->  | AD26: =IF(AD21="","",VLOOKUP($B$26,'DADOS DE ENTRADA'!$B:$E,4,0)) ->  | AE26: =IF(AE21="","",VLOOKUP($B$26,'DADOS DE ENTRADA'!$B:$E,4,0)) ->  | AF26: =IF(AF21="","",VLOOKUP($B$26,'DADOS DE ENTRADA'!$B:$E,4,0)) ->  | AG26: =IF(AG21="","",VLOOKUP($B$26,'DADOS DE ENTRADA'!$B:$E,4,0)) ->  | AH26: =IF(AH21="","",VLOOKUP($B$26,'DADOS DE ENTRADA'!$B:$E,4,0)) ->  | AI26: =IF(AI21="","",VLOOKUP($B$26,'DADOS DE ENTRADA'!$B:$E,4,0)) ->  | AJ26: =IF(AJ21="","",VLOOKUP($B$26,'DADOS DE ENTRADA'!$B:$E,4,0)) ->  | AK26: =IF(AK21="","",VLOOKUP($B$26,'DADOS DE ENTRADA'!$B:$E,4,0)) ->  | AL26: =IF(AL21="","",VLOOKUP($B$26,'DADOS DE ENTRADA'!$B:$E,4,0)) ->  | AM26: =IF(AM21="","",VLOOKUP($B$26,'DADOS DE ENTRADA'!$B:$E,4,0)) ->  | AN26: =IF(AN21="","",VLOOKUP($B$26,'DADOS DE ENTRADA'!$B:$E,4,0)) ->  | AO26: =IF(AO21="","",VLOOKUP($B$26,'DADOS DE ENTRADA'!$B:$E,4,0)) ->  | AP26: =IF(AP21="","",VLOOKUP($B$26,'DADOS DE ENTRADA'!$B:$E,4,0)) ->  | AQ26: =IF(AQ21="","",VLOOKUP($B$26,'DADOS DE ENTRADA'!$B:$E,4,0)) ->  | AR26: =IF(AR21="","",VLOOKUP($B$26,'DADOS DE ENTRADA'!$B:$E,4,0)) ->  | AS26: =IF(AS21="","",VLOOKUP($B$26,'DADOS DE ENTRADA'!$B:$E,4,0)) ->  | AT26: =IF(AT21="","",VLOOKUP($B$26,'DADOS DE ENTRADA'!$B:$E,4,0)) ->  | AU26: =IF(AU21="","",VLOOKUP($B$26,'DADOS DE ENTRADA'!$B:$E,4,0)) ->  | AV26: =IF(AV21="","",VLOOKUP($B$26,'DADOS DE ENTRADA'!$B:$E,4,0)) ->  | AW26: =IF(AW21="","",VLOOKUP($B$26,'DADOS DE ENTRADA'!$B:$E,4,0)) ->  | AX26: =IF(AX21="","",VLOOKUP($B$26,'DADOS DE ENTRADA'!$B:$E,4,0)) ->  | AY26: =IF(AY21="","",VLOOKUP($B$26,'DADOS DE ENTRADA'!$B:$E,4,0)) ->  | AZ26: =IF(AZ21="","",VLOOKUP($B$26,'DADOS DE ENTRADA'!$B:$E,4,0)) ->  | BA26: =IF(BA21="","",VLOOKUP($B$26,'DADOS DE ENTRADA'!$B:$E,4,0)) ->  | BB26: =IF(BB21="","",VLOOKUP($B$26,'DADOS DE ENTRADA'!$B:$E,4,0)) ->  | BC26: =IF(BC21="","",VLOOKUP($B$26,'DADOS DE ENTRADA'!$B:$E,4,0)) ->  | BD26: =IF(BD21="","",VLOOKUP($B$26,'DADOS DE ENTRADA'!$B:$E,4,0)) ->  | BE26: =IF(BE21="","",VLOOKUP($B$26,'DADOS DE ENTRADA'!$B:$E,4,0)) ->  | BF26: =IF(BF21="","",VLOOKUP($B$26,'DADOS DE ENTRADA'!$B:$E,4,0)) ->  | BG26: =IF(BG21="","",VLOOKUP($B$26,'DADOS DE ENTRADA'!$B:$E,4,0)) ->  | BH26: =IF(BH21="","",VLOOKUP($B$26,'DADOS DE ENTRADA'!$B:$E,4,0)) ->  | BI26: =IF(BI21="","",VLOOKUP($B$26,'DADOS DE ENTRADA'!$B:$E,4,0)) ->  | BJ26: =IF(BJ21="","",VLOOKUP($B$26,'DADOS DE ENTRADA'!$B:$E,4,0)) ->  | BK26: =IF(BK21="","",VLOOKUP($B$26,'DADOS DE ENTRADA'!$B:$E,4,0)) ->  | BL26: =IF(BL21="","",VLOOKUP($B$26,'DADOS DE ENTRADA'!$B:$E,4,0)) ->  | BM26: =IF(BM21="","",VLOOKUP($B$26,'DADOS DE ENTRADA'!$B:$E,4,0)) ->  | BN26: =IF(BN21="","",VLOOKUP($B$26,'DADOS DE ENTRADA'!$B:$E,4,0)) ->  | BO26: =IF(BO21="","",VLOOKUP($B$26,'DADOS DE ENTRADA'!$B:$E,4,0)) ->  | BP26: =IF(BP21="","",VLOOKUP($B$26,'DADOS DE ENTRADA'!$B:$E,4,0)) ->  | BQ26: =IF(BQ21="","",VLOOKUP($B$26,'DADOS DE ENTRADA'!$B:$E,4,0)) ->  | BR26: =IF(BR21="","",VLOOKUP($B$26,'DADOS DE ENTRADA'!$B:$E,4,0)) ->  | BS26: =IF(BS21="","",VLOOKUP($B$26,'DADOS DE ENTRADA'!$B:$E,4,0)) ->  | BT26: =IF(BT21="","",VLOOKUP($B$26,'DADOS DE ENTRADA'!$B:$E,4,0)) ->  | BU26: =IF(BU21="","",VLOOKUP($B$26,'DADOS DE ENTRADA'!$B:$E,4,0)) ->  | BV26: =IF(BV21="","",VLOOKUP($B$26,'DADOS DE ENTRADA'!$B:$E,4,0)) ->  | BW26: =IF(BW21="","",VLOOKUP($B$26,'DADOS DE ENTRADA'!$B:$E,4,0)) ->  | BX26: =IF(BX21="","",VLOOKUP($B$26,'DADOS DE ENTRADA'!$B:$E,4,0)) ->  | BY26: =IF(BY21="","",VLOOKUP($B$26,'DADOS DE ENTRADA'!$B:$E,4,0)) ->  | BZ26: =IF(BZ21="","",VLOOKUP($B$26,'DADOS DE ENTRADA'!$B:$E,4,0)) ->  | CA26: =IF(CA21="","",VLOOKUP($B$26,'DADOS DE ENTRADA'!$B:$E,4,0)) ->  | CB26: =IF(CB21="","",VLOOKUP($B$26,'DADOS DE ENTRADA'!$B:$E,4,0)) ->  | CC26: =IF(CC21="","",VLOOKUP($B$26,'DADOS DE ENTRADA'!$B:$E,4,0)) ->  | CD26: =IF(CD21="","",VLOOKUP($B$26,'DADOS DE ENTRADA'!$B:$E,4,0)) ->  | CE26: =IF(CE21="","",VLOOKUP($B$26,'DADOS DE ENTRADA'!$B:$E,4,0)) ->  | CF26: =IF(CF21="","",VLOOKUP($B$26,'DADOS DE ENTRADA'!$B:$E,4,0)) ->  | CG26: =IF(CG21="","",VLOOKUP($B$26,'DADOS DE ENTRADA'!$B:$E,4,0)) ->  | CH26: =IF(CH21="","",VLOOKUP($B$26,'DADOS DE ENTRADA'!$B:$E,4,0)) ->  | CI26: =IF(CI21="","",VLOOKUP($B$26,'DADOS DE ENTRADA'!$B:$E,4,0)) ->  | CJ26: =IF(CJ21="","",VLOOKUP($B$26,'DADOS DE ENTRADA'!$B:$E,4,0)) ->  | CK26: =IF(CK21="","",VLOOKUP($B$26,'DADOS DE ENTRADA'!$B:$E,4,0)) ->  | CL26: =IF(CL21="","",VLOOKUP($B$26,'DADOS DE ENTRADA'!$B:$E,4,0)) ->  | CM26: =IF(CM21="","",VLOOKUP($B$26,'DADOS DE ENTRADA'!$B:$E,4,0)) -> 
B27: Recomposição de Berma c2: | C27: c2 = | D27: m | E27: 0 | F27: 0 | G27: 0 | H27: 0 | I27: 0 | J27: =IF(J22="","",VLOOKUP($B$27,'DADOS DE ENTRADA'!$B:$E,4,0)) ->  | K27: =IF(K22="","",VLOOKUP($B$27,'DADOS DE ENTRADA'!$B:$E,4,0)) ->  | L27: =IF(L22="","",VLOOKUP($B$27,'DADOS DE ENTRADA'!$B:$E,4,0)) ->  | M27: =IF(M22="","",VLOOKUP($B$27,'DADOS DE ENTRADA'!$B:$E,4,0)) ->  | N27: =IF(N22="","",VLOOKUP($B$27,'DADOS DE ENTRADA'!$B:$E,4,0)) ->  | O27: =IF(O22="","",VLOOKUP($B$27,'DADOS DE ENTRADA'!$B:$E,4,0)) ->  | P27: =IF(P22="","",VLOOKUP($B$27,'DADOS DE ENTRADA'!$B:$E,4,0)) ->  | Q27: =IF(Q22="","",VLOOKUP($B$27,'DADOS DE ENTRADA'!$B:$E,4,0)) ->  | R27: =IF(R22="","",VLOOKUP($B$27,'DADOS DE ENTRADA'!$B:$E,4,0)) ->  | S27: =IF(S22="","",VLOOKUP($B$27,'DADOS DE ENTRADA'!$B:$E,4,0)) ->  | T27: =IF(T22="","",VLOOKUP($B$27,'DADOS DE ENTRADA'!$B:$E,4,0)) ->  | U27: =IF(U22="","",VLOOKUP($B$27,'DADOS DE ENTRADA'!$B:$E,4,0)) ->  | V27: =IF(V22="","",VLOOKUP($B$27,'DADOS DE ENTRADA'!$B:$E,4,0)) ->  | W27: =IF(W22="","",VLOOKUP($B$27,'DADOS DE ENTRADA'!$B:$E,4,0)) ->  | X27: =IF(X22="","",VLOOKUP($B$27,'DADOS DE ENTRADA'!$B:$E,4,0)) ->  | Y27: =IF(Y22="","",VLOOKUP($B$27,'DADOS DE ENTRADA'!$B:$E,4,0)) ->  | Z27: =IF(Z22="","",VLOOKUP($B$27,'DADOS DE ENTRADA'!$B:$E,4,0)) ->  | AA27: =IF(AA22="","",VLOOKUP($B$27,'DADOS DE ENTRADA'!$B:$E,4,0)) ->  | AB27: =IF(AB22="","",VLOOKUP($B$27,'DADOS DE ENTRADA'!$B:$E,4,0)) ->  | AC27: =IF(AC22="","",VLOOKUP($B$27,'DADOS DE ENTRADA'!$B:$E,4,0)) ->  | AD27: =IF(AD22="","",VLOOKUP($B$27,'DADOS DE ENTRADA'!$B:$E,4,0)) ->  | AE27: =IF(AE22="","",VLOOKUP($B$27,'DADOS DE ENTRADA'!$B:$E,4,0)) ->  | AF27: =IF(AF22="","",VLOOKUP($B$27,'DADOS DE ENTRADA'!$B:$E,4,0)) ->  | AG27: =IF(AG22="","",VLOOKUP($B$27,'DADOS DE ENTRADA'!$B:$E,4,0)) ->  | AH27: =IF(AH22="","",VLOOKUP($B$27,'DADOS DE ENTRADA'!$B:$E,4,0)) ->  | AI27: =IF(AI22="","",VLOOKUP($B$27,'DADOS DE ENTRADA'!$B:$E,4,0)) ->  | AJ27: =IF(AJ22="","",VLOOKUP($B$27,'DADOS DE ENTRADA'!$B:$E,4,0)) ->  | AK27: =IF(AK22="","",VLOOKUP($B$27,'DADOS DE ENTRADA'!$B:$E,4,0)) ->  | AL27: =IF(AL22="","",VLOOKUP($B$27,'DADOS DE ENTRADA'!$B:$E,4,0)) ->  | AM27: =IF(AM22="","",VLOOKUP($B$27,'DADOS DE ENTRADA'!$B:$E,4,0)) ->  | AN27: =IF(AN22="","",VLOOKUP($B$27,'DADOS DE ENTRADA'!$B:$E,4,0)) ->  | AO27: =IF(AO22="","",VLOOKUP($B$27,'DADOS DE ENTRADA'!$B:$E,4,0)) ->  | AP27: =IF(AP22="","",VLOOKUP($B$27,'DADOS DE ENTRADA'!$B:$E,4,0)) ->  | AQ27: =IF(AQ22="","",VLOOKUP($B$27,'DADOS DE ENTRADA'!$B:$E,4,0)) ->  | AR27: =IF(AR22="","",VLOOKUP($B$27,'DADOS DE ENTRADA'!$B:$E,4,0)) ->  | AS27: =IF(AS22="","",VLOOKUP($B$27,'DADOS DE ENTRADA'!$B:$E,4,0)) ->  | AT27: =IF(AT22="","",VLOOKUP($B$27,'DADOS DE ENTRADA'!$B:$E,4,0)) ->  | AU27: =IF(AU22="","",VLOOKUP($B$27,'DADOS DE ENTRADA'!$B:$E,4,0)) ->  | AV27: =IF(AV22="","",VLOOKUP($B$27,'DADOS DE ENTRADA'!$B:$E,4,0)) ->  | AW27: =IF(AW22="","",VLOOKUP($B$27,'DADOS DE ENTRADA'!$B:$E,4,0)) ->  | AX27: =IF(AX22="","",VLOOKUP($B$27,'DADOS DE ENTRADA'!$B:$E,4,0)) ->  | AY27: =IF(AY22="","",VLOOKUP($B$27,'DADOS DE ENTRADA'!$B:$E,4,0)) ->  | AZ27: =IF(AZ22="","",VLOOKUP($B$27,'DADOS DE ENTRADA'!$B:$E,4,0)) ->  | BA27: =IF(BA22="","",VLOOKUP($B$27,'DADOS DE ENTRADA'!$B:$E,4,0)) ->  | BB27: =IF(BB22="","",VLOOKUP($B$27,'DADOS DE ENTRADA'!$B:$E,4,0)) ->  | BC27: =IF(BC22="","",VLOOKUP($B$27,'DADOS DE ENTRADA'!$B:$E,4,0)) ->  | BD27: =IF(BD22="","",VLOOKUP($B$27,'DADOS DE ENTRADA'!$B:$E,4,0)) ->  | BE27: =IF(BE22="","",VLOOKUP($B$27,'DADOS DE ENTRADA'!$B:$E,4,0)) ->  | BF27: =IF(BF22="","",VLOOKUP($B$27,'DADOS DE ENTRADA'!$B:$E,4,0)) ->  | BG27: =IF(BG22="","",VLOOKUP($B$27,'DADOS DE ENTRADA'!$B:$E,4,0)) ->  | BH27: =IF(BH22="","",VLOOKUP($B$27,'DADOS DE ENTRADA'!$B:$E,4,0)) ->  | BI27: =IF(BI22="","",VLOOKUP($B$27,'DADOS DE ENTRADA'!$B:$E,4,0)) ->  | BJ27: =IF(BJ22="","",VLOOKUP($B$27,'DADOS DE ENTRADA'!$B:$E,4,0)) ->  | BK27: =IF(BK22="","",VLOOKUP($B$27,'DADOS DE ENTRADA'!$B:$E,4,0)) ->  | BL27: =IF(BL22="","",VLOOKUP($B$27,'DADOS DE ENTRADA'!$B:$E,4,0)) ->  | BM27: =IF(BM22="","",VLOOKUP($B$27,'DADOS DE ENTRADA'!$B:$E,4,0)) ->  | BN27: =IF(BN22="","",VLOOKUP($B$27,'DADOS DE ENTRADA'!$B:$E,4,0)) ->  | BO27: =IF(BO22="","",VLOOKUP($B$27,'DADOS DE ENTRADA'!$B:$E,4,0)) ->  | BP27: =IF(BP22="","",VLOOKUP($B$27,'DADOS DE ENTRADA'!$B:$E,4,0)) ->  | BQ27: =IF(BQ22="","",VLOOKUP($B$27,'DADOS DE ENTRADA'!$B:$E,4,0)) ->  | BR27: =IF(BR22="","",VLOOKUP($B$27,'DADOS DE ENTRADA'!$B:$E,4,0)) ->  | BS27: =IF(BS22="","",VLOOKUP($B$27,'DADOS DE ENTRADA'!$B:$E,4,0)) ->  | BT27: =IF(BT22="","",VLOOKUP($B$27,'DADOS DE ENTRADA'!$B:$E,4,0)) ->  | BU27: =IF(BU22="","",VLOOKUP($B$27,'DADOS DE ENTRADA'!$B:$E,4,0)) ->  | BV27: =IF(BV22="","",VLOOKUP($B$27,'DADOS DE ENTRADA'!$B:$E,4,0)) ->  | BW27: =IF(BW22="","",VLOOKUP($B$27,'DADOS DE ENTRADA'!$B:$E,4,0)) ->  | BX27: =IF(BX22="","",VLOOKUP($B$27,'DADOS DE ENTRADA'!$B:$E,4,0)) ->  | BY27: =IF(BY22="","",VLOOKUP($B$27,'DADOS DE ENTRADA'!$B:$E,4,0)) ->  | BZ27: =IF(BZ22="","",VLOOKUP($B$27,'DADOS DE ENTRADA'!$B:$E,4,0)) ->  | CA27: =IF(CA22="","",VLOOKUP($B$27,'DADOS DE ENTRADA'!$B:$E,4,0)) ->  | CB27: =IF(CB22="","",VLOOKUP($B$27,'DADOS DE ENTRADA'!$B:$E,4,0)) ->  | CC27: =IF(CC22="","",VLOOKUP($B$27,'DADOS DE ENTRADA'!$B:$E,4,0)) ->  | CD27: =IF(CD22="","",VLOOKUP($B$27,'DADOS DE ENTRADA'!$B:$E,4,0)) ->  | CE27: =IF(CE22="","",VLOOKUP($B$27,'DADOS DE ENTRADA'!$B:$E,4,0)) ->  | CF27: =IF(CF22="","",VLOOKUP($B$27,'DADOS DE ENTRADA'!$B:$E,4,0)) ->  | CG27: =IF(CG22="","",VLOOKUP($B$27,'DADOS DE ENTRADA'!$B:$E,4,0)) ->  | CH27: =IF(CH22="","",VLOOKUP($B$27,'DADOS DE ENTRADA'!$B:$E,4,0)) ->  | CI27: =IF(CI22="","",VLOOKUP($B$27,'DADOS DE ENTRADA'!$B:$E,4,0)) ->  | CJ27: =IF(CJ22="","",VLOOKUP($B$27,'DADOS DE ENTRADA'!$B:$E,4,0)) ->  | CK27: =IF(CK22="","",VLOOKUP($B$27,'DADOS DE ENTRADA'!$B:$E,4,0)) ->  | CL27: =IF(CL22="","",VLOOKUP($B$27,'DADOS DE ENTRADA'!$B:$E,4,0)) ->  | CM27: =IF(CM22="","",VLOOKUP($B$27,'DADOS DE ENTRADA'!$B:$E,4,0)) -> 
B28: Recomposição de Berma c3: | C28: c3 = | D28: m | E28: 0 | F28: 0 | G28: 0 | H28: 0 | I28: 0 | J28: =IF(J23="","",VLOOKUP($B$28,'DADOS DE ENTRADA'!$B:$E,4,0)) ->  | K28: =IF(K23="","",VLOOKUP($B$28,'DADOS DE ENTRADA'!$B:$E,4,0)) ->  | L28: =IF(L23="","",VLOOKUP($B$28,'DADOS DE ENTRADA'!$B:$E,4,0)) ->  | M28: =IF(M23="","",VLOOKUP($B$28,'DADOS DE ENTRADA'!$B:$E,4,0)) ->  | N28: =IF(N23="","",VLOOKUP($B$28,'DADOS DE ENTRADA'!$B:$E,4,0)) ->  | O28: =IF(O23="","",VLOOKUP($B$28,'DADOS DE ENTRADA'!$B:$E,4,0)) ->  | P28: =IF(P23="","",VLOOKUP($B$28,'DADOS DE ENTRADA'!$B:$E,4,0)) ->  | Q28: =IF(Q23="","",VLOOKUP($B$28,'DADOS DE ENTRADA'!$B:$E,4,0)) ->  | R28: =IF(R23="","",VLOOKUP($B$28,'DADOS DE ENTRADA'!$B:$E,4,0)) ->  | S28: =IF(S23="","",VLOOKUP($B$28,'DADOS DE ENTRADA'!$B:$E,4,0)) ->  | T28: =IF(T23="","",VLOOKUP($B$28,'DADOS DE ENTRADA'!$B:$E,4,0)) ->  | U28: =IF(U23="","",VLOOKUP($B$28,'DADOS DE ENTRADA'!$B:$E,4,0)) ->  | V28: =IF(V23="","",VLOOKUP($B$28,'DADOS DE ENTRADA'!$B:$E,4,0)) ->  | W28: =IF(W23="","",VLOOKUP($B$28,'DADOS DE ENTRADA'!$B:$E,4,0)) ->  | X28: =IF(X23="","",VLOOKUP($B$28,'DADOS DE ENTRADA'!$B:$E,4,0)) ->  | Y28: =IF(Y23="","",VLOOKUP($B$28,'DADOS DE ENTRADA'!$B:$E,4,0)) ->  | Z28: =IF(Z23="","",VLOOKUP($B$28,'DADOS DE ENTRADA'!$B:$E,4,0)) ->  | AA28: =IF(AA23="","",VLOOKUP($B$28,'DADOS DE ENTRADA'!$B:$E,4,0)) ->  | AB28: =IF(AB23="","",VLOOKUP($B$28,'DADOS DE ENTRADA'!$B:$E,4,0)) ->  | AC28: =IF(AC23="","",VLOOKUP($B$28,'DADOS DE ENTRADA'!$B:$E,4,0)) ->  | AD28: =IF(AD23="","",VLOOKUP($B$28,'DADOS DE ENTRADA'!$B:$E,4,0)) ->  | AE28: =IF(AE23="","",VLOOKUP($B$28,'DADOS DE ENTRADA'!$B:$E,4,0)) ->  | AF28: =IF(AF23="","",VLOOKUP($B$28,'DADOS DE ENTRADA'!$B:$E,4,0)) ->  | AG28: =IF(AG23="","",VLOOKUP($B$28,'DADOS DE ENTRADA'!$B:$E,4,0)) ->  | AH28: =IF(AH23="","",VLOOKUP($B$28,'DADOS DE ENTRADA'!$B:$E,4,0)) ->  | AI28: =IF(AI23="","",VLOOKUP($B$28,'DADOS DE ENTRADA'!$B:$E,4,0)) ->  | AJ28: =IF(AJ23="","",VLOOKUP($B$28,'DADOS DE ENTRADA'!$B:$E,4,0)) ->  | AK28: =IF(AK23="","",VLOOKUP($B$28,'DADOS DE ENTRADA'!$B:$E,4,0)) ->  | AL28: =IF(AL23="","",VLOOKUP($B$28,'DADOS DE ENTRADA'!$B:$E,4,0)) ->  | AM28: =IF(AM23="","",VLOOKUP($B$28,'DADOS DE ENTRADA'!$B:$E,4,0)) ->  | AN28: =IF(AN23="","",VLOOKUP($B$28,'DADOS DE ENTRADA'!$B:$E,4,0)) ->  | AO28: =IF(AO23="","",VLOOKUP($B$28,'DADOS DE ENTRADA'!$B:$E,4,0)) ->  | AP28: =IF(AP23="","",VLOOKUP($B$28,'DADOS DE ENTRADA'!$B:$E,4,0)) ->  | AQ28: =IF(AQ23="","",VLOOKUP($B$28,'DADOS DE ENTRADA'!$B:$E,4,0)) ->  | AR28: =IF(AR23="","",VLOOKUP($B$28,'DADOS DE ENTRADA'!$B:$E,4,0)) ->  | AS28: =IF(AS23="","",VLOOKUP($B$28,'DADOS DE ENTRADA'!$B:$E,4,0)) ->  | AT28: =IF(AT23="","",VLOOKUP($B$28,'DADOS DE ENTRADA'!$B:$E,4,0)) ->  | AU28: =IF(AU23="","",VLOOKUP($B$28,'DADOS DE ENTRADA'!$B:$E,4,0)) ->  | AV28: =IF(AV23="","",VLOOKUP($B$28,'DADOS DE ENTRADA'!$B:$E,4,0)) ->  | AW28: =IF(AW23="","",VLOOKUP($B$28,'DADOS DE ENTRADA'!$B:$E,4,0)) ->  | AX28: =IF(AX23="","",VLOOKUP($B$28,'DADOS DE ENTRADA'!$B:$E,4,0)) ->  | AY28: =IF(AY23="","",VLOOKUP($B$28,'DADOS DE ENTRADA'!$B:$E,4,0)) ->  | AZ28: =IF(AZ23="","",VLOOKUP($B$28,'DADOS DE ENTRADA'!$B:$E,4,0)) ->  | BA28: =IF(BA23="","",VLOOKUP($B$28,'DADOS DE ENTRADA'!$B:$E,4,0)) ->  | BB28: =IF(BB23="","",VLOOKUP($B$28,'DADOS DE ENTRADA'!$B:$E,4,0)) ->  | BC28: =IF(BC23="","",VLOOKUP($B$28,'DADOS DE ENTRADA'!$B:$E,4,0)) ->  | BD28: =IF(BD23="","",VLOOKUP($B$28,'DADOS DE ENTRADA'!$B:$E,4,0)) ->  | BE28: =IF(BE23="","",VLOOKUP($B$28,'DADOS DE ENTRADA'!$B:$E,4,0)) ->  | BF28: =IF(BF23="","",VLOOKUP($B$28,'DADOS DE ENTRADA'!$B:$E,4,0)) ->  | BG28: =IF(BG23="","",VLOOKUP($B$28,'DADOS DE ENTRADA'!$B:$E,4,0)) ->  | BH28: =IF(BH23="","",VLOOKUP($B$28,'DADOS DE ENTRADA'!$B:$E,4,0)) ->  | BI28: =IF(BI23="","",VLOOKUP($B$28,'DADOS DE ENTRADA'!$B:$E,4,0)) ->  | BJ28: =IF(BJ23="","",VLOOKUP($B$28,'DADOS DE ENTRADA'!$B:$E,4,0)) ->  | BK28: =IF(BK23="","",VLOOKUP($B$28,'DADOS DE ENTRADA'!$B:$E,4,0)) ->  | BL28: =IF(BL23="","",VLOOKUP($B$28,'DADOS DE ENTRADA'!$B:$E,4,0)) ->  | BM28: =IF(BM23="","",VLOOKUP($B$28,'DADOS DE ENTRADA'!$B:$E,4,0)) ->  | BN28: =IF(BN23="","",VLOOKUP($B$28,'DADOS DE ENTRADA'!$B:$E,4,0)) ->  | BO28: =IF(BO23="","",VLOOKUP($B$28,'DADOS DE ENTRADA'!$B:$E,4,0)) ->  | BP28: =IF(BP23="","",VLOOKUP($B$28,'DADOS DE ENTRADA'!$B:$E,4,0)) ->  | BQ28: =IF(BQ23="","",VLOOKUP($B$28,'DADOS DE ENTRADA'!$B:$E,4,0)) ->  | BR28: =IF(BR23="","",VLOOKUP($B$28,'DADOS DE ENTRADA'!$B:$E,4,0)) ->  | BS28: =IF(BS23="","",VLOOKUP($B$28,'DADOS DE ENTRADA'!$B:$E,4,0)) ->  | BT28: =IF(BT23="","",VLOOKUP($B$28,'DADOS DE ENTRADA'!$B:$E,4,0)) ->  | BU28: =IF(BU23="","",VLOOKUP($B$28,'DADOS DE ENTRADA'!$B:$E,4,0)) ->  | BV28: =IF(BV23="","",VLOOKUP($B$28,'DADOS DE ENTRADA'!$B:$E,4,0)) ->  | BW28: =IF(BW23="","",VLOOKUP($B$28,'DADOS DE ENTRADA'!$B:$E,4,0)) ->  | BX28: =IF(BX23="","",VLOOKUP($B$28,'DADOS DE ENTRADA'!$B:$E,4,0)) ->  | BY28: =IF(BY23="","",VLOOKUP($B$28,'DADOS DE ENTRADA'!$B:$E,4,0)) ->  | BZ28: =IF(BZ23="","",VLOOKUP($B$28,'DADOS DE ENTRADA'!$B:$E,4,0)) ->  | CA28: =IF(CA23="","",VLOOKUP($B$28,'DADOS DE ENTRADA'!$B:$E,4,0)) ->  | CB28: =IF(CB23="","",VLOOKUP($B$28,'DADOS DE ENTRADA'!$B:$E,4,0)) ->  | CC28: =IF(CC23="","",VLOOKUP($B$28,'DADOS DE ENTRADA'!$B:$E,4,0)) ->  | CD28: =IF(CD23="","",VLOOKUP($B$28,'DADOS DE ENTRADA'!$B:$E,4,0)) ->  | CE28: =IF(CE23="","",VLOOKUP($B$28,'DADOS DE ENTRADA'!$B:$E,4,0)) ->  | CF28: =IF(CF23="","",VLOOKUP($B$28,'DADOS DE ENTRADA'!$B:$E,4,0)) ->  | CG28: =IF(CG23="","",VLOOKUP($B$28,'DADOS DE ENTRADA'!$B:$E,4,0)) ->  | CH28: =IF(CH23="","",VLOOKUP($B$28,'DADOS DE ENTRADA'!$B:$E,4,0)) ->  | CI28: =IF(CI23="","",VLOOKUP($B$28,'DADOS DE ENTRADA'!$B:$E,4,0)) ->  | CJ28: =IF(CJ23="","",VLOOKUP($B$28,'DADOS DE ENTRADA'!$B:$E,4,0)) ->  | CK28: =IF(CK23="","",VLOOKUP($B$28,'DADOS DE ENTRADA'!$B:$E,4,0)) ->  | CL28: =IF(CL23="","",VLOOKUP($B$28,'DADOS DE ENTRADA'!$B:$E,4,0)) ->  | CM28: =IF(CM23="","",VLOOKUP($B$28,'DADOS DE ENTRADA'!$B:$E,4,0)) -> 
C29: área = | D29: m2 | E29: =IF(E14="","",((E26+E27)/2)*E28) -> 0 | F29: =IF(F14="","",((F26+F27)/2)*F28) -> 0 | G29: 0 | H29: 0 | I29: 0 | BR29: =IF(BR14="","",((BR26+BR27)/2)*BR28) -> 
B30: Ancoragem (Largura): | C30: a = | D30: m | E30: =IF(E14="","",VLOOKUP($B$30,'DADOS DE ENTRADA'!$B:$E,4,0)) -> 0.2 | F30: =IF(F14="","",VLOOKUP($B$30,'DADOS DE ENTRADA'!$B:$E,4,0)) -> 0.2 | G30: =IF(G14="","",VLOOKUP($B$30,'DADOS DE ENTRADA'!$B:$E,4,0)) -> 0.2 | H30: =IF(H14="","",VLOOKUP($B$30,'DADOS DE ENTRADA'!$B:$E,4,0)) -> 0.2 | I30: =IF(I14="","",VLOOKUP($B$30,'DADOS DE ENTRADA'!$B:$E,4,0)) -> 0.2 | J30: =IF(J25="","",VLOOKUP($B$30,'DADOS DE ENTRADA'!$B:$E,4,0)) -> 0.2 | K30: =IF(K25="","",VLOOKUP($B$30,'DADOS DE ENTRADA'!$B:$E,4,0)) -> 0.2 | L30: =IF(L25="","",VLOOKUP($B$30,'DADOS DE ENTRADA'!$B:$E,4,0)) -> 0.2 | M30: =IF(M25="","",VLOOKUP($B$30,'DADOS DE ENTRADA'!$B:$E,4,0)) -> 0.2 | N30: =IF(N25="","",VLOOKUP($B$30,'DADOS DE ENTRADA'!$B:$E,4,0)) -> 0.2 | O30: =IF(O25="","",VLOOKUP($B$30,'DADOS DE ENTRADA'!$B:$E,4,0)) ->  | P30: =IF(P25="","",VLOOKUP($B$30,'DADOS DE ENTRADA'!$B:$E,4,0)) ->  | Q30: =IF(Q25="","",VLOOKUP($B$30,'DADOS DE ENTRADA'!$B:$E,4,0)) ->  | R30: =IF(R25="","",VLOOKUP($B$30,'DADOS DE ENTRADA'!$B:$E,4,0)) ->  | S30: =IF(S25="","",VLOOKUP($B$30,'DADOS DE ENTRADA'!$B:$E,4,0)) ->  | T30: =IF(T25="","",VLOOKUP($B$30,'DADOS DE ENTRADA'!$B:$E,4,0)) ->  | U30: =IF(U25="","",VLOOKUP($B$30,'DADOS DE ENTRADA'!$B:$E,4,0)) -> 0.2 | V30: =IF(V25="","",VLOOKUP($B$30,'DADOS DE ENTRADA'!$B:$E,4,0)) -> 0.2 | W30: =IF(W25="","",VLOOKUP($B$30,'DADOS DE ENTRADA'!$B:$E,4,0)) -> 0.2 | X30: =IF(X25="","",VLOOKUP($B$30,'DADOS DE ENTRADA'!$B:$E,4,0)) ->  | Y30: =IF(Y25="","",VLOOKUP($B$30,'DADOS DE ENTRADA'!$B:$E,4,0)) -> 0.2 | Z30: =IF(Z25="","",VLOOKUP($B$30,'DADOS DE ENTRADA'!$B:$E,4,0)) -> 0.2 | AA30: =IF(AA25="","",VLOOKUP($B$30,'DADOS DE ENTRADA'!$B:$E,4,0)) ->  | AB30: =IF(AB25="","",VLOOKUP($B$30,'DADOS DE ENTRADA'!$B:$E,4,0)) ->  | AC30: =IF(AC25="","",VLOOKUP($B$30,'DADOS DE ENTRADA'!$B:$E,4,0)) ->  | AD30: =IF(AD25="","",VLOOKUP($B$30,'DADOS DE ENTRADA'!$B:$E,4,0)) ->  | AE30: =IF(AE25="","",VLOOKUP($B$30,'DADOS DE ENTRADA'!$B:$E,4,0)) ->  | AF30: =IF(AF25="","",VLOOKUP($B$30,'DADOS DE ENTRADA'!$B:$E,4,0)) -> 0.2 | AG30: =IF(AG25="","",VLOOKUP($B$30,'DADOS DE ENTRADA'!$B:$E,4,0)) ->  | AH30: =IF(AH25="","",VLOOKUP($B$30,'DADOS DE ENTRADA'!$B:$E,4,0)) -> 0.2 | AI30: =IF(AI25="","",VLOOKUP($B$30,'DADOS DE ENTRADA'!$B:$E,4,0)) ->  | AJ30: =IF(AJ25="","",VLOOKUP($B$30,'DADOS DE ENTRADA'!$B:$E,4,0)) ->  | AK30: =IF(AK25="","",VLOOKUP($B$30,'DADOS DE ENTRADA'!$B:$E,4,0)) ->  | AL30: =IF(AL25="","",VLOOKUP($B$30,'DADOS DE ENTRADA'!$B:$E,4,0)) ->  | AM30: =IF(AM25="","",VLOOKUP($B$30,'DADOS DE ENTRADA'!$B:$E,4,0)) -> 0.2 | AN30: =IF(AN25="","",VLOOKUP($B$30,'DADOS DE ENTRADA'!$B:$E,4,0)) -> 0.2 | AO30: =IF(AO25="","",VLOOKUP($B$30,'DADOS DE ENTRADA'!$B:$E,4,0)) ->  | AP30: =IF(AP25="","",VLOOKUP($B$30,'DADOS DE ENTRADA'!$B:$E,4,0)) ->  | AQ30: =IF(AQ25="","",VLOOKUP($B$30,'DADOS DE ENTRADA'!$B:$E,4,0)) ->  | AR30: =IF(AR25="","",VLOOKUP($B$30,'DADOS DE ENTRADA'!$B:$E,4,0)) ->  | AS30: =IF(AS25="","",VLOOKUP($B$30,'DADOS DE ENTRADA'!$B:$E,4,0)) -> 0.2 | AT30: =IF(AT25="","",VLOOKUP($B$30,'DADOS DE ENTRADA'!$B:$E,4,0)) ->  | AU30: =IF(AU25="","",VLOOKUP($B$30,'DADOS DE ENTRADA'!$B:$E,4,0)) ->  | AV30: =IF(AV25="","",VLOOKUP($B$30,'DADOS DE ENTRADA'!$B:$E,4,0)) -> 0.2 | AW30: =IF(AW25="","",VLOOKUP($B$30,'DADOS DE ENTRADA'!$B:$E,4,0)) ->  | AX30: =IF(AX25="","",VLOOKUP($B$30,'DADOS DE ENTRADA'!$B:$E,4,0)) ->  | AY30: =IF(AY25="","",VLOOKUP($B$30,'DADOS DE ENTRADA'!$B:$E,4,0)) -> 0.2 | AZ30: =IF(AZ25="","",VLOOKUP($B$30,'DADOS DE ENTRADA'!$B:$E,4,0)) -> 0.2 | BA30: =IF(BA25="","",VLOOKUP($B$30,'DADOS DE ENTRADA'!$B:$E,4,0)) ->  | BB30: =IF(BB25="","",VLOOKUP($B$30,'DADOS DE ENTRADA'!$B:$E,4,0)) ->  | BC30: =IF(BC25="","",VLOOKUP($B$30,'DADOS DE ENTRADA'!$B:$E,4,0)) ->  | BD30: =IF(BD25="","",VLOOKUP($B$30,'DADOS DE ENTRADA'!$B:$E,4,0)) ->  | BE30: =IF(BE25="","",VLOOKUP($B$30,'DADOS DE ENTRADA'!$B:$E,4,0)) -> 0.2 | BF30: =IF(BF25="","",VLOOKUP($B$30,'DADOS DE ENTRADA'!$B:$E,4,0)) ->  | BG30: =IF(BG25="","",VLOOKUP($B$30,'DADOS DE ENTRADA'!$B:$E,4,0)) ->  | BH30: =IF(BH25="","",VLOOKUP($B$30,'DADOS DE ENTRADA'!$B:$E,4,0)) ->  | BI30: =IF(BI25="","",VLOOKUP($B$30,'DADOS DE ENTRADA'!$B:$E,4,0)) ->  | BJ30: =IF(BJ25="","",VLOOKUP($B$30,'DADOS DE ENTRADA'!$B:$E,4,0)) ->  | BK30: =IF(BK25="","",VLOOKUP($B$30,'DADOS DE ENTRADA'!$B:$E,4,0)) ->  | BL30: =IF(BL25="","",VLOOKUP($B$30,'DADOS DE ENTRADA'!$B:$E,4,0)) ->  | BM30: =IF(BM25="","",VLOOKUP($B$30,'DADOS DE ENTRADA'!$B:$E,4,0)) -> 0.2 | BN30: =IF(BN25="","",VLOOKUP($B$30,'DADOS DE ENTRADA'!$B:$E,4,0)) -> 0.2 | BO30: =IF(BO25="","",VLOOKUP($B$30,'DADOS DE ENTRADA'!$B:$E,4,0)) -> 0.2 | BP30: =IF(BP25="","",VLOOKUP($B$30,'DADOS DE ENTRADA'!$B:$E,4,0)) -> 0.2 | BQ30: =IF(BQ25="","",VLOOKUP($B$30,'DADOS DE ENTRADA'!$B:$E,4,0)) -> 0.2 | BR30: =IF(BR25="","",VLOOKUP($B$30,'DADOS DE ENTRADA'!$B:$E,4,0)) -> 0.2 | BS30: =IF(BS25="","",VLOOKUP($B$30,'DADOS DE ENTRADA'!$B:$E,4,0)) -> 0.2 | BT30: =IF(BT25="","",VLOOKUP($B$30,'DADOS DE ENTRADA'!$B:$E,4,0)) -> 0.2 | BU30: =IF(BU25="","",VLOOKUP($B$30,'DADOS DE ENTRADA'!$B:$E,4,0)) -> 0.2 | BV30: =IF(BV25="","",VLOOKUP($B$30,'DADOS DE ENTRADA'!$B:$E,4,0)) -> 0.2 | BW30: =IF(BW25="","",VLOOKUP($B$30,'DADOS DE ENTRADA'!$B:$E,4,0)) -> 0.2 | BX30: =IF(BX25="","",VLOOKUP($B$30,'DADOS DE ENTRADA'!$B:$E,4,0)) -> 0.2 | BY30: =IF(BY25="","",VLOOKUP($B$30,'DADOS DE ENTRADA'!$B:$E,4,0)) -> 0.2 | BZ30: =IF(BZ25="","",VLOOKUP($B$30,'DADOS DE ENTRADA'!$B:$E,4,0)) -> 0.2 | CA30: =IF(CA25="","",VLOOKUP($B$30,'DADOS DE ENTRADA'!$B:$E,4,0)) -> 0.2 | CB30: =IF(CB25="","",VLOOKUP($B$30,'DADOS DE ENTRADA'!$B:$E,4,0)) -> 0.2 | CC30: =IF(CC25="","",VLOOKUP($B$30,'DADOS DE ENTRADA'!$B:$E,4,0)) -> 0.2 | CD30: =IF(CD25="","",VLOOKUP($B$30,'DADOS DE ENTRADA'!$B:$E,4,0)) ->  | CE30: =IF(CE25="","",VLOOKUP($B$30,'DADOS DE ENTRADA'!$B:$E,4,0)) -> 0.2 | CF30: =IF(CF25="","",VLOOKUP($B$30,'DADOS DE ENTRADA'!$B:$E,4,0)) -> 0.2 | CG30: =IF(CG25="","",VLOOKUP($B$30,'DADOS DE ENTRADA'!$B:$E,4,0)) -> 0.2 | CH30: =IF(CH25="","",VLOOKUP($B$30,'DADOS DE ENTRADA'!$B:$E,4,0)) ->  | CI30: =IF(CI25="","",VLOOKUP($B$30,'DADOS DE ENTRADA'!$B:$E,4,0)) -> 0.2 | CJ30: =IF(CJ25="","",VLOOKUP($B$30,'DADOS DE ENTRADA'!$B:$E,4,0)) -> 0.2 | CK30: =IF(CK25="","",VLOOKUP($B$30,'DADOS DE ENTRADA'!$B:$E,4,0)) -> 0.2 | CL30: =IF(CL25="","",VLOOKUP($B$30,'DADOS DE ENTRADA'!$B:$E,4,0)) -> 0.2 | CM30: =IF(CM25="","",VLOOKUP($B$30,'DADOS DE ENTRADA'!$B:$E,4,0)) -> 
B31: Ancoragem (Altura): | C31: b' = | D31: m | E31: =IF(E14="","",VLOOKUP($B$31,'DADOS DE ENTRADA'!$B:$E,4,0)) -> 0.2 | F31: =IF(F14="","",VLOOKUP($B$31,'DADOS DE ENTRADA'!$B:$E,4,0)) -> 0.2 | G31: =IF(G14="","",VLOOKUP($B$31,'DADOS DE ENTRADA'!$B:$E,4,0)) -> 0.2 | H31: =IF(H14="","",VLOOKUP($B$31,'DADOS DE ENTRADA'!$B:$E,4,0)) -> 0.2 | I31: =IF(I14="","",VLOOKUP($B$31,'DADOS DE ENTRADA'!$B:$E,4,0)) -> 0.2 | J31: =IF(J26="","",VLOOKUP($B$31,'DADOS DE ENTRADA'!$B:$E,4,0)) ->  | K31: =IF(K26="","",VLOOKUP($B$31,'DADOS DE ENTRADA'!$B:$E,4,0)) ->  | L31: =IF(L26="","",VLOOKUP($B$31,'DADOS DE ENTRADA'!$B:$E,4,0)) ->  | M31: =IF(M26="","",VLOOKUP($B$31,'DADOS DE ENTRADA'!$B:$E,4,0)) ->  | N31: =IF(N26="","",VLOOKUP($B$31,'DADOS DE ENTRADA'!$B:$E,4,0)) ->  | O31: =IF(O26="","",VLOOKUP($B$31,'DADOS DE ENTRADA'!$B:$E,4,0)) ->  | P31: =IF(P26="","",VLOOKUP($B$31,'DADOS DE ENTRADA'!$B:$E,4,0)) ->  | Q31: =IF(Q26="","",VLOOKUP($B$31,'DADOS DE ENTRADA'!$B:$E,4,0)) ->  | R31: =IF(R26="","",VLOOKUP($B$31,'DADOS DE ENTRADA'!$B:$E,4,0)) ->  | S31: =IF(S26="","",VLOOKUP($B$31,'DADOS DE ENTRADA'!$B:$E,4,0)) ->  | T31: =IF(T26="","",VLOOKUP($B$31,'DADOS DE ENTRADA'!$B:$E,4,0)) ->  | U31: =IF(U26="","",VLOOKUP($B$31,'DADOS DE ENTRADA'!$B:$E,4,0)) ->  | V31: =IF(V26="","",VLOOKUP($B$31,'DADOS DE ENTRADA'!$B:$E,4,0)) ->  | W31: =IF(W26="","",VLOOKUP($B$31,'DADOS DE ENTRADA'!$B:$E,4,0)) ->  | X31: =IF(X26="","",VLOOKUP($B$31,'DADOS DE ENTRADA'!$B:$E,4,0)) ->  | Y31: =IF(Y26="","",VLOOKUP($B$31,'DADOS DE ENTRADA'!$B:$E,4,0)) ->  | Z31: =IF(Z26="","",VLOOKUP($B$31,'DADOS DE ENTRADA'!$B:$E,4,0)) ->  | AA31: =IF(AA26="","",VLOOKUP($B$31,'DADOS DE ENTRADA'!$B:$E,4,0)) ->  | AB31: =IF(AB26="","",VLOOKUP($B$31,'DADOS DE ENTRADA'!$B:$E,4,0)) ->  | AC31: =IF(AC26="","",VLOOKUP($B$31,'DADOS DE ENTRADA'!$B:$E,4,0)) ->  | AD31: =IF(AD26="","",VLOOKUP($B$31,'DADOS DE ENTRADA'!$B:$E,4,0)) ->  | AE31: =IF(AE26="","",VLOOKUP($B$31,'DADOS DE ENTRADA'!$B:$E,4,0)) ->  | AF31: =IF(AF26="","",VLOOKUP($B$31,'DADOS DE ENTRADA'!$B:$E,4,0)) ->  | AG31: =IF(AG26="","",VLOOKUP($B$31,'DADOS DE ENTRADA'!$B:$E,4,0)) ->  | AH31: =IF(AH26="","",VLOOKUP($B$31,'DADOS DE ENTRADA'!$B:$E,4,0)) ->  | AI31: =IF(AI26="","",VLOOKUP($B$31,'DADOS DE ENTRADA'!$B:$E,4,0)) ->  | AJ31: =IF(AJ26="","",VLOOKUP($B$31,'DADOS DE ENTRADA'!$B:$E,4,0)) ->  | AK31: =IF(AK26="","",VLOOKUP($B$31,'DADOS DE ENTRADA'!$B:$E,4,0)) ->  | AL31: =IF(AL26="","",VLOOKUP($B$31,'DADOS DE ENTRADA'!$B:$E,4,0)) ->  | AM31: =IF(AM26="","",VLOOKUP($B$31,'DADOS DE ENTRADA'!$B:$E,4,0)) ->  | AN31: =IF(AN26="","",VLOOKUP($B$31,'DADOS DE ENTRADA'!$B:$E,4,0)) ->  | AO31: =IF(AO26="","",VLOOKUP($B$31,'DADOS DE ENTRADA'!$B:$E,4,0)) ->  | AP31: =IF(AP26="","",VLOOKUP($B$31,'DADOS DE ENTRADA'!$B:$E,4,0)) ->  | AQ31: =IF(AQ26="","",VLOOKUP($B$31,'DADOS DE ENTRADA'!$B:$E,4,0)) ->  | AR31: =IF(AR26="","",VLOOKUP($B$31,'DADOS DE ENTRADA'!$B:$E,4,0)) ->  | AS31: =IF(AS26="","",VLOOKUP($B$31,'DADOS DE ENTRADA'!$B:$E,4,0)) ->  | AT31: =IF(AT26="","",VLOOKUP($B$31,'DADOS DE ENTRADA'!$B:$E,4,0)) ->  | AU31: =IF(AU26="","",VLOOKUP($B$31,'DADOS DE ENTRADA'!$B:$E,4,0)) ->  | AV31: =IF(AV26="","",VLOOKUP($B$31,'DADOS DE ENTRADA'!$B:$E,4,0)) ->  | AW31: =IF(AW26="","",VLOOKUP($B$31,'DADOS DE ENTRADA'!$B:$E,4,0)) ->  | AX31: =IF(AX26="","",VLOOKUP($B$31,'DADOS DE ENTRADA'!$B:$E,4,0)) ->  | AY31: =IF(AY26="","",VLOOKUP($B$31,'DADOS DE ENTRADA'!$B:$E,4,0)) ->  | AZ31: =IF(AZ26="","",VLOOKUP($B$31,'DADOS DE ENTRADA'!$B:$E,4,0)) ->  | BA31: =IF(BA26="","",VLOOKUP($B$31,'DADOS DE ENTRADA'!$B:$E,4,0)) ->  | BB31: =IF(BB26="","",VLOOKUP($B$31,'DADOS DE ENTRADA'!$B:$E,4,0)) ->  | BC31: =IF(BC26="","",VLOOKUP($B$31,'DADOS DE ENTRADA'!$B:$E,4,0)) ->  | BD31: =IF(BD26="","",VLOOKUP($B$31,'DADOS DE ENTRADA'!$B:$E,4,0)) ->  | BE31: =IF(BE26="","",VLOOKUP($B$31,'DADOS DE ENTRADA'!$B:$E,4,0)) ->  | BF31: =IF(BF26="","",VLOOKUP($B$31,'DADOS DE ENTRADA'!$B:$E,4,0)) ->  | BG31: =IF(BG26="","",VLOOKUP($B$31,'DADOS DE ENTRADA'!$B:$E,4,0)) ->  | BH31: =IF(BH26="","",VLOOKUP($B$31,'DADOS DE ENTRADA'!$B:$E,4,0)) ->  | BI31: =IF(BI26="","",VLOOKUP($B$31,'DADOS DE ENTRADA'!$B:$E,4,0)) ->  | BJ31: =IF(BJ26="","",VLOOKUP($B$31,'DADOS DE ENTRADA'!$B:$E,4,0)) ->  | BK31: =IF(BK26="","",VLOOKUP($B$31,'DADOS DE ENTRADA'!$B:$E,4,0)) ->  | BL31: =IF(BL26="","",VLOOKUP($B$31,'DADOS DE ENTRADA'!$B:$E,4,0)) ->  | BM31: =IF(BM26="","",VLOOKUP($B$31,'DADOS DE ENTRADA'!$B:$E,4,0)) ->  | BN31: =IF(BN26="","",VLOOKUP($B$31,'DADOS DE ENTRADA'!$B:$E,4,0)) ->  | BO31: =IF(BO26="","",VLOOKUP($B$31,'DADOS DE ENTRADA'!$B:$E,4,0)) ->  | BP31: =IF(BP26="","",VLOOKUP($B$31,'DADOS DE ENTRADA'!$B:$E,4,0)) ->  | BQ31: =IF(BQ26="","",VLOOKUP($B$31,'DADOS DE ENTRADA'!$B:$E,4,0)) ->  | BR31: =IF(BR26="","",VLOOKUP($B$31,'DADOS DE ENTRADA'!$B:$E,4,0)) ->  | BS31: =IF(BS26="","",VLOOKUP($B$31,'DADOS DE ENTRADA'!$B:$E,4,0)) ->  | BT31: =IF(BT26="","",VLOOKUP($B$31,'DADOS DE ENTRADA'!$B:$E,4,0)) ->  | BU31: =IF(BU26="","",VLOOKUP($B$31,'DADOS DE ENTRADA'!$B:$E,4,0)) ->  | BV31: =IF(BV26="","",VLOOKUP($B$31,'DADOS DE ENTRADA'!$B:$E,4,0)) ->  | BW31: =IF(BW26="","",VLOOKUP($B$31,'DADOS DE ENTRADA'!$B:$E,4,0)) ->  | BX31: =IF(BX26="","",VLOOKUP($B$31,'DADOS DE ENTRADA'!$B:$E,4,0)) ->  | BY31: =IF(BY26="","",VLOOKUP($B$31,'DADOS DE ENTRADA'!$B:$E,4,0)) ->  | BZ31: =IF(BZ26="","",VLOOKUP($B$31,'DADOS DE ENTRADA'!$B:$E,4,0)) ->  | CA31: =IF(CA26="","",VLOOKUP($B$31,'DADOS DE ENTRADA'!$B:$E,4,0)) ->  | CB31: =IF(CB26="","",VLOOKUP($B$31,'DADOS DE ENTRADA'!$B:$E,4,0)) ->  | CC31: =IF(CC26="","",VLOOKUP($B$31,'DADOS DE ENTRADA'!$B:$E,4,0)) ->  | CD31: =IF(CD26="","",VLOOKUP($B$31,'DADOS DE ENTRADA'!$B:$E,4,0)) ->  | CE31: =IF(CE26="","",VLOOKUP($B$31,'DADOS DE ENTRADA'!$B:$E,4,0)) ->  | CF31: =IF(CF26="","",VLOOKUP($B$31,'DADOS DE ENTRADA'!$B:$E,4,0)) ->  | CG31: =IF(CG26="","",VLOOKUP($B$31,'DADOS DE ENTRADA'!$B:$E,4,0)) ->  | CH31: =IF(CH26="","",VLOOKUP($B$31,'DADOS DE ENTRADA'!$B:$E,4,0)) ->  | CI31: =IF(CI26="","",VLOOKUP($B$31,'DADOS DE ENTRADA'!$B:$E,4,0)) ->  | CJ31: =IF(CJ26="","",VLOOKUP($B$31,'DADOS DE ENTRADA'!$B:$E,4,0)) ->  | CK31: =IF(CK26="","",VLOOKUP($B$31,'DADOS DE ENTRADA'!$B:$E,4,0)) ->  | CL31: =IF(CL26="","",VLOOKUP($B$31,'DADOS DE ENTRADA'!$B:$E,4,0)) ->  | CM31: =IF(CM26="","",VLOOKUP($B$31,'DADOS DE ENTRADA'!$B:$E,4,0)) -> 
B32: Seção da Manta PEAD: | C32: pm = | D32: m | E32: =IF(E14="","",(E30+E31+E16+E18+E14+E18+E16+E31+E30)) -> 6.416366517 | F32: =IF(F14="","",(F30+F31+F16+F18+F14+F18+F16+F31+F30)) -> 6.331513703 | G32: 6.24666089 | H32: 6.24666089 | I32: 6.033523805 | BR32: =IF(BR14="","",(BR30+BR31+BR16+BR18+BR14+BR18+BR16+BR31+BR30)) -> 
B33: Perímetro Seção Canal: | C33: p = | D33: m | E33: =IF(E14="","",E16+E18+E14+E18+E16) -> 5.616366517 | F33: =IF(F14="","",F16+F18+F14+F18+F16) -> 5.531513703 | G33: 5.44666089 | H33: 5.44666089 | I33: 5.233523805 | J33: 4.652691193 | K33: 2.934457429 | L33: 2.679898987 | M33: 2.481909089 | N33: 2.085929291 | U33: 2.829898987 | V33: 2.829898987 | W33: 2.829898987 | Y33: 2.538477631 | Z33: 2.312203461 | AF33: 3.360731599 | AH33: 2.314213562 | AM33: 2.738477631 | AN33: 2.399066376 | AS33: 2.114213562 | AV33: 2.653624817 | AY33: 3.040487732 | AZ33: 2.481909089 | BE33: 2.516761902 | BM33: 5.202809521 | BN33: 4.973868684 | BO33: 4.923868684 | BP33: 5.424406922 | BQ33: 5.322396821 | BR33: =IF(BR14="","",BR16+BR18+BR14+BR18+BR16) -> 5.322396821 | BS33: 5.322396821 | BT33: 5.350681092 | BU33: 5.322396821 | BV33: 5.322396821 | BW33: 5.322396821 | BX33: 4.38901587 | BY33: 2.793036072 | BZ33: 2.51019336 | CA33: 2.114213562 | CB33: 2.114213562 | CC33: 2.114213562 | CE33: 2.597056275 | CF33: 2.427350647 | CG33: 2.377350647 | CI33: 2.064213562 | CJ33: 2.597056275 | CK33: 2.142497834 | CL33: 1.78137085
B34: Perímetro Seção Canal (r+b+r): | C34: psc = | D34: m | E34: =IF(E14="","",E18+E14+E18) -> 5.216366517 | F34: =IF(F14="","",F18+F14+F18) -> 5.131513703 | G34: 5.04666089 | H34: 5.04666089 | I34: 4.833523805 | J34: 4.252691193 | K34: 2.534457429 | L34: 2.279898987 | M34: 2.081909089 | N34: 1.685929291 | U34: 2.429898987 | V34: 2.429898987 | W34: 2.429898987 | Y34: 2.138477631 | Z34: 1.912203461 | AF34: 2.960731599 | AH34: 1.914213562 | AM34: 2.338477631 | AN34: 1.999066376 | AS34: 1.714213562 | AV34: 2.253624817 | AY34: 2.640487732 | AZ34: 2.081909089 | BE34: 2.116761902 | BM34: 4.802809521 | BN34: 4.573868684 | BO34: 4.523868684 | BP34: 5.024406922 | BQ34: 4.922396821 | BR34: =IF(BR14="","",BR18+BR14+BR18) -> 4.922396821 | BS34: 4.922396821 | BT34: 4.950681092 | BU34: 4.922396821 | BV34: 4.922396821 | BW34: 4.922396821 | BX34: 3.98901587 | BY34: 2.393036072 | BZ34: 2.11019336 | CA34: 1.714213562 | CB34: 1.714213562 | CC34: 1.714213562 | CE34: 2.197056275 | CF34: 2.027350647 | CG34: 1.977350647 | CI34: 1.664213562 | CJ34: 2.197056275 | CK34: 1.742497834 | CL34: 1.38137085
B35: Largura de Limpeza Canal p/ cada lado: | C35: L = | D35: m | E35: =IF(E14="","",VLOOKUP($B$35,'DADOS DE ENTRADA'!$B:$E,4,0)) -> 0.5 | F35: =IF(F14="","",VLOOKUP($B$35,'DADOS DE ENTRADA'!$B:$E,4,0)) -> 0.5 | G35: =IF(G14="","",VLOOKUP($B$35,'DADOS DE ENTRADA'!$B:$E,4,0)) -> 0.5 | H35: =IF(H14="","",VLOOKUP($B$35,'DADOS DE ENTRADA'!$B:$E,4,0)) -> 0.5 | I35: =IF(I14="","",VLOOKUP($B$35,'DADOS DE ENTRADA'!$B:$E,4,0)) -> 0.5 | J35: =IF(J31="","",VLOOKUP($B$35,'DADOS DE ENTRADA'!$B:$E,4,0)) ->  | K35: =IF(K31="","",VLOOKUP($B$35,'DADOS DE ENTRADA'!$B:$E,4,0)) ->  | L35: =IF(L31="","",VLOOKUP($B$35,'DADOS DE ENTRADA'!$B:$E,4,0)) ->  | M35: =IF(M31="","",VLOOKUP($B$35,'DADOS DE ENTRADA'!$B:$E,4,0)) ->  | N35: =IF(N31="","",VLOOKUP($B$35,'DADOS DE ENTRADA'!$B:$E,4,0)) ->  | O35: =IF(O31="","",VLOOKUP($B$35,'DADOS DE ENTRADA'!$B:$E,4,0)) ->  | P35: =IF(P31="","",VLOOKUP($B$35,'DADOS DE ENTRADA'!$B:$E,4,0)) ->  | Q35: =IF(Q31="","",VLOOKUP($B$35,'DADOS DE ENTRADA'!$B:$E,4,0)) ->  | R35: =IF(R31="","",VLOOKUP($B$35,'DADOS DE ENTRADA'!$B:$E,4,0)) ->  | S35: =IF(S31="","",VLOOKUP($B$35,'DADOS DE ENTRADA'!$B:$E,4,0)) ->  | T35: =IF(T31="","",VLOOKUP($B$35,'DADOS DE ENTRADA'!$B:$E,4,0)) ->  | U35: =IF(U31="","",VLOOKUP($B$35,'DADOS DE ENTRADA'!$B:$E,4,0)) ->  | V35: =IF(V31="","",VLOOKUP($B$35,'DADOS DE ENTRADA'!$B:$E,4,0)) ->  | W35: =IF(W31="","",VLOOKUP($B$35,'DADOS DE ENTRADA'!$B:$E,4,0)) ->  | X35: =IF(X31="","",VLOOKUP($B$35,'DADOS DE ENTRADA'!$B:$E,4,0)) ->  | Y35: =IF(Y31="","",VLOOKUP($B$35,'DADOS DE ENTRADA'!$B:$E,4,0)) ->  | Z35: =IF(Z31="","",VLOOKUP($B$35,'DADOS DE ENTRADA'!$B:$E,4,0)) ->  | AA35: =IF(AA31="","",VLOOKUP($B$35,'DADOS DE ENTRADA'!$B:$E,4,0)) ->  | AB35: =IF(AB31="","",VLOOKUP($B$35,'DADOS DE ENTRADA'!$B:$E,4,0)) ->  | AC35: =IF(AC31="","",VLOOKUP($B$35,'DADOS DE ENTRADA'!$B:$E,4,0)) ->  | AD35: =IF(AD31="","",VLOOKUP($B$35,'DADOS DE ENTRADA'!$B:$E,4,0)) ->  | AE35: =IF(AE31="","",VLOOKUP($B$35,'DADOS DE ENTRADA'!$B:$E,4,0)) ->  | AF35: =IF(AF31="","",VLOOKUP($B$35,'DADOS DE ENTRADA'!$B:$E,4,0)) ->  | AG35: =IF(AG31="","",VLOOKUP($B$35,'DADOS DE ENTRADA'!$B:$E,4,0)) ->  | AH35: =IF(AH31="","",VLOOKUP($B$35,'DADOS DE ENTRADA'!$B:$E,4,0)) ->  | AI35: =IF(AI31="","",VLOOKUP($B$35,'DADOS DE ENTRADA'!$B:$E,4,0)) ->  | AJ35: =IF(AJ31="","",VLOOKUP($B$35,'DADOS DE ENTRADA'!$B:$E,4,0)) ->  | AK35: =IF(AK31="","",VLOOKUP($B$35,'DADOS DE ENTRADA'!$B:$E,4,0)) ->  | AL35: =IF(AL31="","",VLOOKUP($B$35,'DADOS DE ENTRADA'!$B:$E,4,0)) ->  | AM35: =IF(AM31="","",VLOOKUP($B$35,'DADOS DE ENTRADA'!$B:$E,4,0)) ->  | AN35: =IF(AN31="","",VLOOKUP($B$35,'DADOS DE ENTRADA'!$B:$E,4,0)) ->  | AO35: =IF(AO31="","",VLOOKUP($B$35,'DADOS DE ENTRADA'!$B:$E,4,0)) ->  | AP35: =IF(AP31="","",VLOOKUP($B$35,'DADOS DE ENTRADA'!$B:$E,4,0)) ->  | AQ35: =IF(AQ31="","",VLOOKUP($B$35,'DADOS DE ENTRADA'!$B:$E,4,0)) ->  | AR35: =IF(AR31="","",VLOOKUP($B$35,'DADOS DE ENTRADA'!$B:$E,4,0)) ->  | AS35: =IF(AS31="","",VLOOKUP($B$35,'DADOS DE ENTRADA'!$B:$E,4,0)) ->  | AT35: =IF(AT31="","",VLOOKUP($B$35,'DADOS DE ENTRADA'!$B:$E,4,0)) ->  | AU35: =IF(AU31="","",VLOOKUP($B$35,'DADOS DE ENTRADA'!$B:$E,4,0)) ->  | AV35: =IF(AV31="","",VLOOKUP($B$35,'DADOS DE ENTRADA'!$B:$E,4,0)) ->  | AW35: =IF(AW31="","",VLOOKUP($B$35,'DADOS DE ENTRADA'!$B:$E,4,0)) ->  | AX35: =IF(AX31="","",VLOOKUP($B$35,'DADOS DE ENTRADA'!$B:$E,4,0)) ->  | AY35: =IF(AY31="","",VLOOKUP($B$35,'DADOS DE ENTRADA'!$B:$E,4,0)) ->  | AZ35: =IF(AZ31="","",VLOOKUP($B$35,'DADOS DE ENTRADA'!$B:$E,4,0)) ->  | BA35: =IF(BA31="","",VLOOKUP($B$35,'DADOS DE ENTRADA'!$B:$E,4,0)) ->  | BB35: =IF(BB31="","",VLOOKUP($B$35,'DADOS DE ENTRADA'!$B:$E,4,0)) ->  | BC35: =IF(BC31="","",VLOOKUP($B$35,'DADOS DE ENTRADA'!$B:$E,4,0)) ->  | BD35: =IF(BD31="","",VLOOKUP($B$35,'DADOS DE ENTRADA'!$B:$E,4,0)) ->  | BE35: =IF(BE31="","",VLOOKUP($B$35,'DADOS DE ENTRADA'!$B:$E,4,0)) ->  | BF35: =IF(BF31="","",VLOOKUP($B$35,'DADOS DE ENTRADA'!$B:$E,4,0)) ->  | BG35: =IF(BG31="","",VLOOKUP($B$35,'DADOS DE ENTRADA'!$B:$E,4,0)) ->  | BH35: =IF(BH31="","",VLOOKUP($B$35,'DADOS DE ENTRADA'!$B:$E,4,0)) ->  | BI35: =IF(BI31="","",VLOOKUP($B$35,'DADOS DE ENTRADA'!$B:$E,4,0)) ->  | BJ35: =IF(BJ31="","",VLOOKUP($B$35,'DADOS DE ENTRADA'!$B:$E,4,0)) ->  | BK35: =IF(BK31="","",VLOOKUP($B$35,'DADOS DE ENTRADA'!$B:$E,4,0)) ->  | BL35: =IF(BL31="","",VLOOKUP($B$35,'DADOS DE ENTRADA'!$B:$E,4,0)) ->  | BM35: =IF(BM31="","",VLOOKUP($B$35,'DADOS DE ENTRADA'!$B:$E,4,0)) ->  | BN35: =IF(BN31="","",VLOOKUP($B$35,'DADOS DE ENTRADA'!$B:$E,4,0)) ->  | BO35: =IF(BO31="","",VLOOKUP($B$35,'DADOS DE ENTRADA'!$B:$E,4,0)) ->  | BP35: =IF(BP31="","",VLOOKUP($B$35,'DADOS DE ENTRADA'!$B:$E,4,0)) ->  | BQ35: =IF(BQ31="","",VLOOKUP($B$35,'DADOS DE ENTRADA'!$B:$E,4,0)) ->  | BR35: =IF(BR31="","",VLOOKUP($B$35,'DADOS DE ENTRADA'!$B:$E,4,0)) ->  | BS35: =IF(BS31="","",VLOOKUP($B$35,'DADOS DE ENTRADA'!$B:$E,4,0)) ->  | BT35: =IF(BT31="","",VLOOKUP($B$35,'DADOS DE ENTRADA'!$B:$E,4,0)) ->  | BU35: =IF(BU31="","",VLOOKUP($B$35,'DADOS DE ENTRADA'!$B:$E,4,0)) ->  | BV35: =IF(BV31="","",VLOOKUP($B$35,'DADOS DE ENTRADA'!$B:$E,4,0)) ->  | BW35: =IF(BW31="","",VLOOKUP($B$35,'DADOS DE ENTRADA'!$B:$E,4,0)) ->  | BX35: =IF(BX31="","",VLOOKUP($B$35,'DADOS DE ENTRADA'!$B:$E,4,0)) ->  | BY35: =IF(BY31="","",VLOOKUP($B$35,'DADOS DE ENTRADA'!$B:$E,4,0)) ->  | BZ35: =IF(BZ31="","",VLOOKUP($B$35,'DADOS DE ENTRADA'!$B:$E,4,0)) ->  | CA35: =IF(CA31="","",VLOOKUP($B$35,'DADOS DE ENTRADA'!$B:$E,4,0)) ->  | CB35: =IF(CB31="","",VLOOKUP($B$35,'DADOS DE ENTRADA'!$B:$E,4,0)) ->  | CC35: =IF(CC31="","",VLOOKUP($B$35,'DADOS DE ENTRADA'!$B:$E,4,0)) ->  | CD35: =IF(CD31="","",VLOOKUP($B$35,'DADOS DE ENTRADA'!$B:$E,4,0)) ->  | CE35: =IF(CE31="","",VLOOKUP($B$35,'DADOS DE ENTRADA'!$B:$E,4,0)) ->  | CF35: =IF(CF31="","",VLOOKUP($B$35,'DADOS DE ENTRADA'!$B:$E,4,0)) ->  | CG35: =IF(CG31="","",VLOOKUP($B$35,'DADOS DE ENTRADA'!$B:$E,4,0)) ->  | CH35: =IF(CH31="","",VLOOKUP($B$35,'DADOS DE ENTRADA'!$B:$E,4,0)) ->  | CI35: =IF(CI31="","",VLOOKUP($B$35,'DADOS DE ENTRADA'!$B:$E,4,0)) ->  | CJ35: =IF(CJ31="","",VLOOKUP($B$35,'DADOS DE ENTRADA'!$B:$E,4,0)) ->  | CK35: =IF(CK31="","",VLOOKUP($B$35,'DADOS DE ENTRADA'!$B:$E,4,0)) ->  | CL35: =IF(CL31="","",VLOOKUP($B$35,'DADOS DE ENTRADA'!$B:$E,4,0)) ->  | CM35: =IF(CM31="","",VLOOKUP($B$35,'DADOS DE ENTRADA'!$B:$E,4,0)) -> 
B36: DMT (Importação): | C36: DMT 1 = | D36: km | E36: =IF(E14="","",VLOOKUP($B$36,'DADOS DE ENTRADA'!$B:$E,4,0)) -> 10 | F36: =IF(F14="","",VLOOKUP($B$36,'DADOS DE ENTRADA'!$B:$E,4,0)) -> 10 | G36: =IF(G14="","",VLOOKUP($B$36,'DADOS DE ENTRADA'!$B:$E,4,0)) -> 10 | H36: =IF(H14="","",VLOOKUP($B$36,'DADOS DE ENTRADA'!$B:$E,4,0)) -> 10 | I36: =IF(I14="","",VLOOKUP($B$36,'DADOS DE ENTRADA'!$B:$E,4,0)) -> 10 | J36: =IF(J32="","",VLOOKUP($B$36,'DADOS DE ENTRADA'!$B:$E,4,0)) ->  | K36: =IF(K32="","",VLOOKUP($B$36,'DADOS DE ENTRADA'!$B:$E,4,0)) ->  | L36: =IF(L32="","",VLOOKUP($B$36,'DADOS DE ENTRADA'!$B:$E,4,0)) ->  | M36: =IF(M32="","",VLOOKUP($B$36,'DADOS DE ENTRADA'!$B:$E,4,0)) ->  | N36: =IF(N32="","",VLOOKUP($B$36,'DADOS DE ENTRADA'!$B:$E,4,0)) ->  | O36: =IF(O32="","",VLOOKUP($B$36,'DADOS DE ENTRADA'!$B:$E,4,0)) ->  | P36: =IF(P32="","",VLOOKUP($B$36,'DADOS DE ENTRADA'!$B:$E,4,0)) ->  | Q36: =IF(Q32="","",VLOOKUP($B$36,'DADOS DE ENTRADA'!$B:$E,4,0)) ->  | R36: =IF(R32="","",VLOOKUP($B$36,'DADOS DE ENTRADA'!$B:$E,4,0)) ->  | S36: =IF(S32="","",VLOOKUP($B$36,'DADOS DE ENTRADA'!$B:$E,4,0)) ->  | T36: =IF(T32="","",VLOOKUP($B$36,'DADOS DE ENTRADA'!$B:$E,4,0)) ->  | U36: =IF(U32="","",VLOOKUP($B$36,'DADOS DE ENTRADA'!$B:$E,4,0)) ->  | V36: =IF(V32="","",VLOOKUP($B$36,'DADOS DE ENTRADA'!$B:$E,4,0)) ->  | W36: =IF(W32="","",VLOOKUP($B$36,'DADOS DE ENTRADA'!$B:$E,4,0)) ->  | X36: =IF(X32="","",VLOOKUP($B$36,'DADOS DE ENTRADA'!$B:$E,4,0)) ->  | Y36: =IF(Y32="","",VLOOKUP($B$36,'DADOS DE ENTRADA'!$B:$E,4,0)) ->  | Z36: =IF(Z32="","",VLOOKUP($B$36,'DADOS DE ENTRADA'!$B:$E,4,0)) ->  | AA36: =IF(AA32="","",VLOOKUP($B$36,'DADOS DE ENTRADA'!$B:$E,4,0)) ->  | AB36: =IF(AB32="","",VLOOKUP($B$36,'DADOS DE ENTRADA'!$B:$E,4,0)) ->  | AC36: =IF(AC32="","",VLOOKUP($B$36,'DADOS DE ENTRADA'!$B:$E,4,0)) ->  | AD36: =IF(AD32="","",VLOOKUP($B$36,'DADOS DE ENTRADA'!$B:$E,4,0)) ->  | AE36: =IF(AE32="","",VLOOKUP($B$36,'DADOS DE ENTRADA'!$B:$E,4,0)) ->  | AF36: =IF(AF32="","",VLOOKUP($B$36,'DADOS DE ENTRADA'!$B:$E,4,0)) ->  | AG36: =IF(AG32="","",VLOOKUP($B$36,'DADOS DE ENTRADA'!$B:$E,4,0)) ->  | AH36: =IF(AH32="","",VLOOKUP($B$36,'DADOS DE ENTRADA'!$B:$E,4,0)) ->  | AI36: =IF(AI32="","",VLOOKUP($B$36,'DADOS DE ENTRADA'!$B:$E,4,0)) ->  | AJ36: =IF(AJ32="","",VLOOKUP($B$36,'DADOS DE ENTRADA'!$B:$E,4,0)) ->  | AK36: =IF(AK32="","",VLOOKUP($B$36,'DADOS DE ENTRADA'!$B:$E,4,0)) ->  | AL36: =IF(AL32="","",VLOOKUP($B$36,'DADOS DE ENTRADA'!$B:$E,4,0)) ->  | AM36: =IF(AM32="","",VLOOKUP($B$36,'DADOS DE ENTRADA'!$B:$E,4,0)) ->  | AN36: =IF(AN32="","",VLOOKUP($B$36,'DADOS DE ENTRADA'!$B:$E,4,0)) ->  | AO36: =IF(AO32="","",VLOOKUP($B$36,'DADOS DE ENTRADA'!$B:$E,4,0)) ->  | AP36: =IF(AP32="","",VLOOKUP($B$36,'DADOS DE ENTRADA'!$B:$E,4,0)) ->  | AQ36: =IF(AQ32="","",VLOOKUP($B$36,'DADOS DE ENTRADA'!$B:$E,4,0)) ->  | AR36: =IF(AR32="","",VLOOKUP($B$36,'DADOS DE ENTRADA'!$B:$E,4,0)) ->  | AS36: =IF(AS32="","",VLOOKUP($B$36,'DADOS DE ENTRADA'!$B:$E,4,0)) ->  | AT36: =IF(AT32="","",VLOOKUP($B$36,'DADOS DE ENTRADA'!$B:$E,4,0)) ->  | AU36: =IF(AU32="","",VLOOKUP($B$36,'DADOS DE ENTRADA'!$B:$E,4,0)) ->  | AV36: =IF(AV32="","",VLOOKUP($B$36,'DADOS DE ENTRADA'!$B:$E,4,0)) ->  | AW36: =IF(AW32="","",VLOOKUP($B$36,'DADOS DE ENTRADA'!$B:$E,4,0)) ->  | AX36: =IF(AX32="","",VLOOKUP($B$36,'DADOS DE ENTRADA'!$B:$E,4,0)) ->  | AY36: =IF(AY32="","",VLOOKUP($B$36,'DADOS DE ENTRADA'!$B:$E,4,0)) ->  | AZ36: =IF(AZ32="","",VLOOKUP($B$36,'DADOS DE ENTRADA'!$B:$E,4,0)) ->  | BA36: =IF(BA32="","",VLOOKUP($B$36,'DADOS DE ENTRADA'!$B:$E,4,0)) ->  | BB36: =IF(BB32="","",VLOOKUP($B$36,'DADOS DE ENTRADA'!$B:$E,4,0)) ->  | BC36: =IF(BC32="","",VLOOKUP($B$36,'DADOS DE ENTRADA'!$B:$E,4,0)) ->  | BD36: =IF(BD32="","",VLOOKUP($B$36,'DADOS DE ENTRADA'!$B:$E,4,0)) ->  | BE36: =IF(BE32="","",VLOOKUP($B$36,'DADOS DE ENTRADA'!$B:$E,4,0)) ->  | BF36: =IF(BF32="","",VLOOKUP($B$36,'DADOS DE ENTRADA'!$B:$E,4,0)) ->  | BG36: =IF(BG32="","",VLOOKUP($B$36,'DADOS DE ENTRADA'!$B:$E,4,0)) ->  | BH36: =IF(BH32="","",VLOOKUP($B$36,'DADOS DE ENTRADA'!$B:$E,4,0)) ->  | BI36: =IF(BI32="","",VLOOKUP($B$36,'DADOS DE ENTRADA'!$B:$E,4,0)) ->  | BJ36: =IF(BJ32="","",VLOOKUP($B$36,'DADOS DE ENTRADA'!$B:$E,4,0)) ->  | BK36: =IF(BK32="","",VLOOKUP($B$36,'DADOS DE ENTRADA'!$B:$E,4,0)) ->  | BL36: =IF(BL32="","",VLOOKUP($B$36,'DADOS DE ENTRADA'!$B:$E,4,0)) ->  | BM36: =IF(BM32="","",VLOOKUP($B$36,'DADOS DE ENTRADA'!$B:$E,4,0)) ->  | BN36: =IF(BN32="","",VLOOKUP($B$36,'DADOS DE ENTRADA'!$B:$E,4,0)) ->  | BO36: =IF(BO32="","",VLOOKUP($B$36,'DADOS DE ENTRADA'!$B:$E,4,0)) ->  | BP36: =IF(BP32="","",VLOOKUP($B$36,'DADOS DE ENTRADA'!$B:$E,4,0)) ->  | BQ36: =IF(BQ32="","",VLOOKUP($B$36,'DADOS DE ENTRADA'!$B:$E,4,0)) ->  | BR36: =IF(BR32="","",VLOOKUP($B$36,'DADOS DE ENTRADA'!$B:$E,4,0)) ->  | BS36: =IF(BS32="","",VLOOKUP($B$36,'DADOS DE ENTRADA'!$B:$E,4,0)) ->  | BT36: =IF(BT32="","",VLOOKUP($B$36,'DADOS DE ENTRADA'!$B:$E,4,0)) ->  | BU36: =IF(BU32="","",VLOOKUP($B$36,'DADOS DE ENTRADA'!$B:$E,4,0)) ->  | BV36: =IF(BV32="","",VLOOKUP($B$36,'DADOS DE ENTRADA'!$B:$E,4,0)) ->  | BW36: =IF(BW32="","",VLOOKUP($B$36,'DADOS DE ENTRADA'!$B:$E,4,0)) ->  | BX36: =IF(BX32="","",VLOOKUP($B$36,'DADOS DE ENTRADA'!$B:$E,4,0)) ->  | BY36: =IF(BY32="","",VLOOKUP($B$36,'DADOS DE ENTRADA'!$B:$E,4,0)) ->  | BZ36: =IF(BZ32="","",VLOOKUP($B$36,'DADOS DE ENTRADA'!$B:$E,4,0)) ->  | CA36: =IF(CA32="","",VLOOKUP($B$36,'DADOS DE ENTRADA'!$B:$E,4,0)) ->  | CB36: =IF(CB32="","",VLOOKUP($B$36,'DADOS DE ENTRADA'!$B:$E,4,0)) ->  | CC36: =IF(CC32="","",VLOOKUP($B$36,'DADOS DE ENTRADA'!$B:$E,4,0)) ->  | CD36: =IF(CD32="","",VLOOKUP($B$36,'DADOS DE ENTRADA'!$B:$E,4,0)) ->  | CE36: =IF(CE32="","",VLOOKUP($B$36,'DADOS DE ENTRADA'!$B:$E,4,0)) ->  | CF36: =IF(CF32="","",VLOOKUP($B$36,'DADOS DE ENTRADA'!$B:$E,4,0)) ->  | CG36: =IF(CG32="","",VLOOKUP($B$36,'DADOS DE ENTRADA'!$B:$E,4,0)) ->  | CH36: =IF(CH32="","",VLOOKUP($B$36,'DADOS DE ENTRADA'!$B:$E,4,0)) ->  | CI36: =IF(CI32="","",VLOOKUP($B$36,'DADOS DE ENTRADA'!$B:$E,4,0)) ->  | CJ36: =IF(CJ32="","",VLOOKUP($B$36,'DADOS DE ENTRADA'!$B:$E,4,0)) ->  | CK36: =IF(CK32="","",VLOOKUP($B$36,'DADOS DE ENTRADA'!$B:$E,4,0)) ->  | CL36: =IF(CL32="","",VLOOKUP($B$36,'DADOS DE ENTRADA'!$B:$E,4,0)) ->  | CM36: =IF(CM32="","",VLOOKUP($B$36,'DADOS DE ENTRADA'!$B:$E,4,0)) -> 
B37: DMT (Bota Fora): | C37: DMT 2 = | D37: km | E37: =IF(E14="","",VLOOKUP($B$37,'DADOS DE ENTRADA'!$B:$E,4,0)) -> 10 | F37: =IF(F14="","",VLOOKUP($B$37,'DADOS DE ENTRADA'!$B:$E,4,0)) -> 10 | G37: =IF(G14="","",VLOOKUP($B$37,'DADOS DE ENTRADA'!$B:$E,4,0)) -> 10 | H37: =IF(H14="","",VLOOKUP($B$37,'DADOS DE ENTRADA'!$B:$E,4,0)) -> 10 | I37: =IF(I14="","",VLOOKUP($B$37,'DADOS DE ENTRADA'!$B:$E,4,0)) -> 10 | J37: =IF(J33="","",VLOOKUP($B$37,'DADOS DE ENTRADA'!$B:$E,4,0)) -> 10 | K37: =IF(K33="","",VLOOKUP($B$37,'DADOS DE ENTRADA'!$B:$E,4,0)) -> 10 | L37: =IF(L33="","",VLOOKUP($B$37,'DADOS DE ENTRADA'!$B:$E,4,0)) -> 10 | M37: =IF(M33="","",VLOOKUP($B$37,'DADOS DE ENTRADA'!$B:$E,4,0)) -> 10 | N37: =IF(N33="","",VLOOKUP($B$37,'DADOS DE ENTRADA'!$B:$E,4,0)) -> 10 | O37: =IF(O33="","",VLOOKUP($B$37,'DADOS DE ENTRADA'!$B:$E,4,0)) ->  | P37: =IF(P33="","",VLOOKUP($B$37,'DADOS DE ENTRADA'!$B:$E,4,0)) ->  | Q37: =IF(Q33="","",VLOOKUP($B$37,'DADOS DE ENTRADA'!$B:$E,4,0)) ->  | R37: =IF(R33="","",VLOOKUP($B$37,'DADOS DE ENTRADA'!$B:$E,4,0)) ->  | S37: =IF(S33="","",VLOOKUP($B$37,'DADOS DE ENTRADA'!$B:$E,4,0)) ->  | T37: =IF(T33="","",VLOOKUP($B$37,'DADOS DE ENTRADA'!$B:$E,4,0)) ->  | U37: =IF(U33="","",VLOOKUP($B$37,'DADOS DE ENTRADA'!$B:$E,4,0)) -> 10 | V37: =IF(V33="","",VLOOKUP($B$37,'DADOS DE ENTRADA'!$B:$E,4,0)) -> 10 | W37: =IF(W33="","",VLOOKUP($B$37,'DADOS DE ENTRADA'!$B:$E,4,0)) -> 10 | X37: =IF(X33="","",VLOOKUP($B$37,'DADOS DE ENTRADA'!$B:$E,4,0)) ->  | Y37: =IF(Y33="","",VLOOKUP($B$37,'DADOS DE ENTRADA'!$B:$E,4,0)) -> 10 | Z37: =IF(Z33="","",VLOOKUP($B$37,'DADOS DE ENTRADA'!$B:$E,4,0)) -> 10 | AA37: =IF(AA33="","",VLOOKUP($B$37,'DADOS DE ENTRADA'!$B:$E,4,0)) ->  | AB37: =IF(AB33="","",VLOOKUP($B$37,'DADOS DE ENTRADA'!$B:$E,4,0)) ->  | AC37: =IF(AC33="","",VLOOKUP($B$37,'DADOS DE ENTRADA'!$B:$E,4,0)) ->  | AD37: =IF(AD33="","",VLOOKUP($B$37,'DADOS DE ENTRADA'!$B:$E,4,0)) ->  | AE37: =IF(AE33="","",VLOOKUP($B$37,'DADOS DE ENTRADA'!$B:$E,4,0)) ->  | AF37: =IF(AF33="","",VLOOKUP($B$37,'DADOS DE ENTRADA'!$B:$E,4,0)) -> 10 | AG37: =IF(AG33="","",VLOOKUP($B$37,'DADOS DE ENTRADA'!$B:$E,4,0)) ->  | AH37: =IF(AH33="","",VLOOKUP($B$37,'DADOS DE ENTRADA'!$B:$E,4,0)) -> 10 | AI37: =IF(AI33="","",VLOOKUP($B$37,'DADOS DE ENTRADA'!$B:$E,4,0)) ->  | AJ37: =IF(AJ33="","",VLOOKUP($B$37,'DADOS DE ENTRADA'!$B:$E,4,0)) ->  | AK37: =IF(AK33="","",VLOOKUP($B$37,'DADOS DE ENTRADA'!$B:$E,4,0)) ->  | AL37: =IF(AL33="","",VLOOKUP($B$37,'DADOS DE ENTRADA'!$B:$E,4,0)) ->  | AM37: =IF(AM33="","",VLOOKUP($B$37,'DADOS DE ENTRADA'!$B:$E,4,0)) -> 10 | AN37: =IF(AN33="","",VLOOKUP($B$37,'DADOS DE ENTRADA'!$B:$E,4,0)) -> 10 | AO37: =IF(AO33="","",VLOOKUP($B$37,'DADOS DE ENTRADA'!$B:$E,4,0)) ->  | AP37: =IF(AP33="","",VLOOKUP($B$37,'DADOS DE ENTRADA'!$B:$E,4,0)) ->  | AQ37: =IF(AQ33="","",VLOOKUP($B$37,'DADOS DE ENTRADA'!$B:$E,4,0)) ->  | AR37: =IF(AR33="","",VLOOKUP($B$37,'DADOS DE ENTRADA'!$B:$E,4,0)) ->  | AS37: =IF(AS33="","",VLOOKUP($B$37,'DADOS DE ENTRADA'!$B:$E,4,0)) -> 10 | AT37: =IF(AT33="","",VLOOKUP($B$37,'DADOS DE ENTRADA'!$B:$E,4,0)) ->  | AU37: =IF(AU33="","",VLOOKUP($B$37,'DADOS DE ENTRADA'!$B:$E,4,0)) ->  | AV37: =IF(AV33="","",VLOOKUP($B$37,'DADOS DE ENTRADA'!$B:$E,4,0)) -> 10 | AW37: =IF(AW33="","",VLOOKUP($B$37,'DADOS DE ENTRADA'!$B:$E,4,0)) ->  | AX37: =IF(AX33="","",VLOOKUP($B$37,'DADOS DE ENTRADA'!$B:$E,4,0)) ->  | AY37: =IF(AY33="","",VLOOKUP($B$37,'DADOS DE ENTRADA'!$B:$E,4,0)) -> 10 | AZ37: =IF(AZ33="","",VLOOKUP($B$37,'DADOS DE ENTRADA'!$B:$E,4,0)) -> 10 | BA37: =IF(BA33="","",VLOOKUP($B$37,'DADOS DE ENTRADA'!$B:$E,4,0)) ->  | BB37: =IF(BB33="","",VLOOKUP($B$37,'DADOS DE ENTRADA'!$B:$E,4,0)) ->  | BC37: =IF(BC33="","",VLOOKUP($B$37,'DADOS DE ENTRADA'!$B:$E,4,0)) ->  | BD37: =IF(BD33="","",VLOOKUP($B$37,'DADOS DE ENTRADA'!$B:$E,4,0)) ->  | BE37: =IF(BE33="","",VLOOKUP($B$37,'DADOS DE ENTRADA'!$B:$E,4,0)) -> 10 | BF37: =IF(BF33="","",VLOOKUP($B$37,'DADOS DE ENTRADA'!$B:$E,4,0)) ->  | BG37: =IF(BG33="","",VLOOKUP($B$37,'DADOS DE ENTRADA'!$B:$E,4,0)) ->  | BH37: =IF(BH33="","",VLOOKUP($B$37,'DADOS DE ENTRADA'!$B:$E,4,0)) ->  | BI37: =IF(BI33="","",VLOOKUP($B$37,'DADOS DE ENTRADA'!$B:$E,4,0)) ->  | BJ37: =IF(BJ33="","",VLOOKUP($B$37,'DADOS DE ENTRADA'!$B:$E,4,0)) ->  | BK37: =IF(BK33="","",VLOOKUP($B$37,'DADOS DE ENTRADA'!$B:$E,4,0)) ->  | BL37: =IF(BL33="","",VLOOKUP($B$37,'DADOS DE ENTRADA'!$B:$E,4,0)) ->  | BM37: =IF(BM33="","",VLOOKUP($B$37,'DADOS DE ENTRADA'!$B:$E,4,0)) -> 10 | BN37: =IF(BN33="","",VLOOKUP($B$37,'DADOS DE ENTRADA'!$B:$E,4,0)) -> 10 | BO37: =IF(BO33="","",VLOOKUP($B$37,'DADOS DE ENTRADA'!$B:$E,4,0)) -> 10 | BP37: =IF(BP33="","",VLOOKUP($B$37,'DADOS DE ENTRADA'!$B:$E,4,0)) -> 10 | BQ37: =IF(BQ33="","",VLOOKUP($B$37,'DADOS DE ENTRADA'!$B:$E,4,0)) -> 10 | BR37: =IF(BR33="","",VLOOKUP($B$37,'DADOS DE ENTRADA'!$B:$E,4,0)) -> 10 | BS37: =IF(BS33="","",VLOOKUP($B$37,'DADOS DE ENTRADA'!$B:$E,4,0)) -> 10 | BT37: =IF(BT33="","",VLOOKUP($B$37,'DADOS DE ENTRADA'!$B:$E,4,0)) -> 10 | BU37: =IF(BU33="","",VLOOKUP($B$37,'DADOS DE ENTRADA'!$B:$E,4,0)) -> 10 | BV37: =IF(BV33="","",VLOOKUP($B$37,'DADOS DE ENTRADA'!$B:$E,4,0)) -> 10 | BW37: =IF(BW33="","",VLOOKUP($B$37,'DADOS DE ENTRADA'!$B:$E,4,0)) -> 10 | BX37: =IF(BX33="","",VLOOKUP($B$37,'DADOS DE ENTRADA'!$B:$E,4,0)) -> 10 | BY37: =IF(BY33="","",VLOOKUP($B$37,'DADOS DE ENTRADA'!$B:$E,4,0)) -> 10 | BZ37: =IF(BZ33="","",VLOOKUP($B$37,'DADOS DE ENTRADA'!$B:$E,4,0)) -> 10 | CA37: =IF(CA33="","",VLOOKUP($B$37,'DADOS DE ENTRADA'!$B:$E,4,0)) -> 10 | CB37: =IF(CB33="","",VLOOKUP($B$37,'DADOS DE ENTRADA'!$B:$E,4,0)) -> 10 | CC37: =IF(CC33="","",VLOOKUP($B$37,'DADOS DE ENTRADA'!$B:$E,4,0)) -> 10 | CD37: =IF(CD33="","",VLOOKUP($B$37,'DADOS DE ENTRADA'!$B:$E,4,0)) ->  | CE37: =IF(CE33="","",VLOOKUP($B$37,'DADOS DE ENTRADA'!$B:$E,4,0)) -> 10 | CF37: =IF(CF33="","",VLOOKUP($B$37,'DADOS DE ENTRADA'!$B:$E,4,0)) -> 10 | CG37: =IF(CG33="","",VLOOKUP($B$37,'DADOS DE ENTRADA'!$B:$E,4,0)) -> 10 | CH37: =IF(CH33="","",VLOOKUP($B$37,'DADOS DE ENTRADA'!$B:$E,4,0)) ->  | CI37: =IF(CI33="","",VLOOKUP($B$37,'DADOS DE ENTRADA'!$B:$E,4,0)) -> 10 | CJ37: =IF(CJ33="","",VLOOKUP($B$37,'DADOS DE ENTRADA'!$B:$E,4,0)) -> 10 | CK37: =IF(CK33="","",VLOOKUP($B$37,'DADOS DE ENTRADA'!$B:$E,4,0)) -> 10 | CL37: =IF(CL33="","",VLOOKUP($B$37,'DADOS DE ENTRADA'!$B:$E,4,0)) -> 10 | CM37: =IF(CM33="","",VLOOKUP($B$37,'DADOS DE ENTRADA'!$B:$E,4,0)) -> 
A38: CANAL TRAPEZOIDAL - QUANTITATIVOS | B38: LOCACAO E NIVELAMENTO DE REDE DE CANAIS COLETORES DE IRRIGAÇÃO COM AUXILIO DE EQUIPAMENTO TOPOGRAFICO - CANAL TRECHO TRAPEZOIDAL | D38: m | E38: =IF(E13="","",E12) -> 1730.64 | F38: 878.98 | G38: 385.11 | H38: 1565.27 | I38: 373.41 | J38: 0 | K38: 74.58 | L38: 364.11 | M38: 1131.44 | N38: 466.29 | U38: 34.11 | V38: 19.52 | W38: 29.21 | Y38: 236.58 | Z38: 681.9 | AF38: 247.88 | AH38: 209.22 | AK38: =IF(AK13="","",AK12) ->  | AM38: 66.07 | AN38: 787.38 | AS38: 418.7 | AV38: 783.93 | AY38: 530.93 | AZ38: 647.5 | BE38: 701.12 | BM38: 388.68 | BN38: 216.9 | BO38: 332.04 | BP38: 641.6 | BQ38: =IF(BQ13="","",BQ12) -> 520.07 | BR38: 153.42 | BS38: 47.14 | BT38: 439.89 | BU38: 126.04 | BV38: 526.24 | BW38: 150.44 | BX38: 213.1 | BY38: 357.94 | BZ38: 539.73 | CA38: 398.91 | CB38: 580 | CC38: 238.24 | CE38: 80 | CF38: 760 | CG38: 447.4 | CI38: 556.68 | CJ38: 194.17 | CK38: 255.47 | CL38: 854.23
B39: LIMPEZA MANUAL DE VEGETAÇÃO EM TERRENO COM ENXADA | D39: m² | E39: =IF(E13="","",2*E35*E12) -> 1730.64 | F39: 878.98 | G39: 385.11 | H39: 1565.27 | I39: 373.41 | AK39: =IF(AK13="","",2*AK35*AK12) ->  | BQ39: =IF(BQ13="","",2*BQ35*BQ12) -> 
B40: DEMOLIÇÃO DE PLACAS EM CONCRETO | D40: m³ | E40: =IF(E13="","",E12*E33*E21) -> 680.3935984 | F40: =IF(F13="","",F12*F33*F21) -> 340.3462941 | G40: 146.8294503 | H40: 596.7846424 | I40: 136.7975087 | J40: 0 | K40: 15.31962845 | L40: 68.30446142 | M40: 196.5691853 | N40: 68.08535784 | U40: 6.756949812 | V40: 3.866773976 | W40: 5.786294459 | Y40: 42.03871266 | Z40: 110.3684078 | AF40: 58.31407041 | AH40: 33.89258331 | AK40: =IF(AK13="","",AK12*AK33*AK21) ->  | AM40: 12.6651852 | AN40: 132.2283818 | AS40: 61.9654853 | AV40: 145.6179272 | AY40: 113.0000306 | AZ40: 112.4925294 | BE40: 123.5186473 | BM40: 141.5559603 | BN40: 75.51824822 | BO40: 114.444495 | BP40: 243.6209637 | BQ40: =IF(BQ13="","",BQ12*BQ33*BQ21) -> 193.761324 | BR40: 57.15934842 | BS40: 17.56284503 | BT40: 164.7597774 | BU40: 46.95844267 | BV40: 196.0600672 | BW40: 56.04909644 | BX40: 65.47094973 | BY40: 69.98175322 | BZ40: 94.83786635 | CA40: 59.03666525 | CB40: 85.83707063 | CC40: 35.25831674 | CE40: 14.54351514 | CF40: 129.1350544 | CG40: 74.45386757 | CI40: 80.43744841 | CJ40: 35.29892918 | CK40: 38.31407451 | CL40: 106.5190295
B41: CARGA E DESCARGA MECANICA DE SOLO UTILIZANDO CAMINHAO BASCULANTE 6,0M3/16T E RETROESCAVADEIRA, CAÇAMBA RETRO CAP. 0,20 M3,PESO OPERACIONAL MÍN. 6.570 KG, INCLUSO ENTULHO | D41: m³ | E41: =IF(E13="","",E40) -> 680.3935984 | F41: 340.3462941 | G41: 146.8294503 | H41: 596.7846424 | I41: 136.7975087 | J41: 0 | K41: 15.31962845 | L41: 68.30446142 | M41: 196.5691853 | N41: 68.08535784 | U41: 6.756949812 | V41: 3.866773976 | W41: 5.786294459 | Y41: 42.03871266 | Z41: 110.3684078 | AF41: 58.31407041 | AH41: 33.89258331 | AK41: =IF(AK13="","",AK40) ->  | AM41: 12.6651852 | AN41: 132.2283818 | AS41: 61.9654853 | AV41: 145.6179272 | AY41: 113.0000306 | AZ41: 112.4925294 | BE41: 123.5186473 | BM41: 141.5559603 | BN41: 75.51824822 | BO41: 114.444495 | BP41: 243.6209637 | BQ41: =IF(BQ13="","",BQ40) -> 193.761324 | BR41: 57.15934842 | BS41: 17.56284503 | BT41: 164.7597774 | BU41: 46.95844267 | BV41: 196.0600672 | BW41: 56.04909644 | BX41: 65.47094973 | BY41: 69.98175322 | BZ41: 94.83786635 | CA41: 59.03666525 | CB41: 85.83707063 | CC41: 35.25831674 | CE41: 14.54351514 | CF41: 129.1350544 | CG41: 74.45386757 | CI41: 80.43744841 | CJ41: 35.29892918 | CK41: 38.31407451 | CL41: 106.5190295
B42: TRANSPORTE COMERCIAL COM CAMINHÃO BASCULANTE 6 M3, RODOVIA EM LEITO NATURAL | D42: m³xKm | E42: =IF(E13="","",E41*E37) -> 6803.935984 | F42: =IF(F13="","",F41*F37) -> 3403.462941 | G42: 1468.294503 | H42: 5967.846424 | I42: 1367.975087 | J42: 0 | K42: 153.1962845 | L42: 683.0446142 | M42: 1965.691853 | N42: 680.8535784 | U42: 67.56949812 | V42: 38.66773976 | W42: 57.86294459 | Y42: 420.3871266 | Z42: 1103.684078 | AF42: 583.1407041 | AH42: 338.9258331 | AK42: =IF(AK13="","",AK41*AK37) ->  | AM42: 126.651852 | AN42: 1322.283818 | AS42: 619.654853 | AV42: 1456.179272 | AY42: 1130.000306 | AZ42: 1124.925294 | BE42: 1235.186473 | BM42: 1415.559603 | BN42: 755.1824822 | BO42: 1144.44495 | BP42: 2436.209637 | BQ42: =IF(BQ13="","",BQ41*BQ37) -> 1937.61324 | BR42: 571.5934842 | BS42: 175.6284503 | BT42: 1647.597774 | BU42: 469.5844267 | BV42: 1960.600672 | BW42: 560.4909644 | BX42: 654.7094973 | BY42: 699.8175322 | BZ42: 948.3786635 | CA42: 590.3666525 | CB42: 858.3707063 | CC42: 352.5831674 | CE42: 145.4351514 | CF42: 1291.350544 | CG42: 744.5386757 | CI42: 804.3744841 | CJ42: 352.9892918 | CK42: 383.1407451 | CL42: 1065.190295
B43: ESCAVACAO MECANICA, A CEU ABERTO, EM MATERIAL DE 1A CATEGORIA, COM RETROESCAVADEIRA- SOLO IMPRÓPRIO | D43: m³ | E43: =IF(E13="","",E12*E24) -> 3207.569821 | F43: =IF(F13="","",F12*F24) -> 1604.489672 | G43: 692.1959798 | H43: 2813.413314 | I43: 644.9025409 | J43: 0 | K43: 72.22110556 | L43: 322.0067467 | M43: 926.6833023 | N43: 320.9738298 | U43: 31.85419197 | V43: 18.22907732 | W43: 27.27824531 | Y43: 198.1825025 | Z43: 520.3082082 | AF43: 274.9091891 | AH43: 159.7793213 | AK43: =IF(AK13="","",AK12*AK24) ->  | AM43: 59.70730164 | AN43: 623.3623715 | AS43: 292.1230021 | AV43: 686.484514 | AY43: 532.7144301 | AZ43: 530.3219245 | BE43: 582.3021946 | BM43: 667.3352415 | BN43: 356.0145988 | BO43: 539.524048 | BP43: 1148.498829 | BQ43: =IF(BQ13="","",BQ12*BQ24) -> 913.4462418 | BR43: 269.4654997 | BS43: 82.79626943 | BT43: 776.7246649 | BU43: 221.3755155 | BV43: 924.283174 | BW43: 264.2314547 | BX43: 308.648763 | BY43: 329.9139795 | BZ43: 447.0927985 | CA43: 278.3157076 | CB43: 404.6604758 | CC43: 166.2177789 | CE43: 68.56228566 | CF43: 608.7795424 | CG43: 350.9968043 | CI43: 379.2051139 | CJ43: 166.4092376 | CK43: 180.6234941 | CL43: 502.161139
B44: CARGA E DESCARGA MECANICA DE SOLO UTILIZANDO CAMINHAO BASCULANTE 6,0M3/16T E RETROESCAVADEIRA, CAÇAMBA RETRO CAP. 0,20 M3,PESO OPERACIONAL MÍN. 6.570 KG, INCLUSO ENTULHO - SOLO IMPRÓPRIO | D44: m³ | E44: =IF(E13="","",E43) -> 3207.569821 | F44: 1604.489672 | G44: 692.1959798 | H44: 2813.413314 | I44: 644.9025409 | J44: 0 | K44: 72.22110556 | L44: 322.0067467 | M44: 926.6833023 | N44: 320.9738298 | U44: 31.85419197 | V44: 18.22907732 | W44: 27.27824531 | Y44: 198.1825025 | Z44: 520.3082082 | AF44: 274.9091891 | AH44: 159.7793213 | AK44: =IF(AK13="","",AK43) ->  | AM44: 59.70730164 | AN44: 623.3623715 | AS44: 292.1230021 | AV44: 686.484514 | AY44: 532.7144301 | AZ44: 530.3219245 | BE44: 582.3021946 | BM44: 667.3352415 | BN44: 356.0145988 | BO44: 539.524048 | BP44: 1148.498829 | BQ44: =IF(BQ13="","",BQ43) -> 913.4462418 | BR44: 269.4654997 | BS44: 82.79626943 | BT44: 776.7246649 | BU44: 221.3755155 | BV44: 924.283174 | BW44: 264.2314547 | BX44: 308.648763 | BY44: 329.9139795 | BZ44: 447.0927985 | CA44: 278.3157076 | CB44: 404.6604758 | CC44: 166.2177789 | CE44: 68.56228566 | CF44: 608.7795424 | CG44: 350.9968043 | CI44: 379.2051139 | CJ44: 166.4092376 | CK44: 180.6234941 | CL44: 502.161139
B45: TRANSPORTE COMERCIAL COM CAMINHAO BASCULANTE 6 M3, RODOVIA EM LEITO NATURAL- SOLO IMPRÓPRIO | D45: m³xKm | E45: =IF(E13="","",E44*E37) -> 32075.69821 | F45: 16044.89672 | G45: 6921.959798 | H45: 28134.13314 | I45: 6449.025409 | J45: 0 | K45: 722.2110556 | L45: 3220.067467 | M45: 9266.833023 | N45: 3209.738298 | U45: 318.5419197 | V45: 182.2907732 | W45: 272.7824531 | Y45: 1981.825025 | Z45: 5203.082082 | AF45: 2749.091891 | AH45: 1597.793213 | AK45: =IF(AK13="","",AK44*AK37) ->  | AM45: 597.0730164 | AN45: 6233.623715 | AS45: 2921.230021 | AV45: 6864.84514 | AY45: 5327.144301 | AZ45: 5303.219245 | BE45: 5823.021946 | BM45: 6673.352415 | BN45: 3560.145988 | BO45: 5395.24048 | BP45: 11484.98829 | BQ45: =IF(BQ13="","",BQ44*BQ37) -> 9134.462418 | BR45: 2694.654997 | BS45: 827.9626943 | BT45: 7767.246649 | BU45: 2213.755155 | BV45: 9242.83174 | BW45: 2642.314547 | BX45: 3086.48763 | BY45: 3299.139795 | BZ45: 4470.927985 | CA45: 2783.157076 | CB45: 4046.604758 | CC45: 1662.177789 | CE45: 685.6228566 | CF45: 6087.795424 | CG45: 3509.968043 | CI45: 3792.051139 | CJ45: 1664.092376 | CK45: 1806.234941 | CL45: 5021.61139
B46: PPREPARO E EXECUÇÃO DE SOLO-CIMENTO TRAÇO 1:12 EM VOLUME, (CIMENTO/ARENOSO), COM COMPACTAÇÃO E ESPALHAMENTO, PARA SUPORTE DE FUNDAÇÕES, INCLUSIVE CIMENTO E ARENOSO COMERCIAL | D46: m³ | E46: =IF(E13="","",E25*E12) -> 971.9908549 | F46: 486.2089915 | G46: 209.7563575 | H46: 852.5494891 | I46: 195.4250124 | J46: 0 | K46: 21.8851835 | L46: 97.57780203 | M46: 280.8131219 | N46: 97.26479692 | U46: 9.652785446 | V46: 5.523962823 | W46: 8.266134942 | Y46: 60.0553038 | Z46: 157.669154 | AF46: 83.30581486 | AH46: 48.41797615 | AK46: =IF(AK13="","",AK25*AK12) ->  | AM46: 18.09312171 | AN46: 188.8976883 | AS46: 88.52212186 | AV46: 208.0256103 | AY46: 161.4286152 | AZ46: 160.7036135 | BE46: 176.4552105 | BM46: 202.2228005 | BN46: 107.8832117 | BO46: 163.4921358 | BP46: 348.0299481 | BQ46: =IF(BQ13="","",BQ25*BQ12) -> 276.8018915 | BR46: 81.65621203 | BS46: 25.08977861 | BT46: 235.3711106 | BU46: 67.08348953 | BV46: 280.0858103 | BW46: 80.07013777 | BX46: 93.52992818 | BY46: 99.97393317 | BZ46: 135.4826662 | CA46: 84.33809322 | CB46: 122.6243866 | CC46: 50.36902391 | CE46: 20.7764502 | CF46: 184.4786492 | CG46: 106.362668 | CI46: 114.9106406 | CJ46: 50.42704169 | CK46: 54.73439216 | CL46: 152.1700421
B47: ATERRO MANUAL COM MATERIAL DE EMPRÉSTIMO, COMPACTAÇÃO MECANIZADA E REGULARIZAÇÃO DO TALUDE | D47: m³ | E47: =IF(E13="","",E34*0.25*E12) -> 2256.913137 | F47: =IF(F13="","",F34*0.25*F12) -> 1127.624479 | G47: 485.8798938 | H47: 1974.846723 | I47: 451.221531 | J47: =IF(J13="","",J32*J12) ->  | AP47: =IF(AP13="","",AP32*AP12) ->  | BV47: =IF(BV13="","",BV32*BV12) -> 
B48: ESCAVAÇÃO MANUAL DE VALAS PARA ANCORAGEM DA MANTA PEAD | D48: m³ | E48: =IF(E13="","",(E30*E31)*E12*2) -> 138.4512 | F48: 70.3184 | G48: 30.8088 | H48: 125.2216 | I48: 29.8728 | AK48: =IF(AK13="","",(AK30*AK31)*AK12*2) ->  | BQ48: =IF(BQ13="","",(BQ30*BQ31)*BQ12*2) -> 
B49: FORNECIMENTO E INSTALAÇÃO DE GEOMEMBRANA , PEAD, ESP = 1MM | D49: m² | E49: =IF(E13="","",E32*E12) -> 11104.42055 | F49: =IF(F13="","",F32*F12) -> 5565.273915 | G49: 2405.651575 | H49: 9777.710891 | I49: 2252.978124 | J49: =IF(J13="","",J47) ->  | AP49: =IF(AP13="","",AP47) ->  | BV49: =IF(BV13="","",BV47) -> 
B50: REATERRO COM COMPACTACAO MECANIZADA DAS VALAS ( ANCORAGEM DA MANTA PEAD ) | D50: m³ | E50: =IF(E13="","",E48) -> 138.4512 | F50: 70.3184 | G50: 30.8088 | H50: 125.2216 | I50: 29.8728 | AK50: =IF(AK13="","",AK48) ->  | BQ50: =IF(BQ13="","",BQ48) -> 
B51: ARMACAO EM TELA DE ACO SOLDADA NERVURADA Q-138, ACO CA-60, 4,2MM, MALHA 15X15CM | D51: m² | E51: =IF(E13="","",E33*E12) -> 9719.908549 | F51: =IF(F13="","",F33*F12) -> 4862.089915 | G51: 2097.563575 | H51: 8525.494891 | I51: 1954.250124 | J51: =IF(J13="","",#REF!*J12) ->  | K51: =IF(K13="","",#REF!*K12) ->  | L51: =IF(L13="","",#REF!*L12) ->  | M51: =IF(M13="","",#REF!*M12) ->  | N51: =IF(N13="","",#REF!*N12) ->  | O51: =IF(O13="","",#REF!*O12) ->  | P51: =IF(P13="","",#REF!*P12) ->  | Q51: =IF(Q13="","",#REF!*Q12) ->  | R51: =IF(R13="","",#REF!*R12) ->  | S51: =IF(S13="","",#REF!*S12) ->  | T51: =IF(T13="","",#REF!*T12) ->  | U51: =IF(U13="","",#REF!*U12) ->  | V51: =IF(V13="","",#REF!*V12) ->  | W51: =IF(W13="","",#REF!*W12) ->  | X51: =IF(X13="","",#REF!*X12) ->  | Y51: =IF(Y13="","",#REF!*Y12) ->  | Z51: =IF(Z13="","",#REF!*Z12) ->  | AA51: =IF(AA13="","",#REF!*AA12) ->  | AB51: =IF(AB13="","",#REF!*AB12) ->  | AC51: =IF(AC13="","",#REF!*AC12) ->  | AD51: =IF(AD13="","",#REF!*AD12) ->  | AE51: =IF(AE13="","",#REF!*AE12) ->  | AF51: =IF(AF13="","",#REF!*AF12) ->  | AG51: =IF(AG13="","",#REF!*AG12) ->  | AH51: =IF(AH13="","",#REF!*AH12) ->  | AI51: =IF(AI13="","",#REF!*AI12) ->  | AJ51: =IF(AJ13="","",#REF!*AJ12) ->  | AK51: =IF(AK13="","",#REF!*AK12) ->  | AL51: =IF(AL13="","",#REF!*AL12) ->  | AM51: =IF(AM13="","",#REF!*AM12) ->  | AN51: =IF(AN13="","",#REF!*AN12) ->  | AO51: =IF(AO13="","",#REF!*AO12) ->  | AP51: =IF(AP13="","",#REF!*AP12) ->  | AQ51: =IF(AQ13="","",#REF!*AQ12) ->  | AR51: =IF(AR13="","",#REF!*AR12) ->  | AS51: =IF(AS13="","",#REF!*AS12) ->  | AT51: =IF(AT13="","",#REF!*AT12) ->  | AU51: =IF(AU13="","",#REF!*AU12) ->  | AV51: =IF(AV13="","",#REF!*AV12) ->  | AW51: =IF(AW13="","",#REF!*AW12) ->  | AX51: =IF(AX13="","",#REF!*AX12) ->  | AY51: =IF(AY13="","",#REF!*AY12) ->  | AZ51: =IF(AZ13="","",#REF!*AZ12) ->  | BA51: =IF(BA13="","",#REF!*BA12) ->  | BB51: =IF(BB13="","",#REF!*BB12) ->  | BC51: =IF(BC13="","",#REF!*BC12) ->  | BD51: =IF(BD13="","",#REF!*BD12) ->  | BE51: =IF(BE13="","",#REF!*BE12) ->  | BF51: =IF(BF13="","",#REF!*BF12) ->  | BG51: =IF(BG13="","",#REF!*BG12) ->  | BH51: =IF(BH13="","",#REF!*BH12) ->  | BI51: =IF(BI13="","",#REF!*BI12) ->  | BJ51: =IF(BJ13="","",#REF!*BJ12) ->  | BK51: =IF(BK13="","",#REF!*BK12) ->  | BL51: =IF(BL13="","",#REF!*BL12) ->  | BM51: =IF(BM13="","",#REF!*BM12) ->  | BN51: =IF(BN13="","",#REF!*BN12) ->  | BO51: =IF(BO13="","",#REF!*BO12) ->  | BP51: =IF(BP13="","",#REF!*BP12) ->  | BQ51: =IF(BQ13="","",#REF!*BQ12) ->  | BR51: =IF(BR13="","",#REF!*BR12) ->  | BS51: =IF(BS13="","",#REF!*BS12) ->  | BT51: =IF(BT13="","",#REF!*BT12) ->  | BU51: =IF(BU13="","",#REF!*BU12) ->  | BV51: =IF(BV13="","",#REF!*BV12) ->  | BW51: =IF(BW13="","",#REF!*BW12) ->  | BX51: =IF(BX13="","",#REF!*BX12) ->  | BY51: =IF(BY13="","",#REF!*BY12) ->  | BZ51: =IF(BZ13="","",#REF!*BZ12) ->  | CA51: =IF(CA13="","",#REF!*CA12) ->  | CB51: =IF(CB13="","",#REF!*CB12) ->  | CC51: =IF(CC13="","",#REF!*CC12) ->  | CD51: =IF(CD13="","",#REF!*CD12) ->  | CE51: =IF(CE13="","",#REF!*CE12) ->  | CF51: =IF(CF13="","",#REF!*CF12) ->  | CG51: =IF(CG13="","",#REF!*CG12) ->  | CH51: =IF(CH13="","",#REF!*CH12) ->  | CI51: =IF(CI13="","",#REF!*CI12) ->  | CJ51: =IF(CJ13="","",#REF!*CJ12) ->  | CK51: =IF(CK13="","",#REF!*CK12) ->  | CL51: =IF(CL13="","",#REF!*CL12) ->  | CM51: =IF(CM13="","",#REF!*CM12) -> 
B52: CONCRETO FCK=20MPA PARA ESTRUTURAS, INCLUINDO PREPARO MECANICO, LANCAMENTO E ADENSAMENTO | D52: m³ | E52: =IF(E13="","",(E33*E19)*E12) -> 485.9954275 | F52: =IF(F13="","",(F33*F19)*F12) -> 243.1044958 | G52: 104.8781788 | H52: 426.2747445 | I52: 97.71250619 | J52: =IF(J13="","",(J34*J19)*J12) -> 0 | K52: 9.450991751 | L52: 41.50670101 | M52: 117.777761 | N52: 39.30659846 | U52: 4.144192723 | V52: 2.371581412 | W52: 3.548867471 | Y52: 25.2960519 | Z52: 65.19657701 | AF52: 36.69530743 | AH52: 20.02458808 | AM52: 7.725160854 | AN52: 78.70124416 | AP52: =IF(AP13="","",(AP34*AP19)*AP12) ->  | AS52: 35.88706093 | AV52: 88.33420515 | AY52: 70.09570759 | AZ52: 67.40180674 | BE52: 74.20520525 | BM52: 93.33780023 | BN52: 49.60360587 | BO52: 75.10526788 | BP52: 161.1829741 | BQ52: 127.9995457 | BR52: 37.75970601 | BS52: 11.60208931 | BT52: 108.8877553 | BU52: 31.02094477 | BV52: =IF(BV13="","",(BV34*BV19)*BV12) -> 129.5181052 | BW52: 37.02626889 | BX52: 42.50296409 | BY52: 42.82816659 | BZ52: 56.94673311 | CA52: 34.19084661 | CB52: 49.71219331 | CC52: 20.41971195 | CE52: 8.788225099 | CF52: 77.0393246 | CG52: 44.23333398 | CI52: 46.3217203 | CJ52: 21.33012084 | CK52: 22.25779608 | CL52: 59.00042106
A53: CANAL RETANGULAR - MEDIDAS | B53: Canal Retangular (Largura Externa): | C53: B= | D53: m | E53: =IF(E55="","",E55+E56+E56) ->  | F53: =IF(F55="","",F55+F56+F56) ->  | O53: 0.99 | P53: 0.54 | Q53: 0.54 | R53: 0.54 | S53: 0.49 | T53: 0.49 | X53: 0.79 | AA53: 0.74 | AB53: 0.74 | AC53: 0.59 | AD53: 0.64 | AE53: 0.54 | AG53: 0.59 | AI53: 0.84 | AJ53: 0.79 | AK53: 0.54 | AL53: 0.79 | AO53: 0.74 | AP53: 0.64 | AQ53: 0.69 | AR53: 0.74 | AT53: 0.64 | AU53: 0.89 | AW53: 0.74 | AX53: 0.64 | BA53: 0.89 | BB53: 0.54 | BC53: 0.69 | BD53: 0.64 | BF53: 0.64 | BG53: 0.64 | BH53: 0.64 | BI53: 0.54 | BJ53: 0.64 | BK53: 0.54 | BL53: 0.59 | BR53: =IF(BR55="","",BR55+BR56+BR56) ->  | CD53: 0.59 | CH53: 0.59 | CM53: 0.49
C54: d= | D54: m | E54: =IF(E55="","",(E63-E53)/2) ->  | F54: =IF(F55="","",(F63-F53)/2) ->  | O54: 0.11 | P54: -0.07 | Q54: -0.12 | R54: -0.11 | S54: -0.13 | T54: -0.105 | X54: 2.48 | AA54: -0.075 | AB54: -0.145 | AC54: -0.06 | AD54: -0.15 | AE54: -0.1 | AG54: 0.005 | AI54: 0.225 | AJ54: 0.035 | AK54: -0.105 | AL54: -0.12 | AO54: 0.28 | AP54: -0.14 | AQ54: 0.5925 | AR54: 0.38 | AT54: 0.24 | AU54: -0.06 | AW54: 0.315 | AX54: -0.17 | BA54: 0.22 | BB54: -0.08 | BC54: -0.195 | BD54: -0.17 | BF54: 0.15 | BG54: -0.055 | BH54: 0.235 | BI54: 0.12 | BJ54: -0.02 | BK54: -0.09 | BL54: -0.09 | BR54: =IF(BR55="","",(BR63-BR53)/2) ->  | CD54: 0.52 | CH54: 0.66 | CM54: -0.065
B55: Canal retangular (Largura Interna): | C55: b= | D55: m | O55: 0.75 | P55: 0.3 | Q55: 0.3 | R55: 0.3 | S55: 0.25 | T55: 0.25 | X55: 0.55 | AA55: 0.5 | AB55: 0.5 | AC55: 0.35 | AD55: 0.4 | AE55: 0.3 | AG55: 0.35 | AI55: 0.6 | AJ55: 0.55 | AK55: 0.3 | AL55: 0.55 | AO55: 0.5 | AP55: 0.4 | AQ55: 0.45 | AR55: 0.5 | AT55: 0.4 | AU55: 0.65 | AW55: 0.5 | AX55: 0.4 | BA55: 0.65 | BB55: 0.3 | BC55: 0.45 | BD55: 0.4 | BF55: 0.4 | BG55: 0.4 | BH55: 0.4 | BI55: 0.3 | BJ55: 0.4 | BK55: 0.3 | BL55: 0.35 | CD55: 0.35 | CH55: 0.35 | CM55: 0.25
B56: Canal retangular (Espessura Parede): | C56: c= | D56: m | E56: =IF(E$55="","",VLOOKUP($B56,'DADOS DE ENTRADA'!$B:$E,4,0)) ->  | F56: =IF(F$55="","",VLOOKUP($B56,'DADOS DE ENTRADA'!$B:$E,4,0)) ->  | G56: =IF(G$55="","",VLOOKUP($B56,'DADOS DE ENTRADA'!$B:$E,4,0)) ->  | H56: =IF(H$55="","",VLOOKUP($B56,'DADOS DE ENTRADA'!$B:$E,4,0)) ->  | I56: =IF(I$55="","",VLOOKUP($B56,'DADOS DE ENTRADA'!$B:$E,4,0)) ->  | J56: =IF(J$55="","",VLOOKUP($B56,'DADOS DE ENTRADA'!$B:$E,4,0)) ->  | K56: =IF(K$55="","",VLOOKUP($B56,'DADOS DE ENTRADA'!$B:$E,4,0)) ->  | L56: =IF(L$55="","",VLOOKUP($B56,'DADOS DE ENTRADA'!$B:$E,4,0)) ->  | M56: =IF(M$55="","",VLOOKUP($B56,'DADOS DE ENTRADA'!$B:$E,4,0)) ->  | N56: =IF(N$55="","",VLOOKUP($B56,'DADOS DE ENTRADA'!$B:$E,4,0)) ->  | O56: =IF(O$55="","",VLOOKUP($B56,'DADOS DE ENTRADA'!$B:$E,4,0)) -> 0.12 | P56: =IF(P$55="","",VLOOKUP($B56,'DADOS DE ENTRADA'!$B:$E,4,0)) -> 0.12 | Q56: =IF(Q$55="","",VLOOKUP($B56,'DADOS DE ENTRADA'!$B:$E,4,0)) -> 0.12 | R56: =IF(R$55="","",VLOOKUP($B56,'DADOS DE ENTRADA'!$B:$E,4,0)) -> 0.12 | S56: =IF(S$55="","",VLOOKUP($B56,'DADOS DE ENTRADA'!$B:$E,4,0)) -> 0.12 | T56: =IF(T$55="","",VLOOKUP($B56,'DADOS DE ENTRADA'!$B:$E,4,0)) -> 0.12 | U56: =IF(U$55="","",VLOOKUP($B56,'DADOS DE ENTRADA'!$B:$E,4,0)) ->  | V56: =IF(V$55="","",VLOOKUP($B56,'DADOS DE ENTRADA'!$B:$E,4,0)) ->  | W56: =IF(W$55="","",VLOOKUP($B56,'DADOS DE ENTRADA'!$B:$E,4,0)) ->  | X56: =IF(X$55="","",VLOOKUP($B56,'DADOS DE ENTRADA'!$B:$E,4,0)) -> 0.12 | Y56: =IF(Y$55="","",VLOOKUP($B56,'DADOS DE ENTRADA'!$B:$E,4,0)) ->  | Z56: =IF(Z$55="","",VLOOKUP($B56,'DADOS DE ENTRADA'!$B:$E,4,0)) ->  | AA56: =IF(AA$55="","",VLOOKUP($B56,'DADOS DE ENTRADA'!$B:$E,4,0)) -> 0.12 | AB56: =IF(AB$55="","",VLOOKUP($B56,'DADOS DE ENTRADA'!$B:$E,4,0)) -> 0.12 | AC56: =IF(AC$55="","",VLOOKUP($B56,'DADOS DE ENTRADA'!$B:$E,4,0)) -> 0.12 | AD56: =IF(AD$55="","",VLOOKUP($B56,'DADOS DE ENTRADA'!$B:$E,4,0)) -> 0.12 | AE56: =IF(AE$55="","",VLOOKUP($B56,'DADOS DE ENTRADA'!$B:$E,4,0)) -> 0.12 | AF56: =IF(AF$55="","",VLOOKUP($B56,'DADOS DE ENTRADA'!$B:$E,4,0)) ->  | AG56: =IF(AG$55="","",VLOOKUP($B56,'DADOS DE ENTRADA'!$B:$E,4,0)) -> 0.12 | AH56: =IF(AH$55="","",VLOOKUP($B56,'DADOS DE ENTRADA'!$B:$E,4,0)) ->  | AI56: =IF(AI$55="","",VLOOKUP($B56,'DADOS DE ENTRADA'!$B:$E,4,0)) -> 0.12 | AJ56: =IF(AJ$55="","",VLOOKUP($B56,'DADOS DE ENTRADA'!$B:$E,4,0)) -> 0.12 | AK56: =IF(AK$55="","",VLOOKUP($B56,'DADOS DE ENTRADA'!$B:$E,4,0)) -> 0.12 | AL56: =IF(AL$55="","",VLOOKUP($B56,'DADOS DE ENTRADA'!$B:$E,4,0)) -> 0.12 | AM56: =IF(AM$55="","",VLOOKUP($B56,'DADOS DE ENTRADA'!$B:$E,4,0)) ->  | AN56: =IF(AN$55="","",VLOOKUP($B56,'DADOS DE ENTRADA'!$B:$E,4,0)) ->  | AO56: =IF(AO$55="","",VLOOKUP($B56,'DADOS DE ENTRADA'!$B:$E,4,0)) -> 0.12 | AP56: =IF(AP$55="","",VLOOKUP($B56,'DADOS DE ENTRADA'!$B:$E,4,0)) -> 0.12 | AQ56: =IF(AQ$55="","",VLOOKUP($B56,'DADOS DE ENTRADA'!$B:$E,4,0)) -> 0.12 | AR56: =IF(AR$55="","",VLOOKUP($B56,'DADOS DE ENTRADA'!$B:$E,4,0)) -> 0.12 | AS56: =IF(AS$55="","",VLOOKUP($B56,'DADOS DE ENTRADA'!$B:$E,4,0)) ->  | AT56: =IF(AT$55="","",VLOOKUP($B56,'DADOS DE ENTRADA'!$B:$E,4,0)) -> 0.12 | AU56: =IF(AU$55="","",VLOOKUP($B56,'DADOS DE ENTRADA'!$B:$E,4,0)) -> 0.12 | AV56: =IF(AV$55="","",VLOOKUP($B56,'DADOS DE ENTRADA'!$B:$E,4,0)) ->  | AW56: =IF(AW$55="","",VLOOKUP($B56,'DADOS DE ENTRADA'!$B:$E,4,0)) -> 0.12 | AX56: =IF(AX$55="","",VLOOKUP($B56,'DADOS DE ENTRADA'!$B:$E,4,0)) -> 0.12 | AY56: =IF(AY$55="","",VLOOKUP($B56,'DADOS DE ENTRADA'!$B:$E,4,0)) ->  | AZ56: =IF(AZ$55="","",VLOOKUP($B56,'DADOS DE ENTRADA'!$B:$E,4,0)) ->  | BA56: =IF(BA$55="","",VLOOKUP($B56,'DADOS DE ENTRADA'!$B:$E,4,0)) -> 0.12 | BB56: =IF(BB$55="","",VLOOKUP($B56,'DADOS DE ENTRADA'!$B:$E,4,0)) -> 0.12 | BC56: =IF(BC$55="","",VLOOKUP($B56,'DADOS DE ENTRADA'!$B:$E,4,0)) -> 0.12 | BD56: =IF(BD$55="","",VLOOKUP($B56,'DADOS DE ENTRADA'!$B:$E,4,0)) -> 0.12 | BE56: =IF(BE$55="","",VLOOKUP($B56,'DADOS DE ENTRADA'!$B:$E,4,0)) ->  | BF56: =IF(BF$55="","",VLOOKUP($B56,'DADOS DE ENTRADA'!$B:$E,4,0)) -> 0.12 | BG56: =IF(BG$55="","",VLOOKUP($B56,'DADOS DE ENTRADA'!$B:$E,4,0)) -> 0.12 | BH56: =IF(BH$55="","",VLOOKUP($B56,'DADOS DE ENTRADA'!$B:$E,4,0)) -> 0.12 | BI56: =IF(BI$55="","",VLOOKUP($B56,'DADOS DE ENTRADA'!$B:$E,4,0)) -> 0.12 | BJ56: =IF(BJ$55="","",VLOOKUP($B56,'DADOS DE ENTRADA'!$B:$E,4,0)) -> 0.12 | BK56: =IF(BK$55="","",VLOOKUP($B56,'DADOS DE ENTRADA'!$B:$E,4,0)) -> 0.12 | BL56: =IF(BL$55="","",VLOOKUP($B56,'DADOS DE ENTRADA'!$B:$E,4,0)) -> 0.12 | BM56: =IF(BM$55="","",VLOOKUP($B56,'DADOS DE ENTRADA'!$B:$E,4,0)) ->  | BN56: =IF(BN$55="","",VLOOKUP($B56,'DADOS DE ENTRADA'!$B:$E,4,0)) ->  | BO56: =IF(BO$55="","",VLOOKUP($B56,'DADOS DE ENTRADA'!$B:$E,4,0)) ->  | BP56: =IF(BP$55="","",VLOOKUP($B56,'DADOS DE ENTRADA'!$B:$E,4,0)) ->  | BQ56: =IF(BQ$55="","",VLOOKUP($B56,'DADOS DE ENTRADA'!$B:$E,4,0)) ->  | BR56: =IF(BR$55="","",VLOOKUP($B56,'DADOS DE ENTRADA'!$B:$E,4,0)) ->  | BS56: =IF(BS$55="","",VLOOKUP($B56,'DADOS DE ENTRADA'!$B:$E,4,0)) ->  | BT56: =IF(BT$55="","",VLOOKUP($B56,'DADOS DE ENTRADA'!$B:$E,4,0)) ->  | BU56: =IF(BU$55="","",VLOOKUP($B56,'DADOS DE ENTRADA'!$B:$E,4,0)) ->  | BV56: =IF(BV$55="","",VLOOKUP($B56,'DADOS DE ENTRADA'!$B:$E,4,0)) ->  | BW56: =IF(BW$55="","",VLOOKUP($B56,'DADOS DE ENTRADA'!$B:$E,4,0)) ->  | BX56: =IF(BX$55="","",VLOOKUP($B56,'DADOS DE ENTRADA'!$B:$E,4,0)) ->  | BY56: =IF(BY$55="","",VLOOKUP($B56,'DADOS DE ENTRADA'!$B:$E,4,0)) ->  | BZ56: =IF(BZ$55="","",VLOOKUP($B56,'DADOS DE ENTRADA'!$B:$E,4,0)) ->  | CA56: =IF(CA$55="","",VLOOKUP($B56,'DADOS DE ENTRADA'!$B:$E,4,0)) ->  | CB56: =IF(CB$55="","",VLOOKUP($B56,'DADOS DE ENTRADA'!$B:$E,4,0)) ->  | CC56: =IF(CC$55="","",VLOOKUP($B56,'DADOS DE ENTRADA'!$B:$E,4,0)) ->  | CD56: =IF(CD$55="","",VLOOKUP($B56,'DADOS DE ENTRADA'!$B:$E,4,0)) -> 0.12 | CE56: =IF(CE$55="","",VLOOKUP($B56,'DADOS DE ENTRADA'!$B:$E,4,0)) ->  | CF56: =IF(CF$55="","",VLOOKUP($B56,'DADOS DE ENTRADA'!$B:$E,4,0)) ->  | CG56: =IF(CG$55="","",VLOOKUP($B56,'DADOS DE ENTRADA'!$B:$E,4,0)) ->  | CH56: =IF(CH$55="","",VLOOKUP($B56,'DADOS DE ENTRADA'!$B:$E,4,0)) -> 0.12 | CI56: =IF(CI$55="","",VLOOKUP($B56,'DADOS DE ENTRADA'!$B:$E,4,0)) ->  | CJ56: =IF(CJ$55="","",VLOOKUP($B56,'DADOS DE ENTRADA'!$B:$E,4,0)) ->  | CK56: =IF(CK$55="","",VLOOKUP($B56,'DADOS DE ENTRADA'!$B:$E,4,0)) ->  | CL56: =IF(CL$55="","",VLOOKUP($B56,'DADOS DE ENTRADA'!$B:$E,4,0)) ->  | CM56: =IF(CM$55="","",VLOOKUP($B56,'DADOS DE ENTRADA'!$B:$E,4,0)) -> 0.12
B57: Canal Retangular (Altura Interna): | C57: H= | D57: m | O57: 0.45 | P57: 0.4 | Q57: 0.37 | R57: 0.5 | S57: 0.4 | T57: 0.4 | X57: 0.56 | AA57: 0.5 | AB57: 0.5 | AC57: 0.5 | AD57: 0.35 | AE57: 0.58 | AG57: 0.45 | AI57: 0.5 | AJ57: 0.58 | AK57: 0.38 | AL57: 0.55 | AO57: 0.58 | AP57: 0.42 | AQ57: 0.47 | AR57: 0.51 | AT57: 0.48 | AU57: 0.5 | AW57: 0.53 | AX57: 0.4 | BA57: 0.48 | BB57: 0.38 | BC57: 0.44 | BD57: 0.36 | BF57: 0.48 | BG57: 0.4 | BH57: 0.4 | BI57: 0.47 | BJ57: 0.45 | BK57: 0.45 | BL57: 0.35 | CD57: 0.5 | CH57: 0.54 | CM57: 0.4
B58: Canal Retangular (Laje Base Espessura): | C58: eb= | D58: m | E58: =IF(E$55="","",VLOOKUP($B58,'DADOS DE ENTRADA'!$B:$E,4,0)) ->  | F58: =IF(F$55="","",VLOOKUP($B58,'DADOS DE ENTRADA'!$B:$E,4,0)) ->  | G58: =IF(G$55="","",VLOOKUP($B58,'DADOS DE ENTRADA'!$B:$E,4,0)) ->  | H58: =IF(H$55="","",VLOOKUP($B58,'DADOS DE ENTRADA'!$B:$E,4,0)) ->  | I58: =IF(I$55="","",VLOOKUP($B58,'DADOS DE ENTRADA'!$B:$E,4,0)) ->  | J58: =IF(J$55="","",VLOOKUP($B58,'DADOS DE ENTRADA'!$B:$E,4,0)) ->  | K58: =IF(K$55="","",VLOOKUP($B58,'DADOS DE ENTRADA'!$B:$E,4,0)) ->  | L58: =IF(L$55="","",VLOOKUP($B58,'DADOS DE ENTRADA'!$B:$E,4,0)) ->  | M58: =IF(M$55="","",VLOOKUP($B58,'DADOS DE ENTRADA'!$B:$E,4,0)) ->  | N58: =IF(N$55="","",VLOOKUP($B58,'DADOS DE ENTRADA'!$B:$E,4,0)) ->  | O58: =IF(O$55="","",VLOOKUP($B58,'DADOS DE ENTRADA'!$B:$E,4,0)) -> 0.1 | P58: =IF(P$55="","",VLOOKUP($B58,'DADOS DE ENTRADA'!$B:$E,4,0)) -> 0.1 | Q58: =IF(Q$55="","",VLOOKUP($B58,'DADOS DE ENTRADA'!$B:$E,4,0)) -> 0.1 | R58: =IF(R$55="","",VLOOKUP($B58,'DADOS DE ENTRADA'!$B:$E,4,0)) -> 0.1 | S58: =IF(S$55="","",VLOOKUP($B58,'DADOS DE ENTRADA'!$B:$E,4,0)) -> 0.1 | T58: =IF(T$55="","",VLOOKUP($B58,'DADOS DE ENTRADA'!$B:$E,4,0)) -> 0.1 | U58: =IF(U$55="","",VLOOKUP($B58,'DADOS DE ENTRADA'!$B:$E,4,0)) ->  | V58: =IF(V$55="","",VLOOKUP($B58,'DADOS DE ENTRADA'!$B:$E,4,0)) ->  | W58: =IF(W$55="","",VLOOKUP($B58,'DADOS DE ENTRADA'!$B:$E,4,0)) ->  | X58: =IF(X$55="","",VLOOKUP($B58,'DADOS DE ENTRADA'!$B:$E,4,0)) -> 0.1 | Y58: =IF(Y$55="","",VLOOKUP($B58,'DADOS DE ENTRADA'!$B:$E,4,0)) ->  | Z58: =IF(Z$55="","",VLOOKUP($B58,'DADOS DE ENTRADA'!$B:$E,4,0)) ->  | AA58: =IF(AA$55="","",VLOOKUP($B58,'DADOS DE ENTRADA'!$B:$E,4,0)) -> 0.1 | AB58: =IF(AB$55="","",VLOOKUP($B58,'DADOS DE ENTRADA'!$B:$E,4,0)) -> 0.1 | AC58: =IF(AC$55="","",VLOOKUP($B58,'DADOS DE ENTRADA'!$B:$E,4,0)) -> 0.1 | AD58: =IF(AD$55="","",VLOOKUP($B58,'DADOS DE ENTRADA'!$B:$E,4,0)) -> 0.1 | AE58: =IF(AE$55="","",VLOOKUP($B58,'DADOS DE ENTRADA'!$B:$E,4,0)) -> 0.1 | AF58: =IF(AF$55="","",VLOOKUP($B58,'DADOS DE ENTRADA'!$B:$E,4,0)) ->  | AG58: =IF(AG$55="","",VLOOKUP($B58,'DADOS DE ENTRADA'!$B:$E,4,0)) -> 0.1 | AH58: =IF(AH$55="","",VLOOKUP($B58,'DADOS DE ENTRADA'!$B:$E,4,0)) ->  | AI58: =IF(AI$55="","",VLOOKUP($B58,'DADOS DE ENTRADA'!$B:$E,4,0)) -> 0.1 | AJ58: =IF(AJ$55="","",VLOOKUP($B58,'DADOS DE ENTRADA'!$B:$E,4,0)) -> 0.1 | AK58: =IF(AK$55="","",VLOOKUP($B58,'DADOS DE ENTRADA'!$B:$E,4,0)) -> 0.1 | AL58: =IF(AL$55="","",VLOOKUP($B58,'DADOS DE ENTRADA'!$B:$E,4,0)) -> 0.1 | AM58: =IF(AM$55="","",VLOOKUP($B58,'DADOS DE ENTRADA'!$B:$E,4,0)) ->  | AN58: =IF(AN$55="","",VLOOKUP($B58,'DADOS DE ENTRADA'!$B:$E,4,0)) ->  | AO58: =IF(AO$55="","",VLOOKUP($B58,'DADOS DE ENTRADA'!$B:$E,4,0)) -> 0.1 | AP58: =IF(AP$55="","",VLOOKUP($B58,'DADOS DE ENTRADA'!$B:$E,4,0)) -> 0.1 | AQ58: =IF(AQ$55="","",VLOOKUP($B58,'DADOS DE ENTRADA'!$B:$E,4,0)) -> 0.1 | AR58: =IF(AR$55="","",VLOOKUP($B58,'DADOS DE ENTRADA'!$B:$E,4,0)) -> 0.1 | AS58: =IF(AS$55="","",VLOOKUP($B58,'DADOS DE ENTRADA'!$B:$E,4,0)) ->  | AT58: =IF(AT$55="","",VLOOKUP($B58,'DADOS DE ENTRADA'!$B:$E,4,0)) -> 0.1 | AU58: =IF(AU$55="","",VLOOKUP($B58,'DADOS DE ENTRADA'!$B:$E,4,0)) -> 0.1 | AV58: =IF(AV$55="","",VLOOKUP($B58,'DADOS DE ENTRADA'!$B:$E,4,0)) ->  | AW58: =IF(AW$55="","",VLOOKUP($B58,'DADOS DE ENTRADA'!$B:$E,4,0)) -> 0.1 | AX58: =IF(AX$55="","",VLOOKUP($B58,'DADOS DE ENTRADA'!$B:$E,4,0)) -> 0.1 | AY58: =IF(AY$55="","",VLOOKUP($B58,'DADOS DE ENTRADA'!$B:$E,4,0)) ->  | AZ58: =IF(AZ$55="","",VLOOKUP($B58,'DADOS DE ENTRADA'!$B:$E,4,0)) ->  | BA58: =IF(BA$55="","",VLOOKUP($B58,'DADOS DE ENTRADA'!$B:$E,4,0)) -> 0.1 | BB58: =IF(BB$55="","",VLOOKUP($B58,'DADOS DE ENTRADA'!$B:$E,4,0)) -> 0.1 | BC58: =IF(BC$55="","",VLOOKUP($B58,'DADOS DE ENTRADA'!$B:$E,4,0)) -> 0.1 | BD58: =IF(BD$55="","",VLOOKUP($B58,'DADOS DE ENTRADA'!$B:$E,4,0)) -> 0.1 | BE58: =IF(BE$55="","",VLOOKUP($B58,'DADOS DE ENTRADA'!$B:$E,4,0)) ->  | BF58: =IF(BF$55="","",VLOOKUP($B58,'DADOS DE ENTRADA'!$B:$E,4,0)) -> 0.1 | BG58: =IF(BG$55="","",VLOOKUP($B58,'DADOS DE ENTRADA'!$B:$E,4,0)) -> 0.1 | BH58: =IF(BH$55="","",VLOOKUP($B58,'DADOS DE ENTRADA'!$B:$E,4,0)) -> 0.1 | BI58: =IF(BI$55="","",VLOOKUP($B58,'DADOS DE ENTRADA'!$B:$E,4,0)) -> 0.1 | BJ58: =IF(BJ$55="","",VLOOKUP($B58,'DADOS DE ENTRADA'!$B:$E,4,0)) -> 0.1 | BK58: =IF(BK$55="","",VLOOKUP($B58,'DADOS DE ENTRADA'!$B:$E,4,0)) -> 0.1 | BL58: =IF(BL$55="","",VLOOKUP($B58,'DADOS DE ENTRADA'!$B:$E,4,0)) -> 0.1 | BM58: =IF(BM$55="","",VLOOKUP($B58,'DADOS DE ENTRADA'!$B:$E,4,0)) ->  | BN58: =IF(BN$55="","",VLOOKUP($B58,'DADOS DE ENTRADA'!$B:$E,4,0)) ->  | BO58: =IF(BO$55="","",VLOOKUP($B58,'DADOS DE ENTRADA'!$B:$E,4,0)) ->  | BP58: =IF(BP$55="","",VLOOKUP($B58,'DADOS DE ENTRADA'!$B:$E,4,0)) ->  | BQ58: =IF(BQ$55="","",VLOOKUP($B58,'DADOS DE ENTRADA'!$B:$E,4,0)) ->  | BR58: =IF(BR$55="","",VLOOKUP($B58,'DADOS DE ENTRADA'!$B:$E,4,0)) ->  | BS58: =IF(BS$55="","",VLOOKUP($B58,'DADOS DE ENTRADA'!$B:$E,4,0)) ->  | BT58: =IF(BT$55="","",VLOOKUP($B58,'DADOS DE ENTRADA'!$B:$E,4,0)) ->  | BU58: =IF(BU$55="","",VLOOKUP($B58,'DADOS DE ENTRADA'!$B:$E,4,0)) ->  | BV58: =IF(BV$55="","",VLOOKUP($B58,'DADOS DE ENTRADA'!$B:$E,4,0)) ->  | BW58: =IF(BW$55="","",VLOOKUP($B58,'DADOS DE ENTRADA'!$B:$E,4,0)) ->  | BX58: =IF(BX$55="","",VLOOKUP($B58,'DADOS DE ENTRADA'!$B:$E,4,0)) ->  | BY58: =IF(BY$55="","",VLOOKUP($B58,'DADOS DE ENTRADA'!$B:$E,4,0)) ->  | BZ58: =IF(BZ$55="","",VLOOKUP($B58,'DADOS DE ENTRADA'!$B:$E,4,0)) ->  | CA58: =IF(CA$55="","",VLOOKUP($B58,'DADOS DE ENTRADA'!$B:$E,4,0)) ->  | CB58: =IF(CB$55="","",VLOOKUP($B58,'DADOS DE ENTRADA'!$B:$E,4,0)) ->  | CC58: =IF(CC$55="","",VLOOKUP($B58,'DADOS DE ENTRADA'!$B:$E,4,0)) ->  | CD58: =IF(CD$55="","",VLOOKUP($B58,'DADOS DE ENTRADA'!$B:$E,4,0)) -> 0.1 | CE58: =IF(CE$55="","",VLOOKUP($B58,'DADOS DE ENTRADA'!$B:$E,4,0)) ->  | CF58: =IF(CF$55="","",VLOOKUP($B58,'DADOS DE ENTRADA'!$B:$E,4,0)) ->  | CG58: =IF(CG$55="","",VLOOKUP($B58,'DADOS DE ENTRADA'!$B:$E,4,0)) ->  | CH58: =IF(CH$55="","",VLOOKUP($B58,'DADOS DE ENTRADA'!$B:$E,4,0)) -> 0.1 | CI58: =IF(CI$55="","",VLOOKUP($B58,'DADOS DE ENTRADA'!$B:$E,4,0)) ->  | CJ58: =IF(CJ$55="","",VLOOKUP($B58,'DADOS DE ENTRADA'!$B:$E,4,0)) ->  | CK58: =IF(CK$55="","",VLOOKUP($B58,'DADOS DE ENTRADA'!$B:$E,4,0)) ->  | CL58: =IF(CL$55="","",VLOOKUP($B58,'DADOS DE ENTRADA'!$B:$E,4,0)) ->  | CM58: =IF(CM$55="","",VLOOKUP($B58,'DADOS DE ENTRADA'!$B:$E,4,0)) -> 0.1
B59: Canal Retangular (Laje Base Largura): | C59: Le= | D59: m | E59: =IF(E55="","",E53+0.05+0.05) ->  | F59: =IF(F55="","",F53+0.05+0.05) ->  | O59: 1.09 | P59: 0.64 | Q59: 0.64 | R59: 0.64 | S59: 0.59 | T59: 0.59 | X59: 0.89 | AA59: 0.84 | AB59: 0.84 | AC59: 0.69 | AD59: 0.74 | AE59: 0.64 | AG59: 0.69 | AI59: 0.94 | AJ59: 0.89 | AK59: 0.64 | AL59: 0.89 | AO59: 0.84 | AP59: 0.74 | AQ59: 0.79 | AR59: 0.84 | AT59: 0.74 | AU59: 0.99 | AW59: 0.84 | AX59: 0.74 | BA59: 0.99 | BB59: 0.64 | BC59: 0.79 | BD59: 0.74 | BF59: 0.74 | BG59: 0.74 | BH59: 0.74 | BI59: 0.64 | BJ59: 0.74 | BK59: 0.64 | BL59: 0.69 | BR59: =IF(BR55="","",BR53+0.05+0.05) ->  | CD59: 0.69 | CH59: 0.69 | CM59: 0.59
B60: Canal retangular (Laje Base Espessura): | C60: h= | D60: m | E60: =IF(E$55="","",VLOOKUP($B60,'DADOS DE ENTRADA'!$B:$E,4,0)) ->  | F60: =IF(F$55="","",VLOOKUP($B60,'DADOS DE ENTRADA'!$B:$E,4,0)) ->  | G60: =IF(G$55="","",VLOOKUP($B60,'DADOS DE ENTRADA'!$B:$E,4,0)) ->  | H60: =IF(H$55="","",VLOOKUP($B60,'DADOS DE ENTRADA'!$B:$E,4,0)) ->  | I60: =IF(I$55="","",VLOOKUP($B60,'DADOS DE ENTRADA'!$B:$E,4,0)) ->  | J60: =IF(J$55="","",VLOOKUP($B60,'DADOS DE ENTRADA'!$B:$E,4,0)) ->  | K60: =IF(K$55="","",VLOOKUP($B60,'DADOS DE ENTRADA'!$B:$E,4,0)) ->  | L60: =IF(L$55="","",VLOOKUP($B60,'DADOS DE ENTRADA'!$B:$E,4,0)) ->  | M60: =IF(M$55="","",VLOOKUP($B60,'DADOS DE ENTRADA'!$B:$E,4,0)) ->  | N60: =IF(N$55="","",VLOOKUP($B60,'DADOS DE ENTRADA'!$B:$E,4,0)) ->  | O60: =IF(O$55="","",VLOOKUP($B60,'DADOS DE ENTRADA'!$B:$E,4,0)) -> 0.1 | P60: =IF(P$55="","",VLOOKUP($B60,'DADOS DE ENTRADA'!$B:$E,4,0)) -> 0.1 | Q60: =IF(Q$55="","",VLOOKUP($B60,'DADOS DE ENTRADA'!$B:$E,4,0)) -> 0.1 | R60: =IF(R$55="","",VLOOKUP($B60,'DADOS DE ENTRADA'!$B:$E,4,0)) -> 0.1 | S60: =IF(S$55="","",VLOOKUP($B60,'DADOS DE ENTRADA'!$B:$E,4,0)) -> 0.1 | T60: =IF(T$55="","",VLOOKUP($B60,'DADOS DE ENTRADA'!$B:$E,4,0)) -> 0.1 | U60: =IF(U$55="","",VLOOKUP($B60,'DADOS DE ENTRADA'!$B:$E,4,0)) ->  | V60: =IF(V$55="","",VLOOKUP($B60,'DADOS DE ENTRADA'!$B:$E,4,0)) ->  | W60: =IF(W$55="","",VLOOKUP($B60,'DADOS DE ENTRADA'!$B:$E,4,0)) ->  | X60: =IF(X$55="","",VLOOKUP($B60,'DADOS DE ENTRADA'!$B:$E,4,0)) -> 0.1 | Y60: =IF(Y$55="","",VLOOKUP($B60,'DADOS DE ENTRADA'!$B:$E,4,0)) ->  | Z60: =IF(Z$55="","",VLOOKUP($B60,'DADOS DE ENTRADA'!$B:$E,4,0)) ->  | AA60: =IF(AA$55="","",VLOOKUP($B60,'DADOS DE ENTRADA'!$B:$E,4,0)) -> 0.1 | AB60: =IF(AB$55="","",VLOOKUP($B60,'DADOS DE ENTRADA'!$B:$E,4,0)) -> 0.1 | AC60: =IF(AC$55="","",VLOOKUP($B60,'DADOS DE ENTRADA'!$B:$E,4,0)) -> 0.1 | AD60: =IF(AD$55="","",VLOOKUP($B60,'DADOS DE ENTRADA'!$B:$E,4,0)) -> 0.1 | AE60: =IF(AE$55="","",VLOOKUP($B60,'DADOS DE ENTRADA'!$B:$E,4,0)) -> 0.1 | AF60: =IF(AF$55="","",VLOOKUP($B60,'DADOS DE ENTRADA'!$B:$E,4,0)) ->  | AG60: =IF(AG$55="","",VLOOKUP($B60,'DADOS DE ENTRADA'!$B:$E,4,0)) -> 0.1 | AH60: =IF(AH$55="","",VLOOKUP($B60,'DADOS DE ENTRADA'!$B:$E,4,0)) ->  | AI60: =IF(AI$55="","",VLOOKUP($B60,'DADOS DE ENTRADA'!$B:$E,4,0)) -> 0.1 | AJ60: =IF(AJ$55="","",VLOOKUP($B60,'DADOS DE ENTRADA'!$B:$E,4,0)) -> 0.1 | AK60: =IF(AK$55="","",VLOOKUP($B60,'DADOS DE ENTRADA'!$B:$E,4,0)) -> 0.1 | AL60: =IF(AL$55="","",VLOOKUP($B60,'DADOS DE ENTRADA'!$B:$E,4,0)) -> 0.1 | AM60: =IF(AM$55="","",VLOOKUP($B60,'DADOS DE ENTRADA'!$B:$E,4,0)) ->  | AN60: =IF(AN$55="","",VLOOKUP($B60,'DADOS DE ENTRADA'!$B:$E,4,0)) ->  | AO60: =IF(AO$55="","",VLOOKUP($B60,'DADOS DE ENTRADA'!$B:$E,4,0)) -> 0.1 | AP60: =IF(AP$55="","",VLOOKUP($B60,'DADOS DE ENTRADA'!$B:$E,4,0)) -> 0.1 | AQ60: =IF(AQ$55="","",VLOOKUP($B60,'DADOS DE ENTRADA'!$B:$E,4,0)) -> 0.1 | AR60: =IF(AR$55="","",VLOOKUP($B60,'DADOS DE ENTRADA'!$B:$E,4,0)) -> 0.1 | AS60: =IF(AS$55="","",VLOOKUP($B60,'DADOS DE ENTRADA'!$B:$E,4,0)) ->  | AT60: =IF(AT$55="","",VLOOKUP($B60,'DADOS DE ENTRADA'!$B:$E,4,0)) -> 0.1 | AU60: =IF(AU$55="","",VLOOKUP($B60,'DADOS DE ENTRADA'!$B:$E,4,0)) -> 0.1 | AV60: =IF(AV$55="","",VLOOKUP($B60,'DADOS DE ENTRADA'!$B:$E,4,0)) ->  | AW60: =IF(AW$55="","",VLOOKUP($B60,'DADOS DE ENTRADA'!$B:$E,4,0)) -> 0.1 | AX60: =IF(AX$55="","",VLOOKUP($B60,'DADOS DE ENTRADA'!$B:$E,4,0)) -> 0.1 | AY60: =IF(AY$55="","",VLOOKUP($B60,'DADOS DE ENTRADA'!$B:$E,4,0)) ->  | AZ60: =IF(AZ$55="","",VLOOKUP($B60,'DADOS DE ENTRADA'!$B:$E,4,0)) ->  | BA60: =IF(BA$55="","",VLOOKUP($B60,'DADOS DE ENTRADA'!$B:$E,4,0)) -> 0.1 | BB60: =IF(BB$55="","",VLOOKUP($B60,'DADOS DE ENTRADA'!$B:$E,4,0)) -> 0.1 | BC60: =IF(BC$55="","",VLOOKUP($B60,'DADOS DE ENTRADA'!$B:$E,4,0)) -> 0.1 | BD60: =IF(BD$55="","",VLOOKUP($B60,'DADOS DE ENTRADA'!$B:$E,4,0)) -> 0.1 | BE60: =IF(BE$55="","",VLOOKUP($B60,'DADOS DE ENTRADA'!$B:$E,4,0)) ->  | BF60: =IF(BF$55="","",VLOOKUP($B60,'DADOS DE ENTRADA'!$B:$E,4,0)) -> 0.1 | BG60: =IF(BG$55="","",VLOOKUP($B60,'DADOS DE ENTRADA'!$B:$E,4,0)) -> 0.1 | BH60: =IF(BH$55="","",VLOOKUP($B60,'DADOS DE ENTRADA'!$B:$E,4,0)) -> 0.1 | BI60: =IF(BI$55="","",VLOOKUP($B60,'DADOS DE ENTRADA'!$B:$E,4,0)) -> 0.1 | BJ60: =IF(BJ$55="","",VLOOKUP($B60,'DADOS DE ENTRADA'!$B:$E,4,0)) -> 0.1 | BK60: =IF(BK$55="","",VLOOKUP($B60,'DADOS DE ENTRADA'!$B:$E,4,0)) -> 0.1 | BL60: =IF(BL$55="","",VLOOKUP($B60,'DADOS DE ENTRADA'!$B:$E,4,0)) -> 0.1 | BM60: =IF(BM$55="","",VLOOKUP($B60,'DADOS DE ENTRADA'!$B:$E,4,0)) ->  | BN60: =IF(BN$55="","",VLOOKUP($B60,'DADOS DE ENTRADA'!$B:$E,4,0)) ->  | BO60: =IF(BO$55="","",VLOOKUP($B60,'DADOS DE ENTRADA'!$B:$E,4,0)) ->  | BP60: =IF(BP$55="","",VLOOKUP($B60,'DADOS DE ENTRADA'!$B:$E,4,0)) ->  | BQ60: =IF(BQ$55="","",VLOOKUP($B60,'DADOS DE ENTRADA'!$B:$E,4,0)) ->  | BR60: =IF(BR$55="","",VLOOKUP($B60,'DADOS DE ENTRADA'!$B:$E,4,0)) ->  | BS60: =IF(BS$55="","",VLOOKUP($B60,'DADOS DE ENTRADA'!$B:$E,4,0)) ->  | BT60: =IF(BT$55="","",VLOOKUP($B60,'DADOS DE ENTRADA'!$B:$E,4,0)) ->  | BU60: =IF(BU$55="","",VLOOKUP($B60,'DADOS DE ENTRADA'!$B:$E,4,0)) ->  | BV60: =IF(BV$55="","",VLOOKUP($B60,'DADOS DE ENTRADA'!$B:$E,4,0)) ->  | BW60: =IF(BW$55="","",VLOOKUP($B60,'DADOS DE ENTRADA'!$B:$E,4,0)) ->  | BX60: =IF(BX$55="","",VLOOKUP($B60,'DADOS DE ENTRADA'!$B:$E,4,0)) ->  | BY60: =IF(BY$55="","",VLOOKUP($B60,'DADOS DE ENTRADA'!$B:$E,4,0)) ->  | BZ60: =IF(BZ$55="","",VLOOKUP($B60,'DADOS DE ENTRADA'!$B:$E,4,0)) ->  | CA60: =IF(CA$55="","",VLOOKUP($B60,'DADOS DE ENTRADA'!$B:$E,4,0)) ->  | CB60: =IF(CB$55="","",VLOOKUP($B60,'DADOS DE ENTRADA'!$B:$E,4,0)) ->  | CC60: =IF(CC$55="","",VLOOKUP($B60,'DADOS DE ENTRADA'!$B:$E,4,0)) ->  | CD60: =IF(CD$55="","",VLOOKUP($B60,'DADOS DE ENTRADA'!$B:$E,4,0)) -> 0.1 | CE60: =IF(CE$55="","",VLOOKUP($B60,'DADOS DE ENTRADA'!$B:$E,4,0)) ->  | CF60: =IF(CF$55="","",VLOOKUP($B60,'DADOS DE ENTRADA'!$B:$E,4,0)) ->  | CG60: =IF(CG$55="","",VLOOKUP($B60,'DADOS DE ENTRADA'!$B:$E,4,0)) ->  | CH60: =IF(CH$55="","",VLOOKUP($B60,'DADOS DE ENTRADA'!$B:$E,4,0)) -> 0.1 | CI60: =IF(CI$55="","",VLOOKUP($B60,'DADOS DE ENTRADA'!$B:$E,4,0)) ->  | CJ60: =IF(CJ$55="","",VLOOKUP($B60,'DADOS DE ENTRADA'!$B:$E,4,0)) ->  | CK60: =IF(CK$55="","",VLOOKUP($B60,'DADOS DE ENTRADA'!$B:$E,4,0)) ->  | CL60: =IF(CL$55="","",VLOOKUP($B60,'DADOS DE ENTRADA'!$B:$E,4,0)) ->  | CM60: =IF(CM$55="","",VLOOKUP($B60,'DADOS DE ENTRADA'!$B:$E,4,0)) -> 0.1
B61: Canal Retangular (Viga Horizontal Superior Largura): | C61: vs= | D61: m | E61: =IF(E$55="","",VLOOKUP($B61,'DADOS DE ENTRADA'!$B:$E,4,0)) ->  | F61: =IF(F$55="","",VLOOKUP($B61,'DADOS DE ENTRADA'!$B:$E,4,0)) ->  | G61: =IF(G$55="","",VLOOKUP($B61,'DADOS DE ENTRADA'!$B:$E,4,0)) ->  | H61: =IF(H$55="","",VLOOKUP($B61,'DADOS DE ENTRADA'!$B:$E,4,0)) ->  | I61: =IF(I$55="","",VLOOKUP($B61,'DADOS DE ENTRADA'!$B:$E,4,0)) ->  | J61: =IF(J$55="","",VLOOKUP($B61,'DADOS DE ENTRADA'!$B:$E,4,0)) ->  | K61: =IF(K$55="","",VLOOKUP($B61,'DADOS DE ENTRADA'!$B:$E,4,0)) ->  | L61: =IF(L$55="","",VLOOKUP($B61,'DADOS DE ENTRADA'!$B:$E,4,0)) ->  | M61: =IF(M$55="","",VLOOKUP($B61,'DADOS DE ENTRADA'!$B:$E,4,0)) ->  | N61: =IF(N$55="","",VLOOKUP($B61,'DADOS DE ENTRADA'!$B:$E,4,0)) ->  | O61: =IF(O$55="","",VLOOKUP($B61,'DADOS DE ENTRADA'!$B:$E,4,0)) -> 0.12 | P61: =IF(P$55="","",VLOOKUP($B61,'DADOS DE ENTRADA'!$B:$E,4,0)) -> 0.12 | Q61: =IF(Q$55="","",VLOOKUP($B61,'DADOS DE ENTRADA'!$B:$E,4,0)) -> 0.12 | R61: =IF(R$55="","",VLOOKUP($B61,'DADOS DE ENTRADA'!$B:$E,4,0)) -> 0.12 | S61: =IF(S$55="","",VLOOKUP($B61,'DADOS DE ENTRADA'!$B:$E,4,0)) -> 0.12 | T61: =IF(T$55="","",VLOOKUP($B61,'DADOS DE ENTRADA'!$B:$E,4,0)) -> 0.12 | U61: =IF(U$55="","",VLOOKUP($B61,'DADOS DE ENTRADA'!$B:$E,4,0)) ->  | V61: =IF(V$55="","",VLOOKUP($B61,'DADOS DE ENTRADA'!$B:$E,4,0)) ->  | W61: =IF(W$55="","",VLOOKUP($B61,'DADOS DE ENTRADA'!$B:$E,4,0)) ->  | X61: =IF(X$55="","",VLOOKUP($B61,'DADOS DE ENTRADA'!$B:$E,4,0)) -> 0.12 | Y61: =IF(Y$55="","",VLOOKUP($B61,'DADOS DE ENTRADA'!$B:$E,4,0)) ->  | Z61: =IF(Z$55="","",VLOOKUP($B61,'DADOS DE ENTRADA'!$B:$E,4,0)) ->  | AA61: =IF(AA$55="","",VLOOKUP($B61,'DADOS DE ENTRADA'!$B:$E,4,0)) -> 0.12 | AB61: =IF(AB$55="","",VLOOKUP($B61,'DADOS DE ENTRADA'!$B:$E,4,0)) -> 0.12 | AC61: =IF(AC$55="","",VLOOKUP($B61,'DADOS DE ENTRADA'!$B:$E,4,0)) -> 0.12 | AD61: =IF(AD$55="","",VLOOKUP($B61,'DADOS DE ENTRADA'!$B:$E,4,0)) -> 0.12 | AE61: =IF(AE$55="","",VLOOKUP($B61,'DADOS DE ENTRADA'!$B:$E,4,0)) -> 0.12 | AF61: =IF(AF$55="","",VLOOKUP($B61,'DADOS DE ENTRADA'!$B:$E,4,0)) ->  | AG61: =IF(AG$55="","",VLOOKUP($B61,'DADOS DE ENTRADA'!$B:$E,4,0)) -> 0.12 | AH61: =IF(AH$55="","",VLOOKUP($B61,'DADOS DE ENTRADA'!$B:$E,4,0)) ->  | AI61: =IF(AI$55="","",VLOOKUP($B61,'DADOS DE ENTRADA'!$B:$E,4,0)) -> 0.12 | AJ61: =IF(AJ$55="","",VLOOKUP($B61,'DADOS DE ENTRADA'!$B:$E,4,0)) -> 0.12 | AK61: =IF(AK$55="","",VLOOKUP($B61,'DADOS DE ENTRADA'!$B:$E,4,0)) -> 0.12 | AL61: =IF(AL$55="","",VLOOKUP($B61,'DADOS DE ENTRADA'!$B:$E,4,0)) -> 0.12 | AM61: =IF(AM$55="","",VLOOKUP($B61,'DADOS DE ENTRADA'!$B:$E,4,0)) ->  | AN61: =IF(AN$55="","",VLOOKUP($B61,'DADOS DE ENTRADA'!$B:$E,4,0)) ->  | AO61: =IF(AO$55="","",VLOOKUP($B61,'DADOS DE ENTRADA'!$B:$E,4,0)) -> 0.12 | AP61: =IF(AP$55="","",VLOOKUP($B61,'DADOS DE ENTRADA'!$B:$E,4,0)) -> 0.12 | AQ61: =IF(AQ$55="","",VLOOKUP($B61,'DADOS DE ENTRADA'!$B:$E,4,0)) -> 0.12 | AR61: =IF(AR$55="","",VLOOKUP($B61,'DADOS DE ENTRADA'!$B:$E,4,0)) -> 0.12 | AS61: =IF(AS$55="","",VLOOKUP($B61,'DADOS DE ENTRADA'!$B:$E,4,0)) ->  | AT61: =IF(AT$55="","",VLOOKUP($B61,'DADOS DE ENTRADA'!$B:$E,4,0)) -> 0.12 | AU61: =IF(AU$55="","",VLOOKUP($B61,'DADOS DE ENTRADA'!$B:$E,4,0)) -> 0.12 | AV61: =IF(AV$55="","",VLOOKUP($B61,'DADOS DE ENTRADA'!$B:$E,4,0)) ->  | AW61: =IF(AW$55="","",VLOOKUP($B61,'DADOS DE ENTRADA'!$B:$E,4,0)) -> 0.12 | AX61: =IF(AX$55="","",VLOOKUP($B61,'DADOS DE ENTRADA'!$B:$E,4,0)) -> 0.12 | AY61: =IF(AY$55="","",VLOOKUP($B61,'DADOS DE ENTRADA'!$B:$E,4,0)) ->  | AZ61: =IF(AZ$55="","",VLOOKUP($B61,'DADOS DE ENTRADA'!$B:$E,4,0)) ->  | BA61: =IF(BA$55="","",VLOOKUP($B61,'DADOS DE ENTRADA'!$B:$E,4,0)) -> 0.12 | BB61: =IF(BB$55="","",VLOOKUP($B61,'DADOS DE ENTRADA'!$B:$E,4,0)) -> 0.12 | BC61: =IF(BC$55="","",VLOOKUP($B61,'DADOS DE ENTRADA'!$B:$E,4,0)) -> 0.12 | BD61: =IF(BD$55="","",VLOOKUP($B61,'DADOS DE ENTRADA'!$B:$E,4,0)) -> 0.12 | BE61: =IF(BE$55="","",VLOOKUP($B61,'DADOS DE ENTRADA'!$B:$E,4,0)) ->  | BF61: =IF(BF$55="","",VLOOKUP($B61,'DADOS DE ENTRADA'!$B:$E,4,0)) -> 0.12 | BG61: =IF(BG$55="","",VLOOKUP($B61,'DADOS DE ENTRADA'!$B:$E,4,0)) -> 0.12 | BH61: =IF(BH$55="","",VLOOKUP($B61,'DADOS DE ENTRADA'!$B:$E,4,0)) -> 0.12 | BI61: =IF(BI$55="","",VLOOKUP($B61,'DADOS DE ENTRADA'!$B:$E,4,0)) -> 0.12 | BJ61: =IF(BJ$55="","",VLOOKUP($B61,'DADOS DE ENTRADA'!$B:$E,4,0)) -> 0.12 | BK61: =IF(BK$55="","",VLOOKUP($B61,'DADOS DE ENTRADA'!$B:$E,4,0)) -> 0.12 | BL61: =IF(BL$55="","",VLOOKUP($B61,'DADOS DE ENTRADA'!$B:$E,4,0)) -> 0.12 | BM61: =IF(BM$55="","",VLOOKUP($B61,'DADOS DE ENTRADA'!$B:$E,4,0)) ->  | BN61: =IF(BN$55="","",VLOOKUP($B61,'DADOS DE ENTRADA'!$B:$E,4,0)) ->  | BO61: =IF(BO$55="","",VLOOKUP($B61,'DADOS DE ENTRADA'!$B:$E,4,0)) ->  | BP61: =IF(BP$55="","",VLOOKUP($B61,'DADOS DE ENTRADA'!$B:$E,4,0)) ->  | BQ61: =IF(BQ$55="","",VLOOKUP($B61,'DADOS DE ENTRADA'!$B:$E,4,0)) ->  | BR61: =IF(BR$55="","",VLOOKUP($B61,'DADOS DE ENTRADA'!$B:$E,4,0)) ->  | BS61: =IF(BS$55="","",VLOOKUP($B61,'DADOS DE ENTRADA'!$B:$E,4,0)) ->  | BT61: =IF(BT$55="","",VLOOKUP($B61,'DADOS DE ENTRADA'!$B:$E,4,0)) ->  | BU61: =IF(BU$55="","",VLOOKUP($B61,'DADOS DE ENTRADA'!$B:$E,4,0)) ->  | BV61: =IF(BV$55="","",VLOOKUP($B61,'DADOS DE ENTRADA'!$B:$E,4,0)) ->  | BW61: =IF(BW$55="","",VLOOKUP($B61,'DADOS DE ENTRADA'!$B:$E,4,0)) ->  | BX61: =IF(BX$55="","",VLOOKUP($B61,'DADOS DE ENTRADA'!$B:$E,4,0)) ->  | BY61: =IF(BY$55="","",VLOOKUP($B61,'DADOS DE ENTRADA'!$B:$E,4,0)) ->  | BZ61: =IF(BZ$55="","",VLOOKUP($B61,'DADOS DE ENTRADA'!$B:$E,4,0)) ->  | CA61: =IF(CA$55="","",VLOOKUP($B61,'DADOS DE ENTRADA'!$B:$E,4,0)) ->  | CB61: =IF(CB$55="","",VLOOKUP($B61,'DADOS DE ENTRADA'!$B:$E,4,0)) ->  | CC61: =IF(CC$55="","",VLOOKUP($B61,'DADOS DE ENTRADA'!$B:$E,4,0)) ->  | CD61: =IF(CD$55="","",VLOOKUP($B61,'DADOS DE ENTRADA'!$B:$E,4,0)) -> 0.12 | CE61: =IF(CE$55="","",VLOOKUP($B61,'DADOS DE ENTRADA'!$B:$E,4,0)) ->  | CF61: =IF(CF$55="","",VLOOKUP($B61,'DADOS DE ENTRADA'!$B:$E,4,0)) ->  | CG61: =IF(CG$55="","",VLOOKUP($B61,'DADOS DE ENTRADA'!$B:$E,4,0)) ->  | CH61: =IF(CH$55="","",VLOOKUP($B61,'DADOS DE ENTRADA'!$B:$E,4,0)) -> 0.12 | CI61: =IF(CI$55="","",VLOOKUP($B61,'DADOS DE ENTRADA'!$B:$E,4,0)) ->  | CJ61: =IF(CJ$55="","",VLOOKUP($B61,'DADOS DE ENTRADA'!$B:$E,4,0)) ->  | CK61: =IF(CK$55="","",VLOOKUP($B61,'DADOS DE ENTRADA'!$B:$E,4,0)) ->  | CL61: =IF(CL$55="","",VLOOKUP($B61,'DADOS DE ENTRADA'!$B:$E,4,0)) ->  | CM61: =IF(CM$55="","",VLOOKUP($B61,'DADOS DE ENTRADA'!$B:$E,4,0)) -> 0.12
